Workbook

Sheet Parametros (hidden)
A1: fondos | B1: denominacion | D1: CENTRO GESTOR | G1: Posicion presupuestaria | H1: denominacion | I1: caracteres | K1: Área funcional | N1: CD | Q1: Per. Presup. | T1: clase importe | U1: descripcion
A2: FNFP | B2: Primer trimestre fun | D2: 2001001 | E2: FUNCIONAMIENTO | G2: 4 | H2: INGRESOS | I2: =LEN(G2) -> 1 | K2: 5110600001 | L2: SEMILLAS (BÁSICAS, REGIST | N2: Z1Q | O2: Distribucion primer trimestre | Q2: Q1 | R2: PRIMER TRIMESTRE DEL AÑO | T2: 100 | U2: Original
A3: FNFP1_INV | B3: Primer trimestre Inv | D3: 2002001 | E3: SIST Y CONTROL | G3: 41 | H3: INGRESOS FISCALES | I3: =LEN(G3) -> 2 | K3: 5110600002 | L3: MINITUBERCULOS | N3: Z2Q | O3: Distribucion segundo trimestre | Q3: Q2 | R3: SEGUNDO TRIMESTRE DEL AÑO | T3: 110 | U3: Autorizado en el workflow (sólo ledger de workflow 9D)
A4: FNFP2 | B4: Segundo trimestre | D4: 2004001 | E4: ASISTENCIA TECNICA | G4: 4115 | H4: RENTAS PARAFISCALES | I4: 4 | K4: 5110600003 | L4: INSUMOS AGRÍCOLAS | N4: Z3Q | O4: Distribucion tercer trimestre | Q4: Q3 | R4: TERCER TRIMESTRE DEL AÑO | T4: 120 | U4: No autorizado en el workflow (sólo ledger de workflow 9D)
A5: FNFP2_INV | B5: Segundo trimestre | D5: 2005001 | E5: SIS INFO ECONOMICA | G5: 411503 | H5: CUOTA PARAFISCAL | I5: 6 | K5: 5110600004 | L5: ANÁLISIS MICROBIOLÓGICOS | N5: Z4Q | O5: Distribucion cuarto trimestre | Q5: Q4 | R5: CUARTO TRIMESTRE DEL AÑO | T5: 150 | U5: Modificación
A6: FNFP3 | B6: Tercer trimestre | D6: 2006001 | E6: SEM TEC INTER PAPA | G6: 4115030100 | H6: CUOTA PARAFISCAL | I6: 10 | K6: 5110600005 | L6: ANÁLISIS DE SUELO | T6: 200 | U6: Reducción
A7: FNFP3_INV | B7: Tercer trimestre | D7: 2007001 | E7: CAMPAÑAS DE CONSUMO | G7: 4115030200 | H7: CUOTA PARAFISCAL VIG | I7: 10 | K7: 5110600006 | L7: ANÁLISIS FOLIARES | T7: 210 | U7: Reducción liquidación cheques
A8: FNFP4 | B8: Cuarto trimestre Fun | D8: 2008001 | E8: ESTUDIO POLITICA SAC | G8: 4115030300 | H8: CUOTA PARAFISCAL AJU | I8: 10 | K8: 5110600007 | L8: ALQUILER DE DRON IMÁGENES | T8: 220 | U8: Modificación por revaluación
A9: FNFP4_INV | B9: Cuarto trimestre Inv | D9: 2009001 | E9: PLAN ESTRA CONSUMO | G9: 411590 | H9: OTRAS RENTAS PARAFIS | I9: 6 | K9: 5110600008 | L9: ALQUILER DE DRON FUMIGACION | T9: 250 | U9: Pagado
D10: 2010001 | E10: FORMALIZACION LABORA | G10: 4115900100 | H10: OTRAS RENTAS PARAFIS | I10: 10 | K10: 5110600009 | L10: TRAMPAS TECIA SOLANIVORA | T10: 260 | U10: Pagado Liquidación cheques
D11: 2011001 | E11: AGROEXPO | G11: 43 | H11: VENTA DE SERVICIOS | I11: 2 | K11: 5110600010 | L11: REACTIVOS | T11: 270 | U11: Abono pagado
D12: 2012001 | E12: ASOCIATIVIDAD | G12: 4330 | H12: SERVICIOS DE TRANSPO | I12: 4 | K12: 5110600011 | L12: REACTIVOS BIOLOGÍA MOLECU | T12: 300 | U12: Transferencia ejercicio anterior (comprometido)
D13: 2013001 | E13: VERTICILLIUM | G13: 433011 | H13: SERVICIO DE TRANSPOR | I13: 6 | K13: 5110600012 | L13: DIAGNOSTICO DE MUESTRAS | T13: 350 | U13: Transferencia ejercicio siguiente (comprometido)
D14: 2014001 | E14: GENOTIPO | G14: 433090 | H14: OTROS SERVICIOS DE T | I14: 6 | K14: 5110600013 | L14: ADECUACIONES INVERNADEROS | T14: 351 | U14: Arrastre del comprometido: Transferencia importe consumido
D15: 2015001 | E15: MECANISMO DE DEFENSA | G15: 4390 | H15: OTROS SERVICIOS | I15: 4 | K15: 5110600014 | L15: INSUMOS AGRÍCOLAS LOTES D | T15: 352 | U15: Arrastre del comprometido: Reducción importe consumido
D16: 2016001 | E16: MARCO ESTRATEGICO | G16: 439004 | H16: ASISTENCIA TECNICA | I16: 6 | K16: 5110600015 | L16: SUELO NEGRO | T16: 360 | U16: Saldo de ejercicios ant.
D17: 2017001 | E17: AT ESTRÉS | G17: 439090 | H17: OTROS SERVICIOS | I17: 6 | K17: 5110600016 | L17: PRUEBAS DE EVALUACIÓN AGR | T17: 400 | U17: Entrada bloqueo
D18: 2018001 | E18: AT PMP | G18: 4395 | H18: DEVOLUCIONES, REBAJA | I18: 4 | K18: 5110600017 | L18: LIMPIEZA DE MATERIAL VEGE | T18: 500 | U18: Ajuste mediante documento subsiguiente
D19: 2019001 | E19: PROMOCION DIVULGACION | G19: 439506 | H19: SERVICIOS DE TRANSPO | I19: 6 | K19: 5110600018 | L19: SECUENCIACION DE RNA | T19: 600 | U19: Reimputación baja
D20: 2020001 | E20: POP | G20: 44 | H20: TRANSFERENCIAS Y SUB | I20: 2 | K20: 5110600019 | L20: TRAMPAS CROMATICAS AMARILLAS | T20: 650 | U20: Reimputación alta
D21: 2021001 | E21: SEMILLA CERTIFICADA | G21: 4430 | H21: SUBVENCIONES | I21: 4 | K21: 5110600020 | L21: Compra de medios | T21: 700 | U21: Liquidación baja
D22: 2022001 | E22: TRANSFORMACIÓN | G22: 443004 | H22: DONACIONES | I22: 6 | K22: 5110600021 | L22: Plan de medios | T22: 750 | U22: Liquidación alta
G23: 443005 | H23: SUBVENCION POR RECU | I23: 6 | K23: 5110600022 | L23: Producción piezas y derechos
G24: 443090 | H24: OTRAS SUBVENCIONES | I24: 6 | K24: 5110600023 | L24: Investigación de consumo per cápita de papa
G25: 48 | H25: OTROS INGRESOS | I25: 2 | K25: 5110600024 | L25: Inversión digital
G26: 4802 | H26: FINANCIEROS | I26: 4 | K26: 5110600025 | L26: Marketing influencers
G27: 480201 | H27: INTERESES SOBRE DEP | I27: 6 | K27: 5110600026 | L27: Renovación Hosting Pagina preparalapapa
G28: 4802010100 | H28: INTERESES SOBRE DEPO | I28: 10 | K28: 5110600027 | L28: Dominio www.preparalapapa.com
G29: 480204 | H29: INTERESES DE FONDO D | I29: 6 | K29: 5110600028 | L29: Certificado SSL para Pagina Preparalapapa.com
G30: 480211 | H30: RENDIMIENTO EFECTIVO | I30: 6 | K30: 5110600029 | L30: Activaciones BTL
G31: 480233 | H31: INTERESES DE MORA | I31: 6 | K31: 5110600030 | L31: Divulgacion tecnica
G32: 4802330100 | H32: INTERESES DE MORA | I32: 10 | K32: 5110600031 | L32: Divulgacion del proyecto
G33: 480243 | H33: INTERESES DEL PLAN D | I33: 6 | K33: 5110600032 | L33: Capacitacion agricultores
G34: 480290 | H34: DESCUENTOS | I34: 6 | K34: 5110600033 | L34: Salud en el trabajo
G35: 4805 | H35: INTERESES | I35: 4 | K35: 5110600034 | L35: Muebles y enseres
G36: 480513 | H36: INTERESES DE MORA | I36: 6 | K36: 5110600035 | L36: Equipo de oficina
G37: 4805130100 | H37: INTERESES DE MORA | I37: 10 | K37: 5110600036 | L37: Equipo de comunicación
G38: 480522 | H38: INTERESES SOBRE DEPÓ | I38: 6 | K38: 5110600037 | L38: Equipo de computo
G39: 4805220100 | H39: INTERESES SOBRE DEPÓ | I39: 10 | K39: 5110600038 | L39: Licencias
G40: 4806 | H40: AJUSTE POR DIFERENCI | I40: 4 | K40: 5110600039 | L40: Auxilios de movilizacion
G41: 480601 | H41: EFECTIVO Y EQUIVALEN | I41: 6 | K41: 5110600040 | L41: Gastos legales
G42: 4806010100 | H42: SUPERAVIT VIGENCIAS ANTERIORES | K42: 5110600041 | L42: Seguros
G43: 480602 | H43: CUENTAS POR COBRAR | I43: =LEN(G43) -> 6 | K43: 5110600042 | L43: Gira de riego
G44: 480603 | H44: PTE | I44: 6 | K44: 5110600043 | L44: Kit de campo
G45: 480612 | H45: ADQUISICION DE BIEN | I45: 6 | K45: 5110600044 | L45: Transporte de insumos
G46: 480613 | H46: ADQUISICION DE BIEN | I46: 6 | K46: 5110600045 | L46: Abastecimiento y cadena logistica
G47: 480636 | H47: INVERSIONES | I47: 6 | K47: 5110600046 | L47: Estructura y competitividad
G48: 480642 | H48: FINANCIAMIENTO INTER | I48: 6 | K48: 5110600047 | L48: Oportunidades comerciales
G49: 480645 | H49: FINANCIAMIENTO EXTER | I49: 6 | K49: 5110600048 | L49: Consumo percápita papa
G50: 480646 | H50: PRESTAMOS POR COBRA | I50: 6 | K50: 5110600049 | L50: Estudio percepción
G51: 480647 | H51: CUENTAS POR PAGAR | I51: 6 | K51: 5110600050 | L51: Merchandising
G52: 4808 | H52: INGRESOS DIVERSOS | I52: 4 | K52: 5110600051 | L52: Merchandising Recaudo/Técnico
G53: 480803 | H53: CUOTAS PARTES DE PEN | I53: 6 | K53: 5110600052 | L53: ATL - BTL - DIGITAL
G54: 480805 | H54: GANANCIAS POR BAJA E | I54: 6 | K54: 5110600053 | L54: PRODUCCIÓN CONTENIDO MULT
G55: 480825 | H55: SOBRANTES | I55: 6 | K55: 5110600054 | L55: Herramientas carac edafoclimática
G56: 4808250100 | H56: SOBRANTES | I56: 10 | K56: 5110600055 | L56: Medición áreas sembrada
G57: 480826 | H57: RECUPERACIONES | I57: 6 | K57: 5110600056 | L57: Investigación nutricional variedades
G58: 4808260100 | H58: RECUPERACIONES | I58: 10 | K58: 5110600057 | L58: Estudio prefactibilidad
G59: 4808260200 | H59: INCAPACIDADES | I59: 10 | K59: 5110600058 | L59: Estudio exploratorio
G60: 480827 | H60: APROVECHAMIENTOS | I60: 6 | K60: 5110600059 | L60: Estudio proyección merc inter y sus subproductos industriales
G61: 4808270100 | H61: APROVECHAMIENTOS | I61: 10 | K61: 5110600060 | L61: AGROEXPO
G62: 480828 | H62: INDEMNIZACIONES | I62: 6 | K62: 5110600061 | L62: Inv subproductos agroindustriales
G63: 4808280100 | H63: INDEMNIZACIONES | I63: 10 | K63: 5110600062 | L63: Túberculo semilla cat certificada
G64: 480890 | H64: OTROS INGRESOS DIVER | I64: 6 | K64: 5110600063 | L64: Analisis de virus y patog
G65: 4808900100 | H65: TRASLADO RECURSOS FO | I65: 10 | K65: 5110600064 | L65: Insumos de laboratorio y campo de investigación para patógenos de suelo.
G66: 4810 | H66: INGRESOS DIVERSOS | I66: 4 | K66: 5110600065 | L66: Estudio analisis vulnerabilidad por riesgo cambio climatico
G67: 481007 | H67: SOBRANTES | I67: 6 | K67: 5110600066 | L67: Pauta Digital
G68: 4810070100 | H68: SOBRANTES | I68: 10 | K68: 5110600067 | L68: Identificación en campo
G69: 481008 | H69: RECUPERACIONES | I69: 6 | K69: 5110600068 | L69: Capacitacion organizaciones
G70: 4810080100 | H70: RECUPERACIONES | I70: 10 | K70: 5110600069 | L70: Estudio diseño de estrategias para el mejoramiento del desempeño ambiental de la cadena de la papa en Colombia.
G71: 4810080200 | H71: INCAPACIDADES | I71: 10 | K71: 5110600070 | L71: Estudio de caracterización de tecnologías y diseño de estrategia logística para la optimización del subsector papa en Colombia.
G72: 481047 | H72: APROVECHAMIENTOS | I72: 6 | K72: 5110600071 | L72: Estudio de competitividad de la industria de la papa procesada a partir de la aplicación de estrategias de inteligencia de mercados.
G73: 4810470100 | H73: APROVECHAMIENTOS | I73: 10 | K73: 5110600072 | L73: Análisis y caracterización de producto
G74: 481090 | H74: TRASLADO RECURSOS FO | I74: 6 | K74: 5110600073 | L74: Vigilancia y seguridad
G75: 4810900100 | H75: TRASLADO RECURSOS FO | I75: 10 | K75: 5110600074 | L75: Aseo
G76: 4815 | H76: INGRESOS EJERCICIOS | I76: 4 | K76: GENERAL | L76: AREA FUNCIONAL GENERAL
G77: 481556 | H77: VENTA DE SERVICIOS | I77: 6 | K77: 5110600075 | L77: Plataforma mailing
G78: 481559 | H78: OTROS INGRESOS | I78: 6 | K78: 5110600076 | L78: Producción de contenido audiovisual y nuevas tecnologías
G79: 4815590100 | H79: OTROS INGRESOS | I79: 10 | K79: 5110600077 | L79: Est e inv economicas
G80: 4830 | H80: REVERSION DE LAS PER | I80: 4
G81: 483002 | H81: CUENTAS POR COBRAR | I81: 6
G82: 483006 | H82: PROPIEDAD PLANTA Y E | I82: 6
G83: 4808630100 | H83: OTROS INGRESOS | I83: 10
G84: 5 | H84: GASTOS | I84: 1
G85: 51 | H85: DE ADMINISTRACION | I85: 2
G86: 5101 | H86: SUELDOS Y SALARIOS | I86: 4
G87: 510101 | H87: SUELDOS | I87: 6
G88: 5101010100 | H88: SUELDOS DEL PERSONAL | I88: 10
G89: 5101010200 | H89: APOYO DE SOSTENIMIEN | I89: 10
G90: 510103 | H90: HORAS EXTRAS Y FESTI | I90: 6
G91: 510105 | H91: GASTOS DE REPRESENTA | I91: 6
G92: 510109 | H92: HONORARIOS | I92: 6
G93: 5101090100 | H93: HONORARIOS | I93: 10
G94: 510117 | H94: VACACIONES | I94: 6
G95: 5101170100 | H95: VACACIONES | I95: 10
G96: 510119 | H96: BONIFICACIONES | I96: 6
G97: 510123 | H97: AUXILIO DE TRANSPORT | I97: 6
G98: 5101230100 | H98: AUXILIO DE TRANSPORT | I98: 10
G99: 510124 | H99: CESANTIAS | I99: 6
G100: 5101240100 | H100: CESANTIAS | I100: 10
G101: 510125 | H101: INTERESES A LAS CESA | I101: 6
G102: 5101250100 | H102: INTERESES A LAS CESA | I102: 10
G103: 510130 | H103: CAPACITACION Y DIVUL | I103: 6
G104: 5101300100 | H104: DIVULGACION | I104: 10
G105: 5101300200 | H105: CAPACITACION | I105: 10
G106: 510131 | H106: DOTACION Y SUMINISTR | I106: 6
G107: 5101310100 | H107: DOTACION Y SUMINISTR | I107: 10
G108: 510152 | H108: PRIMA DE SERVICIOS | I108: =LEN(G108) -> 6
G109: 5101520100 | H109: PRIMA DE SERVICIOS | I109: 10
G110: 510160 | H110: SUBSIDIO DE ALIMENTA | I110: 6
G111: 5102 | H111: CONTRIBUCIONES IMPUT | I111: 4
G112: 510201 | H112: INCAPACIDADES | I112: 6
G113: 5102010100 | H113: INCAPACIDADES | I113: 10
G114: 510203 | H114: INDEMNIZACIONES | I114: 6
G115: 5102030100 | H115: INDEMNIZACIONES | I115: 10
G116: 510204 | H116: GASTOS MEDICOS Y DR | I116: 6
G117: 510206 | H117: PENSIONES DE JUBILAC | I117: 6
G118: 510207 | H118: CUOTAS PARTES DE PEN | I118: 6
G119: 510213 | H119: AMORT DE CUOTAS PART | I119: 6
G120: 510290 | H120: OTRAS CONTRIBUCIONES | I120: 6
G121: 5103 | H121: CONTRIBUCIONES EFECT | I121: 4
G122: 510302 | H122: APORTES A CAJAS DE C | I122: 6
G123: 5103020100 | H123: APORTES A CAJAS DE C | I123: 10
G124: 510303 | H124: COTIZACIONES A SEGUR | I124: 6
G125: 5103030100 | H125: COTIZACIONES A SEGUR | I125: 10
G126: 510305 | H126: COTIZACIONES A RIESG | I126: 6
G127: 5103050100 | H127: COTIZACIONES A RIESG | I127: 10
G128: 510306 | H128: COTIZACIONES A ENTID | I128: 6
G129: 510307 | H129: COTIZACIONES A ENTID | I129: 6
G130: 5103070100 | H130: COTIZACIONES A ENTID | I130: 10
G131: 5104 | H131: APORTES SOBRE NOMINA | I131: 4
G132: 510401 | H132: APORTES AL ICBF | I132: 6
G133: 5104010100 | H133: APORTES AL ICBF | I133: 10
G134: 510402 | H134: APORTES AL SENA | I134: 6
G135: 5104020100 | H135: APORTES AL SENA | I135: 10
G136: 5107 | H136: PRESTACIONES SOCIALE | I136: 4
G137: 510701 | H137: VACACIONES | I137: 6
G138: 5107010100 | H138: VACACIONES | I138: 10
G139: 510702 | H139: CESANTIAS | I139: 6
G140: 5107020100 | H140: CESANTIAS | I140: 10
G141: 510703 | H141: INTERESES A LAS CESA | I141: 6
G142: 5107030100 | H142: INTERESES A LAS CESA | I142: 10
G143: 510704 | H143: PRIMA DE VACACIONES | I143: 6
G144: 510705 | H144: PRIMA DE NAVIDAD | I144: 6
G145: 510706 | H145: PRIMA DE SERVICIOS | I145: 6
G146: 5107060100 | H146: PRIMA DE SERVICIOS | I146: 10
G147: 510708 | H147: CESANTIAS RETROACTIV | I147: 6
G148: 510790 | H148: OTRAS PRIMAS | I148: 6
G149: 5108 | H149: GASTOS DE PERSONAL D | I149: 4
G150: 510802 | H150: HONORARIOS | I150: 6
G151: 5108020100 | H151: HONORARIOS | I151: 10
G152: 510803 | H152: CAPACITACION, BIENE | I152: 6
G153: 5108030100 | H153: CAPACITACION, BIENES | I153: 10
G154: 510804 | H154: DOTACION Y SUMINIST | I154: 6
G155: 5108040100 | H155: DOTACION Y SUMINISTR | I155: 10
G156: 510805 | H156: GASTOS DEPORTIVOS Y | I156: 6
G157: 510806 | H157: CONTRATOS DE PERSONA | I157: 6
G158: 510809 | H158: GASTOS DE REPRESENTA | I158: 6
G159: 510810 | H159: VIATICOS | I159: 6
G160: 510890 | H160: OTROS GASTOS DE PERS | I160: 6
G161: 5111 | H161: GENERALES | I161: 4
G162: 511106 | H162: AT ASISTENCIA TECNIC | I162: 6
G163: 5111060100 | H163: ASC SISTEMATIZACION | I163: 10
G164: 5111060200 | H164: AE INVESTIGACIONES E | I164: 10
G165: 5111060300 | H165: AT ASISTENCIA TECNIC | I165: 10
G166: 5111060400 | H166: AM ATL | I166: 10
G167: 5111060500 | H167: AM BTL | I167: 10
G168: 5111060600 | H168: AM DIGITAL | I168: 10
G169: 5111060700 | H169: ESTUDIOS E INVESTIGACIONES | I169: 10
G170: 5111060701 | H170: ESTUDIOS CONSUMO | I170: 10
G171: 5111060703 | H171: ESTUDIOS TRANSFORMACION | I171: 10
G172: 5111060704 | H172: ESTUDIOS ITPA | I172: 10
G173: 5111061300 | H173: AT ASISTENCIA TECNICA SEMILLA | I173: 10
G174: 5111060800 | H174: AT ASISTENCIA TECNIC | I174: 10
G175: 5111060900 | H175: AT ASISTENCIA TECNIC | I175: 10
G176: 5111061100 | H176: AT ASISTENCIA TECNIC | I176: 10
G177: 5111061200 | H177: AT ASISTENCIA TECNIC | I177: 10
G178: 5111063601 | H178: AE INVESTIGACIONES E | I178: =LEN(G178) -> 10
G179: 5111069900 | H179: Transferencia de tec | I179: 10
G180: 511111 | H180: COMISIONES, HONORARI | I180: 6
G181: 511112 | H181: OBRAS Y MEJORAS EN P | I181: 6
G182: 511113 | H182: VIGILANCIA Y SEGURID | I182: 6
G183: 511114 | H183: MATERIALES Y SUMINIS | I183: 6
G184: 5111140300 | H184: MATERIALES Y SUMINIS | I184: 10
G185: 511115 | H185: MANTENIMIENTO | I185: 6
G186: 5111150100 | H186: MANTENIMIENTO | I186: 10
G187: 511116 | H187: REPARACIONES | I187: 6
G188: 511117 | H188: SERVICIOS PUBLICOS | I188: 6
G189: 5111170100 | H189: ENERGIA | I189: 10
G190: 5111170200 | H190: ACUEDUCTO Y ALCANTAR | I190: 10
G191: 5111170300 | H191: TELEFONO | I191: 10
G192: 5111170400 | H192: SERVICIOS PUBLICOS | I192: 10
G193: 511118 | H193: ARRENDAMIENTO OPERAT | I193: 6
G194: 5111180100 | H194: ARRENDAMIENTOS | I194: 10
G195: 511119 | H195: VIATICOS Y GASTOS DE | I195: 6
G196: 5111190100 | H196: VIATICOS Y GASTOS DE | I196: 10
G197: 511120 | H197: PUBLICIDAD Y PROPAGA | I197: 6
G198: 511121 | H198: IMPRESOS, PUBLICACIO | I198: 6
G199: 5111210100 | H199: IMPRESOS | I199: 10
G200: 5111210200 | H200: PUBLICACIONES | I200: 10
... 139 more rows

Sheet Plan de cuentas (hidden)
A1: Cuenta de mayor | B1: Texto explicativo
A2: 1105010000 | B2: CTA PUENTE LEGALIZACION
A3: 1105020000 | B3: CAJA MENOR
A4: 1110060100 | B4: BOGOTA CTA AHORROS No8751
A5: 1110060101 | B5: BOGOTA CTA AHORROS No8751 INGRESOS
A6: 1110060102 | B6: BOGOTA CTA AHORROS No3317 PAGO CHEQUES
A7: 1110060103 | B7: BOGOTA CTA AHORROS No8751PAGOS TRANSFERENCIA
A8: 1110060104 | B8: BOGOTA CTA AHORROS No8751 NOTAS DB CR
A9: 1110065100 | B9: DAVIVIENDA CTA AH No5625
A10: 1110065101 | B10: DAVIVIENDA CTA AH No5625 INGRESOS
A11: 1110065102 | B11: DAVIVIENDA CTA AH No5625 PAGO CHEQUES
A12: 1110065103 | B12: DAVIVIENDA CTA AH No5625 PAGO TRANSFERENCIAS
A13: 1110065104 | B13: DAVIVIENDA CTA AH No5625 NOTAS DB CR
A14: 1110065200 | B14: DAVIVIENDA CTA AH No9197
A15: 1110065201 | B15: DAVIVIENDA CTA AH No9197 INGRESOS
A16: 1110065202 | B16: DAVIVIENDA CTA AH No9197 PAGO CHEQUES
A17: 1110065203 | B17: DAVIVIENDA CTA AH No9197 PAGO TRANSFERENCIAS
A18: 1110065204 | B18: DAVIVIENDA CTA AH No9197 NOTAS DB CR
A19: 1133010000 | B19: CERTIFICADOS DE DEPOSITO A TERMINO
A20: 1133019900 | B20: CERTIFICADOS DE DEPOSITO A TERMINO RENDIMIENTOS FI
A21: 1201010000 | B21: TITULOS DE TESORERIA
A22: 1201060000 | B22: CERTIFICADOS DE DEPOSITO A TERMINO
A23: 1201069900 | B23: CDT RENDIMIENTOS FINANCIEROS.
A24: 1201100000 | B24: BONOS Y TITULOS EMITIDOS POR EL SECTOR PRIVADO
A25: 1201400100 | B25: BOCAS
A26: 1201410100 | B26: BONOS Y TÍTULOS EMITIDOS POR EL GOBIERNO GENERAL
A27: 1201420100 | B27: BONOS Y TÍTULOS EMITIDOS POR LAS EMPRESAS NO FINAN
A28: 1201430100 | B28: BONOS Y TÍTULOS EMITIDOS POR LAS ENTIDADES FINANCI
A29: 1201440100 | B29: CARTERAS COLECTIVAS
A30: 1201450100 | B30: TÍTULOS DE CAPITALIZACIÓN
A31: 1201470100 | B31: PAGARÉS
A32: 1201900100 | B32: OTRAS INVERSIONES EN TÍTULOS DE DEUDA
A33: 1207250100 | B33: APORTES EN ORGANISMOS INTERNACIONALES
A34: 1207500100 | B34: ENTIDADES DEL SECTOR SOLIDARIO
A35: 1207510100 | B35: ENTIDADES PRIVADAS
A36: 1207530100 | B36: ENTIDADES DEL EXTERIOR
A37: 1207540100 | B37: EMPRESAS INDUSTRIALES Y COMERCIALES DEL ESTADO SOC
A38: 1207550100 | B38: SOCIEDADES DE ECONOMÍA MIXTA
A39: 1207560100 | B39: SOCIEDADES PÚBLICAS
A40: 1208260500 | B40: ENTIDADES DEL EXTERIOR
A41: 1208310500 | B41: EMPRESAS INDUSTRIALES Y COMERCIALES DEL ESTADO SOC
A42: 1208320100 | B42: SOCIEDADES DE ECONOMÍA MIXTA
A43: 1208330100 | B43: SOCIEDADES PÚBLICAS
A44: 1208510100 | B44: ENTIDADES PRIVADAS
A45: 1211010100 | B45: TITULOS DE TESORERIA (TES)
A46: 1211400100 | B46: CERTIFICADOS DE DEPOSITO A TERMINO (CDT)
A47: 1211400200 | B47: CDT RENDIMIENTOS FINANCIEROS.
A48: 1211410100 | B48: BONOS Y TITULOS EMITIDOS POR EL SECTO
A49: 1211420100 | B49: BONOS Y TÃTULOS EMITIDOS POR EL G
A50: 1211430100 | B50: BONOS Y TITULOS E
A51: 1211440100 | B51: BONOS Y TITULOS EMIT
A52: 1211450100 | B52: OTROS CERTIFICADOS
A53: 1211470100 | B53: PAGARES
A54: 1211900100 | B54: OTRAS INVERSIONES EN TÃTULOS DE DEUDA
A55: 1227010100 | B55: ENTIDADES PRIVADAS
A56: 1227030100 | B56: EMPRESAS INDUSTRIALES Y C
A57: 1227040100 | B57: SOCIEDADES DE ECONOMIA MIXTA
A58: 1227050100 | B58: SOCIEDADES PUBLICAS
A59: 1305010100 | B59: IMPUESTO SOBRE LA RENTA Y COMPLEMENTARIOS
A60: 1305040100 | B60: IMPUESTO AL VALOR AGREGADO - IVA
A61: 1305050100 | B61: RETENCIONES EN LA FUENTE
A62: 1305070100 | B62: IMPUESTO PREDIAL UNIFICADO
A63: 1305080100 | B63: IMPUESTO DE INDUSTRIA Y COMERCIO
A64: 1305210100 | B64: IMPUESTO DE AVISOS, TABLEROS Y VALLAS
A65: 1305520100 | B65: GRAVAMEN A LOS MOVIMIENTOS FINANCIEROS
A66: 1305550100 | B66: IMPUESTO AL PATRIMONIO
A67: 1305750100 | B67: OTROS IMPUESTOS NACIONALES
A68: 1305800100 | B68: OTROS IMPUESTOS DEPARTAMENTALES
A69: 1305850100 | B69: OTROS IMPUESTOS MUNICIPALES
A70: 1305900100 | B70: OTROS IMPUESTOS DISTRITALES
A71: 1310010100 | B71: IMPUESTO SOBRE LA RENTA Y COMPLEMENTARIOS
A72: 1310040100 | B72: IMPUESTO AL VALOR AGREGADO - IVA
A73: 1310050100 | B73: RETENCIONES EN LA FUENTE
A74: 1310070100 | B74: IMPUESTO PREDIAL UNIFICADO
A75: 1310080100 | B75: IMPUESTO DE INDUSTRIA Y COMERCIO
A76: 1310200100 | B76: IMPUESTO DE AVISOS, TABLEROS Y VALLAS
A77: 1310550100 | B77: IMPUESTO AL PATRIMONIO
A78: 1310750100 | B78: OTROS IMPUESTOS NACIONALES
A79: 1310800100 | B79: OTROS IMPUESTOS DEPARTAMENTALES
A80: 1310850100 | B80: OTROS IMPUESTOS MUNICIPALES
A81: 1310900100 | B81: OTROS IMPUESTOS DISTRITALES
A82: 1311010100 | B82: TASAS
A83: 1311020100 | B83: MULTAS
A84: 1311030100 | B84: INTERESES
A85: 1311040100 | B85: SANCIONES
A86: 1311170100 | B86: CUOTAS DE SOSTENIMIENTO
A87: 1311280100 | B87: CUOTA DE FISCALIZACION Y AUDITAJE
A88: 1311900100 | B88: OTRAS CONTRIBUCIONES, TASAS E
A89: 1312010100 | B89: SENA
A90: 1312020100 | B90: ICBF
A91: 1312030100 | B91: ESAP
A92: 1313010100 | B92: CUOTA DE FOMENTO
A93: 1313010200 | B93: CUOTA DE FOMENTO AJUSTE NICSP
A94: 1313900100 | B94: OTRAS CUENTAS POR COBRAR POR RENTAS
A95: 1316010100 | B95: PRODUCTOS AGROPECUARIOS
A96: 1316060100 | B96: BIENES COMERCIALIZADOS
A97: 1317020100 | B97: SERVICIOS DE TRANSPORTE
A98: 1317190100 | B98: ADMINISTRACION DE PROYECTOS
A99: 1317900100 | B99: OTROS SERVICIOS
A100: 1318010100 | B100: SERVICIO DE ENERGÃA
A101: 1318020100 | B101: SERVICIO DE ACUEDUCTO
A102: 1318030100 | B102: SERVICIO DE ALCANTARILLADO
A103: 1318040100 | B103: SERVICIO DE ASEO
A104: 1318050100 | B104: SERVICIO DE GAS COMBUSTIBLE
A105: 1318060100 | B105: SERVICIO DE TELECOMUNICACIONES
A106: 1384350100 | B106: INTERESES DE MORA-RENTAS PARAFISCALES
A107: 1384900100 | B107: OTRAS CUENTAS POR COBRAR
A108: 1384900200 | B108: OTRAS CUENTAS POR COBRAR K
A109: 1385170100 | B109: RENTAS CUOTA FOMENTO AJUSTE NICSP
A110: 1385170200 | B110: RENTAS PARAFISCALES DIFICIL COBRO
A111: 1385900100 | B111: OTRAS CUENTOS POR COBRAR DE DIFICIL RECA
A112: 1386160100 | B112: DETERIORO RENTAS PARAFISCALES CUENTAS POR COBRAR
A113: 1386160200 | B113: DETERIORO AJUSTE NICSP
A114: 1386160300 | B114: DETERIORO INTERESES CUENTAS POR COBRAR
A115: 1401010100 | B115: TASAS
A116: 1401020100 | B116: MULTAS
A117: 1401030100 | B117: INTERESES
A118: 1401040100 | B118: SANCIONES
A119: 1401380100 | B119: CUOTAS DE SOSTENIMIENTO
A120: 1401610100 | B120: CUOTA DE FISCALIZACIÓN Y AUDITAJE
A121: 1401900100 | B121: OTROS DEUDORES POR INGRESOS NO TRIBUTARIOS
A122: 1402010100 | B122: SENA
A123: 1402020100 | B123: ICBF
A124: 1402030100 | B124: ESAP
A125: 1403010100 | B125: CUOTA DE FOMENTO
A126: 1403010200 | B126: CUOTA DE FOMENTO AJUSTE NICSP
A127: 1403900100 | B127: OTROS DEUDORES POR RENTAS PARAFISCALES
A128: 1406010100 | B128: PRODUCTOS AGROPECUARIOS, DE SILVICULTURA Y PESCA
A129: 1406060100 | B129: BIENES COMERCIALIZADOS
A130: 1407020100 | B130: SERVICIOS DE TRANSPORTE
A131: 1407050100 | B131: SERVICIOS FINANCIEROS
A132: 1407070100 | B132: SERVICIOS DE SEGUROS Y REASEGUROS
A133: 1407220100 | B133: ADMINISTRACIÓN DE PROYECTOS
A134: 1407900100 | B134: OTROS SERVICIOS
A135: 1408010100 | B135: SERVICIO DE ENERGÍA
A136: 1408020100 | B136: SERVICIO DE ACUEDUCTO
A137: 1408030100 | B137: SERVICIO DE ALCANTARILLADO
A138: 1408040100 | B138: SERVICIO DE ASEO
A139: 1408050100 | B139: SERVICIO DE GAS COMBUSTIBLE
A140: 1408060100 | B140: SERVICIO DE TELECOMUNICACIONES
A141: 1415900100 | B141: OTROS PRESTAMOS POR COBRAR
A142: 1420120100 | B142: ANTICIPO PARA ADQUISICIÓN DE BIENES Y SERVICIOS
A143: 1420130100 | B143: ANTICIPO A PROVEEDORES
A144: 1420900100 | B144: OTROS AVANCES Y ANTICIPOS
A145: 1422010100 | B145: ANTICIPO DE IMPUESTO SOBRE LA RENTA
A146: 1422020100 | B146: RETENCIÓN EN LA FUENTE
A147: 1422030100 | B147: SALDOS A FAVOR EN LIQUIDACIONES PRIVADAS
A148: 1422040100 | B148: ANTICIPO CONTRIBUCIÓN ESPECIAL
A149: 1422101100 | B149: IMPUESTO A LAS VENTAS
A150: 1422110100 | B150: ANTICIPO DE IMPUESTO DE INDUSTRIA Y COMERCIO
A151: 1422500100 | B151: IMPUESTO DE INDUSTRIA Y COMERCIO RETENIDO
A152: 1422900100 | B152: OTROS ANTICIPOS O SALDOS A FAVOR POR IMPUESTOS Y C
A153: 1470900100 | B153: OTROS DEUDORES
A154: 1470900200 | B154: OTROS DEUDORES K
A155: 1475900100 | B155: OTROS DEUDORES RECAUDO
A156: 1510060100 | B156: PRODUCTOS AGRÍCOLAS
A157: 1510420100 | B157: PRODUCTOS AGROPECUARIOS
A158: 1525220100 | B158: PRODUCTOS AGRÍCOLAS
A159: 1525900100 | B159: OTROS INVENTARIOS EN TRANSITO
A160: 1530150100 | B160: PRODUCTOS AGRICOLAS
A161: 1530900100 | B161: OTROS INVENTARIOS EN PODER DE TERCEROS
A162: 1620030100 | B162: MAQUINARIA Y EQUIPO
A163: 1620900100 | B163: MAQUINARIA Y EQUIPO EN MONTAJE
A164: 1640140100 | B164: INVERNADEROS
A165: 1655080100 | B165: EQUIPO AGRICOLA
A166: 1665010100 | B166: MUEBLES Y ENSERES
A167: 1670010100 | B167: EQUIPO DE COMUNICACION
A168: 1670020100 | B168: EQUIPO DE COMPUTACION
A169: 1685010100 | B169: EDIFICACIONES
A170: 1685040100 | B170: MAQUINARIA Y EQUIPO
A171: 1685060100 | B171: MUEBLES, ENSERES Y EQUIPO DE OFICINA
A172: 1685070100 | B172: EQUIPOS DE COMUNICACIÓN Y COMPUTACION
A173: 1689010000 | B173: AJUSTES NICSP PPROPIEDAD PLANTA Y EQUIPO
A174: 1699010000 | B174: AJUSTES NICSP DEPRECIACION
A175: 1699999999 | B175: CONTRAPARTIDA CIERRE ANUAL
A176: 1906030100 | B176: AVANCES PARA VIATICOS Y GASTOS DE VIAJE
A177: 1906040100 | B177: ANTICIPO ADQUISICION BIENES Y SERVICIOS
A178: 1906040200 | B178: ANTICIPO PARA ADQUISICIÃ“N DE BIENE
A179: 1906900100 | B179: OTROS AVANCES Y ANTICIPOS
A180: 1906900200 | B180: OTROS AVANCES Y ANTICIPOS NÓMINA
A181: 1907010100 | B181: ANTICIPO DE IMPUESTO SOBRE LA RENTA
A182: 1907020100 | B182: RETENCIÃ“N EN LA FUENTE
A183: 1907030100 | B183: SALDOS A FAVOR EN LIQUIDACIONES PRIVADAS
A184: 1907040100 | B184: ANTICIPO CONTRIBUCIÃ“N ESPECIAL
A185: 1907050100 | B185: SALDO A FAVOR DE IMPUESTO A LAS VENTAS
A186: 1907060100 | B186: ANTICIPO DE IMPUESTO DE INDUSTRIA Y COM
A187: 1907090100 | B187: IMPUESTO DE INDUSTRIA Y COMERCIO RETENIDO
A188: 1907900100 | B188: OTROS A
A189: 1920010100 | B189: BIENES MUEBLES ENTREGADOS EN ADMINISTRACION
A190: 1920050100 | B190: BIENES MUEBLES ENTREGADOS EN COMODATO
A191: 1920900100 | B191: OTROS BIENES ENTREGADOS A TERCEROS
A192: 1925010100 | B192: BIENES MUEBLES ENTREGADOS EN ADMINISTRACION
A193: 1925050100 | B193: BIENES MUEBLES ENTREGADOS EN COMODATO
A194: 1925900100 | B194: OTROS BIENES ENTREGADOS A TERCEROS
A195: 1970070100 | B195: LICENCIAS
A196: 1970080100 | B196: SOFTWARE
A197: 1970900100 | B197: OTROS INTANGIBLES
A198: 1975070100 | B198: LICENCIAS
A199: 1975080100 | B199: SOFTWARE
A200: 1975900100 | B200: OTROS INTANGIBLES
... 329 more rows

Sheet SOLICITUDES 2025
E2: DIRECCION DE CADENAS AGRICOLAS Y FORESTALES
E3: PROGRAMA DE SEGUIMIENTO Y EVALUACION FONDOS PARAFISCALES
E4: CUADRO CONTROL DE APROPIACION 2025
E5: FONDO NACIONAL DE FOMENTO DE LA PAPA
D8: CUENTAS | E8: APROP | F8: Acuerdo 02 | G8: Acuerdo 03 | H8: Acuerdo 04 | I8: Traslado 01 | J8: Traslado 02 | K8: Acuerdo 05 | L8: Acuerdo 06 | M8: Traslado 03 | N8: Traslado 04 | O8: Septiembre | P8: Octubre | Q8: Noviembre | R8: Diciembre | S8: APROP DEF | U8: EJECUCIÓN | V8: EJECUCIÓN | W8: EJECUCIÓN | X8: EJECUCIÓN | Y8: AJUSTE | Z8: TOTAL | AA8: SALDO | AB8: %
E9: AÑO 2025 | S9: AÑO 2025 | U9: 1ER TRIM | V9: 2DO TRIM | W9: 3ER TRIM | X9: 4TO TRIM | Y9: AÑO | Z9: EJECUTADO | AB9: EJECUCIÓN
D10: INGRESOS | U10: INGRESOS
D11: INGRESOS OPERACIONALES | E11: 2.250526748e+10 | F11: 1120084209 | G11: 0 | H11: 0 | I11: 0 | J11: 0 | K11: 0 | L11: 0 | M11: 0 | N11: 0 | O11: 0 | P11: 0 | Q11: 0 | R11: 0 | S11: 2.362535169e+10 | U11: 2893326623 | V11: 3357547358 | W11: 4177471592 | X11: 6242082019 | Y11: 3889925706 | Z11: 20560353298 | AA11: 3064998395 | AB11: 0.8702665495
C12: 4115030100 | D12: Cuota de Fomento | E12: 13694112651 | F12: 0 | G12: 0 | H12: 0 | I12: 0 | J12: 0 | K12: 0 | L12: 0 | M12: 0 | N12: 0 | O12: 0 | P12: 0 | Q12: 0 | R12: 0 | S12: 13694112651 | U12: 2757209401 | V12: 2489448939 | W12: 2238425923 | X12: 2532991223 | Y12: 0 | Z12: 10018075486 | AA12: 3676037165 | AB12: 0.731560762
C13: 4115030200 | D13: Cuota de Fomento vigencias anteriores | E13: 365088276 | F13: 0 | G13: 0 | H13: 0 | I13: 0 | J13: 0 | K13: 0 | L13: 0 | M13: 0 | N13: 0 | O13: 0 | P13: 0 | Q13: 0 | R13: 0 | S13: 365088276 | U13: 83167145 | V13: 150633748 | W13: 375624522 | X13: 296955430 | Y13: 0 | Z13: 906380845 | AA13: -541292569 | AB13: 2.482634761
C14: 4802330100 | D14: Intereses por Mora | E14: 472940316 | F14: 0 | G14: 0 | H14: 0 | I14: 0 | J14: 0 | K14: 0 | L14: 0 | M14: 0 | N14: 0 | O14: 0 | P14: 0 | Q14: 0 | R14: 0 | S14: 472940316 | U14: 52950077 | V14: 82098520 | W14: 249130912 | X14: 158507008 | Y14: 0 | Z14: 542686517 | AA14: -69746201 | AB14: 1.147473579
C15: 1 | D15: Superávit Vigencias anteriores | E15: 7973126240 | F15: 1120084209 | G15: 0 | H15: 0 | I15: 0 | J15: 0 | K15: 0 | L15: 0 | M15: 0 | N15: 0 | O15: 0 | P15: 0 | Q15: 0 | R15: 0 | S15: 9093210450 | U15: 0 | V15: 635366151 | W15: 1314290235 | X15: 3253628358 | Y15: 3889925706 | Z15: 9093210450 | AA15: -0.3090782166 | AB15: 1
D16: INGRESOS NO OPERACIONALES | E16: 544227620 | F16: 0 | G16: 0 | H16: 0 | I16: 0 | J16: 0 | K16: 0 | L16: 0 | M16: 0 | N16: 0 | O16: 0 | P16: 0 | Q16: 0 | R16: 0 | S16: 544227620 | U16: 138166624 | V16: 206103434 | W16: 183607831 | X16: 146512269 | Y16: 0 | Z16: 674390158 | AA16: -130162538 | AB16: 1.239169298
B17: 4808270100 | C17: 4808630100 | D17: Otros Ingresos | E17: 29984620 | F17: 0 | G17: 0 | H17: 0 | I17: 0 | J17: 0 | K17: 0 | L17: 0 | M17: 0 | N17: 0 | O17: 0 | P17: 0 | Q17: 0 | R17: 0 | S17: 29984620 | U17: 418900 | V17: 21457861 | W17: -980294 | X17: 19860735 | Y17: 0 | Z17: 40757202 | AA17: -10772582 | AB17: 1.359270253
C18: 4802010100 | D18: Ingresos Financieros | E18: 514243000 | F18: 0 | G18: 0 | H18: 0 | I18: 0 | J18: 0 | K18: 0 | L18: 0 | M18: 0 | N18: 0 | O18: 0 | P18: 0 | Q18: 0 | R18: 0 | S18: 514243000 | U18: 137747724 | V18: 184645573 | W18: 184588125 | X18: 126651534 | Y18: 0 | Z18: 633632956 | AA18: -119389956 | AB18: 1.232166419
D19: TOTAL INGRESOS | E19: 2.30494951e+10 | F19: 1120084209 | G19: 0 | H19: 0 | I19: 0 | J19: 0 | K19: 0 | L19: 0 | M19: 0 | N19: 0 | O19: 0 | P19: 0 | Q19: 0 | R19: 0 | S19: 2.416957931e+10 | U19: 3031493247 | V19: 3563650792 | W19: 4361079423 | X19: 6388594288 | Y19: 3889925706 | Z19: 21234743456 | AA19: 2934835857 | AB19: 0.878573151
D20: EGRESOS | U20: EGRESOS
D21: FUNCIONAMIENTO: | E21: 3598384069 | F21: 0 | G21: 58826869 | H21: 0 | I21: 0 | J21: 0 | K21: 0 | L21: 0 | M21: 0 | N21: 0 | O21: 0 | P21: 0 | Q21: 0 | R21: 0 | S21: 3657210938 | U21: 729282133 | V21: 938599401 | W21: 697560925 | X21: 767126945 | Y21: 0 | Z21: 3132569404 | AA21: 524641534 | AB21: 0.8565460011
D22: SERVICIOS PERSONALES | E22: 1850121000 | F22: 0 | G22: 62267000 | H22: 0 | I22: 0 | J22: 0 | K22: 0 | L22: 0 | M22: 0 | N22: 0 | O22: 0 | P22: 0 | Q22: 0 | R22: 0 | S22: 1912388000 | U22: 421135272 | V22: 461743178 | W22: 474158102 | X22: 473600650 | Y22: 0 | Z22: 1830637202 | AA22: 81750798 | AB22: 0.9572519813
C23: 5101010100 | D23: Sueldos | E23: 1193782000 | F23: 0 | G23: 39579000 | H23: 0 | I23: 0 | J23: 0 | K23: 0 | L23: 0 | M23: -33000 | N23: 0 | O23: 0 | P23: 0 | Q23: 0 | R23: 0 | S23: 1233328000 | U23: 270888432 | V23: 295605967 | W23: 305896063 | X23: 301851800 | Y23: 0 | Z23: 1174242262 | AA23: 59085738 | AB23: 0.9520924377
C24: 5101230100 | D24: Auxilio de Transporte | E24: 6137000 | F24: 0 | G24: 1011000 | H24: 0 | I24: 0 | J24: 0 | K24: 0 | L24: 0 | M24: 0 | N24: 0 | O24: 0 | P24: 0 | Q24: 0 | R24: 0 | S24: 7148000 | U24: 1113334 | V24: 1760000 | W24: 1600000 | X24: 1506666 | Y24: 0 | Z24: 5980000 | AA24: 1168000 | AB24: 0.8365976497
C25: 5107010100 | D25: Vacaciones | E25: 49752000 | F25: 0 | G25: 1648000 | H25: 0 | I25: 0 | J25: 0 | K25: 0 | L25: 0 | M25: 0 | N25: 0 | O25: 0 | P25: 0 | Q25: 0 | R25: 0 | S25: 51400000 | U25: 11838448 | V25: 12741159 | W25: 12796124 | X25: 12695617 | Y25: 0 | Z25: 50071348 | AA25: 1328652 | AB25: 0.9741507393
C26: 5107060100 | D26: Prima legal | E26: 100009000 | F26: 0 | G26: 3376000 | H26: 0 | I26: 0 | J26: 0 | K26: 0 | L26: 0 | M26: 0 | N26: 0 | O26: 0 | P26: 0 | Q26: 0 | R26: 0 | S26: 103385000 | U26: 23442707 | V26: 25628986 | W26: 25725583 | X26: 25516807 | Y26: 0 | Z26: 100314083 | AA26: 3070917 | AB26: 0.9702963002
C27: 5107020100 | D27: Cesantías | E27: 100009000 | F27: 0 | G27: 3376000 | H27: 0 | I27: 0 | J27: 0 | K27: 0 | L27: 0 | M27: 0 | N27: 0 | O27: 0 | P27: 0 | Q27: 0 | R27: 0 | S27: 103385000 | U27: 23442707 | V27: 25628983 | W27: 25725584 | X27: 25516787 | Y27: 0 | Z27: 100314061 | AA27: 3070939 | AB27: 0.9702960874
C28: 5107030100 | D28: Intereses de cesantías | E28: 11974000 | F28: 0 | G28: 403000 | H28: 0 | I28: 0 | J28: 0 | K28: 0 | L28: 0 | M28: 0 | N28: 0 | O28: 0 | P28: 0 | Q28: 0 | R28: 0 | S28: 12377000 | U28: 645589 | V28: 2129850 | W28: 3574710 | X28: 5000478 | Y28: 0 | Z28: 11350627 | AA28: 1026373 | AB28: 0.9170741698
C29: 5103030100 | D29: Aportes a salud | E29: 101482000 | F29: 0 | G29: 3363000 | H29: 0 | I29: 0 | J29: 0 | K29: 0 | L29: 0 | M29: 0 | N29: 0 | O29: 0 | P29: 0 | Q29: 0 | R29: 0 | S29: 104845000 | U29: 23768463 | V29: 25994817 | W29: 26107520 | X29: 25901248 | Y29: 0 | Z29: 101772048 | AA29: 3072952 | AB29: 0.9706905241
C30: 5103070100 | D30: Aporte a pension | E30: 143270000 | F30: 0 | G30: 4751000 | H30: 0 | I30: 0 | J30: 0 | K30: 0 | L30: 0 | M30: 0 | N30: 0 | O30: 0 | P30: 0 | Q30: 0 | R30: 0 | S30: 148021000 | U30: 33556392 | V30: 36700317 | W30: 36859120 | X30: 36566148 | Y30: 0 | Z30: 143681977 | AA30: 4339023 | AB30: 0.9706864364
C31: 5103050100 | D31: Aportes a riesgos liberales | E31: 31755000 | F31: 0 | G31: 1055000 | H31: 0 | I31: 0 | J31: 0 | K31: 0 | L31: 0 | M31: 33000 | N31: 0 | O31: 0 | P31: 0 | Q31: 0 | R31: 0 | S31: 32843000 | U31: 7258500 | V31: 7988400 | W31: 8162900 | X31: 8071500 | Y31: 0 | Z31: 31481300 | AA31: 1361700 | AB31: 0.9585391103
C32: 5103020100 | D32: Caja de compensación | E32: 49752000 | F32: 0 | G32: 1648000 | H32: 0 | I32: 0 | J32: 0 | K32: 0 | L32: 0 | M32: 0 | N32: 0 | O32: 0 | P32: 0 | Q32: 0 | R32: 0 | S32: 51400000 | U32: 11189400 | V32: 12248799 | W32: 12313798 | X32: 13763799 | Y32: 0 | Z32: 49515796 | AA32: 1884204 | AB32: 0.9633423346
C33: 5104010100 | D33: Aportes ICBF | E33: 37313000 | F33: 0 | G33: 1242000 | H33: 0 | I33: 0 | J33: 0 | K33: 0 | L33: 0 | M33: 0 | N33: 0 | O33: 0 | P33: 0 | Q33: 0 | R33: 0 | S33: 38555000 | U33: 8393800 | V33: 9188500 | W33: 9237100 | X33: 10325200 | Y33: 0 | Z33: 37144600 | AA33: 1410400 | AB33: 0.9634184931
C34: 5104020100 | D34: Aportes SENA | E34: 24886000 | F34: 0 | G34: 815000 | H34: 0 | I34: 0 | J34: 0 | K34: 0 | L34: 0 | M34: 0 | N34: 0 | O34: 0 | P34: 0 | Q34: 0 | R34: 0 | S34: 25701000 | U34: 5597500 | V34: 6127400 | W34: 6159600 | X34: 6884600 | Y34: 0 | Z34: 24769100 | AA34: 931900 | AB34: 0.9637407105
D35: GASTOS GENERALES | E35: 1748263069 | F35: 0 | G35: -3440131 | H35: 0 | I35: 0 | J35: 0 | K35: 0 | L35: 0 | M35: 0 | N35: 0 | O35: 0 | P35: 0 | Q35: 0 | R35: 0 | S35: 1744822938 | U35: 308146861 | V35: 476856223 | W35: 223402823 | X35: 293526295 | Y35: 0 | Z35: 1301932202 | AA35: 442890736 | AB35: 0.7461686648
C36: 5111790100 | D36: Honorarios | E36: 368281080 | F36: 0 | G36: -1028160 | H36: 0 | I36: 0 | J36: 0 | K36: 0 | L36: 0 | M36: 0 | N36: 0 | O36: 0 | P36: 0 | Q36: 0 | R36: 0 | S36: 367252920 | U36: 50696010 | V36: 69254950 | W36: 60609700 | X36: 82595250 | Y36: 0 | Z36: 263155910 | AA36: 104097010 | AB36: 0.7165522605
C37: 5108040100 | D37: Dotación y suministro | E37: 6047046 | F37: 0 | G37: -30424 | H37: 0 | I37: 0 | J37: 0 | K37: 0 | L37: 0 | M37: 0 | N37: 0 | O37: 0 | P37: 0 | Q37: 0 | R37: 0 | S37: 6016622 | U37: 3989090 | V37: 1912600 | W37: 0 | X37: 0 | Y37: 0 | Z37: 5901690 | AA37: 114932 | AB37: 0.9808975867
B38: 5111590100 | C38: 5111700100 | D38: Muebles, enseres y equipo de oficina | E38: 346284184 | F38: 0 | G38: -106970 | H38: 0 | I38: 0 | J38: 0 | K38: 0 | L38: 0 | M38: 0 | N38: 0 | O38: 0 | P38: 0 | Q38: 0 | R38: 0 | S38: 346177214 | U38: 67759120 | V38: 55602022 | W38: 55638578 | X38: 58428205 | Y38: 0 | Z38: 237427925 | AA38: 108749289 | AB38: 0.6858565942
C39: 5111710100 | D39: Equipo de laboratorio y campo | E39: 0 | F39: 0 | G39: 0 | H39: 0 | I39: 0 | J39: 0 | K39: 0 | L39: 0 | M39: 0 | N39: 0 | O39: 0 | P39: 0 | Q39: 0 | R39: 0 | S39: 0 | U39: 0 | V39: 0 | W39: 0 | X39: 0 | Y39: 0 | Z39: 0 | AA39: 0 | AB39: 0
C40: 5111210300 | D40: Impresos y publicaciones | E40: 0 | F40: 0 | G40: 0 | H40: 0 | I40: 0 | J40: 0 | K40: 0 | L40: 0 | M40: 0 | N40: 1200000 | O40: 0 | P40: 0 | Q40: 0 | R40: 0 | S40: 1200000 | U40: 0 | V40: 0 | W40: 0 | X40: 1144400 | Y40: 0 | Z40: 1144400 | AA40: 55600 | AB40: 0.9536666667
C41: 5111140300 | D41: Materiales y suministros | E41: 18542335 | F41: 0 | G41: -139895 | H41: 0 | I41: 0 | J41: 0 | K41: 0 | L41: 0 | M41: 0 | N41: 0 | O41: 0 | P41: 0 | Q41: 0 | R41: 0 | S41: 18402440 | U41: 5761847 | V41: 1873088 | W41: 1634613 | X41: 6462762 | Y41: 0 | Z41: 15732310 | AA41: 2670130 | AB41: 0.8549034802
C42: 5111230100 | D42: Comunicaciones y transporte - correo | E42: 54800000 | F42: 0 | G42: 0 | H42: 0 | I42: 0 | J42: 0 | K42: 0 | L42: 0 | M42: 0 | N42: 0 | O42: 0 | P42: 0 | Q42: 0 | R42: 0 | S42: 54800000 | U42: 8630165 | V42: 3236503 | W42: 3038727 | X42: 2790375 | Y42: 0 | Z42: 17695770 | AA42: 37104230 | AB42: 0.3229155109 | AC42: ***
C43: 5111230200 | D43: Transportes fletes y acarreos | E43: 4378047 | F43: 0 | G43: 0 | H43: 0 | I43: 0 | J43: 0 | K43: 0 | L43: 0 | M43: 0 | N43: 0 | O43: 0 | P43: 0 | Q43: 0 | R43: 0 | S43: 4378047 | U43: 1041470 | V43: 616780 | W43: 263700 | X43: 1692345 | Y43: 0 | Z43: 3614295 | AA43: 763752 | AB43: 0.8255496115
C44: 5101300200 | D44: Capacitación | E44: 80000000 | F44: 0 | G44: 0 | H44: 0 | I44: 0 | J44: 0 | K44: 0 | L44: 0 | M44: 0 | N44: 0 | O44: 0 | P44: 0 | Q44: 0 | R44: 0 | S44: 80000000 | U44: 71352475 | V44: 3490815 | W44: 4040920 | X44: 1000590 | Y44: 0 | Z44: 79884800 | AA44: 115200 | AB44: 0.99856
C45: 5101300100 | D45: Divulgación | E45: 8824072 | F45: 0 | G45: -66588 | H45: 0 | I45: 0 | J45: 0 | K45: 0 | L45: 0 | M45: 0 | N45: 0 | O45: 0 | P45: 0 | Q45: 0 | R45: 0 | S45: 8757484 | U45: 0 | V45: 7886886 | W45: 865069 | X45: 0 | Y45: 0 | Z45: 8751955 | AA45: 5529 | AB45: 0.9993686543
C46: 5111150100 | D46: Mantenimiento | E46: 333897989 | F46: 0 | G46: -69245 | H46: 0 | I46: 2423416 | J46: 0 | K46: 0 | L46: 0 | M46: 0 | N46: 0 | O46: 0 | P46: 0 | Q46: 0 | R46: 0 | S46: 336252160 | U46: 2234322 | V46: 236031226 | W46: -19144486 | X46: 37602714 | Y46: 0 | Z46: 256723776 | AA46: 79528384 | AB46: 0.7634858792
C47: 5111640100 | D47: Seguros, impuestos y gastos legales | E47: 16147510 | F47: 0 | G47: -122623 | H47: 0 | I47: 0 | J47: 0 | K47: 0 | L47: 0 | M47: 0 | N47: 0 | O47: 0 | P47: 0 | Q47: 0 | R47: 0 | S47: 16024887 | U47: 3990400 | V47: 2643540 | W47: 109500 | X47: 0 | Y47: 0 | Z47: 6743440 | AA47: 9281447 | AB47: 0.4208104556
B48: 5802400100 | C48: 5120240100 | D48: Comisiones y gastos bancarios | E48: 120000000 | F48: 0 | G48: 0 | H48: 0 | I48: 0 | J48: 0 | K48: 0 | L48: 0 | M48: 0 | N48: 0 | O48: 0 | P48: 0 | Q48: 0 | R48: 0 | S48: 120000000 | U48: 21109458 | V48: 21920824 | W48: 22327841 | X48: 39268127 | Y48: 0 | Z48: 104626250 | AA48: 15373750 | AB48: 0.8718854167
C49: 5111190100 | D49: Viáticos y Gastos de viaje | E49: 196245520 | F49: 0 | G49: -538224 | H49: 0 | I49: 0 | J49: 0 | K49: 0 | L49: 0 | M49: 0 | N49: 0 | O49: 0 | P49: 0 | Q49: 0 | R49: 0 | S49: 195707296 | U49: 26118065 | V49: 53064028 | W49: 36522847 | X49: 17063189 | Y49: 0 | Z49: 132768129 | AA49: 62939167 | AB49: 0.6784015298
A50: 5111170100 | B50: 5111170200 | C50: 5111170300 | D50: Servicios públicos | E50: 21611538 | F50: 0 | G50: -163122 | H50: 0 | I50: 0 | J50: 0 | K50: 0 | L50: 0 | M50: 0 | N50: 0 | O50: 0 | P50: 0 | Q50: 0 | R50: 0 | S50: 21448416 | U50: 5060992 | V50: 5255030 | W50: 5142378 | X50: 5142378 | Y50: 0 | Z50: 20600778 | AA50: 847638 | AB50: 0.9604801585
C51: 5111180100 | D51: Arriendos | E51: 49369668 | F51: 0 | G51: -372612 | H51: 0 | I51: 0 | J51: 0 | K51: 0 | L51: 0 | M51: 0 | N51: 0 | O51: 0 | P51: 0 | Q51: 0 | R51: 0 | S51: 48997056 | U51: 12249261 | V51: 12249261 | W51: 12249261 | X51: 12249261 | Y51: 0 | Z51: 48997044 | AA51: 12 | AB51: 0.9999997551
C52: 5120020100 | D52: Cuota de fiscalización y auditaje | E52: 40543000 | F52: 0 | G52: -306000 | H52: 0 | I52: 0 | J52: 0 | K52: 0 | L52: 0 | M52: 0 | N52: -1200000 | O52: 0 | P52: 0 | Q52: 0 | R52: 0 | S52: 39037000 | U52: 0 | V52: 0 | W52: 33365649 | X52: 0 | Y52: 0 | Z52: 33365649 | AA52: 5671351 | AB52: 0.8547185747
C53: 5111900100 | D53: Gastos del máximo órgano de dirección | E53: 83291080 | F53: 0 | G53: -496268 | H53: 0 | I53: -2423416 | J53: 0 | K53: 0 | L53: 0 | M53: 0 | N53: 0 | O53: 0 | P53: 0 | Q53: 0 | R53: 0 | S53: 80371396 | U53: 28154186 | V53: 1818670 | W53: 6738526 | X53: 28086699 | Y53: 0 | Z53: 64798081 | AA53: 15573315 | AB53: 0.8062331156
D54: CUOTA DE ADMINISTRACIÓN | E54: 1405920093 | F54: 0 | G54: 0 | H54: 0 | I54: 0 | J54: 0 | K54: 0 | L54: 0 | M54: 0 | N54: 0 | O54: 0 | P54: 0 | Q54: 0 | R54: 0 | S54: 1405920093 | U54: 284037655 | V54: 264008269 | W54: 261405044 | X54: 282994665 | Y54: 0 | Z54: 1092445633 | AA54: 313474460 | AB54: 0.7770325202
C55: 5111400100 | D55: Contraprestación | E55: 1405920093 | F55: 0 | G55: 0 | H55: 0 | I55: 0 | J55: 0 | K55: 0 | L55: 0 | M55: 0 | N55: 0 | O55: 0 | P55: 0 | Q55: 0 | R55: 0 | S55: 1405920093 | U55: 284037655 | V55: 264008269 | W55: 261405044 | X55: 282994665 | Y55: 0 | Z55: 1092445633 | AA55: 313474460 | AB55: 0.7770325202
D56: INVERSIÓN: | E56: 13172890291 | F56: 0 | G56: 103107744 | H56: 0 | I56: 0 | J56: 0 | K56: 0 | L56: 1546958011 | M56: 0 | N56: 0 | O56: 0 | P56: 0 | Q56: 0 | R56: 0 | S56: 1.482295605e+10 | U56: 1417460673 | V56: 2361043122 | W56: 3402113454 | X56: 5338472678 | Y56: 0 | Z56: 12519089927 | AA56: 2303866119 | AB56: 0.8445744485
D57: SERVICIOS PERSONALES | E57: 3634478000 | F57: 0 | G57: 122181000 | H57: -24000000 | I57: 0 | J57: 0 | K57: -700000 | L57: 0 | M57: 0 | N57: 0 | O57: 0 | P57: 0 | Q57: 0 | R57: 0 | S57: 3731959000 | U57: 809555701 | V57: 945059793 | W57: 939997472 | X57: 930816064 | Y57: 0 | Z57: 3625429030 | AA57: 106529970 | AB57: 0.9714546784
C58: 5101010100 | D58: Sueldos | E58: 2340090000 | F58: 0 | G58: 77596000 | H58: -24000000 | I58: 0 | J58: -1200000 | K58: -700000 | L58: 0 | M58: 0 | N58: 0 | O58: 0 | P58: 0 | Q58: 0 | R58: 0 | S58: 2391786000 | U58: 522806832 | V58: 609594556 | W58: 601200660 | X58: 583328787 | Y58: 0 | Z58: 2316930835 | AA58: 74855165 | AB58: 0.9687032347
C59: 5101230100 | D59: Auxilio de Transporte | E59: 10225000 | F59: 0 | G59: 1683000 | H59: 0 | I59: 0 | J59: 1200000 | K59: 0 | L59: 0 | M59: 0 | N59: 0 | O59: 0 | P59: 0 | Q59: 0 | R59: 0 | S59: 13108000 | U59: 2413333 | V59: 3000000 | W59: 3593334 | X59: 3006667 | Y59: 0 | Z59: 12013334 | AA59: 1094666 | AB59: 0.9164887092
C60: 5107010100 | D60: Vacaciones | E60: 96847000 | F60: 0 | G60: 3221000 | H60: 0 | I60: 0 | J60: 0 | K60: 0 | L60: 0 | M60: 0 | N60: 0 | O60: 0 | P60: 0 | Q60: 0 | R60: 0 | S60: 100068000 | U60: 22292452 | V60: 25375358 | W60: 25185525 | X60: 25543758 | Y60: 0 | Z60: 98397093 | AA60: 1670907 | AB60: 0.9833022844
C61: 5107060100 | D61: Prima legal | E61: 194528000 | F61: 0 | G61: 6562000 | H61: 0 | I61: 0 | J61: 0 | K61: 0 | L61: 0 | M61: 0 | N61: 0 | O61: 0 | P61: 0 | Q61: 0 | R61: 0 | S61: 201090000 | U61: 44077236 | V61: 51000718 | W61: 51240095 | X61: 51175301 | Y61: 0 | Z61: 197493350 | AA61: 3596650 | AB61: 0.9821142275
C62: 5107020100 | D62: Cesantías | E62: 194528000 | F62: 0 | G62: 6562000 | H62: 0 | I62: 0 | J62: 0 | K62: 0 | L62: 0 | M62: 0 | N62: 0 | O62: 0 | P62: 0 | Q62: 0 | R62: 0 | S62: 201090000 | U62: 44036103 | V62: 51000716 | W62: 51240093 | X62: 51175273 | Y62: 0 | Z62: 197452185 | AA62: 3637815 | AB62: 0.9819095181
C63: 5107030100 | D63: Intereses de cesantías | E63: 22969000 | F63: 0 | G63: 785000 | H63: 0 | I63: 0 | J63: 0 | K63: 0 | L63: 0 | M63: 0 | N63: 0 | O63: 0 | P63: 0 | Q63: 0 | R63: 0 | S63: 23754000 | U63: 1154116 | V63: 4164809 | W63: 7089640 | X63: 10145916 | Y63: 0 | Z63: 22554481 | AA63: 1199519 | AB63: 0.9495024417
C64: 5103030100 | D64: Aportes a salud | E64: 199578000 | F64: 0 | G64: 6628000 | H64: 0 | I64: 0 | J64: 0 | K64: 0 | L64: 0 | M64: 0 | N64: 0 | O64: 0 | P64: 0 | Q64: 0 | R64: 0 | S64: 206206000 | U64: 44668604 | V64: 52232636 | W64: 51869498 | X64: 51821547 | Y64: 0 | Z64: 200592285 | AA64: 5613715 | AB64: 0.9727761801
C65: 5103070100 | D65: Aporte a pension | E65: 278883000 | F65: 0 | G65: 9254000 | H65: 0 | I65: 0 | J65: 0 | K65: 0 | L65: 0 | M65: 0 | N65: 0 | O65: 0 | P65: 0 | Q65: 0 | R65: 0 | S65: 288137000 | U65: 63062425 | V65: 73073401 | W65: 73171728 | X65: 73161117 | Y65: 0 | Z65: 282468671 | AA65: 5668329 | AB65: 0.9803276601
C66: 5103050100 | D66: Aportes a riesgos liberales | E66: 78914000 | F66: 0 | G66: 2636000 | H66: 0 | I66: 0 | J66: 0 | K66: 0 | L66: 0 | M66: 0 | N66: 0 | O66: 0 | P66: 0 | Q66: 0 | R66: 0 | S66: 81550000 | U66: 17740600 | V66: 20693300 | W66: 20471000 | X66: 19944100 | Y66: 0 | Z66: 78849000 | AA66: 2701000 | AB66: 0.9668792152
C67: 5103020100 | D67: Caja de compensación | E67: 96847000 | F67: 0 | G67: 3221000 | H67: 0 | I67: 0 | J67: 0 | K67: 0 | L67: 0 | M67: 0 | N67: 0 | O67: 0 | P67: 0 | Q67: 0 | R67: 0 | S67: 100068000 | U67: 21020400 | V67: 24406899 | W67: 24411999 | X67: 27333898 | Y67: 0 | Z67: 97173196 | AA67: 2894804 | AB67: 0.9710716313
C68: 5104010100 | D68: Aportes ICBF | E68: 72637000 | F68: 0 | G68: 2426000 | H68: 0 | I68: 0 | J68: 0 | K68: 0 | L68: 0 | M68: 0 | N68: 0 | O68: 0 | P68: 0 | Q68: 0 | R68: 0 | S68: 75063000 | U68: 15767700 | V68: 18308100 | W68: 18312100 | X68: 20505500 | Y68: 0 | Z68: 72893400 | AA68: 2169600 | AB68: 0.9710962791
C69: 5104020100 | D69: Aportes SENA | E69: 48432000 | F69: 0 | G69: 1607000 | H69: 0 | I69: 0 | J69: 0 | K69: 0 | L69: 0 | M69: 0 | N69: 0 | O69: 0 | P69: 0 | Q69: 0 | R69: 0 | S69: 50039000 | U69: 10515900 | V69: 12209300 | W69: 12211800 | X69: 13674200 | Y69: 0 | Z69: 48611200 | AA69: 1427800 | AB69: 0.9714662563
D70: GASTOS GENERALES | E70: 3853634916 | F70: 0 | G70: -7189967.96 | H70: 24000000 | I70: 0 | J70: 0 | K70: 700000 | L70: 78111000 | M70: 0 | N70: 0 | O70: 0 | P70: 0 | Q70: 0 | R70: 0 | S70: 3949255948 | U70: 437645091 | V70: 901094380 | W70: 797534231 | X70: 795432666 | Y70: 0 | Z70: 2931706368 | AA70: 1017549580 | AB70: 0.7423439773
C71: 5111790100 | D71: Honorarios | E71: 1487732308 | F71: 0 | G71: -4685528 | H71: 24000000 | I71: 0 | J71: 0 | K71: 0 | L71: 78111000 | M71: 0 | N71: 0 | O71: 0 | P71: 0 | Q71: 0 | R71: 0 | S71: 1585157780 | U71: 108246018 | V71: 262022545 | W71: 345060047 | X71: 397217662 | Y71: 0 | Z71: 1112546272 | AA71: 472611508 | AB71: 0.7018520718
C72: 5108040100 | D72: Dotación y suministro a trabajadores | E72: 10078410 | F72: 0 | G72: -45636 | H72: 0 | I72: 0 | J72: 0 | K72: 700000 | L72: 0 | M72: 0 | N72: 0 | O72: 0 | P72: 0 | Q72: 0 | R72: 0 | S72: 10732774 | U72: 5938670 | V72: 3858522 | W72: 765440 | X72: 0 | Y72: 0 | Z72: 10562632 | AA72: 170142 | AB72: 0.9841474348
C73: 5111700100 | D73: Muebles, enseres y equipo de oficina | E73: 170848433 | F73: 0 | G73: -217600 | H73: 0 | I73: 0 | J73: 0 | K73: 0 | L73: 0 | M73: 0 | N73: 0 | O73: 0 | P73: 0 | Q73: 0 | R73: 0 | S73: 170630833 | U73: 78038012 | V73: 18779538 | W73: 5976168 | X73: 22652783 | Y73: 0 | Z73: 125446501 | AA73: 45184332 | AB73: 0.7351924549
C74: 5111710100 | D74: Equipo de laboratorio y campo | E74: 166120000 | F74: 0 | G74: 0 | H74: 0 | I74: 0 | J74: 0 | K74: 0 | L74: 0 | M74: 0 | N74: 0 | O74: 0 | P74: 0 | Q74: 0 | R74: 0 | S74: 166120000 | U74: 0 | V74: 63938700 | W74: 0 | X74: 13600 | Y74: 0 | Z74: 63952300 | AA74: 102167700 | AB74: 0.384976523
C75: 5111210300 | D75: Impresos, publicaciones, suscripciones y afiliaciones | E75: 13400000 | F75: 0 | G75: 0 | H75: 0 | I75: 0 | J75: 0 | K75: 0 | L75: 0 | M75: 0 | N75: 0 | O75: 0 | P75: 0 | Q75: 0 | R75: 0 | S75: 13400000 | U75: 0 | V75: 0 | W75: 0 | X75: 0 | Y75: 0 | Z75: 0 | AA75: 13400000 | AB75: 0 | AC75: **
C76: 5111140300 | D76: Materiales y suministros (insumos agrícolas y pecuarios) | E76: 134173093 | F76: 0 | G76: -7248 | H76: 0 | I76: 0 | J76: 0 | K76: 0 | L76: 0 | M76: 0 | N76: 0 | O76: 0 | P76: 0 | Q76: 0 | R76: 0 | S76: 134165845 | U76: 22289776 | V76: 81268519 | W76: 11098829 | X76: 3900429 | Y76: 0 | Z76: 118557553 | AA76: 15608292 | AB76: 0.8836641919
C77: 5111230100 | D77: Comunicaciones y transporte - correo | E77: 15889671 | F77: 0 | G77: -47475 | H77: 0 | I77: 0 | J77: 0 | K77: 0 | L77: 0 | M77: 0 | N77: 0 | O77: 0 | P77: 0 | Q77: 0 | R77: 0 | S77: 15842196 | U77: 767973 | V77: 2448850 | W77: 7335750 | X77: 1502910 | Y77: 0 | Z77: 12055483 | AA77: 3786713 | AB77: 0.7609729737
C78: 5111230200 | D78: Transportes fletes y acarreos | E78: 97605493 | F78: 0 | G78: -505659 | H78: 0 | I78: 0 | J78: 0 | K78: 0 | L78: 0 | M78: 0 | N78: 0 | O78: 0 | P78: 0 | Q78: 0 | R78: 0 | S78: 97099834 | U78: 23957649 | V78: 16082778 | W78: 3076606 | X78: 13276072 | Y78: 0 | Z78: 56393105 | AA78: 40706729 | AB78: 0.5807744738
C79: 5101300200 | D79: Capacitación | E79: 0 | F79: 0 | G79: 0 | H79: 0 | I79: 0 | J79: 0 | K79: 0 | L79: 0 | M79: 0 | N79: 0 | O79: 0 | P79: 0 | Q79: 0 | R79: 0 | S79: 0 | U79: 0 | V79: 0 | W79: 0 | X79: 0 | Y79: 0 | Z79: 0 | AA79: 0 | AB79: 0
C80: 5101300100 | D80: Divulgación | E80: 922453614 | F80: 0 | G80: -1212467 | H80: 0 | I80: 0 | J80: 0 | K80: 0 | L80: 0 | M80: 0 | N80: 0 | O80: 0 | P80: 0 | Q80: 0 | R80: 0 | S80: 921241147 | U80: 65161460 | V80: 258713767 | W80: 253113611 | X80: 169564759 | Y80: 0 | Z80: 746553597 | AA80: 174687550 | AB80: 0.8103780421
C81: 5111150100 | D81: Mantenimiento | E81: 40941485 | F81: 0 | G81: -92918 | H81: 0 | I81: 0 | J81: 0 | K81: 0 | L81: 0 | M81: 0 | N81: 0 | O81: 0 | P81: 0 | Q81: 0 | R81: 0 | S81: 40848567 | U81: 1196599 | V81: 4788200 | W81: 7038249 | X81: 21293973 | Y81: 0 | Z81: 34317021 | AA81: 6531546 | AB81: 0.8401034239 | AC81: ***
C82: 5111640100 | D82: Seguros, impuestos y gastos legales | E82: 4794332 | F82: 0 | G82: -28740.96 | H82: 0 | I82: 0 | J82: 0 | K82: 0 | L82: 0 | M82: 0 | N82: 0 | O82: 0 | P82: 0 | Q82: 0 | R82: 0 | S82: 4765591.04 | U82: 0 | V82: 1892082 | W82: 0 | X82: 0 | Y82: 0 | Z82: 1892082 | AA82: 2873509.04 | AB82: 0.3970298719
B83: 5802400100 | C83: 5120240100 | D83: Comisiones y gastos bancarios | E83: 0 | F83: 0 | G83: 0 | H83: 0 | I83: 0 | J83: 0 | K83: 0 | L83: 0 | M83: 0 | N83: 0 | O83: 0 | P83: 0 | Q83: 0 | R83: 0 | S83: 0 | U83: 0 | V83: 0 | W83: 0 | X83: 0 | Y83: 0 | Z83: 0 | AA83: 0 | AB83: 0
C84: 5111190100 | D84: Viáticos y Gastos de viaje | E84: 689719041 | F84: 0 | G84: -346696 | H84: 0 | I84: 0 | J84: 0 | K84: 0 | L84: 0 | M84: 0 | N84: 0 | O84: 0 | P84: 0 | Q84: 0 | R84: 0 | S84: 689372345 | U84: 118500426 | V84: 173864652 | W84: 148694717 | X84: 147510440 | Y84: 0 | Z84: 588570235 | AA84: 100802110 | AB84: 0.8537769745
A85: 5111170100 | B85: 5111170200 | C85: 5111170300 | D85: Servicios públicos | E85: 83079036 | F85: 0 | G85: 0 | H85: 0 | I85: -14000000 | J85: 0 | K85: 0 | L85: 0 | M85: 0 | N85: 0 | O85: 0 | P85: 0 | Q85: 0 | R85: 0 | S85: 69079036 | U85: 11018399 | V85: 10938418 | W85: 12801393 | X85: 16952980 | Y85: 0 | Z85: 51711190 | AA85: 17367846 | AB85: 0.7485800757
C86: 5111490100 | D86: Servicios de aseo, vigilancia y seguridad | E86: 10800000 | F86: 0 | G86: 0 | H86: 0 | I86: 14000000 | J86: 0 | K86: 0 | L86: 0 | M86: 0 | N86: 0 | O86: 0 | P86: 0 | Q86: 0 | R86: 0 | S86: 24800000 | U86: 1030109 | V86: 997809 | W86: 1073421 | X86: 1047058 | Y86: 0 | Z86: 4148397 | AA86: 20651603 | AB86: 0.1672740726 | AC86: ***
C87: 5111180100 | D87: Arriendos | E87: 6000000 | F87: 0 | G87: 0 | H87: 0 | I87: 0 | J87: 0 | K87: 0 | L87: 0 | M87: 0 | N87: 0 | O87: 0 | P87: 0 | Q87: 0 | R87: 0 | S87: 6000000 | U87: 1500000 | V87: 1500000 | W87: 1500000 | X87: 500000 | Y87: 0 | Z87: 5000000 | AA87: 1000000 | AB87: 0.8333333333
C88: 5120020100 | D88: Cuota de Auditaje C.G.R. | E88: 0 | F88: 0 | G88: 0 | H88: 0 | I88: 0 | J88: 0 | K88: 0 | L88: 0 | M88: 0 | N88: 0 | O88: 0 | P88: 0 | Q88: 0 | R88: 0 | S88: 0 | U88: 0 | V88: 0 | W88: 0 | X88: 0 | Y88: 0 | Z88: 0 | AA88: 0 | AB88: 0
C89: 5111900100 | D89: Gastos Junta Directiva | E89: 0 | F89: 0 | G89: 0 | H89: 0 | I89: 0 | J89: 0 | K89: 0 | L89: 0 | M89: 0 | N89: 0 | O89: 0 | P89: 0 | Q89: 0 | R89: 0 | S89: 0 | U89: 0 | V89: 0 | W89: 0 | X89: 0 | Y89: 0 | Z89: 0 | AA89: 0 | AB89: 0
D90: ESTUDIOS Y PROYECTOS | E90: 5684777375 | F90: 0 | G90: -11883288 | H90: 0 | I90: 0 | J90: 0 | K90: 0 | L90: 1468847011 | M90: 0 | N90: 0 | O90: 0 | P90: 0 | Q90: 0 | R90: 0 | S90: 7141741098 | U90: 170259881 | V90: 514888949 | W90: 1664581751 | X90: 3612223948 | Y90: 0 | Z90: 5961954529 | AA90: 1179786569 | AB90: 0.8348040691
D91: Programa 1 - Investigación y transferencia de tecnología | E91: 2911167520 | F91: 0 | G91: -780634 | H91: 0 | I91: 0 | J91: 0 | K91: 0 | L91: 0 | M91: 0 | N91: 0 | O91: 0 | P91: 0 | Q91: 0 | R91: 0 | S91: 2910386886 | U91: 141882167 | V91: 137145013 | W91: 1008000355 | X91: 1554813600 | Y91: 0 | Z91: 2841841135 | AA91: 68545751 | AB91: 0.9764478904
C92: 5111060704 | D92: Proyecto No 1 - Implementación y Transferencia de Tecnología en el Sector Productivo Papa – ITPA | E92: 384730000 | F92: 0 | G92: -88000 | H92: 0 | I92: 0 | J92: 0 | K92: 0 | L92: 0 | M92: 0 | N92: 0 | O92: 0 | P92: 0 | Q92: 0 | R92: 0 | S92: 384642000 | U92: 137164300 | V92: 84243000 | W92: 125495250 | X92: 12500000 | Y92: 0 | Z92: 359402550 | AA92: 25239450 | AB92: 0.9343819708
C93: 28 | D93: Insumos agrícolas | E93: 84000000 | F93: 0 | G93: 0 | H93: 0 | I93: 0 | J93: 0 | K93: 0 | L93: 0 | M93: 0 | N93: 0 | O93: 0 | P93: 0 | Q93: 0 | R93: 0 | S93: 84000000 | U93: 59068800 | V93: 0 | W93: 5183250 | X93: 0 | Y93: 0 | Z93: 64252050 | AA93: 19747950 | AB93: 0.7649053571
C94: 29 | D94: Análisis de suelo ITPA | E94: 239070000 | F94: 0 | G94: 0 | H94: 0 | I94: 0 | J94: 0 | K94: 0 | L94: 0 | M94: 0 | N94: 0 | O94: 0 | P94: 0 | Q94: 0 | R94: 0 | S94: 239070000 | U94: 71095500 | V94: 71743000 | W94: 95312000 | X94: 0 | Y94: 0 | Z94: 238150500 | AA94: 919500 | AB94: 0.9961538462
C95: 30 | D95: Trampas Tecia solanivora (feromonas e implementos) | E95: 11660000 | F95: 0 | G95: -88000 | H95: 0 | I95: 0 | J95: 0 | K95: 0 | L95: 0 | M95: 0 | N95: 0 | O95: 0 | P95: 0 | Q95: 0 | R95: 0 | S95: 11572000 | U95: 7000000 | V95: 0 | W95: 0 | X95: 0 | Y95: 0 | Z95: 7000000 | AA95: 4572000 | AB95: 0.6049083996
C96: 31 | D96: Estudio para el análisis de la vulnerabilidad por riesgo climatico en el cultivo de papa en Colombia. | E96: 50000000 | F96: 0 | G96: 0 | H96: 0 | I96: 0 | J96: 0 | K96: 0 | L96: 0 | M96: 0 | N96: 0 | O96: 0 | P96: 0 | Q96: 0 | R96: 0 | S96: 50000000 | U96: 0 | V96: 12500000 | W96: 25000000 | X96: 12500000 | Y96: 0 | Z96: 50000000 | AA96: 0 | AB96: 1
C97: 5111060900 | D97: Proyecto No 2 - Mejoramiento Genético de Papa Tetraploide como Estrategia de Sostenibilidad para el Sistema Productivo en Colombia | E97: 106437520 | F97: 0 | G97: -692634 | H97: 0 | I97: 0 | J97: 0 | K97: 0 | L97: 0 | M97: 0 | N97: 0 | O97: 0 | P97: 0 | Q97: 0 | R97: 0 | S97: 105744886 | U97: 2715867 | V97: 52902013 | W97: 18505105 | X97: 4311600 | Y97: 0 | Z97: 78434585 | AA97: 27310301 | AB97: 0.7417340731
C98: 21 | D98: Insumos de laboratorio y campo de investigación para patógenos de suelo. | E98: 14000000 | F98: 0 | G98: 0 | H98: 0 | I98: 0 | J98: 0 | K98: 0 | L98: 0 | M98: 0 | N98: 0 | O98: 0 | P98: 0 | Q98: 0 | R98: 0 | S98: 14000000 | U98: 0 | V98: 4976539 | W98: 1225105 | X98: 4212600 | Y98: 0 | Z98: 10414244 | AA98: 3585756 | AB98: 0.7438745714
C99: 22 | D99: Insumos agrícolas lotes de pruebas | E99: 69502080 | F99: 0 | G99: -524544 | H99: 0 | I99: 0 | J99: 0 | K99: 0 | L99: 0 | M99: 0 | N99: 0 | O99: 0 | P99: 0 | Q99: 0 | R99: 0 | S99: 68977536 | U99: 2068367 | V99: 47925474 | W99: 0 | X99: 99000 | Y99: 0 | Z99: 50092841 | AA99: 18884695 | AB99: 0.7262196348
C100: 23 | D100: Análisis foliares | E100: 22285440 | F100: 0 | G100: -168090 | H100: 0 | I100: 0 | J100: 0 | K100: 0 | L100: 0 | M100: 0 | N100: 0 | O100: 0 | P100: 0 | Q100: 0 | R100: 0 | S100: 22117350 | U100: 0 | V100: 0 | W100: 17280000 | X100: 0 | Y100: 0 | Z100: 17280000 | AA100: 4837350 | AB100: 0.7812870891
C101: 24 | D101: Análisis de suelo | E101: 650000 | F101: 0 | G101: 0 | H101: 0 | I101: 0 | J101: 0 | K101: 0 | L101: 0 | M101: 0 | N101: 0 | O101: 0 | P101: 0 | Q101: 0 | R101: 0 | S101: 650000 | U101: 647500 | V101: 0 | W101: 0 | X101: 0 | Y101: 0 | Z101: 647500 | AA101: 2500 | AB101: 0.9961538462
C102: 5111061300 | D102: Proyecto No 3 - Diseño y Construcción de un Sistema Productivo de Semilla Certificadas de Papa Fase I | E102: 2420000000 | F102: 0 | G102: 0 | H102: 0 | I102: 0 | J102: 0 | K102: 0 | L102: 0 | M102: 0 | N102: 0 | O102: 0 | P102: 0 | Q102: 0 | R102: 0 | S102: 2420000000 | U102: 2002000 | V102: 0 | W102: 864000000 | X102: 1538002000 | Y102: 0 | Z102: 2404004000 | AA102: 15996000 | AB102: 0.9933900826
C103: 18 | D103: Analisis de virus y patogenos normatividad ICA | E103: 20000000 | F103: 0 | G103: 0 | H103: 0 | I103: 0 | J103: 0 | K103: 0 | L103: 0 | M103: 0 | N103: 0 | O103: 0 | P103: 0 | Q103: 0 | R103: 0 | S103: 20000000 | U103: 2002000 | V103: 0 | W103: 0 | X103: 2002000 | Y103: 0 | Z103: 4004000 | AA103: 15996000 | AB103: 0.2002 | AC103: ***
C104: 19 | D104: Programa de transferencia de tecnología a través de la ampliación de oferta de tubérculo semilla - categoría certificada | E104: 2400000000 | F104: 0 | G104: 0 | H104: 0 | I104: 0 | J104: 0 | K104: 0 | L104: 0 | M104: 0 | N104: 0 | O104: 0 | P104: 0 | Q104: 0 | R104: 0 | S104: 2400000000 | U104: 0 | V104: 0 | W104: 864000000 | X104: 1536000000 | Y104: 0 | Z104: 2400000000 | AA104: 0 | AB104: 1 | AC104: ***
D105: Programa 2 - Investigaciones económicas y mercados | E105: 2773609855 | F105: 0 | G105: -11102654 | H105: 0 | I105: 0 | J105: 0 | K105: 0 | L105: 1468847011 | M105: 0 | N105: 0 | O105: 0 | P105: 0 | Q105: 0 | R105: 0 | S105: 4231354212 | U105: 28377714 | V105: 377743936 | W105: 656581396 | X105: 2057410348 | Y105: 0 | Z105: 3120113394 | AA105: 1111240818 | AB105: 0.7373793915
C106: 5111060701 | D106: Proyecto No 1 - Estrategias de promocion al consumo de papa y divulgacion multiplataforma del FNFP | E106: 2362961733 | F106: 0 | G106: -11102654 | H106: 0 | I106: 0 | J106: 0 | K106: 0 | L106: 1468847011 | M106: 0 | N106: 0 | O106: 0 | P106: 0 | Q106: 0 | R106: 0 | S106: 3820706090 | U106: 5511962 | V106: 290385663 | W106: 536129140 | X106: 1879102986 | Y106: 0 | Z106: 2711129751 | AA106: 1109576339 | AB106: 0.7095886695
C107: 31 | D107: ATL | E107: 850662548 | F107: 0 | G107: -1891793 | H107: 0 | I107: 0 | J107: 0 | K107: 0 | L107: 0 | M107: 0 | N107: 0 | O107: 0 | P107: 0 | Q107: 0 | R107: 0 | S107: 848770755 | U107: 0 | V107: 0 | W107: 286750588 | X107: 562020167 | Y107: 0 | Z107: 848770755 | AA107: 0 | AB107: 1 | AC107: ***
C108: 32 | D108: BTL | E108: 400000000 | F108: 0 | G108: -3018868 | H108: 0 | I108: 0 | J108: 0 | K108: 0 | L108: 208847011 | M108: 0 | N108: 0 | O108: 0 | P108: 0 | Q108: 0 | R108: 0 | S108: 605828143 | U108: 5511962 | V108: 139667386 | W108: 92491021 | X108: 365222373 | Y108: 0 | Z108: 602892742 | AA108: 2935401 | AB108: 0.9951547299
C109: 33 | D109: Digital | E109: 1042987021 | F109: 0 | G109: -5668882 | H109: 0 | I109: 0 | J109: 0 | K109: 0 | L109: 0 | M109: 0 | N109: 0 | O109: 0 | P109: 0 | Q109: 0 | R109: 0 | S109: 1037318139 | U109: 0 | V109: 150718277 | W109: 156887531 | X109: 586860446 | Y109: 0 | Z109: 894466254 | AA109: 142851885 | AB109: 0.8622872968 | AC109: ***
C110: 34 | D110: Estudio de percepción de la categoría | E110: 69312164 | F110: 0 | G110: -523111 | H110: 0 | I110: 0 | J110: 0 | K110: 0 | L110: 0 | M110: 0 | N110: 0 | O110: 0 | P110: 0 | Q110: 0 | R110: 0 | S110: 68789053 | U110: 0 | V110: 0 | W110: 0 | X110: 0 | Y110: 0 | Z110: 0 | AA110: 68789053 | AB110: 0 | AC110: ***
C111: 35 | D111: Apoyo a la comercializacíon | E111: 0 | F111: 0 | G111: 0 | H111: 0 | I111: 0 | J111: 0 | K111: 0 | L111: 1260000000 | M111: 0 | N111: 0 | O111: 0 | P111: 0 | Q111: 0 | R111: 0 | S111: 1260000000 | U111: 0 | V111: 0 | W111: 0 | X111: 365000000 | Y111: 0 | Z111: 365000000 | AA111: 895000000 | AB111: 0.2896825397
C112: 5111060700 | D112: Proyecto No 2 - Sistemas de informacion estadistica y estudios economicos de la cadena agroalimentaria de la papa | E112: 390848122 | F112: 0 | G112: 0 | H112: 0 | I112: 0 | J112: 0 | K112: 0 | L112: 0 | M112: 0 | N112: 0 | O112: 0 | P112: 0 | Q112: 0 | R112: 0 | S112: 390848122 | U112: 22865752 | V112: 68597256 | W112: 120452256 | X112: 178307362 | Y112: 0 | Z112: 390222626 | AA112: 625496 | AB112: 0.9983996444
C113: 23 | D113: Investigación de consumo per cápita de papa en Colombia | E113: 228657520 | F113: 0 | G113: 0 | H113: 0 | I113: 0 | J113: 0 | K113: 0 | L113: 0 | M113: 0 | N113: 0 | O113: 0 | P113: 0 | Q113: 0 | R113: 0 | S113: 228657520 | U113: 22865752 | V113: 68597256 | W113: 68597256 | X113: 68597256 | Y113: 0 | Z113: 228657520 | AA113: 0 | AB113: 1
C114: 22 | D114: Estudios e investigaciones Económicas | E114: 162190602 | F114: 0 | G114: 0 | H114: 0 | I114: 0 | J114: 0 | K114: 0 | L114: 0 | M114: 0 | N114: 0 | O114: 0 | P114: 0 | Q114: 0 | R114: 0 | S114: 162190602 | U114: 0 | V114: 0 | W114: 51855000 | X114: 109710106 | Y114: 0 | Z114: 161565106 | AA114: 625496 | AB114: 0.996143451 | AC114: ***
C115: 5111060703 | D115: Proyecto No 3 - Implementacion de un modelo agroindustrial innovador a pequeña escala para la elaboracion de productos derivados a partir de la transformacion de la papa | E115: 19800000 | F115: 0 | G115: 0 | H115: 0 | I115: 0 | J115: 0 | K115: 0 | L115: 0 | M115: 0 | N115: 0 | O115: 0 | P115: 0 | Q115: 0 | R115: 0 | S115: 19800000 | U115: 0 | V115: 18761017 | W115: 0 | X115: 0 | Y115: 0 | Z115: 18761017 | AA115: 1038983 | AB115: 0.9475261111
C116: 11 | D116: Análisis y caracterización de producto | E116: 19800000 | F116: 0 | G116: 0 | H116: 0 | I116: 0 | J116: 0 | K116: 0 | L116: 0 | M116: 0 | N116: 0 | O116: 0 | P116: 0 | Q116: 0 | R116: 0 | S116: 19800000 | U116: 0 | V116: 18761017 | W116: 0 | X116: 0 | Y116: 0 | Z116: 18761017 | AA116: 1038983 | AB116: 0.9475261111
D117: TOTAL INVERSIÓN Y FUNCIONAMIENTO | E117: 18177194453 | F117: 0 | G117: 161934613 | H117: 0 | I117: 0 | J117: 0 | K117: 0 | L117: 1546958011 | M117: 0 | N117: 0 | O117: 0 | P117: 0 | Q117: 0 | R117: 0 | S117: 1.988608708e+10 | U117: 2430780461 | V117: 3563650792 | W117: 4361079423 | X117: 6388594288 | Y117: 0 | Z117: 16744104964 | AA117: 3141982113 | AB117: 0.8420009879
D118: RESERVA PROY. INV. Y GT. | E118: 4872300650 | F118: 1120084209 | G118: -161934613 | H118: 0 | I118: 0 | J118: 0 | K118: 0 | L118: -1546958011 | M118: 0 | N118: 0 | O118: 0 | P118: 0 | Q118: 0 | R118: 0 | S118: 4283492236 | U118: 600712786 | V118: 0 | W118: 0 | X118: 0 | Y118: 3889925706 | Z118: 4490638492 | AA118: -207146256.3 | AB118: 1.0483592
D119: TOTAL PRESUPUESTO | E119: 2.30494951e+10 | F119: 1120084209 | G119: 0 | H119: 0 | I119: 0 | J119: 0 | K119: 0 | L119: 0 | M119: 0 | N119: 0 | O119: 0 | P119: 0 | Q119: 0 | R119: 0 | S119: 2.416957931e+10 | U119: 3031493247 | V119: 3563650792 | W119: 4361079423 | X119: 6388594288 | Y119: 3889925706 | Z119: 21234743456 | AA119: 2934835857 | AB119: 0.878573151
D120: Cifra de control | E120: 0 | F120: 0 | G120: 0 | H120: 0 | I120: 0 | J120: 0 | K120: 0 | L120: 0 | M120: 0 | N120: 0 | O120: 0 | P120: 0 | Q120: 0 | R120: 0 | S120: 0
N122: Ejecucion | S122: PRESUPUESTO | U122: 2430780461 | V122: 3563650792 | W122: 4361079423 | X122: 6388594288
S123: CONTABILIDAD | U123: 2494086882 | V123: 3651575845 | W123: 4823937974 | X123: 6494890734
S124: DIF | U124: -63306421 | V124: -87925053 | W124: -462858551 | X124: -106296446
S125: CTA 53 | U125: 152423602 | V125: 102117076 | W125: 464421773 | X125: 114346447
S126: DIF | U126: 89117181 | V126: 14192023 | W126: 1563222 | X126: 8050001
S127: ACT FIJOS | U127: 89117181 | V127: 14286420 | W127: 1579999 | X127: 8050001
S128: devolución de transf | U128: 0 | V128: 94397 | W128: 16777 | X128: 0
S129: DIF | U129: 0 | V129: 0 | W129: 0 | X129: 0
N131: Ingreso | S131: PRESUPUESTO | U131: 3031493247 | V131: 3563650792 | W131: 4361079423 | X131: 6388594288
S132: CONTABILIDAD | U132: 3100320301 | V132: 2941760792 | W132: 3421627302 | X132: 4277231400
S133: DIF | U133: -68827054 | V133: 621890000 | W133: 939452121 | X133: 2111362888
S134: Reversion perdida deterioro | U134: 68827054 | V134: 13476151 | W134: 374838114 | X134: 1141915470
S135: Reposicion activo fijo | X135: 350000
S136: Consumo de reserva | U136: 0 | V136: 635366151 | W136: 1314290235 | X136: 3253628358
S137: Dif | U137: 0 | V137: 0 | W137: 0 | X137: 0

Sheet Anexo 5 Planta y Equipo de trab (hidden)
E2: MINISTERIO DE AGRICULTURA Y DESARROLLO RURAL FORMATO RELACIÓN PLANTA DE PERSONAL Y EQUIPO DE TRABAJO FUNCIONAMIENTO E INVERSIÓN DE LOS FONDOS DE FOMENTO AGRICOLAS, FORESTALES, PECUARIOS Y PESQUEROS, Y DE LOS FONDOS DE ESTABILIZACIÓN DE PRECIOS
E6: DIRECCIÓN DE CADENAS AGRÍCOLAS Y FORESTALES - DIRECCIÓN DE CADENAS PECUARIAS, PESQUERAS Y ACUÍCOLAS
E8: FONDO: | F8: FONDO NACIONAL DE FOMENTO DE LA PAPA - FNFP
E9: AÑO PROYECTADO | F9: 2025
E10: FECHA DE ELABORACIÓN
E12: CARGO | F12: FECHA INICIO | G12: FECHA TERMINACION | H12: DIAS LAB | I12: ANTERIOR | K12: INFORMACION MENSUAL PARAFISCALES SEGUN LOS PORCENTAJES ESTABLECIDOS POR LA LEY | S12: INFORMACION ANUAL PARAFISCALES | AA12: PRESTACIONES SOCIALES SEGUN LO ESTABLECIDO POR LA LEY | AF12: TOTAL AÑO VIGENCIA SOLICITADA
A13: NIVEL SALARIAL | B13: NIVEL ARL | C13: TIPO | I13: SALARIO MENSUAL ANTERIOR | J13: % DE INCREMENTO SALARIO | K13: SALARIO MENSUAL VIGENCIA SOLICITADA | L13: SALUD MENSUAL | M13: PENSION MENSUAL | N13: ARL MENSUAL | O13: CAJA COMPENSACION MENSUAL | P13: SENA MENSUAL | Q13: AUXILIO DE TRANSPORTE | R13: ICBF MENSUAL | S13: SALARIO ANUAL | T13: SALUD ANUAL | U13: PENSION ANUAL | V13: ARL ANUAL | W13: CAJA COMPENSACION ANUAL | X13: SENA ANUAL | Y13: AUXILIO DE TRANSPORTE ANUAL | Z13: ICBF ANUAL | AA13: CESANTIAS ANUAL | AB13: INTERESES DE CESANTIAS ANUAL | AC13: PRIMA ANUAL | AD13: VACACIONES ANUAL | AE13: VARIACIÓN DE VACACIONES
E14: GASTOS DE FUNCIONAMIENTO
E15: GASTOS DE FUNCIONAMIENTO - ADMINISTRATIVO
A16: 1 | B16: 2 | C16: C | E16: DIRECTOR ADMINISTRATIVO | F16: 2025-01-02 | G16: 2025-12-31 | H16: =DAYS360(F16,G16) -> 359 | I16: =IF(C16="C",'SUPUESTOS GASTOS'!$D$6*SUMIF('SUPUESTOS GASTOS'!$B$38:$B$47,'Anexo 5 Planta y Equipo de trab'!$A16,'SUPUESTOS GASTOS'!$D$38:$D$47),IF($C16="N",0,IF(C16="E",'SUPUESTOS GASTOS'!$D$6*SUMIF('SUPUESTOS GASTOS'!$B$38:$B$47,'Anexo 5 Planta y Equipo de trab'!$A16,'SUPUESTOS GASTOS'!$D$38:$D$47),""))) -> 8866000 | J16: =+'SUPUESTOS GASTOS'!$D$10 -> 0.06 | K16: =IF($C16="C",ROUNDUP((I16*J16)+I16,-3),IF($C16="N",ROUNDUP(('SUPUESTOS GASTOS'!$D$6*SUMIF('SUPUESTOS GASTOS'!$B$38:$B$47,'Anexo 5 Planta y Equipo de trab'!$A16,'SUPUESTOS GASTOS'!$D$38:$D$47)*$J16)+'SUPUESTOS GASTOS'!$D$6*SUMIF('SUPUESTOS GASTOS'!$B$38:$B$47,'Anexo 5 Planta y Equipo de trab'!$A16,'SUPUESTOS GASTOS'!$D$38:$D$47),-3),IF($C16="E",0))) -> 9398000 | L16: =IFERROR(IF($E16="PASANTE SENA",ROUNDUP((K16*'SUPUESTOS GASTOS'!$D$20),-3),ROUNDUP((K16*'SUPUESTOS GASTOS'!$D$19),-3)),0) -> 799000 | M16: =IFERROR(IF($E16="PASANTE SENA",0,ROUNDUP((K16*'SUPUESTOS GASTOS'!$D$18),-3)),0) -> 1128000 | N16: =IFERROR(ROUNDUP(K16*SUMIF('SUPUESTOS GASTOS'!$B$24:$B$28,'Anexo 5 Planta y Equipo de trab'!$B16,'SUPUESTOS GASTOS'!$D$24:$D$28),-3),0) -> 229000 | O16: =IFERROR(IF($E16="PASANTE SENA",0,ROUNDUP((K16*'SUPUESTOS GASTOS'!$D$31),-3)),0) -> 376000 | P16: =IFERROR(IF($E16="PASANTE SENA",0,ROUNDUP((K16*'SUPUESTOS GASTOS'!$D$32),-3)),0) -> 188000 | Q16: =IF($C16="E",0,IF($E16="PASANTE SENA",0,IF(K16>=('SUPUESTOS GASTOS'!$D$14*2),0,ROUNDUP('SUPUESTOS GASTOS'!$D$15,-3)))) -> 0 | R16: =IFERROR(IF($E16="PASANTE SENA",0,ROUNDUP((K16*'SUPUESTOS GASTOS'!$D$33),-3)),0) -> 282000 | S16: =ROUNDUP((K16/'SUPUESTOS GASTOS'!$D$13)*H16,-3) -> 112463000 | T16: =IFERROR(IF($E16="PASANTE SENA",ROUNDUP((S16*'SUPUESTOS GASTOS'!$D$20),-3),ROUNDUP((S16*'SUPUESTOS GASTOS'!$D$19),-3)),0) -> 9560000 | U16: =IFERROR(IF($E16="PASANTE SENA",0,ROUNDUP((S16*'SUPUESTOS GASTOS'!$D$18),-3)),0) -> 13496000 | V16: =IFERROR(ROUNDUP(S16*SUMIF('SUPUESTOS GASTOS'!$B$24:$B$28,'Anexo 5 Planta y Equipo de trab'!$B16,'SUPUESTOS GASTOS'!$D$24:$D$28),-3),0) -> 2740000 | W16: =IFERROR(IF($E16="PASANTE SENA",0,ROUNDUP(((S16+AD16)*'SUPUESTOS GASTOS'!$D$31),-3)),0) -> 4686000 | X16: =IFERROR(IF($E16="PASANTE SENA",0,ROUNDUP(((S16+AD16)*'SUPUESTOS GASTOS'!$D$32),-3)),0) -> 2343000 | Y16: =IF($C16="E",0,IF($E16="PASANTE SENA",0,IF(K16>=('SUPUESTOS GASTOS'!$D$14*2),0,ROUNDUP(('SUPUESTOS GASTOS'!$D$15/'SUPUESTOS GASTOS'!$D$13)*$H16,-3)))) -> 0 | Z16: =IFERROR(IF($E16="PASANTE SENA",0,ROUNDUP(((S16+AD16)*'SUPUESTOS GASTOS'!$D$33),-3)),0) -> 3515000 | AA16: =IF($E16="PASANTE SENA",0,ROUNDUP(((K16+Q16)*H16)/'SUPUESTOS GASTOS'!$D$12,-3)) -> 9372000 | AB16: =IF($E16="PASANTE SENA",0,ROUNDUP((((AA16)/'SUPUESTOS GASTOS'!$D$12)*H16)*'SUPUESTOS GASTOS'!$D$21,-3)) -> 1122000 | AC16: =IF($E16="PASANTE SENA",0,ROUNDUP(((K16+Q16)*H16)/'SUPUESTOS GASTOS'!$D$12,-3)) -> 9372000 | AD16: =IF($E16="PASANTE SENA",0,ROUNDUP((K16*H16)/('SUPUESTOS GASTOS'!$D$12*2),-3)) -> 4686000 | AF16: =ROUNDUP(SUM(S16:AD16),-3) -> 173355000
A17: 3 | B17: 2 | C17: N | E17: COORDINADOR ADMINISTRATIVO Y FINANCIERO | F17: 2025-01-02 | G17: 2025-12-31 | H17: =DAYS360(F17,G17) -> 359 | I17: =IF(C17="C",'SUPUESTOS GASTOS'!$D$6*SUMIF('SUPUESTOS GASTOS'!$B$38:$B$47,'Anexo 5 Planta y Equipo de trab'!$A17,'SUPUESTOS GASTOS'!$D$38:$D$47),IF($C17="N",0,IF(C17="E",'SUPUESTOS GASTOS'!$D$6*SUMIF('SUPUESTOS GASTOS'!$B$38:$B$47,'Anexo 5 Planta y Equipo de trab'!$A17,'SUPUESTOS GASTOS'!$D$38:$D$47),""))) -> 0 | J17: =+'SUPUESTOS GASTOS'!$D$10 -> 0.06 | K17: =IF($C17="C",ROUNDUP((I17*J17)+I17,-3),IF($C17="N",ROUNDUP(('SUPUESTOS GASTOS'!$D$6*SUMIF('SUPUESTOS GASTOS'!$B$38:$B$47,'Anexo 5 Planta y Equipo de trab'!$A17,'SUPUESTOS GASTOS'!$D$38:$D$47)*$J17)+'SUPUESTOS GASTOS'!$D$6*SUMIF('SUPUESTOS GASTOS'!$B$38:$B$47,'Anexo 5 Planta y Equipo de trab'!$A17,'SUPUESTOS GASTOS'!$D$38:$D$47),-3),IF($C17="E",0))) -> 5512000 | L17: =IFERROR(IF($E17="PASANTE SENA",ROUNDUP((K17*'SUPUESTOS GASTOS'!$D$20),-3),ROUNDUP((K17*'SUPUESTOS GASTOS'!$D$19),-3)),0) -> 469000 | M17: =IFERROR(IF($E17="PASANTE SENA",0,ROUNDUP((K17*'SUPUESTOS GASTOS'!$D$18),-3)),0) -> 662000 | N17: =IFERROR(ROUNDUP(K17*SUMIF('SUPUESTOS GASTOS'!$B$24:$B$28,'Anexo 5 Planta y Equipo de trab'!$B17,'SUPUESTOS GASTOS'!$D$24:$D$28),-3),0) -> 135000 | O17: =IFERROR(IF($E17="PASANTE SENA",0,ROUNDUP((K17*'SUPUESTOS GASTOS'!$D$31),-3)),0) -> 221000 | P17: =IFERROR(IF($E17="PASANTE SENA",0,ROUNDUP((K17*'SUPUESTOS GASTOS'!$D$32),-3)),0) -> 111000 | Q17: =IF($C17="E",0,IF($E17="PASANTE SENA",0,IF(K17>=('SUPUESTOS GASTOS'!$D$14*2),0,ROUNDUP('SUPUESTOS GASTOS'!$D$15,-3)))) -> 0 | R17: =IFERROR(IF($E17="PASANTE SENA",0,ROUNDUP((K17*'SUPUESTOS GASTOS'!$D$33),-3)),0) -> 166000 | S17: =ROUNDUP((K17/'SUPUESTOS GASTOS'!$D$13)*H17,-3) -> 65961000 | T17: =IFERROR(IF($E17="PASANTE SENA",ROUNDUP((S17*'SUPUESTOS GASTOS'!$D$20),-3),ROUNDUP((S17*'SUPUESTOS GASTOS'!$D$19),-3)),0) -> 5607000 | U17: =IFERROR(IF($E17="PASANTE SENA",0,ROUNDUP((S17*'SUPUESTOS GASTOS'!$D$18),-3)),0) -> 7916000 | V17: =IFERROR(ROUNDUP(S17*SUMIF('SUPUESTOS GASTOS'!$B$24:$B$28,'Anexo 5 Planta y Equipo de trab'!$B17,'SUPUESTOS GASTOS'!$D$24:$D$28),-3),0) -> 1607000 | W17: =IFERROR(IF($E17="PASANTE SENA",0,ROUNDUP(((S17+AD17)*'SUPUESTOS GASTOS'!$D$31),-3)),0) -> 2749000 | X17: =IFERROR(IF($E17="PASANTE SENA",0,ROUNDUP(((S17+AD17)*'SUPUESTOS GASTOS'!$D$32),-3)),0) -> 1375000 | Y17: =IF($C17="E",0,IF($E17="PASANTE SENA",0,IF(K17>=('SUPUESTOS GASTOS'!$D$14*2),0,ROUNDUP(('SUPUESTOS GASTOS'!$D$15/'SUPUESTOS GASTOS'!$D$13)*$H17,-3)))) -> 0 | Z17: =IFERROR(IF($E17="PASANTE SENA",0,ROUNDUP(((S17+AD17)*'SUPUESTOS GASTOS'!$D$33),-3)),0) -> 2062000 | AA17: =IF($E17="PASANTE SENA",0,ROUNDUP(((K17+Q17)*H17)/'SUPUESTOS GASTOS'!$D$12,-3)) -> 5497000 | AB17: =IF($E17="PASANTE SENA",0,ROUNDUP((((AA17)/'SUPUESTOS GASTOS'!$D$12)*H17)*'SUPUESTOS GASTOS'!$D$21,-3)) -> 658000 | AC17: =IF($E17="PASANTE SENA",0,ROUNDUP(((K17+Q17)*H17)/'SUPUESTOS GASTOS'!$D$12,-3)) -> 5497000 | AD17: =IF($E17="PASANTE SENA",0,ROUNDUP((K17*H17)/('SUPUESTOS GASTOS'!$D$12*2),-3)) -> 2749000 | AF17: 101678000
A18: 4 | B18: 5 | C18: E | E18: SUPERVISOR FINANCIERO Y ADMINISTRATIVO | F18: 2025-01-02 | G18: 2025-12-31 | H18: 359 | I18: =IF(C18="C",'SUPUESTOS GASTOS'!$D$6*SUMIF('SUPUESTOS GASTOS'!$B$38:$B$47,'Anexo 5 Planta y Equipo de trab'!$A18,'SUPUESTOS GASTOS'!$D$38:$D$47),IF($C18="N",0,IF(C18="E",'SUPUESTOS GASTOS'!$D$6*SUMIF('SUPUESTOS GASTOS'!$B$38:$B$47,'Anexo 5 Planta y Equipo de trab'!$A18,'SUPUESTOS GASTOS'!$D$38:$D$47),""))) -> 3900000 | J18: =+'SUPUESTOS GASTOS'!$D$10 -> 0.06 | K18: =IF($C18="C",ROUNDUP((I18*J18)+I18,-3),IF($C18="N",ROUNDUP(('SUPUESTOS GASTOS'!$D$6*SUMIF('SUPUESTOS GASTOS'!$B$38:$B$47,'Anexo 5 Planta y Equipo de trab'!$A18,'SUPUESTOS GASTOS'!$D$38:$D$47)*$J18)+'SUPUESTOS GASTOS'!$D$6*SUMIF('SUPUESTOS GASTOS'!$B$38:$B$47,'Anexo 5 Planta y Equipo de trab'!$A18,'SUPUESTOS GASTOS'!$D$38:$D$47),-3),IF($C18="E",0))) -> 0 | L18: =IFERROR(IF($E18="PASANTE SENA",ROUNDUP((K18*'SUPUESTOS GASTOS'!$D$20),-3),ROUNDUP((K18*'SUPUESTOS GASTOS'!$D$19),-3)),0) -> 0 | M18: =IFERROR(IF($E18="PASANTE SENA",0,ROUNDUP((K18*'SUPUESTOS GASTOS'!$D$18),-3)),0) -> 0 | N18: =IFERROR(ROUNDUP(K18*SUMIF('SUPUESTOS GASTOS'!$B$24:$B$28,'Anexo 5 Planta y Equipo de trab'!$B18,'SUPUESTOS GASTOS'!$D$24:$D$28),-3),0) -> 0 | O18: =IFERROR(IF($E18="PASANTE SENA",0,ROUNDUP((K18*'SUPUESTOS GASTOS'!$D$31),-3)),0) -> 0 | P18: =IFERROR(IF($E18="PASANTE SENA",0,ROUNDUP((K18*'SUPUESTOS GASTOS'!$D$32),-3)),0) -> 0 | Q18: =IF($C18="E",0,IF($E18="PASANTE SENA",0,IF(K18>=('SUPUESTOS GASTOS'!$D$14*2),0,ROUNDUP('SUPUESTOS GASTOS'!$D$15,-3)))) -> 0 | R18: =IFERROR(IF($E18="PASANTE SENA",0,ROUNDUP((K18*'SUPUESTOS GASTOS'!$D$33),-3)),0) -> 0 | S18: =ROUNDUP((K18/'SUPUESTOS GASTOS'!$D$13)*H18,-3) -> 0 | T18: =IFERROR(IF($E18="PASANTE SENA",ROUNDUP((S18*'SUPUESTOS GASTOS'!$D$20),-3),ROUNDUP((S18*'SUPUESTOS GASTOS'!$D$19),-3)),0) -> 0 | U18: =IFERROR(IF($E18="PASANTE SENA",0,ROUNDUP((S18*'SUPUESTOS GASTOS'!$D$18),-3)),0) -> 0 | V18: =IFERROR(ROUNDUP(S18*SUMIF('SUPUESTOS GASTOS'!$B$24:$B$28,'Anexo 5 Planta y Equipo de trab'!$B18,'SUPUESTOS GASTOS'!$D$24:$D$28),-3),0) -> 0 | W18: =IFERROR(IF($E18="PASANTE SENA",0,ROUNDUP(((S18+AD18)*'SUPUESTOS GASTOS'!$D$31),-3)),0) -> 0 | X18: =IFERROR(IF($E18="PASANTE SENA",0,ROUNDUP(((S18+AD18)*'SUPUESTOS GASTOS'!$D$32),-3)),0) -> 0 | Y18: =IF($C18="E",0,IF($E18="PASANTE SENA",0,IF(K18>=('SUPUESTOS GASTOS'!$D$14*2),0,ROUNDUP(('SUPUESTOS GASTOS'!$D$15/'SUPUESTOS GASTOS'!$D$13)*$H18,-3)))) -> 0 | Z18: =IFERROR(IF($E18="PASANTE SENA",0,ROUNDUP(((S18+AD18)*'SUPUESTOS GASTOS'!$D$33),-3)),0) -> 0 | AA18: =IF($E18="PASANTE SENA",0,ROUNDUP(((K18+Q18)*H18)/'SUPUESTOS GASTOS'!$D$12,-3)) -> 0 | AB18: =IF($E18="PASANTE SENA",0,ROUNDUP((((AA18)/'SUPUESTOS GASTOS'!$D$12)*H18)*'SUPUESTOS GASTOS'!$D$21,-3)) -> 0 | AC18: =IF($E18="PASANTE SENA",0,ROUNDUP(((K18+Q18)*H18)/'SUPUESTOS GASTOS'!$D$12,-3)) -> 0 | AD18: =IF($E18="PASANTE SENA",0,ROUNDUP((K18*H18)/('SUPUESTOS GASTOS'!$D$12*2),-3)) -> 0 | AF18: 0
A19: 5 | B19: 1 | C19: C | E19: PROFESIONAL PRESUPUESTAL Y FINANCIERO | F19: 2025-01-02 | G19: 2025-12-31 | H19: 359 | I19: =IF(C19="C",'SUPUESTOS GASTOS'!$D$6*SUMIF('SUPUESTOS GASTOS'!$B$38:$B$47,'Anexo 5 Planta y Equipo de trab'!$A19,'SUPUESTOS GASTOS'!$D$38:$D$47),IF($C19="N",0,IF(C19="E",'SUPUESTOS GASTOS'!$D$6*SUMIF('SUPUESTOS GASTOS'!$B$38:$B$47,'Anexo 5 Planta y Equipo de trab'!$A19,'SUPUESTOS GASTOS'!$D$38:$D$47),""))) -> 3380000 | J19: =+'SUPUESTOS GASTOS'!$D$10 -> 0.06 | K19: =IF($C19="C",ROUNDUP((I19*J19)+I19,-3),IF($C19="N",ROUNDUP(('SUPUESTOS GASTOS'!$D$6*SUMIF('SUPUESTOS GASTOS'!$B$38:$B$47,'Anexo 5 Planta y Equipo de trab'!$A19,'SUPUESTOS GASTOS'!$D$38:$D$47)*$J19)+'SUPUESTOS GASTOS'!$D$6*SUMIF('SUPUESTOS GASTOS'!$B$38:$B$47,'Anexo 5 Planta y Equipo de trab'!$A19,'SUPUESTOS GASTOS'!$D$38:$D$47),-3),IF($C19="E",0))) -> 3583000 | L19: =IFERROR(IF($E19="PASANTE SENA",ROUNDUP((K19*'SUPUESTOS GASTOS'!$D$20),-3),ROUNDUP((K19*'SUPUESTOS GASTOS'!$D$19),-3)),0) -> 305000 | M19: =IFERROR(IF($E19="PASANTE SENA",0,ROUNDUP((K19*'SUPUESTOS GASTOS'!$D$18),-3)),0) -> 430000 | N19: =IFERROR(ROUNDUP(K19*SUMIF('SUPUESTOS GASTOS'!$B$24:$B$28,'Anexo 5 Planta y Equipo de trab'!$B19,'SUPUESTOS GASTOS'!$D$24:$D$28),-3),0) -> 19000 | O19: =IFERROR(IF($E19="PASANTE SENA",0,ROUNDUP((K19*'SUPUESTOS GASTOS'!$D$31),-3)),0) -> 144000 | P19: =IFERROR(IF($E19="PASANTE SENA",0,ROUNDUP((K19*'SUPUESTOS GASTOS'!$D$32),-3)),0) -> 72000 | Q19: =IF($C19="E",0,IF($E19="PASANTE SENA",0,IF(K19>=('SUPUESTOS GASTOS'!$D$14*2),0,ROUNDUP('SUPUESTOS GASTOS'!$D$15,-3)))) -> 0 | R19: =IFERROR(IF($E19="PASANTE SENA",0,ROUNDUP((K19*'SUPUESTOS GASTOS'!$D$33),-3)),0) -> 108000 | S19: =ROUNDUP((K19/'SUPUESTOS GASTOS'!$D$13)*H19,-3) -> 42877000 | T19: =IFERROR(IF($E19="PASANTE SENA",ROUNDUP((S19*'SUPUESTOS GASTOS'!$D$20),-3),ROUNDUP((S19*'SUPUESTOS GASTOS'!$D$19),-3)),0) -> 3645000 | U19: =IFERROR(IF($E19="PASANTE SENA",0,ROUNDUP((S19*'SUPUESTOS GASTOS'!$D$18),-3)),0) -> 5146000 | V19: =IFERROR(ROUNDUP(S19*SUMIF('SUPUESTOS GASTOS'!$B$24:$B$28,'Anexo 5 Planta y Equipo de trab'!$B19,'SUPUESTOS GASTOS'!$D$24:$D$28),-3),0) -> 224000 | W19: =IFERROR(IF($E19="PASANTE SENA",0,ROUNDUP(((S19+AD19)*'SUPUESTOS GASTOS'!$D$31),-3)),0) -> 1787000 | X19: =IFERROR(IF($E19="PASANTE SENA",0,ROUNDUP(((S19+AD19)*'SUPUESTOS GASTOS'!$D$32),-3)),0) -> 894000 | Y19: =IF($C19="E",0,IF($E19="PASANTE SENA",0,IF(K19>=('SUPUESTOS GASTOS'!$D$14*2),0,ROUNDUP(('SUPUESTOS GASTOS'!$D$15/'SUPUESTOS GASTOS'!$D$13)*$H19,-3)))) -> 0 | Z19: =IFERROR(IF($E19="PASANTE SENA",0,ROUNDUP(((S19+AD19)*'SUPUESTOS GASTOS'!$D$33),-3)),0) -> 1340000 | AA19: =IF($E19="PASANTE SENA",0,ROUNDUP(((K19+Q19)*H19)/'SUPUESTOS GASTOS'!$D$12,-3)) -> 3574000 | AB19: =IF($E19="PASANTE SENA",0,ROUNDUP((((AA19)/'SUPUESTOS GASTOS'!$D$12)*H19)*'SUPUESTOS GASTOS'!$D$21,-3)) -> 428000 | AC19: =IF($E19="PASANTE SENA",0,ROUNDUP(((K19+Q19)*H19)/'SUPUESTOS GASTOS'!$D$12,-3)) -> 3574000 | AD19: =IF($E19="PASANTE SENA",0,ROUNDUP((K19*H19)/('SUPUESTOS GASTOS'!$D$12*2),-3)) -> 1787000 | AF19: 65276000
A20: 5 | B20: 1 | C20: C | E20: PROFESIONAL EN GESTIÓN CONTABLE Y FINANCIERA | F20: 2025-01-02 | G20: 2025-12-31 | H20: 359 | I20: =IF(C20="C",'SUPUESTOS GASTOS'!$D$6*SUMIF('SUPUESTOS GASTOS'!$B$38:$B$47,'Anexo 5 Planta y Equipo de trab'!$A20,'SUPUESTOS GASTOS'!$D$38:$D$47),IF($C20="N",0,IF(C20="E",'SUPUESTOS GASTOS'!$D$6*SUMIF('SUPUESTOS GASTOS'!$B$38:$B$47,'Anexo 5 Planta y Equipo de trab'!$A20,'SUPUESTOS GASTOS'!$D$38:$D$47),""))) -> 3380000 | J20: =+'SUPUESTOS GASTOS'!$D$10 -> 0.06 | K20: =IF($C20="C",ROUNDUP((I20*J20)+I20,-3),IF($C20="N",ROUNDUP(('SUPUESTOS GASTOS'!$D$6*SUMIF('SUPUESTOS GASTOS'!$B$38:$B$47,'Anexo 5 Planta y Equipo de trab'!$A20,'SUPUESTOS GASTOS'!$D$38:$D$47)*$J20)+'SUPUESTOS GASTOS'!$D$6*SUMIF('SUPUESTOS GASTOS'!$B$38:$B$47,'Anexo 5 Planta y Equipo de trab'!$A20,'SUPUESTOS GASTOS'!$D$38:$D$47),-3),IF($C20="E",0))) -> 3583000 | L20: =IFERROR(IF($E20="PASANTE SENA",ROUNDUP((K20*'SUPUESTOS GASTOS'!$D$20),-3),ROUNDUP((K20*'SUPUESTOS GASTOS'!$D$19),-3)),0) -> 305000 | M20: =IFERROR(IF($E20="PASANTE SENA",0,ROUNDUP((K20*'SUPUESTOS GASTOS'!$D$18),-3)),0) -> 430000 | N20: =IFERROR(ROUNDUP(K20*SUMIF('SUPUESTOS GASTOS'!$B$24:$B$28,'Anexo 5 Planta y Equipo de trab'!$B20,'SUPUESTOS GASTOS'!$D$24:$D$28),-3),0) -> 19000 | O20: =IFERROR(IF($E20="PASANTE SENA",0,ROUNDUP((K20*'SUPUESTOS GASTOS'!$D$31),-3)),0) -> 144000 | P20: =IFERROR(IF($E20="PASANTE SENA",0,ROUNDUP((K20*'SUPUESTOS GASTOS'!$D$32),-3)),0) -> 72000 | Q20: =IF($C20="E",0,IF($E20="PASANTE SENA",0,IF(K20>=('SUPUESTOS GASTOS'!$D$14*2),0,ROUNDUP('SUPUESTOS GASTOS'!$D$15,-3)))) -> 0 | R20: =IFERROR(IF($E20="PASANTE SENA",0,ROUNDUP((K20*'SUPUESTOS GASTOS'!$D$33),-3)),0) -> 108000 | S20: =ROUNDUP((K20/'SUPUESTOS GASTOS'!$D$13)*H20,-3) -> 42877000 | T20: =IFERROR(IF($E20="PASANTE SENA",ROUNDUP((S20*'SUPUESTOS GASTOS'!$D$20),-3),ROUNDUP((S20*'SUPUESTOS GASTOS'!$D$19),-3)),0) -> 3645000 | U20: =IFERROR(IF($E20="PASANTE SENA",0,ROUNDUP((S20*'SUPUESTOS GASTOS'!$D$18),-3)),0) -> 5146000 | V20: =IFERROR(ROUNDUP(S20*SUMIF('SUPUESTOS GASTOS'!$B$24:$B$28,'Anexo 5 Planta y Equipo de trab'!$B20,'SUPUESTOS GASTOS'!$D$24:$D$28),-3),0) -> 224000 | W20: =IFERROR(IF($E20="PASANTE SENA",0,ROUNDUP(((S20+AD20)*'SUPUESTOS GASTOS'!$D$31),-3)),0) -> 1787000 | X20: =IFERROR(IF($E20="PASANTE SENA",0,ROUNDUP(((S20+AD20)*'SUPUESTOS GASTOS'!$D$32),-3)),0) -> 894000 | Y20: =IF($C20="E",0,IF($E20="PASANTE SENA",0,IF(K20>=('SUPUESTOS GASTOS'!$D$14*2),0,ROUNDUP(('SUPUESTOS GASTOS'!$D$15/'SUPUESTOS GASTOS'!$D$13)*$H20,-3)))) -> 0 | Z20: =IFERROR(IF($E20="PASANTE SENA",0,ROUNDUP(((S20+AD20)*'SUPUESTOS GASTOS'!$D$33),-3)),0) -> 1340000 | AA20: =IF($E20="PASANTE SENA",0,ROUNDUP(((K20+Q20)*H20)/'SUPUESTOS GASTOS'!$D$12,-3)) -> 3574000 | AB20: =IF($E20="PASANTE SENA",0,ROUNDUP((((AA20)/'SUPUESTOS GASTOS'!$D$12)*H20)*'SUPUESTOS GASTOS'!$D$21,-3)) -> 428000 | AC20: =IF($E20="PASANTE SENA",0,ROUNDUP(((K20+Q20)*H20)/'SUPUESTOS GASTOS'!$D$12,-3)) -> 3574000 | AD20: =IF($E20="PASANTE SENA",0,ROUNDUP((K20*H20)/('SUPUESTOS GASTOS'!$D$12*2),-3)) -> 1787000 | AF20: 65276000
A21: 5 | B21: 1 | C21: C | E21: PROFESIONAL EN GESTIÓN CONTABLE Y FINANCIERA | F21: 2025-01-02 | G21: 2025-12-31 | H21: 359 | I21: =IF(C21="C",'SUPUESTOS GASTOS'!$D$6*SUMIF('SUPUESTOS GASTOS'!$B$38:$B$47,'Anexo 5 Planta y Equipo de trab'!$A21,'SUPUESTOS GASTOS'!$D$38:$D$47),IF($C21="N",0,IF(C21="E",'SUPUESTOS GASTOS'!$D$6*SUMIF('SUPUESTOS GASTOS'!$B$38:$B$47,'Anexo 5 Planta y Equipo de trab'!$A21,'SUPUESTOS GASTOS'!$D$38:$D$47),""))) -> 3380000 | J21: =+'SUPUESTOS GASTOS'!$D$10 -> 0.06 | K21: =IF($C21="C",ROUNDUP((I21*J21)+I21,-3),IF($C21="N",ROUNDUP(('SUPUESTOS GASTOS'!$D$6*SUMIF('SUPUESTOS GASTOS'!$B$38:$B$47,'Anexo 5 Planta y Equipo de trab'!$A21,'SUPUESTOS GASTOS'!$D$38:$D$47)*$J21)+'SUPUESTOS GASTOS'!$D$6*SUMIF('SUPUESTOS GASTOS'!$B$38:$B$47,'Anexo 5 Planta y Equipo de trab'!$A21,'SUPUESTOS GASTOS'!$D$38:$D$47),-3),IF($C21="E",0))) -> 3583000 | L21: =IFERROR(IF($E21="PASANTE SENA",ROUNDUP((K21*'SUPUESTOS GASTOS'!$D$20),-3),ROUNDUP((K21*'SUPUESTOS GASTOS'!$D$19),-3)),0) -> 305000 | M21: =IFERROR(IF($E21="PASANTE SENA",0,ROUNDUP((K21*'SUPUESTOS GASTOS'!$D$18),-3)),0) -> 430000 | N21: =IFERROR(ROUNDUP(K21*SUMIF('SUPUESTOS GASTOS'!$B$24:$B$28,'Anexo 5 Planta y Equipo de trab'!$B21,'SUPUESTOS GASTOS'!$D$24:$D$28),-3),0) -> 19000 | O21: =IFERROR(IF($E21="PASANTE SENA",0,ROUNDUP((K21*'SUPUESTOS GASTOS'!$D$31),-3)),0) -> 144000 | P21: =IFERROR(IF($E21="PASANTE SENA",0,ROUNDUP((K21*'SUPUESTOS GASTOS'!$D$32),-3)),0) -> 72000 | Q21: =IF($C21="E",0,IF($E21="PASANTE SENA",0,IF(K21>=('SUPUESTOS GASTOS'!$D$14*2),0,ROUNDUP('SUPUESTOS GASTOS'!$D$15,-3)))) -> 0 | R21: =IFERROR(IF($E21="PASANTE SENA",0,ROUNDUP((K21*'SUPUESTOS GASTOS'!$D$33),-3)),0) -> 108000 | S21: =ROUNDUP((K21/'SUPUESTOS GASTOS'!$D$13)*H21,-3) -> 42877000 | T21: =IFERROR(IF($E21="PASANTE SENA",ROUNDUP((S21*'SUPUESTOS GASTOS'!$D$20),-3),ROUNDUP((S21*'SUPUESTOS GASTOS'!$D$19),-3)),0) -> 3645000 | U21: =IFERROR(IF($E21="PASANTE SENA",0,ROUNDUP((S21*'SUPUESTOS GASTOS'!$D$18),-3)),0) -> 5146000 | V21: =IFERROR(ROUNDUP(S21*SUMIF('SUPUESTOS GASTOS'!$B$24:$B$28,'Anexo 5 Planta y Equipo de trab'!$B21,'SUPUESTOS GASTOS'!$D$24:$D$28),-3),0) -> 224000 | W21: =IFERROR(IF($E21="PASANTE SENA",0,ROUNDUP(((S21+AD21)*'SUPUESTOS GASTOS'!$D$31),-3)),0) -> 1787000 | X21: =IFERROR(IF($E21="PASANTE SENA",0,ROUNDUP(((S21+AD21)*'SUPUESTOS GASTOS'!$D$32),-3)),0) -> 894000 | Y21: =IF($C21="E",0,IF($E21="PASANTE SENA",0,IF(K21>=('SUPUESTOS GASTOS'!$D$14*2),0,ROUNDUP(('SUPUESTOS GASTOS'!$D$15/'SUPUESTOS GASTOS'!$D$13)*$H21,-3)))) -> 0 | Z21: =IFERROR(IF($E21="PASANTE SENA",0,ROUNDUP(((S21+AD21)*'SUPUESTOS GASTOS'!$D$33),-3)),0) -> 1340000 | AA21: =IF($E21="PASANTE SENA",0,ROUNDUP(((K21+Q21)*H21)/'SUPUESTOS GASTOS'!$D$12,-3)) -> 3574000 | AB21: =IF($E21="PASANTE SENA",0,ROUNDUP((((AA21)/'SUPUESTOS GASTOS'!$D$12)*H21)*'SUPUESTOS GASTOS'!$D$21,-3)) -> 428000 | AC21: =IF($E21="PASANTE SENA",0,ROUNDUP(((K21+Q21)*H21)/'SUPUESTOS GASTOS'!$D$12,-3)) -> 3574000 | AD21: =IF($E21="PASANTE SENA",0,ROUNDUP((K21*H21)/('SUPUESTOS GASTOS'!$D$12*2),-3)) -> 1787000 | AF21: 65276000
A22: 8 | B22: 1 | C22: N | E22: TECNICO DE INFORMACIÓN DOCUMENTAL | F22: 2025-01-07 | G22: 2025-12-31 | H22: 354 | I22: =IF(C22="C",'SUPUESTOS GASTOS'!$D$6*SUMIF('SUPUESTOS GASTOS'!$B$38:$B$47,'Anexo 5 Planta y Equipo de trab'!$A22,'SUPUESTOS GASTOS'!$D$38:$D$47),IF($C22="N",0,IF(C22="E",'SUPUESTOS GASTOS'!$D$6*SUMIF('SUPUESTOS GASTOS'!$B$38:$B$47,'Anexo 5 Planta y Equipo de trab'!$A22,'SUPUESTOS GASTOS'!$D$38:$D$47),""))) -> 0 | J22: =+'SUPUESTOS GASTOS'!$D$10 -> 0.06 | K22: =IF($C22="C",ROUNDUP((I22*J22)+I22,-3),IF($C22="N",ROUNDUP(('SUPUESTOS GASTOS'!$D$6*SUMIF('SUPUESTOS GASTOS'!$B$38:$B$47,'Anexo 5 Planta y Equipo de trab'!$A22,'SUPUESTOS GASTOS'!$D$38:$D$47)*$J22)+'SUPUESTOS GASTOS'!$D$6*SUMIF('SUPUESTOS GASTOS'!$B$38:$B$47,'Anexo 5 Planta y Equipo de trab'!$A22,'SUPUESTOS GASTOS'!$D$38:$D$47),-3),IF($C22="E",0))) -> 1792000 | L22: =IFERROR(IF($E22="PASANTE SENA",ROUNDUP((K22*'SUPUESTOS GASTOS'!$D$20),-3),ROUNDUP((K22*'SUPUESTOS GASTOS'!$D$19),-3)),0) -> 153000 | M22: =IFERROR(IF($E22="PASANTE SENA",0,ROUNDUP((K22*'SUPUESTOS GASTOS'!$D$18),-3)),0) -> 216000 | N22: =IFERROR(ROUNDUP(K22*SUMIF('SUPUESTOS GASTOS'!$B$24:$B$28,'Anexo 5 Planta y Equipo de trab'!$B22,'SUPUESTOS GASTOS'!$D$24:$D$28),-3),0) -> 10000 | O22: =IFERROR(IF($E22="PASANTE SENA",0,ROUNDUP((K22*'SUPUESTOS GASTOS'!$D$31),-3)),0) -> 72000 | P22: =IFERROR(IF($E22="PASANTE SENA",0,ROUNDUP((K22*'SUPUESTOS GASTOS'!$D$32),-3)),0) -> 36000 | Q22: =IF($C22="E",0,IF($E22="PASANTE SENA",0,IF(K22>=('SUPUESTOS GASTOS'!$D$14*2),0,ROUNDUP('SUPUESTOS GASTOS'!$D$15,-3)))) -> 172000 | R22: =IFERROR(IF($E22="PASANTE SENA",0,ROUNDUP((K22*'SUPUESTOS GASTOS'!$D$33),-3)),0) -> 54000 | S22: =ROUNDUP((K22/'SUPUESTOS GASTOS'!$D$13)*H22,-3) -> 21146000 | T22: =IFERROR(IF($E22="PASANTE SENA",ROUNDUP((S22*'SUPUESTOS GASTOS'!$D$20),-3),ROUNDUP((S22*'SUPUESTOS GASTOS'!$D$19),-3)),0) -> 1798000 | U22: =IFERROR(IF($E22="PASANTE SENA",0,ROUNDUP((S22*'SUPUESTOS GASTOS'!$D$18),-3)),0) -> 2538000 | V22: =IFERROR(ROUNDUP(S22*SUMIF('SUPUESTOS GASTOS'!$B$24:$B$28,'Anexo 5 Planta y Equipo de trab'!$B22,'SUPUESTOS GASTOS'!$D$24:$D$28),-3),0) -> 111000 | W22: =IFERROR(IF($E22="PASANTE SENA",0,ROUNDUP(((S22+AD22)*'SUPUESTOS GASTOS'!$D$31),-3)),0) -> 882000 | X22: =IFERROR(IF($E22="PASANTE SENA",0,ROUNDUP(((S22+AD22)*'SUPUESTOS GASTOS'!$D$32),-3)),0) -> 441000 | Y22: =IF($C22="E",0,IF($E22="PASANTE SENA",0,IF(K22>=('SUPUESTOS GASTOS'!$D$14*2),0,ROUNDUP(('SUPUESTOS GASTOS'!$D$15/'SUPUESTOS GASTOS'!$D$13)*$H22,-3)))) -> 2027000 | Z22: =IFERROR(IF($E22="PASANTE SENA",0,ROUNDUP(((S22+AD22)*'SUPUESTOS GASTOS'!$D$33),-3)),0) -> 661000 | AA22: =IF($E22="PASANTE SENA",0,ROUNDUP(((K22+Q22)*H22)/'SUPUESTOS GASTOS'!$D$12,-3)) -> 1932000 | AB22: =IF($E22="PASANTE SENA",0,ROUNDUP((((AA22)/'SUPUESTOS GASTOS'!$D$12)*H22)*'SUPUESTOS GASTOS'!$D$21,-3)) -> 228000 | AC22: =IF($E22="PASANTE SENA",0,ROUNDUP(((K22+Q22)*H22)/'SUPUESTOS GASTOS'!$D$12,-3)) -> 1932000 | AD22: =IF($E22="PASANTE SENA",0,ROUNDUP((K22*H22)/('SUPUESTOS GASTOS'!$D$12*2),-3)) -> 882000 | AF22: 34578000
E23: SUB TOTAL GASTOS DE FUNCIONAMIENTO - ADMINISTRATIVO | K23: =SUM(K16:K22) -> 27451000 | L23: 2336000 | M23: 3296000 | N23: 431000 | O23: 1101000 | P23: 551000 | Q23: 172000 | R23: 826000 | S23: 328201000 | T23: 27900000 | U23: 39388000 | V23: 5130000 | W23: 13678000 | X23: 6841000 | Y23: 2027000 | Z23: 10258000 | AA23: 27523000 | AB23: 3292000 | AC23: 27523000 | AD23: 13678000 | AE23: 0 | AF23: =SUM(AF16:AF22) -> 505439000
E24: GASTOS DE FUNCIONAMIENTO - RECAUDO
A25: 1 | B25: 2 | C25: C | E25: DIRECTOR DE RECAUDO | F25: 2025-01-02 | G25: 2025-12-31 | H25: =DAYS360(F25,G25) -> 359 | I25: =IF(C25="C",'SUPUESTOS GASTOS'!$D$6*SUMIF('SUPUESTOS GASTOS'!$B$38:$B$47,'Anexo 5 Planta y Equipo de trab'!$A25,'SUPUESTOS GASTOS'!$D$38:$D$47),IF($C25="N",0,IF(C25="E",'SUPUESTOS GASTOS'!$D$6*SUMIF('SUPUESTOS GASTOS'!$B$38:$B$47,'Anexo 5 Planta y Equipo de trab'!$A25,'SUPUESTOS GASTOS'!$D$38:$D$47),""))) -> 8866000 | J25: =+'SUPUESTOS GASTOS'!$D$10 -> 0.06 | K25: =IF($C25="C",ROUNDUP((I25*J25)+I25,-3),IF($C25="N",ROUNDUP(('SUPUESTOS GASTOS'!$D$6*SUMIF('SUPUESTOS GASTOS'!$B$38:$B$47,'Anexo 5 Planta y Equipo de trab'!$A25,'SUPUESTOS GASTOS'!$D$38:$D$47)*$J25)+'SUPUESTOS GASTOS'!$D$6*SUMIF('SUPUESTOS GASTOS'!$B$38:$B$47,'Anexo 5 Planta y Equipo de trab'!$A25,'SUPUESTOS GASTOS'!$D$38:$D$47),-3),IF($C25="E",0))) -> 9398000 | L25: =IFERROR(IF($E25="PASANTE SENA",ROUNDUP((K25*'SUPUESTOS GASTOS'!$D$20),-3),ROUNDUP((K25*'SUPUESTOS GASTOS'!$D$19),-3)),0) -> 799000 | M25: =IFERROR(IF($E25="PASANTE SENA",0,ROUNDUP((K25*'SUPUESTOS GASTOS'!$D$18),-3)),0) -> 1128000 | N25: =IFERROR(ROUNDUP(K25*SUMIF('SUPUESTOS GASTOS'!$B$24:$B$28,'Anexo 5 Planta y Equipo de trab'!$B25,'SUPUESTOS GASTOS'!$D$24:$D$28),-3),0) -> 229000 | O25: =IFERROR(IF($E25="PASANTE SENA",0,ROUNDUP((K25*'SUPUESTOS GASTOS'!$D$31),-3)),0) -> 376000 | P25: =IFERROR(IF($E25="PASANTE SENA",0,ROUNDUP((K25*'SUPUESTOS GASTOS'!$D$32),-3)),0) -> 188000 | Q25: =IF($C25="E",0,IF($E25="PASANTE SENA",0,IF(K25>=('SUPUESTOS GASTOS'!$D$14*2),0,ROUNDUP('SUPUESTOS GASTOS'!$D$15,-3)))) -> 0 | R25: =IFERROR(IF($E25="PASANTE SENA",0,ROUNDUP((K25*'SUPUESTOS GASTOS'!$D$33),-3)),0) -> 282000 | S25: =ROUNDUP((K25/'SUPUESTOS GASTOS'!$D$13)*H25,-3) -> 112463000 | T25: =IFERROR(IF($E25="PASANTE SENA",ROUNDUP((S25*'SUPUESTOS GASTOS'!$D$20),-3),ROUNDUP((S25*'SUPUESTOS GASTOS'!$D$19),-3)),0) -> 9560000 | U25: =IFERROR(IF($E25="PASANTE SENA",0,ROUNDUP((S25*'SUPUESTOS GASTOS'!$D$18),-3)),0) -> 13496000 | V25: =IFERROR(ROUNDUP(S25*SUMIF('SUPUESTOS GASTOS'!$B$24:$B$28,'Anexo 5 Planta y Equipo de trab'!$B25,'SUPUESTOS GASTOS'!$D$24:$D$28),-3),0) -> 2740000 | W25: =IFERROR(IF($E25="PASANTE SENA",0,ROUNDUP(((S25+AD25)*'SUPUESTOS GASTOS'!$D$31),-3)),0) -> 4686000 | X25: =IFERROR(IF($E25="PASANTE SENA",0,ROUNDUP(((S25+AD25)*'SUPUESTOS GASTOS'!$D$32),-3)),0) -> 2343000 | Y25: =IF($C25="E",0,IF($E25="PASANTE SENA",0,IF(K25>=('SUPUESTOS GASTOS'!$D$14*2),0,ROUNDUP(('SUPUESTOS GASTOS'!$D$15/'SUPUESTOS GASTOS'!$D$13)*$H25,-3)))) -> 0 | Z25: =IFERROR(IF($E25="PASANTE SENA",0,ROUNDUP(((S25+AD25)*'SUPUESTOS GASTOS'!$D$33),-3)),0) -> 3515000 | AA25: =IF($E25="PASANTE SENA",0,ROUNDUP(((K25+Q25)*H25)/'SUPUESTOS GASTOS'!$D$12,-3)) -> 9372000 | AB25: =IF($E25="PASANTE SENA",0,ROUNDUP((((AA25)/'SUPUESTOS GASTOS'!$D$12)*H25)*'SUPUESTOS GASTOS'!$D$21,-3)) -> 1122000 | AC25: =IF($E25="PASANTE SENA",0,ROUNDUP(((K25+Q25)*H25)/'SUPUESTOS GASTOS'!$D$12,-3)) -> 9372000 | AD25: =IF($E25="PASANTE SENA",0,ROUNDUP((K25*H25)/('SUPUESTOS GASTOS'!$D$12*2),-3)) -> 4686000 | AF25: =ROUNDUP(SUM(S25:AD25),-3) -> 173355000
A26: 3 | B26: 2 | C26: C | E26: COORDINADOR DE RECAUDO ZONA 1 | F26: 2025-01-02 | G26: 2025-12-31 | H26: 359 | I26: =IF(C26="C",'SUPUESTOS GASTOS'!$D$6*SUMIF('SUPUESTOS GASTOS'!$B$38:$B$47,'Anexo 5 Planta y Equipo de trab'!$A26,'SUPUESTOS GASTOS'!$D$38:$D$47),IF($C26="N",0,IF(C26="E",'SUPUESTOS GASTOS'!$D$6*SUMIF('SUPUESTOS GASTOS'!$B$38:$B$47,'Anexo 5 Planta y Equipo de trab'!$A26,'SUPUESTOS GASTOS'!$D$38:$D$47),""))) -> 5200000 | J26: =+'SUPUESTOS GASTOS'!$D$10 -> 0.06 | K26: =IF($C26="C",ROUNDUP((I26*J26)+I26,-3),IF($C26="N",ROUNDUP(('SUPUESTOS GASTOS'!$D$6*SUMIF('SUPUESTOS GASTOS'!$B$38:$B$47,'Anexo 5 Planta y Equipo de trab'!$A26,'SUPUESTOS GASTOS'!$D$38:$D$47)*$J26)+'SUPUESTOS GASTOS'!$D$6*SUMIF('SUPUESTOS GASTOS'!$B$38:$B$47,'Anexo 5 Planta y Equipo de trab'!$A26,'SUPUESTOS GASTOS'!$D$38:$D$47),-3),IF($C26="E",0))) -> 5512000 | L26: =IFERROR(IF($E26="PASANTE SENA",ROUNDUP((K26*'SUPUESTOS GASTOS'!$D$20),-3),ROUNDUP((K26*'SUPUESTOS GASTOS'!$D$19),-3)),0) -> 469000 | M26: =IFERROR(IF($E26="PASANTE SENA",0,ROUNDUP((K26*'SUPUESTOS GASTOS'!$D$18),-3)),0) -> 662000 | N26: =IFERROR(ROUNDUP(K26*SUMIF('SUPUESTOS GASTOS'!$B$24:$B$28,'Anexo 5 Planta y Equipo de trab'!$B26,'SUPUESTOS GASTOS'!$D$24:$D$28),-3),0) -> 135000 | O26: =IFERROR(IF($E26="PASANTE SENA",0,ROUNDUP((K26*'SUPUESTOS GASTOS'!$D$31),-3)),0) -> 221000 | P26: =IFERROR(IF($E26="PASANTE SENA",0,ROUNDUP((K26*'SUPUESTOS GASTOS'!$D$32),-3)),0) -> 111000 | Q26: =IF($C26="E",0,IF($E26="PASANTE SENA",0,IF(K26>=('SUPUESTOS GASTOS'!$D$14*2),0,ROUNDUP('SUPUESTOS GASTOS'!$D$15,-3)))) -> 0 | R26: =IFERROR(IF($E26="PASANTE SENA",0,ROUNDUP((K26*'SUPUESTOS GASTOS'!$D$33),-3)),0) -> 166000 | S26: =ROUNDUP((K26/'SUPUESTOS GASTOS'!$D$13)*H26,-3) -> 65961000 | T26: =IFERROR(IF($E26="PASANTE SENA",ROUNDUP((S26*'SUPUESTOS GASTOS'!$D$20),-3),ROUNDUP((S26*'SUPUESTOS GASTOS'!$D$19),-3)),0) -> 5607000 | U26: =IFERROR(IF($E26="PASANTE SENA",0,ROUNDUP((S26*'SUPUESTOS GASTOS'!$D$18),-3)),0) -> 7916000 | V26: =IFERROR(ROUNDUP(S26*SUMIF('SUPUESTOS GASTOS'!$B$24:$B$28,'Anexo 5 Planta y Equipo de trab'!$B26,'SUPUESTOS GASTOS'!$D$24:$D$28),-3),0) -> 1607000 | W26: =IFERROR(IF($E26="PASANTE SENA",0,ROUNDUP(((S26+AD26)*'SUPUESTOS GASTOS'!$D$31),-3)),0) -> 2749000 | X26: =IFERROR(IF($E26="PASANTE SENA",0,ROUNDUP(((S26+AD26)*'SUPUESTOS GASTOS'!$D$32),-3)),0) -> 1375000 | Y26: =IF($C26="E",0,IF($E26="PASANTE SENA",0,IF(K26>=('SUPUESTOS GASTOS'!$D$14*2),0,ROUNDUP(('SUPUESTOS GASTOS'!$D$15/'SUPUESTOS GASTOS'!$D$13)*$H26,-3)))) -> 0 | Z26: =IFERROR(IF($E26="PASANTE SENA",0,ROUNDUP(((S26+AD26)*'SUPUESTOS GASTOS'!$D$33),-3)),0) -> 2062000 | AA26: =IF($E26="PASANTE SENA",0,ROUNDUP(((K26+Q26)*H26)/'SUPUESTOS GASTOS'!$D$12,-3)) -> 5497000 | AB26: =IF($E26="PASANTE SENA",0,ROUNDUP((((AA26)/'SUPUESTOS GASTOS'!$D$12)*H26)*'SUPUESTOS GASTOS'!$D$21,-3)) -> 658000 | AC26: =IF($E26="PASANTE SENA",0,ROUNDUP(((K26+Q26)*H26)/'SUPUESTOS GASTOS'!$D$12,-3)) -> 5497000 | AD26: =IF($E26="PASANTE SENA",0,ROUNDUP((K26*H26)/('SUPUESTOS GASTOS'!$D$12*2),-3)) -> 2749000 | AF26: 101678000
A27: 3 | B27: 2 | C27: N | E27: COORDINADOR DE RECAUDO ZONA 2 | F27: 2025-01-02 | G27: 2025-12-31 | H27: 359 | I27: =IF(C27="C",'SUPUESTOS GASTOS'!$D$6*SUMIF('SUPUESTOS GASTOS'!$B$38:$B$47,'Anexo 5 Planta y Equipo de trab'!$A27,'SUPUESTOS GASTOS'!$D$38:$D$47),IF($C27="N",0,IF(C27="E",'SUPUESTOS GASTOS'!$D$6*SUMIF('SUPUESTOS GASTOS'!$B$38:$B$47,'Anexo 5 Planta y Equipo de trab'!$A27,'SUPUESTOS GASTOS'!$D$38:$D$47),""))) -> 0 | J27: =+'SUPUESTOS GASTOS'!$D$10 -> 0.06 | K27: =IF($C27="C",ROUNDUP((I27*J27)+I27,-3),IF($C27="N",ROUNDUP(('SUPUESTOS GASTOS'!$D$6*SUMIF('SUPUESTOS GASTOS'!$B$38:$B$47,'Anexo 5 Planta y Equipo de trab'!$A27,'SUPUESTOS GASTOS'!$D$38:$D$47)*$J27)+'SUPUESTOS GASTOS'!$D$6*SUMIF('SUPUESTOS GASTOS'!$B$38:$B$47,'Anexo 5 Planta y Equipo de trab'!$A27,'SUPUESTOS GASTOS'!$D$38:$D$47),-3),IF($C27="E",0))) -> 5512000 | L27: =IFERROR(IF($E27="PASANTE SENA",ROUNDUP((K27*'SUPUESTOS GASTOS'!$D$20),-3),ROUNDUP((K27*'SUPUESTOS GASTOS'!$D$19),-3)),0) -> 469000 | M27: =IFERROR(IF($E27="PASANTE SENA",0,ROUNDUP((K27*'SUPUESTOS GASTOS'!$D$18),-3)),0) -> 662000 | N27: =IFERROR(ROUNDUP(K27*SUMIF('SUPUESTOS GASTOS'!$B$24:$B$28,'Anexo 5 Planta y Equipo de trab'!$B27,'SUPUESTOS GASTOS'!$D$24:$D$28),-3),0) -> 135000 | O27: =IFERROR(IF($E27="PASANTE SENA",0,ROUNDUP((K27*'SUPUESTOS GASTOS'!$D$31),-3)),0) -> 221000 | P27: =IFERROR(IF($E27="PASANTE SENA",0,ROUNDUP((K27*'SUPUESTOS GASTOS'!$D$32),-3)),0) -> 111000 | Q27: =IF($C27="E",0,IF($E27="PASANTE SENA",0,IF(K27>=('SUPUESTOS GASTOS'!$D$14*2),0,ROUNDUP('SUPUESTOS GASTOS'!$D$15,-3)))) -> 0 | R27: =IFERROR(IF($E27="PASANTE SENA",0,ROUNDUP((K27*'SUPUESTOS GASTOS'!$D$33),-3)),0) -> 166000 | S27: =ROUNDUP((K27/'SUPUESTOS GASTOS'!$D$13)*H27,-3) -> 65961000 | T27: =IFERROR(IF($E27="PASANTE SENA",ROUNDUP((S27*'SUPUESTOS GASTOS'!$D$20),-3),ROUNDUP((S27*'SUPUESTOS GASTOS'!$D$19),-3)),0) -> 5607000 | U27: =IFERROR(IF($E27="PASANTE SENA",0,ROUNDUP((S27*'SUPUESTOS GASTOS'!$D$18),-3)),0) -> 7916000 | V27: =IFERROR(ROUNDUP(S27*SUMIF('SUPUESTOS GASTOS'!$B$24:$B$28,'Anexo 5 Planta y Equipo de trab'!$B27,'SUPUESTOS GASTOS'!$D$24:$D$28),-3),0) -> 1607000 | W27: =IFERROR(IF($E27="PASANTE SENA",0,ROUNDUP(((S27+AD27)*'SUPUESTOS GASTOS'!$D$31),-3)),0) -> 2749000 | X27: =IFERROR(IF($E27="PASANTE SENA",0,ROUNDUP(((S27+AD27)*'SUPUESTOS GASTOS'!$D$32),-3)),0) -> 1375000 | Y27: =IF($C27="E",0,IF($E27="PASANTE SENA",0,IF(K27>=('SUPUESTOS GASTOS'!$D$14*2),0,ROUNDUP(('SUPUESTOS GASTOS'!$D$15/'SUPUESTOS GASTOS'!$D$13)*$H27,-3)))) -> 0 | Z27: =IFERROR(IF($E27="PASANTE SENA",0,ROUNDUP(((S27+AD27)*'SUPUESTOS GASTOS'!$D$33),-3)),0) -> 2062000 | AA27: =IF($E27="PASANTE SENA",0,ROUNDUP(((K27+Q27)*H27)/'SUPUESTOS GASTOS'!$D$12,-3)) -> 5497000 | AB27: =IF($E27="PASANTE SENA",0,ROUNDUP((((AA27)/'SUPUESTOS GASTOS'!$D$12)*H27)*'SUPUESTOS GASTOS'!$D$21,-3)) -> 658000 | AC27: =IF($E27="PASANTE SENA",0,ROUNDUP(((K27+Q27)*H27)/'SUPUESTOS GASTOS'!$D$12,-3)) -> 5497000 | AD27: =IF($E27="PASANTE SENA",0,ROUNDUP((K27*H27)/('SUPUESTOS GASTOS'!$D$12*2),-3)) -> 2749000 | AF27: 101678000
A28: 10 | B28: 5 | C28: C | E28: GESTOR LEGAL | F28: 2025-01-02 | G28: 2025-12-31 | H28: 359 | I28: =IF(C28="C",'SUPUESTOS GASTOS'!$D$6*SUMIF('SUPUESTOS GASTOS'!$B$38:$B$47,'Anexo 5 Planta y Equipo de trab'!$A28,'SUPUESTOS GASTOS'!$D$38:$D$47),IF($C28="N",0,IF(C28="E",'SUPUESTOS GASTOS'!$D$6*SUMIF('SUPUESTOS GASTOS'!$B$38:$B$47,'Anexo 5 Planta y Equipo de trab'!$A28,'SUPUESTOS GASTOS'!$D$38:$D$47),""))) -> 4500000 | J28: =+'SUPUESTOS GASTOS'!$D$10 -> 0.06 | K28: =IF($C28="C",ROUNDUP((I28*J28)+I28,-3),IF($C28="N",ROUNDUP(('SUPUESTOS GASTOS'!$D$6*SUMIF('SUPUESTOS GASTOS'!$B$38:$B$47,'Anexo 5 Planta y Equipo de trab'!$A28,'SUPUESTOS GASTOS'!$D$38:$D$47)*$J28)+'SUPUESTOS GASTOS'!$D$6*SUMIF('SUPUESTOS GASTOS'!$B$38:$B$47,'Anexo 5 Planta y Equipo de trab'!$A28,'SUPUESTOS GASTOS'!$D$38:$D$47),-3),IF($C28="E",0))) -> 4770000 | L28: =IFERROR(IF($E28="PASANTE SENA",ROUNDUP((K28*'SUPUESTOS GASTOS'!$D$20),-3),ROUNDUP((K28*'SUPUESTOS GASTOS'!$D$19),-3)),0) -> 406000 | M28: =IFERROR(IF($E28="PASANTE SENA",0,ROUNDUP((K28*'SUPUESTOS GASTOS'!$D$18),-3)),0) -> 573000 | N28: =IFERROR(ROUNDUP(K28*SUMIF('SUPUESTOS GASTOS'!$B$24:$B$28,'Anexo 5 Planta y Equipo de trab'!$B28,'SUPUESTOS GASTOS'!$D$24:$D$28),-3),0) -> 50000 | O28: =IFERROR(IF($E28="PASANTE SENA",0,ROUNDUP((K28*'SUPUESTOS GASTOS'!$D$31),-3)),0) -> 191000 | P28: =IFERROR(IF($E28="PASANTE SENA",0,ROUNDUP((K28*'SUPUESTOS GASTOS'!$D$32),-3)),0) -> 96000 | Q28: =IF($C28="E",0,IF($E28="PASANTE SENA",0,IF(K28>=('SUPUESTOS GASTOS'!$D$14*2),0,ROUNDUP('SUPUESTOS GASTOS'!$D$15,-3)))) -> 0 | R28: =IFERROR(IF($E28="PASANTE SENA",0,ROUNDUP((K28*'SUPUESTOS GASTOS'!$D$33),-3)),0) -> 144000 | S28: =ROUNDUP((K28/'SUPUESTOS GASTOS'!$D$13)*H28,-3) -> 57081000 | T28: =IFERROR(IF($E28="PASANTE SENA",ROUNDUP((S28*'SUPUESTOS GASTOS'!$D$20),-3),ROUNDUP((S28*'SUPUESTOS GASTOS'!$D$19),-3)),0) -> 4852000 | U28: =IFERROR(IF($E28="PASANTE SENA",0,ROUNDUP((S28*'SUPUESTOS GASTOS'!$D$18),-3)),0) -> 6850000 | V28: =IFERROR(ROUNDUP(S28*SUMIF('SUPUESTOS GASTOS'!$B$24:$B$28,'Anexo 5 Planta y Equipo de trab'!$B28,'SUPUESTOS GASTOS'!$D$24:$D$28),-3),0) -> 596000 | W28: =IFERROR(IF($E28="PASANTE SENA",0,ROUNDUP(((S28+AD28)*'SUPUESTOS GASTOS'!$D$31),-3)),0) -> 2379000 | X28: =IFERROR(IF($E28="PASANTE SENA",0,ROUNDUP(((S28+AD28)*'SUPUESTOS GASTOS'!$D$32),-3)),0) -> 1190000 | Y28: =IF($C28="E",0,IF($E28="PASANTE SENA",0,IF(K28>=('SUPUESTOS GASTOS'!$D$14*2),0,ROUNDUP(('SUPUESTOS GASTOS'!$D$15/'SUPUESTOS GASTOS'!$D$13)*$H28,-3)))) -> 0 | Z28: =IFERROR(IF($E28="PASANTE SENA",0,ROUNDUP(((S28+AD28)*'SUPUESTOS GASTOS'!$D$33),-3)),0) -> 1784000 | AA28: =IF($E28="PASANTE SENA",0,ROUNDUP(((K28+Q28)*H28)/'SUPUESTOS GASTOS'!$D$12,-3)) -> 4757000 | AB28: =IF($E28="PASANTE SENA",0,ROUNDUP((((AA28)/'SUPUESTOS GASTOS'!$D$12)*H28)*'SUPUESTOS GASTOS'!$D$21,-3)) -> 570000 | AC28: =IF($E28="PASANTE SENA",0,ROUNDUP(((K28+Q28)*H28)/'SUPUESTOS GASTOS'!$D$12,-3)) -> 4757000 | AD28: =IF($E28="PASANTE SENA",0,ROUNDUP((K28*H28)/('SUPUESTOS GASTOS'!$D$12*2),-3)) -> 2379000 | AF28: 87195000
A29: 6 | B29: 3 | C29: E | E29: ASESOR DE RECAUDO ZONA 3 | F29: 2025-01-02 | G29: 2025-12-31 | H29: 359 | I29: =IF(C29="C",'SUPUESTOS GASTOS'!$D$6*SUMIF('SUPUESTOS GASTOS'!$B$38:$B$47,'Anexo 5 Planta y Equipo de trab'!$A29,'SUPUESTOS GASTOS'!$D$38:$D$47),IF($C29="N",0,IF(C29="E",'SUPUESTOS GASTOS'!$D$6*SUMIF('SUPUESTOS GASTOS'!$B$38:$B$47,'Anexo 5 Planta y Equipo de trab'!$A29,'SUPUESTOS GASTOS'!$D$38:$D$47),""))) -> 3120000 | J29: =+'SUPUESTOS GASTOS'!$D$10 -> 0.06 | K29: =IF($C29="C",ROUNDUP((I29*J29)+I29,-3),IF($C29="N",ROUNDUP(('SUPUESTOS GASTOS'!$D$6*SUMIF('SUPUESTOS GASTOS'!$B$38:$B$47,'Anexo 5 Planta y Equipo de trab'!$A29,'SUPUESTOS GASTOS'!$D$38:$D$47)*$J29)+'SUPUESTOS GASTOS'!$D$6*SUMIF('SUPUESTOS GASTOS'!$B$38:$B$47,'Anexo 5 Planta y Equipo de trab'!$A29,'SUPUESTOS GASTOS'!$D$38:$D$47),-3),IF($C29="E",0))) -> 0 | L29: =IFERROR(IF($E29="PASANTE SENA",ROUNDUP((K29*'SUPUESTOS GASTOS'!$D$20),-3),ROUNDUP((K29*'SUPUESTOS GASTOS'!$D$19),-3)),0) -> 0 | M29: =IFERROR(IF($E29="PASANTE SENA",0,ROUNDUP((K29*'SUPUESTOS GASTOS'!$D$18),-3)),0) -> 0 | N29: =IFERROR(ROUNDUP(K29*SUMIF('SUPUESTOS GASTOS'!$B$24:$B$28,'Anexo 5 Planta y Equipo de trab'!$B29,'SUPUESTOS GASTOS'!$D$24:$D$28),-3),0) -> 0 | O29: =IFERROR(IF($E29="PASANTE SENA",0,ROUNDUP((K29*'SUPUESTOS GASTOS'!$D$31),-3)),0) -> 0 | P29: =IFERROR(IF($E29="PASANTE SENA",0,ROUNDUP((K29*'SUPUESTOS GASTOS'!$D$32),-3)),0) -> 0 | Q29: =IF($C29="E",0,IF($E29="PASANTE SENA",0,IF(K29>=('SUPUESTOS GASTOS'!$D$14*2),0,ROUNDUP('SUPUESTOS GASTOS'!$D$15,-3)))) -> 0 | R29: =IFERROR(IF($E29="PASANTE SENA",0,ROUNDUP((K29*'SUPUESTOS GASTOS'!$D$33),-3)),0) -> 0 | S29: =ROUNDUP((K29/'SUPUESTOS GASTOS'!$D$13)*H29,-3) -> 0 | T29: =IFERROR(IF($E29="PASANTE SENA",ROUNDUP((S29*'SUPUESTOS GASTOS'!$D$20),-3),ROUNDUP((S29*'SUPUESTOS GASTOS'!$D$19),-3)),0) -> 0 | U29: =IFERROR(IF($E29="PASANTE SENA",0,ROUNDUP((S29*'SUPUESTOS GASTOS'!$D$18),-3)),0) -> 0 | V29: =IFERROR(ROUNDUP(S29*SUMIF('SUPUESTOS GASTOS'!$B$24:$B$28,'Anexo 5 Planta y Equipo de trab'!$B29,'SUPUESTOS GASTOS'!$D$24:$D$28),-3),0) -> 0 | W29: =IFERROR(IF($E29="PASANTE SENA",0,ROUNDUP(((S29+AD29)*'SUPUESTOS GASTOS'!$D$31),-3)),0) -> 0 | X29: =IFERROR(IF($E29="PASANTE SENA",0,ROUNDUP(((S29+AD29)*'SUPUESTOS GASTOS'!$D$32),-3)),0) -> 0 | Y29: =IF($C29="E",0,IF($E29="PASANTE SENA",0,IF(K29>=('SUPUESTOS GASTOS'!$D$14*2),0,ROUNDUP(('SUPUESTOS GASTOS'!$D$15/'SUPUESTOS GASTOS'!$D$13)*$H29,-3)))) -> 0 | Z29: =IFERROR(IF($E29="PASANTE SENA",0,ROUNDUP(((S29+AD29)*'SUPUESTOS GASTOS'!$D$33),-3)),0) -> 0 | AA29: =IF($E29="PASANTE SENA",0,ROUNDUP(((K29+Q29)*H29)/'SUPUESTOS GASTOS'!$D$12,-3)) -> 0 | AB29: =IF($E29="PASANTE SENA",0,ROUNDUP((((AA29)/'SUPUESTOS GASTOS'!$D$12)*H29)*'SUPUESTOS GASTOS'!$D$21,-3)) -> 0 | AC29: =IF($E29="PASANTE SENA",0,ROUNDUP(((K29+Q29)*H29)/'SUPUESTOS GASTOS'!$D$12,-3)) -> 0 | AD29: =IF($E29="PASANTE SENA",0,ROUNDUP((K29*H29)/('SUPUESTOS GASTOS'!$D$12*2),-3)) -> 0 | AF29: 0
A30: 6 | B30: 3 | C30: E | E30: ASESOR DE RECAUDO ZONA 4 | F30: 2025-01-02 | G30: 2025-12-31 | H30: 359 | I30: =IF(C30="C",'SUPUESTOS GASTOS'!$D$6*SUMIF('SUPUESTOS GASTOS'!$B$38:$B$47,'Anexo 5 Planta y Equipo de trab'!$A30,'SUPUESTOS GASTOS'!$D$38:$D$47),IF($C30="N",0,IF(C30="E",'SUPUESTOS GASTOS'!$D$6*SUMIF('SUPUESTOS GASTOS'!$B$38:$B$47,'Anexo 5 Planta y Equipo de trab'!$A30,'SUPUESTOS GASTOS'!$D$38:$D$47),""))) -> 3120000 | J30: =+'SUPUESTOS GASTOS'!$D$10 -> 0.06 | K30: =IF($C30="C",ROUNDUP((I30*J30)+I30,-3),IF($C30="N",ROUNDUP(('SUPUESTOS GASTOS'!$D$6*SUMIF('SUPUESTOS GASTOS'!$B$38:$B$47,'Anexo 5 Planta y Equipo de trab'!$A30,'SUPUESTOS GASTOS'!$D$38:$D$47)*$J30)+'SUPUESTOS GASTOS'!$D$6*SUMIF('SUPUESTOS GASTOS'!$B$38:$B$47,'Anexo 5 Planta y Equipo de trab'!$A30,'SUPUESTOS GASTOS'!$D$38:$D$47),-3),IF($C30="E",0))) -> 0 | L30: =IFERROR(IF($E30="PASANTE SENA",ROUNDUP((K30*'SUPUESTOS GASTOS'!$D$20),-3),ROUNDUP((K30*'SUPUESTOS GASTOS'!$D$19),-3)),0) -> 0 | M30: =IFERROR(IF($E30="PASANTE SENA",0,ROUNDUP((K30*'SUPUESTOS GASTOS'!$D$18),-3)),0) -> 0 | N30: =IFERROR(ROUNDUP(K30*SUMIF('SUPUESTOS GASTOS'!$B$24:$B$28,'Anexo 5 Planta y Equipo de trab'!$B30,'SUPUESTOS GASTOS'!$D$24:$D$28),-3),0) -> 0 | O30: =IFERROR(IF($E30="PASANTE SENA",0,ROUNDUP((K30*'SUPUESTOS GASTOS'!$D$31),-3)),0) -> 0 | P30: =IFERROR(IF($E30="PASANTE SENA",0,ROUNDUP((K30*'SUPUESTOS GASTOS'!$D$32),-3)),0) -> 0 | Q30: =IF($C30="E",0,IF($E30="PASANTE SENA",0,IF(K30>=('SUPUESTOS GASTOS'!$D$14*2),0,ROUNDUP('SUPUESTOS GASTOS'!$D$15,-3)))) -> 0 | R30: =IFERROR(IF($E30="PASANTE SENA",0,ROUNDUP((K30*'SUPUESTOS GASTOS'!$D$33),-3)),0) -> 0 | S30: =ROUNDUP((K30/'SUPUESTOS GASTOS'!$D$13)*H30,-3) -> 0 | T30: =IFERROR(IF($E30="PASANTE SENA",ROUNDUP((S30*'SUPUESTOS GASTOS'!$D$20),-3),ROUNDUP((S30*'SUPUESTOS GASTOS'!$D$19),-3)),0) -> 0 | U30: =IFERROR(IF($E30="PASANTE SENA",0,ROUNDUP((S30*'SUPUESTOS GASTOS'!$D$18),-3)),0) -> 0 | V30: =IFERROR(ROUNDUP(S30*SUMIF('SUPUESTOS GASTOS'!$B$24:$B$28,'Anexo 5 Planta y Equipo de trab'!$B30,'SUPUESTOS GASTOS'!$D$24:$D$28),-3),0) -> 0 | W30: =IFERROR(IF($E30="PASANTE SENA",0,ROUNDUP(((S30+AD30)*'SUPUESTOS GASTOS'!$D$31),-3)),0) -> 0 | X30: =IFERROR(IF($E30="PASANTE SENA",0,ROUNDUP(((S30+AD30)*'SUPUESTOS GASTOS'!$D$32),-3)),0) -> 0 | Y30: =IF($C30="E",0,IF($E30="PASANTE SENA",0,IF(K30>=('SUPUESTOS GASTOS'!$D$14*2),0,ROUNDUP(('SUPUESTOS GASTOS'!$D$15/'SUPUESTOS GASTOS'!$D$13)*$H30,-3)))) -> 0 | Z30: =IFERROR(IF($E30="PASANTE SENA",0,ROUNDUP(((S30+AD30)*'SUPUESTOS GASTOS'!$D$33),-3)),0) -> 0 | AA30: =IF($E30="PASANTE SENA",0,ROUNDUP(((K30+Q30)*H30)/'SUPUESTOS GASTOS'!$D$12,-3)) -> 0 | AB30: =IF($E30="PASANTE SENA",0,ROUNDUP((((AA30)/'SUPUESTOS GASTOS'!$D$12)*H30)*'SUPUESTOS GASTOS'!$D$21,-3)) -> 0 | AC30: =IF($E30="PASANTE SENA",0,ROUNDUP(((K30+Q30)*H30)/'SUPUESTOS GASTOS'!$D$12,-3)) -> 0 | AD30: =IF($E30="PASANTE SENA",0,ROUNDUP((K30*H30)/('SUPUESTOS GASTOS'!$D$12*2),-3)) -> 0 | AF30: 0
A31: 6 | B31: 3 | C31: E | E31: ASESOR DE RECAUDO ZONA 5 | F31: 2025-01-02 | G31: 2025-12-31 | H31: 359 | I31: =IF(C31="C",'SUPUESTOS GASTOS'!$D$6*SUMIF('SUPUESTOS GASTOS'!$B$38:$B$47,'Anexo 5 Planta y Equipo de trab'!$A31,'SUPUESTOS GASTOS'!$D$38:$D$47),IF($C31="N",0,IF(C31="E",'SUPUESTOS GASTOS'!$D$6*SUMIF('SUPUESTOS GASTOS'!$B$38:$B$47,'Anexo 5 Planta y Equipo de trab'!$A31,'SUPUESTOS GASTOS'!$D$38:$D$47),""))) -> 3120000 | J31: =+'SUPUESTOS GASTOS'!$D$10 -> 0.06 | K31: =IF($C31="C",ROUNDUP((I31*J31)+I31,-3),IF($C31="N",ROUNDUP(('SUPUESTOS GASTOS'!$D$6*SUMIF('SUPUESTOS GASTOS'!$B$38:$B$47,'Anexo 5 Planta y Equipo de trab'!$A31,'SUPUESTOS GASTOS'!$D$38:$D$47)*$J31)+'SUPUESTOS GASTOS'!$D$6*SUMIF('SUPUESTOS GASTOS'!$B$38:$B$47,'Anexo 5 Planta y Equipo de trab'!$A31,'SUPUESTOS GASTOS'!$D$38:$D$47),-3),IF($C31="E",0))) -> 0 | L31: =IFERROR(IF($E31="PASANTE SENA",ROUNDUP((K31*'SUPUESTOS GASTOS'!$D$20),-3),ROUNDUP((K31*'SUPUESTOS GASTOS'!$D$19),-3)),0) -> 0 | M31: =IFERROR(IF($E31="PASANTE SENA",0,ROUNDUP((K31*'SUPUESTOS GASTOS'!$D$18),-3)),0) -> 0 | N31: =IFERROR(ROUNDUP(K31*SUMIF('SUPUESTOS GASTOS'!$B$24:$B$28,'Anexo 5 Planta y Equipo de trab'!$B31,'SUPUESTOS GASTOS'!$D$24:$D$28),-3),0) -> 0 | O31: =IFERROR(IF($E31="PASANTE SENA",0,ROUNDUP((K31*'SUPUESTOS GASTOS'!$D$31),-3)),0) -> 0 | P31: =IFERROR(IF($E31="PASANTE SENA",0,ROUNDUP((K31*'SUPUESTOS GASTOS'!$D$32),-3)),0) -> 0 | Q31: =IF($C31="E",0,IF($E31="PASANTE SENA",0,IF(K31>=('SUPUESTOS GASTOS'!$D$14*2),0,ROUNDUP('SUPUESTOS GASTOS'!$D$15,-3)))) -> 0 | R31: =IFERROR(IF($E31="PASANTE SENA",0,ROUNDUP((K31*'SUPUESTOS GASTOS'!$D$33),-3)),0) -> 0 | S31: =ROUNDUP((K31/'SUPUESTOS GASTOS'!$D$13)*H31,-3) -> 0 | T31: =IFERROR(IF($E31="PASANTE SENA",ROUNDUP((S31*'SUPUESTOS GASTOS'!$D$20),-3),ROUNDUP((S31*'SUPUESTOS GASTOS'!$D$19),-3)),0) -> 0 | U31: =IFERROR(IF($E31="PASANTE SENA",0,ROUNDUP((S31*'SUPUESTOS GASTOS'!$D$18),-3)),0) -> 0 | V31: =IFERROR(ROUNDUP(S31*SUMIF('SUPUESTOS GASTOS'!$B$24:$B$28,'Anexo 5 Planta y Equipo de trab'!$B31,'SUPUESTOS GASTOS'!$D$24:$D$28),-3),0) -> 0 | W31: =IFERROR(IF($E31="PASANTE SENA",0,ROUNDUP(((S31+AD31)*'SUPUESTOS GASTOS'!$D$31),-3)),0) -> 0 | X31: =IFERROR(IF($E31="PASANTE SENA",0,ROUNDUP(((S31+AD31)*'SUPUESTOS GASTOS'!$D$32),-3)),0) -> 0 | Y31: =IF($C31="E",0,IF($E31="PASANTE SENA",0,IF(K31>=('SUPUESTOS GASTOS'!$D$14*2),0,ROUNDUP(('SUPUESTOS GASTOS'!$D$15/'SUPUESTOS GASTOS'!$D$13)*$H31,-3)))) -> 0 | Z31: =IFERROR(IF($E31="PASANTE SENA",0,ROUNDUP(((S31+AD31)*'SUPUESTOS GASTOS'!$D$33),-3)),0) -> 0 | AA31: =IF($E31="PASANTE SENA",0,ROUNDUP(((K31+Q31)*H31)/'SUPUESTOS GASTOS'!$D$12,-3)) -> 0 | AB31: =IF($E31="PASANTE SENA",0,ROUNDUP((((AA31)/'SUPUESTOS GASTOS'!$D$12)*H31)*'SUPUESTOS GASTOS'!$D$21,-3)) -> 0 | AC31: =IF($E31="PASANTE SENA",0,ROUNDUP(((K31+Q31)*H31)/'SUPUESTOS GASTOS'!$D$12,-3)) -> 0 | AD31: =IF($E31="PASANTE SENA",0,ROUNDUP((K31*H31)/('SUPUESTOS GASTOS'!$D$12*2),-3)) -> 0 | AF31: 0
A32: 6 | B32: 3 | C32: E | E32: ASESOR DE RECAUDO ZONA 6 | F32: 2025-01-02 | G32: 2025-12-31 | H32: 359 | I32: =IF(C32="C",'SUPUESTOS GASTOS'!$D$6*SUMIF('SUPUESTOS GASTOS'!$B$38:$B$47,'Anexo 5 Planta y Equipo de trab'!$A32,'SUPUESTOS GASTOS'!$D$38:$D$47),IF($C32="N",0,IF(C32="E",'SUPUESTOS GASTOS'!$D$6*SUMIF('SUPUESTOS GASTOS'!$B$38:$B$47,'Anexo 5 Planta y Equipo de trab'!$A32,'SUPUESTOS GASTOS'!$D$38:$D$47),""))) -> 3120000 | J32: =+'SUPUESTOS GASTOS'!$D$10 -> 0.06 | K32: =IF($C32="C",ROUNDUP((I32*J32)+I32,-3),IF($C32="N",ROUNDUP(('SUPUESTOS GASTOS'!$D$6*SUMIF('SUPUESTOS GASTOS'!$B$38:$B$47,'Anexo 5 Planta y Equipo de trab'!$A32,'SUPUESTOS GASTOS'!$D$38:$D$47)*$J32)+'SUPUESTOS GASTOS'!$D$6*SUMIF('SUPUESTOS GASTOS'!$B$38:$B$47,'Anexo 5 Planta y Equipo de trab'!$A32,'SUPUESTOS GASTOS'!$D$38:$D$47),-3),IF($C32="E",0))) -> 0 | L32: =IFERROR(IF($E32="PASANTE SENA",ROUNDUP((K32*'SUPUESTOS GASTOS'!$D$20),-3),ROUNDUP((K32*'SUPUESTOS GASTOS'!$D$19),-3)),0) -> 0 | M32: =IFERROR(IF($E32="PASANTE SENA",0,ROUNDUP((K32*'SUPUESTOS GASTOS'!$D$18),-3)),0) -> 0 | N32: =IFERROR(ROUNDUP(K32*SUMIF('SUPUESTOS GASTOS'!$B$24:$B$28,'Anexo 5 Planta y Equipo de trab'!$B32,'SUPUESTOS GASTOS'!$D$24:$D$28),-3),0) -> 0 | O32: =IFERROR(IF($E32="PASANTE SENA",0,ROUNDUP((K32*'SUPUESTOS GASTOS'!$D$31),-3)),0) -> 0 | P32: =IFERROR(IF($E32="PASANTE SENA",0,ROUNDUP((K32*'SUPUESTOS GASTOS'!$D$32),-3)),0) -> 0 | Q32: =IF($C32="E",0,IF($E32="PASANTE SENA",0,IF(K32>=('SUPUESTOS GASTOS'!$D$14*2),0,ROUNDUP('SUPUESTOS GASTOS'!$D$15,-3)))) -> 0 | R32: =IFERROR(IF($E32="PASANTE SENA",0,ROUNDUP((K32*'SUPUESTOS GASTOS'!$D$33),-3)),0) -> 0 | S32: =ROUNDUP((K32/'SUPUESTOS GASTOS'!$D$13)*H32,-3) -> 0 | T32: =IFERROR(IF($E32="PASANTE SENA",ROUNDUP((S32*'SUPUESTOS GASTOS'!$D$20),-3),ROUNDUP((S32*'SUPUESTOS GASTOS'!$D$19),-3)),0) -> 0 | U32: =IFERROR(IF($E32="PASANTE SENA",0,ROUNDUP((S32*'SUPUESTOS GASTOS'!$D$18),-3)),0) -> 0 | V32: =IFERROR(ROUNDUP(S32*SUMIF('SUPUESTOS GASTOS'!$B$24:$B$28,'Anexo 5 Planta y Equipo de trab'!$B32,'SUPUESTOS GASTOS'!$D$24:$D$28),-3),0) -> 0 | W32: =IFERROR(IF($E32="PASANTE SENA",0,ROUNDUP(((S32+AD32)*'SUPUESTOS GASTOS'!$D$31),-3)),0) -> 0 | X32: =IFERROR(IF($E32="PASANTE SENA",0,ROUNDUP(((S32+AD32)*'SUPUESTOS GASTOS'!$D$32),-3)),0) -> 0 | Y32: =IF($C32="E",0,IF($E32="PASANTE SENA",0,IF(K32>=('SUPUESTOS GASTOS'!$D$14*2),0,ROUNDUP(('SUPUESTOS GASTOS'!$D$15/'SUPUESTOS GASTOS'!$D$13)*$H32,-3)))) -> 0 | Z32: =IFERROR(IF($E32="PASANTE SENA",0,ROUNDUP(((S32+AD32)*'SUPUESTOS GASTOS'!$D$33),-3)),0) -> 0 | AA32: =IF($E32="PASANTE SENA",0,ROUNDUP(((K32+Q32)*H32)/'SUPUESTOS GASTOS'!$D$12,-3)) -> 0 | AB32: =IF($E32="PASANTE SENA",0,ROUNDUP((((AA32)/'SUPUESTOS GASTOS'!$D$12)*H32)*'SUPUESTOS GASTOS'!$D$21,-3)) -> 0 | AC32: =IF($E32="PASANTE SENA",0,ROUNDUP(((K32+Q32)*H32)/'SUPUESTOS GASTOS'!$D$12,-3)) -> 0 | AD32: =IF($E32="PASANTE SENA",0,ROUNDUP((K32*H32)/('SUPUESTOS GASTOS'!$D$12*2),-3)) -> 0 | AF32: 0
A33: 6 | B33: 3 | C33: E | E33: ASESOR DE RECAUDO ZONA 7 | F33: 2025-01-02 | G33: 2025-12-31 | H33: 359 | I33: =IF(C33="C",'SUPUESTOS GASTOS'!$D$6*SUMIF('SUPUESTOS GASTOS'!$B$38:$B$47,'Anexo 5 Planta y Equipo de trab'!$A33,'SUPUESTOS GASTOS'!$D$38:$D$47),IF($C33="N",0,IF(C33="E",'SUPUESTOS GASTOS'!$D$6*SUMIF('SUPUESTOS GASTOS'!$B$38:$B$47,'Anexo 5 Planta y Equipo de trab'!$A33,'SUPUESTOS GASTOS'!$D$38:$D$47),""))) -> 3120000 | J33: =+'SUPUESTOS GASTOS'!$D$10 -> 0.06 | K33: =IF($C33="C",ROUNDUP((I33*J33)+I33,-3),IF($C33="N",ROUNDUP(('SUPUESTOS GASTOS'!$D$6*SUMIF('SUPUESTOS GASTOS'!$B$38:$B$47,'Anexo 5 Planta y Equipo de trab'!$A33,'SUPUESTOS GASTOS'!$D$38:$D$47)*$J33)+'SUPUESTOS GASTOS'!$D$6*SUMIF('SUPUESTOS GASTOS'!$B$38:$B$47,'Anexo 5 Planta y Equipo de trab'!$A33,'SUPUESTOS GASTOS'!$D$38:$D$47),-3),IF($C33="E",0))) -> 0 | L33: =IFERROR(IF($E33="PASANTE SENA",ROUNDUP((K33*'SUPUESTOS GASTOS'!$D$20),-3),ROUNDUP((K33*'SUPUESTOS GASTOS'!$D$19),-3)),0) -> 0 | M33: =IFERROR(IF($E33="PASANTE SENA",0,ROUNDUP((K33*'SUPUESTOS GASTOS'!$D$18),-3)),0) -> 0 | N33: =IFERROR(ROUNDUP(K33*SUMIF('SUPUESTOS GASTOS'!$B$24:$B$28,'Anexo 5 Planta y Equipo de trab'!$B33,'SUPUESTOS GASTOS'!$D$24:$D$28),-3),0) -> 0 | O33: =IFERROR(IF($E33="PASANTE SENA",0,ROUNDUP((K33*'SUPUESTOS GASTOS'!$D$31),-3)),0) -> 0 | P33: =IFERROR(IF($E33="PASANTE SENA",0,ROUNDUP((K33*'SUPUESTOS GASTOS'!$D$32),-3)),0) -> 0 | Q33: =IF($C33="E",0,IF($E33="PASANTE SENA",0,IF(K33>=('SUPUESTOS GASTOS'!$D$14*2),0,ROUNDUP('SUPUESTOS GASTOS'!$D$15,-3)))) -> 0 | R33: =IFERROR(IF($E33="PASANTE SENA",0,ROUNDUP((K33*'SUPUESTOS GASTOS'!$D$33),-3)),0) -> 0 | S33: =ROUNDUP((K33/'SUPUESTOS GASTOS'!$D$13)*H33,-3) -> 0 | T33: =IFERROR(IF($E33="PASANTE SENA",ROUNDUP((S33*'SUPUESTOS GASTOS'!$D$20),-3),ROUNDUP((S33*'SUPUESTOS GASTOS'!$D$19),-3)),0) -> 0 | U33: =IFERROR(IF($E33="PASANTE SENA",0,ROUNDUP((S33*'SUPUESTOS GASTOS'!$D$18),-3)),0) -> 0 | V33: =IFERROR(ROUNDUP(S33*SUMIF('SUPUESTOS GASTOS'!$B$24:$B$28,'Anexo 5 Planta y Equipo de trab'!$B33,'SUPUESTOS GASTOS'!$D$24:$D$28),-3),0) -> 0 | W33: =IFERROR(IF($E33="PASANTE SENA",0,ROUNDUP(((S33+AD33)*'SUPUESTOS GASTOS'!$D$31),-3)),0) -> 0 | X33: =IFERROR(IF($E33="PASANTE SENA",0,ROUNDUP(((S33+AD33)*'SUPUESTOS GASTOS'!$D$32),-3)),0) -> 0 | Y33: =IF($C33="E",0,IF($E33="PASANTE SENA",0,IF(K33>=('SUPUESTOS GASTOS'!$D$14*2),0,ROUNDUP(('SUPUESTOS GASTOS'!$D$15/'SUPUESTOS GASTOS'!$D$13)*$H33,-3)))) -> 0 | Z33: =IFERROR(IF($E33="PASANTE SENA",0,ROUNDUP(((S33+AD33)*'SUPUESTOS GASTOS'!$D$33),-3)),0) -> 0 | AA33: =IF($E33="PASANTE SENA",0,ROUNDUP(((K33+Q33)*H33)/'SUPUESTOS GASTOS'!$D$12,-3)) -> 0 | AB33: =IF($E33="PASANTE SENA",0,ROUNDUP((((AA33)/'SUPUESTOS GASTOS'!$D$12)*H33)*'SUPUESTOS GASTOS'!$D$21,-3)) -> 0 | AC33: =IF($E33="PASANTE SENA",0,ROUNDUP(((K33+Q33)*H33)/'SUPUESTOS GASTOS'!$D$12,-3)) -> 0 | AD33: =IF($E33="PASANTE SENA",0,ROUNDUP((K33*H33)/('SUPUESTOS GASTOS'!$D$12*2),-3)) -> 0 | AF33: 0
A34: 6 | B34: 3 | C34: E | E34: ASESOR DE RECAUDO ZONA 8 | F34: 2025-01-02 | G34: 2025-12-31 | H34: 359 | I34: =IF(C34="C",'SUPUESTOS GASTOS'!$D$6*SUMIF('SUPUESTOS GASTOS'!$B$38:$B$47,'Anexo 5 Planta y Equipo de trab'!$A34,'SUPUESTOS GASTOS'!$D$38:$D$47),IF($C34="N",0,IF(C34="E",'SUPUESTOS GASTOS'!$D$6*SUMIF('SUPUESTOS GASTOS'!$B$38:$B$47,'Anexo 5 Planta y Equipo de trab'!$A34,'SUPUESTOS GASTOS'!$D$38:$D$47),""))) -> 3120000 | J34: =+'SUPUESTOS GASTOS'!$D$10 -> 0.06 | K34: =IF($C34="C",ROUNDUP((I34*J34)+I34,-3),IF($C34="N",ROUNDUP(('SUPUESTOS GASTOS'!$D$6*SUMIF('SUPUESTOS GASTOS'!$B$38:$B$47,'Anexo 5 Planta y Equipo de trab'!$A34,'SUPUESTOS GASTOS'!$D$38:$D$47)*$J34)+'SUPUESTOS GASTOS'!$D$6*SUMIF('SUPUESTOS GASTOS'!$B$38:$B$47,'Anexo 5 Planta y Equipo de trab'!$A34,'SUPUESTOS GASTOS'!$D$38:$D$47),-3),IF($C34="E",0))) -> 0 | L34: =IFERROR(IF($E34="PASANTE SENA",ROUNDUP((K34*'SUPUESTOS GASTOS'!$D$20),-3),ROUNDUP((K34*'SUPUESTOS GASTOS'!$D$19),-3)),0) -> 0 | M34: =IFERROR(IF($E34="PASANTE SENA",0,ROUNDUP((K34*'SUPUESTOS GASTOS'!$D$18),-3)),0) -> 0 | N34: =IFERROR(ROUNDUP(K34*SUMIF('SUPUESTOS GASTOS'!$B$24:$B$28,'Anexo 5 Planta y Equipo de trab'!$B34,'SUPUESTOS GASTOS'!$D$24:$D$28),-3),0) -> 0 | O34: =IFERROR(IF($E34="PASANTE SENA",0,ROUNDUP((K34*'SUPUESTOS GASTOS'!$D$31),-3)),0) -> 0 | P34: =IFERROR(IF($E34="PASANTE SENA",0,ROUNDUP((K34*'SUPUESTOS GASTOS'!$D$32),-3)),0) -> 0 | Q34: =IF($C34="E",0,IF($E34="PASANTE SENA",0,IF(K34>=('SUPUESTOS GASTOS'!$D$14*2),0,ROUNDUP('SUPUESTOS GASTOS'!$D$15,-3)))) -> 0 | R34: =IFERROR(IF($E34="PASANTE SENA",0,ROUNDUP((K34*'SUPUESTOS GASTOS'!$D$33),-3)),0) -> 0 | S34: =ROUNDUP((K34/'SUPUESTOS GASTOS'!$D$13)*H34,-3) -> 0 | T34: =IFERROR(IF($E34="PASANTE SENA",ROUNDUP((S34*'SUPUESTOS GASTOS'!$D$20),-3),ROUNDUP((S34*'SUPUESTOS GASTOS'!$D$19),-3)),0) -> 0 | U34: =IFERROR(IF($E34="PASANTE SENA",0,ROUNDUP((S34*'SUPUESTOS GASTOS'!$D$18),-3)),0) -> 0 | V34: =IFERROR(ROUNDUP(S34*SUMIF('SUPUESTOS GASTOS'!$B$24:$B$28,'Anexo 5 Planta y Equipo de trab'!$B34,'SUPUESTOS GASTOS'!$D$24:$D$28),-3),0) -> 0 | W34: =IFERROR(IF($E34="PASANTE SENA",0,ROUNDUP(((S34+AD34)*'SUPUESTOS GASTOS'!$D$31),-3)),0) -> 0 | X34: =IFERROR(IF($E34="PASANTE SENA",0,ROUNDUP(((S34+AD34)*'SUPUESTOS GASTOS'!$D$32),-3)),0) -> 0 | Y34: =IF($C34="E",0,IF($E34="PASANTE SENA",0,IF(K34>=('SUPUESTOS GASTOS'!$D$14*2),0,ROUNDUP(('SUPUESTOS GASTOS'!$D$15/'SUPUESTOS GASTOS'!$D$13)*$H34,-3)))) -> 0 | Z34: =IFERROR(IF($E34="PASANTE SENA",0,ROUNDUP(((S34+AD34)*'SUPUESTOS GASTOS'!$D$33),-3)),0) -> 0 | AA34: =IF($E34="PASANTE SENA",0,ROUNDUP(((K34+Q34)*H34)/'SUPUESTOS GASTOS'!$D$12,-3)) -> 0 | AB34: =IF($E34="PASANTE SENA",0,ROUNDUP((((AA34)/'SUPUESTOS GASTOS'!$D$12)*H34)*'SUPUESTOS GASTOS'!$D$21,-3)) -> 0 | AC34: =IF($E34="PASANTE SENA",0,ROUNDUP(((K34+Q34)*H34)/'SUPUESTOS GASTOS'!$D$12,-3)) -> 0 | AD34: =IF($E34="PASANTE SENA",0,ROUNDUP((K34*H34)/('SUPUESTOS GASTOS'!$D$12*2),-3)) -> 0 | AF34: 0
A35: 6 | B35: 3 | C35: E | E35: ASESOR DE RECAUDO ZONA 9 | F35: 2025-01-02 | G35: 2025-12-31 | H35: 359 | I35: =IF(C35="C",'SUPUESTOS GASTOS'!$D$6*SUMIF('SUPUESTOS GASTOS'!$B$38:$B$47,'Anexo 5 Planta y Equipo de trab'!$A35,'SUPUESTOS GASTOS'!$D$38:$D$47),IF($C35="N",0,IF(C35="E",'SUPUESTOS GASTOS'!$D$6*SUMIF('SUPUESTOS GASTOS'!$B$38:$B$47,'Anexo 5 Planta y Equipo de trab'!$A35,'SUPUESTOS GASTOS'!$D$38:$D$47),""))) -> 3120000 | J35: =+'SUPUESTOS GASTOS'!$D$10 -> 0.06 | K35: =IF($C35="C",ROUNDUP((I35*J35)+I35,-3),IF($C35="N",ROUNDUP(('SUPUESTOS GASTOS'!$D$6*SUMIF('SUPUESTOS GASTOS'!$B$38:$B$47,'Anexo 5 Planta y Equipo de trab'!$A35,'SUPUESTOS GASTOS'!$D$38:$D$47)*$J35)+'SUPUESTOS GASTOS'!$D$6*SUMIF('SUPUESTOS GASTOS'!$B$38:$B$47,'Anexo 5 Planta y Equipo de trab'!$A35,'SUPUESTOS GASTOS'!$D$38:$D$47),-3),IF($C35="E",0))) -> 0 | L35: =IFERROR(IF($E35="PASANTE SENA",ROUNDUP((K35*'SUPUESTOS GASTOS'!$D$20),-3),ROUNDUP((K35*'SUPUESTOS GASTOS'!$D$19),-3)),0) -> 0 | M35: =IFERROR(IF($E35="PASANTE SENA",0,ROUNDUP((K35*'SUPUESTOS GASTOS'!$D$18),-3)),0) -> 0 | N35: =IFERROR(ROUNDUP(K35*SUMIF('SUPUESTOS GASTOS'!$B$24:$B$28,'Anexo 5 Planta y Equipo de trab'!$B35,'SUPUESTOS GASTOS'!$D$24:$D$28),-3),0) -> 0 | O35: =IFERROR(IF($E35="PASANTE SENA",0,ROUNDUP((K35*'SUPUESTOS GASTOS'!$D$31),-3)),0) -> 0 | P35: =IFERROR(IF($E35="PASANTE SENA",0,ROUNDUP((K35*'SUPUESTOS GASTOS'!$D$32),-3)),0) -> 0 | Q35: =IF($C35="E",0,IF($E35="PASANTE SENA",0,IF(K35>=('SUPUESTOS GASTOS'!$D$14*2),0,ROUNDUP('SUPUESTOS GASTOS'!$D$15,-3)))) -> 0 | R35: =IFERROR(IF($E35="PASANTE SENA",0,ROUNDUP((K35*'SUPUESTOS GASTOS'!$D$33),-3)),0) -> 0 | S35: =ROUNDUP((K35/'SUPUESTOS GASTOS'!$D$13)*H35,-3) -> 0 | T35: =IFERROR(IF($E35="PASANTE SENA",ROUNDUP((S35*'SUPUESTOS GASTOS'!$D$20),-3),ROUNDUP((S35*'SUPUESTOS GASTOS'!$D$19),-3)),0) -> 0 | U35: =IFERROR(IF($E35="PASANTE SENA",0,ROUNDUP((S35*'SUPUESTOS GASTOS'!$D$18),-3)),0) -> 0 | V35: =IFERROR(ROUNDUP(S35*SUMIF('SUPUESTOS GASTOS'!$B$24:$B$28,'Anexo 5 Planta y Equipo de trab'!$B35,'SUPUESTOS GASTOS'!$D$24:$D$28),-3),0) -> 0 | W35: =IFERROR(IF($E35="PASANTE SENA",0,ROUNDUP(((S35+AD35)*'SUPUESTOS GASTOS'!$D$31),-3)),0) -> 0 | X35: =IFERROR(IF($E35="PASANTE SENA",0,ROUNDUP(((S35+AD35)*'SUPUESTOS GASTOS'!$D$32),-3)),0) -> 0 | Y35: =IF($C35="E",0,IF($E35="PASANTE SENA",0,IF(K35>=('SUPUESTOS GASTOS'!$D$14*2),0,ROUNDUP(('SUPUESTOS GASTOS'!$D$15/'SUPUESTOS GASTOS'!$D$13)*$H35,-3)))) -> 0 | Z35: =IFERROR(IF($E35="PASANTE SENA",0,ROUNDUP(((S35+AD35)*'SUPUESTOS GASTOS'!$D$33),-3)),0) -> 0 | AA35: =IF($E35="PASANTE SENA",0,ROUNDUP(((K35+Q35)*H35)/'SUPUESTOS GASTOS'!$D$12,-3)) -> 0 | AB35: =IF($E35="PASANTE SENA",0,ROUNDUP((((AA35)/'SUPUESTOS GASTOS'!$D$12)*H35)*'SUPUESTOS GASTOS'!$D$21,-3)) -> 0 | AC35: =IF($E35="PASANTE SENA",0,ROUNDUP(((K35+Q35)*H35)/'SUPUESTOS GASTOS'!$D$12,-3)) -> 0 | AD35: =IF($E35="PASANTE SENA",0,ROUNDUP((K35*H35)/('SUPUESTOS GASTOS'!$D$12*2),-3)) -> 0 | AF35: 0
A36: 6 | B36: 3 | C36: E | E36: ASESOR DE RECAUDO ZONA 10 | F36: 2025-01-02 | G36: 2025-12-31 | H36: 359 | I36: =IF(C36="C",'SUPUESTOS GASTOS'!$D$6*SUMIF('SUPUESTOS GASTOS'!$B$38:$B$47,'Anexo 5 Planta y Equipo de trab'!$A36,'SUPUESTOS GASTOS'!$D$38:$D$47),IF($C36="N",0,IF(C36="E",'SUPUESTOS GASTOS'!$D$6*SUMIF('SUPUESTOS GASTOS'!$B$38:$B$47,'Anexo 5 Planta y Equipo de trab'!$A36,'SUPUESTOS GASTOS'!$D$38:$D$47),""))) -> 3120000 | J36: =+'SUPUESTOS GASTOS'!$D$10 -> 0.06 | K36: =IF($C36="C",ROUNDUP((I36*J36)+I36,-3),IF($C36="N",ROUNDUP(('SUPUESTOS GASTOS'!$D$6*SUMIF('SUPUESTOS GASTOS'!$B$38:$B$47,'Anexo 5 Planta y Equipo de trab'!$A36,'SUPUESTOS GASTOS'!$D$38:$D$47)*$J36)+'SUPUESTOS GASTOS'!$D$6*SUMIF('SUPUESTOS GASTOS'!$B$38:$B$47,'Anexo 5 Planta y Equipo de trab'!$A36,'SUPUESTOS GASTOS'!$D$38:$D$47),-3),IF($C36="E",0))) -> 0 | L36: =IFERROR(IF($E36="PASANTE SENA",ROUNDUP((K36*'SUPUESTOS GASTOS'!$D$20),-3),ROUNDUP((K36*'SUPUESTOS GASTOS'!$D$19),-3)),0) -> 0 | M36: =IFERROR(IF($E36="PASANTE SENA",0,ROUNDUP((K36*'SUPUESTOS GASTOS'!$D$18),-3)),0) -> 0 | N36: =IFERROR(ROUNDUP(K36*SUMIF('SUPUESTOS GASTOS'!$B$24:$B$28,'Anexo 5 Planta y Equipo de trab'!$B36,'SUPUESTOS GASTOS'!$D$24:$D$28),-3),0) -> 0 | O36: =IFERROR(IF($E36="PASANTE SENA",0,ROUNDUP((K36*'SUPUESTOS GASTOS'!$D$31),-3)),0) -> 0 | P36: =IFERROR(IF($E36="PASANTE SENA",0,ROUNDUP((K36*'SUPUESTOS GASTOS'!$D$32),-3)),0) -> 0 | Q36: =IF($C36="E",0,IF($E36="PASANTE SENA",0,IF(K36>=('SUPUESTOS GASTOS'!$D$14*2),0,ROUNDUP('SUPUESTOS GASTOS'!$D$15,-3)))) -> 0 | R36: =IFERROR(IF($E36="PASANTE SENA",0,ROUNDUP((K36*'SUPUESTOS GASTOS'!$D$33),-3)),0) -> 0 | S36: =ROUNDUP((K36/'SUPUESTOS GASTOS'!$D$13)*H36,-3) -> 0 | T36: =IFERROR(IF($E36="PASANTE SENA",ROUNDUP((S36*'SUPUESTOS GASTOS'!$D$20),-3),ROUNDUP((S36*'SUPUESTOS GASTOS'!$D$19),-3)),0) -> 0 | U36: =IFERROR(IF($E36="PASANTE SENA",0,ROUNDUP((S36*'SUPUESTOS GASTOS'!$D$18),-3)),0) -> 0 | V36: =IFERROR(ROUNDUP(S36*SUMIF('SUPUESTOS GASTOS'!$B$24:$B$28,'Anexo 5 Planta y Equipo de trab'!$B36,'SUPUESTOS GASTOS'!$D$24:$D$28),-3),0) -> 0 | W36: =IFERROR(IF($E36="PASANTE SENA",0,ROUNDUP(((S36+AD36)*'SUPUESTOS GASTOS'!$D$31),-3)),0) -> 0 | X36: =IFERROR(IF($E36="PASANTE SENA",0,ROUNDUP(((S36+AD36)*'SUPUESTOS GASTOS'!$D$32),-3)),0) -> 0 | Y36: =IF($C36="E",0,IF($E36="PASANTE SENA",0,IF(K36>=('SUPUESTOS GASTOS'!$D$14*2),0,ROUNDUP(('SUPUESTOS GASTOS'!$D$15/'SUPUESTOS GASTOS'!$D$13)*$H36,-3)))) -> 0 | Z36: =IFERROR(IF($E36="PASANTE SENA",0,ROUNDUP(((S36+AD36)*'SUPUESTOS GASTOS'!$D$33),-3)),0) -> 0 | AA36: =IF($E36="PASANTE SENA",0,ROUNDUP(((K36+Q36)*H36)/'SUPUESTOS GASTOS'!$D$12,-3)) -> 0 | AB36: =IF($E36="PASANTE SENA",0,ROUNDUP((((AA36)/'SUPUESTOS GASTOS'!$D$12)*H36)*'SUPUESTOS GASTOS'!$D$21,-3)) -> 0 | AC36: =IF($E36="PASANTE SENA",0,ROUNDUP(((K36+Q36)*H36)/'SUPUESTOS GASTOS'!$D$12,-3)) -> 0 | AD36: =IF($E36="PASANTE SENA",0,ROUNDUP((K36*H36)/('SUPUESTOS GASTOS'!$D$12*2),-3)) -> 0 | AF36: 0
A37: 5 | B37: 5 | C37: C | E37: PROFESIONAL DE CONTROL Y SEGUIMIENTO A RECAUDO | F37: 2025-01-01 | G37: 2025-12-31 | H37: 360 | I37: =IF(C37="C",'SUPUESTOS GASTOS'!$D$6*SUMIF('SUPUESTOS GASTOS'!$B$38:$B$47,'Anexo 5 Planta y Equipo de trab'!$A37,'SUPUESTOS GASTOS'!$D$38:$D$47),IF($C37="N",0,IF(C37="E",'SUPUESTOS GASTOS'!$D$6*SUMIF('SUPUESTOS GASTOS'!$B$38:$B$47,'Anexo 5 Planta y Equipo de trab'!$A37,'SUPUESTOS GASTOS'!$D$38:$D$47),""))) -> 3380000 | J37: =+'SUPUESTOS GASTOS'!$D$10 -> 0.06 | K37: =IF($C37="C",ROUNDUP((I37*J37)+I37,-3),IF($C37="N",ROUNDUP(('SUPUESTOS GASTOS'!$D$6*SUMIF('SUPUESTOS GASTOS'!$B$38:$B$47,'Anexo 5 Planta y Equipo de trab'!$A37,'SUPUESTOS GASTOS'!$D$38:$D$47)*$J37)+'SUPUESTOS GASTOS'!$D$6*SUMIF('SUPUESTOS GASTOS'!$B$38:$B$47,'Anexo 5 Planta y Equipo de trab'!$A37,'SUPUESTOS GASTOS'!$D$38:$D$47),-3),IF($C37="E",0))) -> 3583000 | L37: =IFERROR(IF($E37="PASANTE SENA",ROUNDUP((K37*'SUPUESTOS GASTOS'!$D$20),-3),ROUNDUP((K37*'SUPUESTOS GASTOS'!$D$19),-3)),0) -> 305000 | M37: =IFERROR(IF($E37="PASANTE SENA",0,ROUNDUP((K37*'SUPUESTOS GASTOS'!$D$18),-3)),0) -> 430000 | N37: =IFERROR(ROUNDUP(K37*SUMIF('SUPUESTOS GASTOS'!$B$24:$B$28,'Anexo 5 Planta y Equipo de trab'!$B37,'SUPUESTOS GASTOS'!$D$24:$D$28),-3),0) -> 38000 | O37: =IFERROR(IF($E37="PASANTE SENA",0,ROUNDUP((K37*'SUPUESTOS GASTOS'!$D$31),-3)),0) -> 144000 | P37: =IFERROR(IF($E37="PASANTE SENA",0,ROUNDUP((K37*'SUPUESTOS GASTOS'!$D$32),-3)),0) -> 72000 | Q37: =IF($C37="E",0,IF($E37="PASANTE SENA",0,IF(K37>=('SUPUESTOS GASTOS'!$D$14*2),0,ROUNDUP('SUPUESTOS GASTOS'!$D$15,-3)))) -> 0 | R37: =IFERROR(IF($E37="PASANTE SENA",0,ROUNDUP((K37*'SUPUESTOS GASTOS'!$D$33),-3)),0) -> 108000 | S37: =ROUNDUP((K37/'SUPUESTOS GASTOS'!$D$13)*H37,-3) -> 42996000 | T37: =IFERROR(IF($E37="PASANTE SENA",ROUNDUP((S37*'SUPUESTOS GASTOS'!$D$20),-3),ROUNDUP((S37*'SUPUESTOS GASTOS'!$D$19),-3)),0) -> 3655000 | U37: =IFERROR(IF($E37="PASANTE SENA",0,ROUNDUP((S37*'SUPUESTOS GASTOS'!$D$18),-3)),0) -> 5160000 | V37: =IFERROR(ROUNDUP(S37*SUMIF('SUPUESTOS GASTOS'!$B$24:$B$28,'Anexo 5 Planta y Equipo de trab'!$B37,'SUPUESTOS GASTOS'!$D$24:$D$28),-3),0) -> 449000 | W37: =IFERROR(IF($E37="PASANTE SENA",0,ROUNDUP(((S37+AD37)*'SUPUESTOS GASTOS'!$D$31),-3)),0) -> 1792000 | X37: =IFERROR(IF($E37="PASANTE SENA",0,ROUNDUP(((S37+AD37)*'SUPUESTOS GASTOS'!$D$32),-3)),0) -> 896000 | Y37: =IF($C37="E",0,IF($E37="PASANTE SENA",0,IF(K37>=('SUPUESTOS GASTOS'!$D$14*2),0,ROUNDUP(('SUPUESTOS GASTOS'!$D$15/'SUPUESTOS GASTOS'!$D$13)*$H37,-3)))) -> 0 | Z37: =IFERROR(IF($E37="PASANTE SENA",0,ROUNDUP(((S37+AD37)*'SUPUESTOS GASTOS'!$D$33),-3)),0) -> 1344000 | AA37: =IF($E37="PASANTE SENA",0,ROUNDUP(((K37+Q37)*H37)/'SUPUESTOS GASTOS'!$D$12,-3)) -> 3583000 | AB37: =IF($E37="PASANTE SENA",0,ROUNDUP((((AA37)/'SUPUESTOS GASTOS'!$D$12)*H37)*'SUPUESTOS GASTOS'!$D$21,-3)) -> 430000 | AC37: =IF($E37="PASANTE SENA",0,ROUNDUP(((K37+Q37)*H37)/'SUPUESTOS GASTOS'!$D$12,-3)) -> 3583000 | AD37: =IF($E37="PASANTE SENA",0,ROUNDUP((K37*H37)/('SUPUESTOS GASTOS'!$D$12*2),-3)) -> 1792000 | AF37: 65680000
A38: 5 | B38: 5 | C38: C | E38: PROFESIONAL DE CONTROL Y SEGUIMIENTO A RECAUDO | F38: 2025-01-02 | G38: 2025-12-31 | H38: 359 | I38: =IF(C38="C",'SUPUESTOS GASTOS'!$D$6*SUMIF('SUPUESTOS GASTOS'!$B$38:$B$47,'Anexo 5 Planta y Equipo de trab'!$A38,'SUPUESTOS GASTOS'!$D$38:$D$47),IF($C38="N",0,IF(C38="E",'SUPUESTOS GASTOS'!$D$6*SUMIF('SUPUESTOS GASTOS'!$B$38:$B$47,'Anexo 5 Planta y Equipo de trab'!$A38,'SUPUESTOS GASTOS'!$D$38:$D$47),""))) -> 3380000 | J38: =+'SUPUESTOS GASTOS'!$D$10 -> 0.06 | K38: =IF($C38="C",ROUNDUP((I38*J38)+I38,-3),IF($C38="N",ROUNDUP(('SUPUESTOS GASTOS'!$D$6*SUMIF('SUPUESTOS GASTOS'!$B$38:$B$47,'Anexo 5 Planta y Equipo de trab'!$A38,'SUPUESTOS GASTOS'!$D$38:$D$47)*$J38)+'SUPUESTOS GASTOS'!$D$6*SUMIF('SUPUESTOS GASTOS'!$B$38:$B$47,'Anexo 5 Planta y Equipo de trab'!$A38,'SUPUESTOS GASTOS'!$D$38:$D$47),-3),IF($C38="E",0))) -> 3583000 | L38: =IFERROR(IF($E38="PASANTE SENA",ROUNDUP((K38*'SUPUESTOS GASTOS'!$D$20),-3),ROUNDUP((K38*'SUPUESTOS GASTOS'!$D$19),-3)),0) -> 305000 | M38: =IFERROR(IF($E38="PASANTE SENA",0,ROUNDUP((K38*'SUPUESTOS GASTOS'!$D$18),-3)),0) -> 430000 | N38: =IFERROR(ROUNDUP(K38*SUMIF('SUPUESTOS GASTOS'!$B$24:$B$28,'Anexo 5 Planta y Equipo de trab'!$B38,'SUPUESTOS GASTOS'!$D$24:$D$28),-3),0) -> 38000 | O38: =IFERROR(IF($E38="PASANTE SENA",0,ROUNDUP((K38*'SUPUESTOS GASTOS'!$D$31),-3)),0) -> 144000 | P38: =IFERROR(IF($E38="PASANTE SENA",0,ROUNDUP((K38*'SUPUESTOS GASTOS'!$D$32),-3)),0) -> 72000 | Q38: =IF($C38="E",0,IF($E38="PASANTE SENA",0,IF(K38>=('SUPUESTOS GASTOS'!$D$14*2),0,ROUNDUP('SUPUESTOS GASTOS'!$D$15,-3)))) -> 0 | R38: =IFERROR(IF($E38="PASANTE SENA",0,ROUNDUP((K38*'SUPUESTOS GASTOS'!$D$33),-3)),0) -> 108000 | S38: =ROUNDUP((K38/'SUPUESTOS GASTOS'!$D$13)*H38,-3) -> 42877000 | T38: =IFERROR(IF($E38="PASANTE SENA",ROUNDUP((S38*'SUPUESTOS GASTOS'!$D$20),-3),ROUNDUP((S38*'SUPUESTOS GASTOS'!$D$19),-3)),0) -> 3645000 | U38: =IFERROR(IF($E38="PASANTE SENA",0,ROUNDUP((S38*'SUPUESTOS GASTOS'!$D$18),-3)),0) -> 5146000 | V38: =IFERROR(ROUNDUP(S38*SUMIF('SUPUESTOS GASTOS'!$B$24:$B$28,'Anexo 5 Planta y Equipo de trab'!$B38,'SUPUESTOS GASTOS'!$D$24:$D$28),-3),0) -> 448000 | W38: =IFERROR(IF($E38="PASANTE SENA",0,ROUNDUP(((S38+AD38)*'SUPUESTOS GASTOS'!$D$31),-3)),0) -> 1787000 | X38: =IFERROR(IF($E38="PASANTE SENA",0,ROUNDUP(((S38+AD38)*'SUPUESTOS GASTOS'!$D$32),-3)),0) -> 894000 | Y38: =IF($C38="E",0,IF($E38="PASANTE SENA",0,IF(K38>=('SUPUESTOS GASTOS'!$D$14*2),0,ROUNDUP(('SUPUESTOS GASTOS'!$D$15/'SUPUESTOS GASTOS'!$D$13)*$H38,-3)))) -> 0 | Z38: =IFERROR(IF($E38="PASANTE SENA",0,ROUNDUP(((S38+AD38)*'SUPUESTOS GASTOS'!$D$33),-3)),0) -> 1340000 | AA38: =IF($E38="PASANTE SENA",0,ROUNDUP(((K38+Q38)*H38)/'SUPUESTOS GASTOS'!$D$12,-3)) -> 3574000 | AB38: =IF($E38="PASANTE SENA",0,ROUNDUP((((AA38)/'SUPUESTOS GASTOS'!$D$12)*H38)*'SUPUESTOS GASTOS'!$D$21,-3)) -> 428000 | AC38: =IF($E38="PASANTE SENA",0,ROUNDUP(((K38+Q38)*H38)/'SUPUESTOS GASTOS'!$D$12,-3)) -> 3574000 | AD38: =IF($E38="PASANTE SENA",0,ROUNDUP((K38*H38)/('SUPUESTOS GASTOS'!$D$12*2),-3)) -> 1787000 | AF38: 65500000
A39: 5 | B39: 5 | C39: E | E39: PROFESIONAL DE PROCESOS Y RECAUDO | F39: 2025-01-02 | G39: 2025-12-31 | H39: 359 | I39: =IF(C39="C",'SUPUESTOS GASTOS'!$D$6*SUMIF('SUPUESTOS GASTOS'!$B$38:$B$47,'Anexo 5 Planta y Equipo de trab'!$A39,'SUPUESTOS GASTOS'!$D$38:$D$47),IF($C39="N",0,IF(C39="E",'SUPUESTOS GASTOS'!$D$6*SUMIF('SUPUESTOS GASTOS'!$B$38:$B$47,'Anexo 5 Planta y Equipo de trab'!$A39,'SUPUESTOS GASTOS'!$D$38:$D$47),""))) -> 3380000 | J39: =+'SUPUESTOS GASTOS'!$D$10 -> 0.06 | K39: =IF($C39="C",ROUNDUP((I39*J39)+I39,-3),IF($C39="N",ROUNDUP(('SUPUESTOS GASTOS'!$D$6*SUMIF('SUPUESTOS GASTOS'!$B$38:$B$47,'Anexo 5 Planta y Equipo de trab'!$A39,'SUPUESTOS GASTOS'!$D$38:$D$47)*$J39)+'SUPUESTOS GASTOS'!$D$6*SUMIF('SUPUESTOS GASTOS'!$B$38:$B$47,'Anexo 5 Planta y Equipo de trab'!$A39,'SUPUESTOS GASTOS'!$D$38:$D$47),-3),IF($C39="E",0))) -> 0 | L39: =IFERROR(IF($E39="PASANTE SENA",ROUNDUP((K39*'SUPUESTOS GASTOS'!$D$20),-3),ROUNDUP((K39*'SUPUESTOS GASTOS'!$D$19),-3)),0) -> 0 | M39: =IFERROR(IF($E39="PASANTE SENA",0,ROUNDUP((K39*'SUPUESTOS GASTOS'!$D$18),-3)),0) -> 0 | N39: =IFERROR(ROUNDUP(K39*SUMIF('SUPUESTOS GASTOS'!$B$24:$B$28,'Anexo 5 Planta y Equipo de trab'!$B39,'SUPUESTOS GASTOS'!$D$24:$D$28),-3),0) -> 0 | O39: =IFERROR(IF($E39="PASANTE SENA",0,ROUNDUP((K39*'SUPUESTOS GASTOS'!$D$31),-3)),0) -> 0 | P39: =IFERROR(IF($E39="PASANTE SENA",0,ROUNDUP((K39*'SUPUESTOS GASTOS'!$D$32),-3)),0) -> 0 | Q39: =IF($C39="E",0,IF($E39="PASANTE SENA",0,IF(K39>=('SUPUESTOS GASTOS'!$D$14*2),0,ROUNDUP('SUPUESTOS GASTOS'!$D$15,-3)))) -> 0 | R39: =IFERROR(IF($E39="PASANTE SENA",0,ROUNDUP((K39*'SUPUESTOS GASTOS'!$D$33),-3)),0) -> 0 | S39: =ROUNDUP((K39/'SUPUESTOS GASTOS'!$D$13)*H39,-3) -> 0 | T39: =IFERROR(IF($E39="PASANTE SENA",ROUNDUP((S39*'SUPUESTOS GASTOS'!$D$20),-3),ROUNDUP((S39*'SUPUESTOS GASTOS'!$D$19),-3)),0) -> 0 | U39: =IFERROR(IF($E39="PASANTE SENA",0,ROUNDUP((S39*'SUPUESTOS GASTOS'!$D$18),-3)),0) -> 0 | V39: =IFERROR(ROUNDUP(S39*SUMIF('SUPUESTOS GASTOS'!$B$24:$B$28,'Anexo 5 Planta y Equipo de trab'!$B39,'SUPUESTOS GASTOS'!$D$24:$D$28),-3),0) -> 0 | W39: =IFERROR(IF($E39="PASANTE SENA",0,ROUNDUP(((S39+AD39)*'SUPUESTOS GASTOS'!$D$31),-3)),0) -> 0 | X39: =IFERROR(IF($E39="PASANTE SENA",0,ROUNDUP(((S39+AD39)*'SUPUESTOS GASTOS'!$D$32),-3)),0) -> 0 | Y39: =IF($C39="E",0,IF($E39="PASANTE SENA",0,IF(K39>=('SUPUESTOS GASTOS'!$D$14*2),0,ROUNDUP(('SUPUESTOS GASTOS'!$D$15/'SUPUESTOS GASTOS'!$D$13)*$H39,-3)))) -> 0 | Z39: =IFERROR(IF($E39="PASANTE SENA",0,ROUNDUP(((S39+AD39)*'SUPUESTOS GASTOS'!$D$33),-3)),0) -> 0 | AA39: =IF($E39="PASANTE SENA",0,ROUNDUP(((K39+Q39)*H39)/'SUPUESTOS GASTOS'!$D$12,-3)) -> 0 | AB39: =IF($E39="PASANTE SENA",0,ROUNDUP((((AA39)/'SUPUESTOS GASTOS'!$D$12)*H39)*'SUPUESTOS GASTOS'!$D$21,-3)) -> 0 | AC39: =IF($E39="PASANTE SENA",0,ROUNDUP(((K39+Q39)*H39)/'SUPUESTOS GASTOS'!$D$12,-3)) -> 0 | AD39: =IF($E39="PASANTE SENA",0,ROUNDUP((K39*H39)/('SUPUESTOS GASTOS'!$D$12*2),-3)) -> 0 | AF39: 0
A40: 5 | B40: 4 | C40: C | E40: PROFESIONAL CONTABLE Y RECAUDO 1 | F40: 2025-01-02 | G40: 2025-12-31 | H40: 359 | I40: =IF(C40="C",'SUPUESTOS GASTOS'!$D$6*SUMIF('SUPUESTOS GASTOS'!$B$38:$B$47,'Anexo 5 Planta y Equipo de trab'!$A40,'SUPUESTOS GASTOS'!$D$38:$D$47),IF($C40="N",0,IF(C40="E",'SUPUESTOS GASTOS'!$D$6*SUMIF('SUPUESTOS GASTOS'!$B$38:$B$47,'Anexo 5 Planta y Equipo de trab'!$A40,'SUPUESTOS GASTOS'!$D$38:$D$47),""))) -> 3380000 | J40: =+'SUPUESTOS GASTOS'!$D$10 -> 0.06 | K40: =IF($C40="C",ROUNDUP((I40*J40)+I40,-3),IF($C40="N",ROUNDUP(('SUPUESTOS GASTOS'!$D$6*SUMIF('SUPUESTOS GASTOS'!$B$38:$B$47,'Anexo 5 Planta y Equipo de trab'!$A40,'SUPUESTOS GASTOS'!$D$38:$D$47)*$J40)+'SUPUESTOS GASTOS'!$D$6*SUMIF('SUPUESTOS GASTOS'!$B$38:$B$47,'Anexo 5 Planta y Equipo de trab'!$A40,'SUPUESTOS GASTOS'!$D$38:$D$47),-3),IF($C40="E",0))) -> 3583000 | L40: =IFERROR(IF($E40="PASANTE SENA",ROUNDUP((K40*'SUPUESTOS GASTOS'!$D$20),-3),ROUNDUP((K40*'SUPUESTOS GASTOS'!$D$19),-3)),0) -> 305000 | M40: =IFERROR(IF($E40="PASANTE SENA",0,ROUNDUP((K40*'SUPUESTOS GASTOS'!$D$18),-3)),0) -> 430000 | N40: =IFERROR(ROUNDUP(K40*SUMIF('SUPUESTOS GASTOS'!$B$24:$B$28,'Anexo 5 Planta y Equipo de trab'!$B40,'SUPUESTOS GASTOS'!$D$24:$D$28),-3),0) -> 156000 | O40: =IFERROR(IF($E40="PASANTE SENA",0,ROUNDUP((K40*'SUPUESTOS GASTOS'!$D$31),-3)),0) -> 144000 | P40: =IFERROR(IF($E40="PASANTE SENA",0,ROUNDUP((K40*'SUPUESTOS GASTOS'!$D$32),-3)),0) -> 72000 | Q40: =IF($C40="E",0,IF($E40="PASANTE SENA",0,IF(K40>=('SUPUESTOS GASTOS'!$D$14*2),0,ROUNDUP('SUPUESTOS GASTOS'!$D$15,-3)))) -> 0 | R40: =IFERROR(IF($E40="PASANTE SENA",0,ROUNDUP((K40*'SUPUESTOS GASTOS'!$D$33),-3)),0) -> 108000 | S40: =ROUNDUP((K40/'SUPUESTOS GASTOS'!$D$13)*H40,-3) -> 42877000 | T40: =IFERROR(IF($E40="PASANTE SENA",ROUNDUP((S40*'SUPUESTOS GASTOS'!$D$20),-3),ROUNDUP((S40*'SUPUESTOS GASTOS'!$D$19),-3)),0) -> 3645000 | U40: =IFERROR(IF($E40="PASANTE SENA",0,ROUNDUP((S40*'SUPUESTOS GASTOS'!$D$18),-3)),0) -> 5146000 | V40: =IFERROR(ROUNDUP(S40*SUMIF('SUPUESTOS GASTOS'!$B$24:$B$28,'Anexo 5 Planta y Equipo de trab'!$B40,'SUPUESTOS GASTOS'!$D$24:$D$28),-3),0) -> 1866000 | W40: =IFERROR(IF($E40="PASANTE SENA",0,ROUNDUP(((S40+AD40)*'SUPUESTOS GASTOS'!$D$31),-3)),0) -> 1787000 | X40: =IFERROR(IF($E40="PASANTE SENA",0,ROUNDUP(((S40+AD40)*'SUPUESTOS GASTOS'!$D$32),-3)),0) -> 894000 | Y40: =IF($C40="E",0,IF($E40="PASANTE SENA",0,IF(K40>=('SUPUESTOS GASTOS'!$D$14*2),0,ROUNDUP(('SUPUESTOS GASTOS'!$D$15/'SUPUESTOS GASTOS'!$D$13)*$H40,-3)))) -> 0 | Z40: =IFERROR(IF($E40="PASANTE SENA",0,ROUNDUP(((S40+AD40)*'SUPUESTOS GASTOS'!$D$33),-3)),0) -> 1340000 | AA40: =IF($E40="PASANTE SENA",0,ROUNDUP(((K40+Q40)*H40)/'SUPUESTOS GASTOS'!$D$12,-3)) -> 3574000 | AB40: =IF($E40="PASANTE SENA",0,ROUNDUP((((AA40)/'SUPUESTOS GASTOS'!$D$12)*H40)*'SUPUESTOS GASTOS'!$D$21,-3)) -> 428000 | AC40: =IF($E40="PASANTE SENA",0,ROUNDUP(((K40+Q40)*H40)/'SUPUESTOS GASTOS'!$D$12,-3)) -> 3574000 | AD40: =IF($E40="PASANTE SENA",0,ROUNDUP((K40*H40)/('SUPUESTOS GASTOS'!$D$12*2),-3)) -> 1787000 | AF40: 66918000
A41: 5 | B41: 4 | C41: C | E41: PROFESIONAL CONTABLE Y RECAUDO 2 | F41: 2025-01-02 | G41: 2025-12-31 | H41: 359 | I41: =IF(C41="C",'SUPUESTOS GASTOS'!$D$6*SUMIF('SUPUESTOS GASTOS'!$B$38:$B$47,'Anexo 5 Planta y Equipo de trab'!$A41,'SUPUESTOS GASTOS'!$D$38:$D$47),IF($C41="N",0,IF(C41="E",'SUPUESTOS GASTOS'!$D$6*SUMIF('SUPUESTOS GASTOS'!$B$38:$B$47,'Anexo 5 Planta y Equipo de trab'!$A41,'SUPUESTOS GASTOS'!$D$38:$D$47),""))) -> 3380000 | J41: =+'SUPUESTOS GASTOS'!$D$10 -> 0.06 | K41: =IF($C41="C",ROUNDUP((I41*J41)+I41,-3),IF($C41="N",ROUNDUP(('SUPUESTOS GASTOS'!$D$6*SUMIF('SUPUESTOS GASTOS'!$B$38:$B$47,'Anexo 5 Planta y Equipo de trab'!$A41,'SUPUESTOS GASTOS'!$D$38:$D$47)*$J41)+'SUPUESTOS GASTOS'!$D$6*SUMIF('SUPUESTOS GASTOS'!$B$38:$B$47,'Anexo 5 Planta y Equipo de trab'!$A41,'SUPUESTOS GASTOS'!$D$38:$D$47),-3),IF($C41="E",0))) -> 3583000 | L41: =IFERROR(IF($E41="PASANTE SENA",ROUNDUP((K41*'SUPUESTOS GASTOS'!$D$20),-3),ROUNDUP((K41*'SUPUESTOS GASTOS'!$D$19),-3)),0) -> 305000 | M41: =IFERROR(IF($E41="PASANTE SENA",0,ROUNDUP((K41*'SUPUESTOS GASTOS'!$D$18),-3)),0) -> 430000 | N41: =IFERROR(ROUNDUP(K41*SUMIF('SUPUESTOS GASTOS'!$B$24:$B$28,'Anexo 5 Planta y Equipo de trab'!$B41,'SUPUESTOS GASTOS'!$D$24:$D$28),-3),0) -> 156000 | O41: =IFERROR(IF($E41="PASANTE SENA",0,ROUNDUP((K41*'SUPUESTOS GASTOS'!$D$31),-3)),0) -> 144000 | P41: =IFERROR(IF($E41="PASANTE SENA",0,ROUNDUP((K41*'SUPUESTOS GASTOS'!$D$32),-3)),0) -> 72000 | Q41: =IF($C41="E",0,IF($E41="PASANTE SENA",0,IF(K41>=('SUPUESTOS GASTOS'!$D$14*2),0,ROUNDUP('SUPUESTOS GASTOS'!$D$15,-3)))) -> 0 | R41: =IFERROR(IF($E41="PASANTE SENA",0,ROUNDUP((K41*'SUPUESTOS GASTOS'!$D$33),-3)),0) -> 108000 | S41: =ROUNDUP((K41/'SUPUESTOS GASTOS'!$D$13)*H41,-3) -> 42877000 | T41: =IFERROR(IF($E41="PASANTE SENA",ROUNDUP((S41*'SUPUESTOS GASTOS'!$D$20),-3),ROUNDUP((S41*'SUPUESTOS GASTOS'!$D$19),-3)),0) -> 3645000 | U41: =IFERROR(IF($E41="PASANTE SENA",0,ROUNDUP((S41*'SUPUESTOS GASTOS'!$D$18),-3)),0) -> 5146000 | V41: =IFERROR(ROUNDUP(S41*SUMIF('SUPUESTOS GASTOS'!$B$24:$B$28,'Anexo 5 Planta y Equipo de trab'!$B41,'SUPUESTOS GASTOS'!$D$24:$D$28),-3),0) -> 1866000 | W41: =IFERROR(IF($E41="PASANTE SENA",0,ROUNDUP(((S41+AD41)*'SUPUESTOS GASTOS'!$D$31),-3)),0) -> 1787000 | X41: =IFERROR(IF($E41="PASANTE SENA",0,ROUNDUP(((S41+AD41)*'SUPUESTOS GASTOS'!$D$32),-3)),0) -> 894000 | Y41: =IF($C41="E",0,IF($E41="PASANTE SENA",0,IF(K41>=('SUPUESTOS GASTOS'!$D$14*2),0,ROUNDUP(('SUPUESTOS GASTOS'!$D$15/'SUPUESTOS GASTOS'!$D$13)*$H41,-3)))) -> 0 | Z41: =IFERROR(IF($E41="PASANTE SENA",0,ROUNDUP(((S41+AD41)*'SUPUESTOS GASTOS'!$D$33),-3)),0) -> 1340000 | AA41: =IF($E41="PASANTE SENA",0,ROUNDUP(((K41+Q41)*H41)/'SUPUESTOS GASTOS'!$D$12,-3)) -> 3574000 | AB41: =IF($E41="PASANTE SENA",0,ROUNDUP((((AA41)/'SUPUESTOS GASTOS'!$D$12)*H41)*'SUPUESTOS GASTOS'!$D$21,-3)) -> 428000 | AC41: =IF($E41="PASANTE SENA",0,ROUNDUP(((K41+Q41)*H41)/'SUPUESTOS GASTOS'!$D$12,-3)) -> 3574000 | AD41: =IF($E41="PASANTE SENA",0,ROUNDUP((K41*H41)/('SUPUESTOS GASTOS'!$D$12*2),-3)) -> 1787000 | AF41: 66918000
A42: 5 | B42: 4 | C42: C | E42: PROFESIONAL CONTABLE Y RECAUDO 3 | F42: 2025-01-02 | G42: 2025-12-31 | H42: 359 | I42: =IF(C42="C",'SUPUESTOS GASTOS'!$D$6*SUMIF('SUPUESTOS GASTOS'!$B$38:$B$47,'Anexo 5 Planta y Equipo de trab'!$A42,'SUPUESTOS GASTOS'!$D$38:$D$47),IF($C42="N",0,IF(C42="E",'SUPUESTOS GASTOS'!$D$6*SUMIF('SUPUESTOS GASTOS'!$B$38:$B$47,'Anexo 5 Planta y Equipo de trab'!$A42,'SUPUESTOS GASTOS'!$D$38:$D$47),""))) -> 3380000 | J42: =+'SUPUESTOS GASTOS'!$D$10 -> 0.06 | K42: =IF($C42="C",ROUNDUP((I42*J42)+I42,-3),IF($C42="N",ROUNDUP(('SUPUESTOS GASTOS'!$D$6*SUMIF('SUPUESTOS GASTOS'!$B$38:$B$47,'Anexo 5 Planta y Equipo de trab'!$A42,'SUPUESTOS GASTOS'!$D$38:$D$47)*$J42)+'SUPUESTOS GASTOS'!$D$6*SUMIF('SUPUESTOS GASTOS'!$B$38:$B$47,'Anexo 5 Planta y Equipo de trab'!$A42,'SUPUESTOS GASTOS'!$D$38:$D$47),-3),IF($C42="E",0))) -> 3583000 | L42: =IFERROR(IF($E42="PASANTE SENA",ROUNDUP((K42*'SUPUESTOS GASTOS'!$D$20),-3),ROUNDUP((K42*'SUPUESTOS GASTOS'!$D$19),-3)),0) -> 305000 | M42: =IFERROR(IF($E42="PASANTE SENA",0,ROUNDUP((K42*'SUPUESTOS GASTOS'!$D$18),-3)),0) -> 430000 | N42: =IFERROR(ROUNDUP(K42*SUMIF('SUPUESTOS GASTOS'!$B$24:$B$28,'Anexo 5 Planta y Equipo de trab'!$B42,'SUPUESTOS GASTOS'!$D$24:$D$28),-3),0) -> 156000 | O42: =IFERROR(IF($E42="PASANTE SENA",0,ROUNDUP((K42*'SUPUESTOS GASTOS'!$D$31),-3)),0) -> 144000 | P42: =IFERROR(IF($E42="PASANTE SENA",0,ROUNDUP((K42*'SUPUESTOS GASTOS'!$D$32),-3)),0) -> 72000 | Q42: =IF($C42="E",0,IF($E42="PASANTE SENA",0,IF(K42>=('SUPUESTOS GASTOS'!$D$14*2),0,ROUNDUP('SUPUESTOS GASTOS'!$D$15,-3)))) -> 0 | R42: =IFERROR(IF($E42="PASANTE SENA",0,ROUNDUP((K42*'SUPUESTOS GASTOS'!$D$33),-3)),0) -> 108000 | S42: =ROUNDUP((K42/'SUPUESTOS GASTOS'!$D$13)*H42,-3) -> 42877000 | T42: =IFERROR(IF($E42="PASANTE SENA",ROUNDUP((S42*'SUPUESTOS GASTOS'!$D$20),-3),ROUNDUP((S42*'SUPUESTOS GASTOS'!$D$19),-3)),0) -> 3645000 | U42: =IFERROR(IF($E42="PASANTE SENA",0,ROUNDUP((S42*'SUPUESTOS GASTOS'!$D$18),-3)),0) -> 5146000 | V42: =IFERROR(ROUNDUP(S42*SUMIF('SUPUESTOS GASTOS'!$B$24:$B$28,'Anexo 5 Planta y Equipo de trab'!$B42,'SUPUESTOS GASTOS'!$D$24:$D$28),-3),0) -> 1866000 | W42: =IFERROR(IF($E42="PASANTE SENA",0,ROUNDUP(((S42+AD42)*'SUPUESTOS GASTOS'!$D$31),-3)),0) -> 1787000 | X42: =IFERROR(IF($E42="PASANTE SENA",0,ROUNDUP(((S42+AD42)*'SUPUESTOS GASTOS'!$D$32),-3)),0) -> 894000 | Y42: =IF($C42="E",0,IF($E42="PASANTE SENA",0,IF(K42>=('SUPUESTOS GASTOS'!$D$14*2),0,ROUNDUP(('SUPUESTOS GASTOS'!$D$15/'SUPUESTOS GASTOS'!$D$13)*$H42,-3)))) -> 0 | Z42: =IFERROR(IF($E42="PASANTE SENA",0,ROUNDUP(((S42+AD42)*'SUPUESTOS GASTOS'!$D$33),-3)),0) -> 1340000 | AA42: =IF($E42="PASANTE SENA",0,ROUNDUP(((K42+Q42)*H42)/'SUPUESTOS GASTOS'!$D$12,-3)) -> 3574000 | AB42: =IF($E42="PASANTE SENA",0,ROUNDUP((((AA42)/'SUPUESTOS GASTOS'!$D$12)*H42)*'SUPUESTOS GASTOS'!$D$21,-3)) -> 428000 | AC42: =IF($E42="PASANTE SENA",0,ROUNDUP(((K42+Q42)*H42)/'SUPUESTOS GASTOS'!$D$12,-3)) -> 3574000 | AD42: =IF($E42="PASANTE SENA",0,ROUNDUP((K42*H42)/('SUPUESTOS GASTOS'!$D$12*2),-3)) -> 1787000 | AF42: 66918000
A43: 5 | B43: 4 | C43: C | E43: PROFESIONAL CONTABLE Y RECAUDO 4 | F43: 2025-01-02 | G43: 2025-12-31 | H43: 359 | I43: =IF(C43="C",'SUPUESTOS GASTOS'!$D$6*SUMIF('SUPUESTOS GASTOS'!$B$38:$B$47,'Anexo 5 Planta y Equipo de trab'!$A43,'SUPUESTOS GASTOS'!$D$38:$D$47),IF($C43="N",0,IF(C43="E",'SUPUESTOS GASTOS'!$D$6*SUMIF('SUPUESTOS GASTOS'!$B$38:$B$47,'Anexo 5 Planta y Equipo de trab'!$A43,'SUPUESTOS GASTOS'!$D$38:$D$47),""))) -> 3380000 | J43: =+'SUPUESTOS GASTOS'!$D$10 -> 0.06 | K43: =IF($C43="C",ROUNDUP((I43*J43)+I43,-3),IF($C43="N",ROUNDUP(('SUPUESTOS GASTOS'!$D$6*SUMIF('SUPUESTOS GASTOS'!$B$38:$B$47,'Anexo 5 Planta y Equipo de trab'!$A43,'SUPUESTOS GASTOS'!$D$38:$D$47)*$J43)+'SUPUESTOS GASTOS'!$D$6*SUMIF('SUPUESTOS GASTOS'!$B$38:$B$47,'Anexo 5 Planta y Equipo de trab'!$A43,'SUPUESTOS GASTOS'!$D$38:$D$47),-3),IF($C43="E",0))) -> 3583000 | L43: =IFERROR(IF($E43="PASANTE SENA",ROUNDUP((K43*'SUPUESTOS GASTOS'!$D$20),-3),ROUNDUP((K43*'SUPUESTOS GASTOS'!$D$19),-3)),0) -> 305000 | M43: =IFERROR(IF($E43="PASANTE SENA",0,ROUNDUP((K43*'SUPUESTOS GASTOS'!$D$18),-3)),0) -> 430000 | N43: =IFERROR(ROUNDUP(K43*SUMIF('SUPUESTOS GASTOS'!$B$24:$B$28,'Anexo 5 Planta y Equipo de trab'!$B43,'SUPUESTOS GASTOS'!$D$24:$D$28),-3),0) -> 156000 | O43: =IFERROR(IF($E43="PASANTE SENA",0,ROUNDUP((K43*'SUPUESTOS GASTOS'!$D$31),-3)),0) -> 144000 | P43: =IFERROR(IF($E43="PASANTE SENA",0,ROUNDUP((K43*'SUPUESTOS GASTOS'!$D$32),-3)),0) -> 72000 | Q43: =IF($C43="E",0,IF($E43="PASANTE SENA",0,IF(K43>=('SUPUESTOS GASTOS'!$D$14*2),0,ROUNDUP('SUPUESTOS GASTOS'!$D$15,-3)))) -> 0 | R43: =IFERROR(IF($E43="PASANTE SENA",0,ROUNDUP((K43*'SUPUESTOS GASTOS'!$D$33),-3)),0) -> 108000 | S43: =ROUNDUP((K43/'SUPUESTOS GASTOS'!$D$13)*H43,-3) -> 42877000 | T43: =IFERROR(IF($E43="PASANTE SENA",ROUNDUP((S43*'SUPUESTOS GASTOS'!$D$20),-3),ROUNDUP((S43*'SUPUESTOS GASTOS'!$D$19),-3)),0) -> 3645000 | U43: =IFERROR(IF($E43="PASANTE SENA",0,ROUNDUP((S43*'SUPUESTOS GASTOS'!$D$18),-3)),0) -> 5146000 | V43: =IFERROR(ROUNDUP(S43*SUMIF('SUPUESTOS GASTOS'!$B$24:$B$28,'Anexo 5 Planta y Equipo de trab'!$B43,'SUPUESTOS GASTOS'!$D$24:$D$28),-3),0) -> 1866000 | W43: =IFERROR(IF($E43="PASANTE SENA",0,ROUNDUP(((S43+AD43)*'SUPUESTOS GASTOS'!$D$31),-3)),0) -> 1787000 | X43: =IFERROR(IF($E43="PASANTE SENA",0,ROUNDUP(((S43+AD43)*'SUPUESTOS GASTOS'!$D$32),-3)),0) -> 894000 | Y43: =IF($C43="E",0,IF($E43="PASANTE SENA",0,IF(K43>=('SUPUESTOS GASTOS'!$D$14*2),0,ROUNDUP(('SUPUESTOS GASTOS'!$D$15/'SUPUESTOS GASTOS'!$D$13)*$H43,-3)))) -> 0 | Z43: =IFERROR(IF($E43="PASANTE SENA",0,ROUNDUP(((S43+AD43)*'SUPUESTOS GASTOS'!$D$33),-3)),0) -> 1340000 | AA43: =IF($E43="PASANTE SENA",0,ROUNDUP(((K43+Q43)*H43)/'SUPUESTOS GASTOS'!$D$12,-3)) -> 3574000 | AB43: =IF($E43="PASANTE SENA",0,ROUNDUP((((AA43)/'SUPUESTOS GASTOS'!$D$12)*H43)*'SUPUESTOS GASTOS'!$D$21,-3)) -> 428000 | AC43: =IF($E43="PASANTE SENA",0,ROUNDUP(((K43+Q43)*H43)/'SUPUESTOS GASTOS'!$D$12,-3)) -> 3574000 | AD43: =IF($E43="PASANTE SENA",0,ROUNDUP((K43*H43)/('SUPUESTOS GASTOS'!$D$12*2),-3)) -> 1787000 | AF43: 66918000
A44: 5 | B44: 4 | C44: C | E44: PROFESIONAL CONTABLE Y RECAUDO 5 | F44: 2025-01-02 | G44: 2025-12-31 | H44: 359 | I44: =IF(C44="C",'SUPUESTOS GASTOS'!$D$6*SUMIF('SUPUESTOS GASTOS'!$B$38:$B$47,'Anexo 5 Planta y Equipo de trab'!$A44,'SUPUESTOS GASTOS'!$D$38:$D$47),IF($C44="N",0,IF(C44="E",'SUPUESTOS GASTOS'!$D$6*SUMIF('SUPUESTOS GASTOS'!$B$38:$B$47,'Anexo 5 Planta y Equipo de trab'!$A44,'SUPUESTOS GASTOS'!$D$38:$D$47),""))) -> 3380000 | J44: =+'SUPUESTOS GASTOS'!$D$10 -> 0.06 | K44: =IF($C44="C",ROUNDUP((I44*J44)+I44,-3),IF($C44="N",ROUNDUP(('SUPUESTOS GASTOS'!$D$6*SUMIF('SUPUESTOS GASTOS'!$B$38:$B$47,'Anexo 5 Planta y Equipo de trab'!$A44,'SUPUESTOS GASTOS'!$D$38:$D$47)*$J44)+'SUPUESTOS GASTOS'!$D$6*SUMIF('SUPUESTOS GASTOS'!$B$38:$B$47,'Anexo 5 Planta y Equipo de trab'!$A44,'SUPUESTOS GASTOS'!$D$38:$D$47),-3),IF($C44="E",0))) -> 3583000 | L44: =IFERROR(IF($E44="PASANTE SENA",ROUNDUP((K44*'SUPUESTOS GASTOS'!$D$20),-3),ROUNDUP((K44*'SUPUESTOS GASTOS'!$D$19),-3)),0) -> 305000 | M44: =IFERROR(IF($E44="PASANTE SENA",0,ROUNDUP((K44*'SUPUESTOS GASTOS'!$D$18),-3)),0) -> 430000 | N44: =IFERROR(ROUNDUP(K44*SUMIF('SUPUESTOS GASTOS'!$B$24:$B$28,'Anexo 5 Planta y Equipo de trab'!$B44,'SUPUESTOS GASTOS'!$D$24:$D$28),-3),0) -> 156000 | O44: =IFERROR(IF($E44="PASANTE SENA",0,ROUNDUP((K44*'SUPUESTOS GASTOS'!$D$31),-3)),0) -> 144000 | P44: =IFERROR(IF($E44="PASANTE SENA",0,ROUNDUP((K44*'SUPUESTOS GASTOS'!$D$32),-3)),0) -> 72000 | Q44: =IF($C44="E",0,IF($E44="PASANTE SENA",0,IF(K44>=('SUPUESTOS GASTOS'!$D$14*2),0,ROUNDUP('SUPUESTOS GASTOS'!$D$15,-3)))) -> 0 | R44: =IFERROR(IF($E44="PASANTE SENA",0,ROUNDUP((K44*'SUPUESTOS GASTOS'!$D$33),-3)),0) -> 108000 | S44: =ROUNDUP((K44/'SUPUESTOS GASTOS'!$D$13)*H44,-3) -> 42877000 | T44: =IFERROR(IF($E44="PASANTE SENA",ROUNDUP((S44*'SUPUESTOS GASTOS'!$D$20),-3),ROUNDUP((S44*'SUPUESTOS GASTOS'!$D$19),-3)),0) -> 3645000 | U44: =IFERROR(IF($E44="PASANTE SENA",0,ROUNDUP((S44*'SUPUESTOS GASTOS'!$D$18),-3)),0) -> 5146000 | V44: =IFERROR(ROUNDUP(S44*SUMIF('SUPUESTOS GASTOS'!$B$24:$B$28,'Anexo 5 Planta y Equipo de trab'!$B44,'SUPUESTOS GASTOS'!$D$24:$D$28),-3),0) -> 1866000 | W44: =IFERROR(IF($E44="PASANTE SENA",0,ROUNDUP(((S44+AD44)*'SUPUESTOS GASTOS'!$D$31),-3)),0) -> 1787000 | X44: =IFERROR(IF($E44="PASANTE SENA",0,ROUNDUP(((S44+AD44)*'SUPUESTOS GASTOS'!$D$32),-3)),0) -> 894000 | Y44: =IF($C44="E",0,IF($E44="PASANTE SENA",0,IF(K44>=('SUPUESTOS GASTOS'!$D$14*2),0,ROUNDUP(('SUPUESTOS GASTOS'!$D$15/'SUPUESTOS GASTOS'!$D$13)*$H44,-3)))) -> 0 | Z44: =IFERROR(IF($E44="PASANTE SENA",0,ROUNDUP(((S44+AD44)*'SUPUESTOS GASTOS'!$D$33),-3)),0) -> 1340000 | AA44: =IF($E44="PASANTE SENA",0,ROUNDUP(((K44+Q44)*H44)/'SUPUESTOS GASTOS'!$D$12,-3)) -> 3574000 | AB44: =IF($E44="PASANTE SENA",0,ROUNDUP((((AA44)/'SUPUESTOS GASTOS'!$D$12)*H44)*'SUPUESTOS GASTOS'!$D$21,-3)) -> 428000 | AC44: =IF($E44="PASANTE SENA",0,ROUNDUP(((K44+Q44)*H44)/'SUPUESTOS GASTOS'!$D$12,-3)) -> 3574000 | AD44: =IF($E44="PASANTE SENA",0,ROUNDUP((K44*H44)/('SUPUESTOS GASTOS'!$D$12*2),-3)) -> 1787000 | AF44: 66918000
A45: 5 | B45: 4 | C45: C | E45: PROFESIONAL CONTABLE Y RECAUDO 6 | F45: 2025-01-02 | G45: 2025-12-31 | H45: 359 | I45: =IF(C45="C",'SUPUESTOS GASTOS'!$D$6*SUMIF('SUPUESTOS GASTOS'!$B$38:$B$47,'Anexo 5 Planta y Equipo de trab'!$A45,'SUPUESTOS GASTOS'!$D$38:$D$47),IF($C45="N",0,IF(C45="E",'SUPUESTOS GASTOS'!$D$6*SUMIF('SUPUESTOS GASTOS'!$B$38:$B$47,'Anexo 5 Planta y Equipo de trab'!$A45,'SUPUESTOS GASTOS'!$D$38:$D$47),""))) -> 3380000 | J45: =+'SUPUESTOS GASTOS'!$D$10 -> 0.06 | K45: =IF($C45="C",ROUNDUP((I45*J45)+I45,-3),IF($C45="N",ROUNDUP(('SUPUESTOS GASTOS'!$D$6*SUMIF('SUPUESTOS GASTOS'!$B$38:$B$47,'Anexo 5 Planta y Equipo de trab'!$A45,'SUPUESTOS GASTOS'!$D$38:$D$47)*$J45)+'SUPUESTOS GASTOS'!$D$6*SUMIF('SUPUESTOS GASTOS'!$B$38:$B$47,'Anexo 5 Planta y Equipo de trab'!$A45,'SUPUESTOS GASTOS'!$D$38:$D$47),-3),IF($C45="E",0))) -> 3583000 | L45: =IFERROR(IF($E45="PASANTE SENA",ROUNDUP((K45*'SUPUESTOS GASTOS'!$D$20),-3),ROUNDUP((K45*'SUPUESTOS GASTOS'!$D$19),-3)),0) -> 305000 | M45: =IFERROR(IF($E45="PASANTE SENA",0,ROUNDUP((K45*'SUPUESTOS GASTOS'!$D$18),-3)),0) -> 430000 | N45: =IFERROR(ROUNDUP(K45*SUMIF('SUPUESTOS GASTOS'!$B$24:$B$28,'Anexo 5 Planta y Equipo de trab'!$B45,'SUPUESTOS GASTOS'!$D$24:$D$28),-3),0) -> 156000 | O45: =IFERROR(IF($E45="PASANTE SENA",0,ROUNDUP((K45*'SUPUESTOS GASTOS'!$D$31),-3)),0) -> 144000 | P45: =IFERROR(IF($E45="PASANTE SENA",0,ROUNDUP((K45*'SUPUESTOS GASTOS'!$D$32),-3)),0) -> 72000 | Q45: =IF($C45="E",0,IF($E45="PASANTE SENA",0,IF(K45>=('SUPUESTOS GASTOS'!$D$14*2),0,ROUNDUP('SUPUESTOS GASTOS'!$D$15,-3)))) -> 0 | R45: =IFERROR(IF($E45="PASANTE SENA",0,ROUNDUP((K45*'SUPUESTOS GASTOS'!$D$33),-3)),0) -> 108000 | S45: =ROUNDUP((K45/'SUPUESTOS GASTOS'!$D$13)*H45,-3) -> 42877000 | T45: =IFERROR(IF($E45="PASANTE SENA",ROUNDUP((S45*'SUPUESTOS GASTOS'!$D$20),-3),ROUNDUP((S45*'SUPUESTOS GASTOS'!$D$19),-3)),0) -> 3645000 | U45: =IFERROR(IF($E45="PASANTE SENA",0,ROUNDUP((S45*'SUPUESTOS GASTOS'!$D$18),-3)),0) -> 5146000 | V45: =IFERROR(ROUNDUP(S45*SUMIF('SUPUESTOS GASTOS'!$B$24:$B$28,'Anexo 5 Planta y Equipo de trab'!$B45,'SUPUESTOS GASTOS'!$D$24:$D$28),-3),0) -> 1866000 | W45: =IFERROR(IF($E45="PASANTE SENA",0,ROUNDUP(((S45+AD45)*'SUPUESTOS GASTOS'!$D$31),-3)),0) -> 1787000 | X45: =IFERROR(IF($E45="PASANTE SENA",0,ROUNDUP(((S45+AD45)*'SUPUESTOS GASTOS'!$D$32),-3)),0) -> 894000 | Y45: =IF($C45="E",0,IF($E45="PASANTE SENA",0,IF(K45>=('SUPUESTOS GASTOS'!$D$14*2),0,ROUNDUP(('SUPUESTOS GASTOS'!$D$15/'SUPUESTOS GASTOS'!$D$13)*$H45,-3)))) -> 0 | Z45: =IFERROR(IF($E45="PASANTE SENA",0,ROUNDUP(((S45+AD45)*'SUPUESTOS GASTOS'!$D$33),-3)),0) -> 1340000 | AA45: =IF($E45="PASANTE SENA",0,ROUNDUP(((K45+Q45)*H45)/'SUPUESTOS GASTOS'!$D$12,-3)) -> 3574000 | AB45: =IF($E45="PASANTE SENA",0,ROUNDUP((((AA45)/'SUPUESTOS GASTOS'!$D$12)*H45)*'SUPUESTOS GASTOS'!$D$21,-3)) -> 428000 | AC45: =IF($E45="PASANTE SENA",0,ROUNDUP(((K45+Q45)*H45)/'SUPUESTOS GASTOS'!$D$12,-3)) -> 3574000 | AD45: =IF($E45="PASANTE SENA",0,ROUNDUP((K45*H45)/('SUPUESTOS GASTOS'!$D$12*2),-3)) -> 1787000 | AF45: 66918000
A46: 5 | B46: 4 | C46: C | E46: PROFESIONAL CONTABLE Y RECAUDO 7 | F46: 2025-01-02 | G46: 2025-12-31 | H46: 359 | I46: =IF(C46="C",'SUPUESTOS GASTOS'!$D$6*SUMIF('SUPUESTOS GASTOS'!$B$38:$B$47,'Anexo 5 Planta y Equipo de trab'!$A46,'SUPUESTOS GASTOS'!$D$38:$D$47),IF($C46="N",0,IF(C46="E",'SUPUESTOS GASTOS'!$D$6*SUMIF('SUPUESTOS GASTOS'!$B$38:$B$47,'Anexo 5 Planta y Equipo de trab'!$A46,'SUPUESTOS GASTOS'!$D$38:$D$47),""))) -> 3380000 | J46: =+'SUPUESTOS GASTOS'!$D$10 -> 0.06 | K46: =IF($C46="C",ROUNDUP((I46*J46)+I46,-3),IF($C46="N",ROUNDUP(('SUPUESTOS GASTOS'!$D$6*SUMIF('SUPUESTOS GASTOS'!$B$38:$B$47,'Anexo 5 Planta y Equipo de trab'!$A46,'SUPUESTOS GASTOS'!$D$38:$D$47)*$J46)+'SUPUESTOS GASTOS'!$D$6*SUMIF('SUPUESTOS GASTOS'!$B$38:$B$47,'Anexo 5 Planta y Equipo de trab'!$A46,'SUPUESTOS GASTOS'!$D$38:$D$47),-3),IF($C46="E",0))) -> 3583000 | L46: =IFERROR(IF($E46="PASANTE SENA",ROUNDUP((K46*'SUPUESTOS GASTOS'!$D$20),-3),ROUNDUP((K46*'SUPUESTOS GASTOS'!$D$19),-3)),0) -> 305000 | M46: =IFERROR(IF($E46="PASANTE SENA",0,ROUNDUP((K46*'SUPUESTOS GASTOS'!$D$18),-3)),0) -> 430000 | N46: =IFERROR(ROUNDUP(K46*SUMIF('SUPUESTOS GASTOS'!$B$24:$B$28,'Anexo 5 Planta y Equipo de trab'!$B46,'SUPUESTOS GASTOS'!$D$24:$D$28),-3),0) -> 156000 | O46: =IFERROR(IF($E46="PASANTE SENA",0,ROUNDUP((K46*'SUPUESTOS GASTOS'!$D$31),-3)),0) -> 144000 | P46: =IFERROR(IF($E46="PASANTE SENA",0,ROUNDUP((K46*'SUPUESTOS GASTOS'!$D$32),-3)),0) -> 72000 | Q46: =IF($C46="E",0,IF($E46="PASANTE SENA",0,IF(K46>=('SUPUESTOS GASTOS'!$D$14*2),0,ROUNDUP('SUPUESTOS GASTOS'!$D$15,-3)))) -> 0 | R46: =IFERROR(IF($E46="PASANTE SENA",0,ROUNDUP((K46*'SUPUESTOS GASTOS'!$D$33),-3)),0) -> 108000 | S46: =ROUNDUP((K46/'SUPUESTOS GASTOS'!$D$13)*H46,-3) -> 42877000 | T46: =IFERROR(IF($E46="PASANTE SENA",ROUNDUP((S46*'SUPUESTOS GASTOS'!$D$20),-3),ROUNDUP((S46*'SUPUESTOS GASTOS'!$D$19),-3)),0) -> 3645000 | U46: =IFERROR(IF($E46="PASANTE SENA",0,ROUNDUP((S46*'SUPUESTOS GASTOS'!$D$18),-3)),0) -> 5146000 | V46: =IFERROR(ROUNDUP(S46*SUMIF('SUPUESTOS GASTOS'!$B$24:$B$28,'Anexo 5 Planta y Equipo de trab'!$B46,'SUPUESTOS GASTOS'!$D$24:$D$28),-3),0) -> 1866000 | W46: =IFERROR(IF($E46="PASANTE SENA",0,ROUNDUP(((S46+AD46)*'SUPUESTOS GASTOS'!$D$31),-3)),0) -> 1787000 | X46: =IFERROR(IF($E46="PASANTE SENA",0,ROUNDUP(((S46+AD46)*'SUPUESTOS GASTOS'!$D$32),-3)),0) -> 894000 | Y46: =IF($C46="E",0,IF($E46="PASANTE SENA",0,IF(K46>=('SUPUESTOS GASTOS'!$D$14*2),0,ROUNDUP(('SUPUESTOS GASTOS'!$D$15/'SUPUESTOS GASTOS'!$D$13)*$H46,-3)))) -> 0 | Z46: =IFERROR(IF($E46="PASANTE SENA",0,ROUNDUP(((S46+AD46)*'SUPUESTOS GASTOS'!$D$33),-3)),0) -> 1340000 | AA46: =IF($E46="PASANTE SENA",0,ROUNDUP(((K46+Q46)*H46)/'SUPUESTOS GASTOS'!$D$12,-3)) -> 3574000 | AB46: =IF($E46="PASANTE SENA",0,ROUNDUP((((AA46)/'SUPUESTOS GASTOS'!$D$12)*H46)*'SUPUESTOS GASTOS'!$D$21,-3)) -> 428000 | AC46: =IF($E46="PASANTE SENA",0,ROUNDUP(((K46+Q46)*H46)/'SUPUESTOS GASTOS'!$D$12,-3)) -> 3574000 | AD46: =IF($E46="PASANTE SENA",0,ROUNDUP((K46*H46)/('SUPUESTOS GASTOS'!$D$12*2),-3)) -> 1787000 | AF46: 66918000
A47: 5 | B47: 4 | C47: C | E47: PROFESIONAL CONTABLE Y RECAUDO 8 | F47: 2025-01-02 | G47: 2025-12-31 | H47: 359 | I47: =IF(C47="C",'SUPUESTOS GASTOS'!$D$6*SUMIF('SUPUESTOS GASTOS'!$B$38:$B$47,'Anexo 5 Planta y Equipo de trab'!$A47,'SUPUESTOS GASTOS'!$D$38:$D$47),IF($C47="N",0,IF(C47="E",'SUPUESTOS GASTOS'!$D$6*SUMIF('SUPUESTOS GASTOS'!$B$38:$B$47,'Anexo 5 Planta y Equipo de trab'!$A47,'SUPUESTOS GASTOS'!$D$38:$D$47),""))) -> 3380000 | J47: =+'SUPUESTOS GASTOS'!$D$10 -> 0.06 | K47: =IF($C47="C",ROUNDUP((I47*J47)+I47,-3),IF($C47="N",ROUNDUP(('SUPUESTOS GASTOS'!$D$6*SUMIF('SUPUESTOS GASTOS'!$B$38:$B$47,'Anexo 5 Planta y Equipo de trab'!$A47,'SUPUESTOS GASTOS'!$D$38:$D$47)*$J47)+'SUPUESTOS GASTOS'!$D$6*SUMIF('SUPUESTOS GASTOS'!$B$38:$B$47,'Anexo 5 Planta y Equipo de trab'!$A47,'SUPUESTOS GASTOS'!$D$38:$D$47),-3),IF($C47="E",0))) -> 3583000 | L47: =IFERROR(IF($E47="PASANTE SENA",ROUNDUP((K47*'SUPUESTOS GASTOS'!$D$20),-3),ROUNDUP((K47*'SUPUESTOS GASTOS'!$D$19),-3)),0) -> 305000 | M47: =IFERROR(IF($E47="PASANTE SENA",0,ROUNDUP((K47*'SUPUESTOS GASTOS'!$D$18),-3)),0) -> 430000 | N47: =IFERROR(ROUNDUP(K47*SUMIF('SUPUESTOS GASTOS'!$B$24:$B$28,'Anexo 5 Planta y Equipo de trab'!$B47,'SUPUESTOS GASTOS'!$D$24:$D$28),-3),0) -> 156000 | O47: =IFERROR(IF($E47="PASANTE SENA",0,ROUNDUP((K47*'SUPUESTOS GASTOS'!$D$31),-3)),0) -> 144000 | P47: =IFERROR(IF($E47="PASANTE SENA",0,ROUNDUP((K47*'SUPUESTOS GASTOS'!$D$32),-3)),0) -> 72000 | Q47: =IF($C47="E",0,IF($E47="PASANTE SENA",0,IF(K47>=('SUPUESTOS GASTOS'!$D$14*2),0,ROUNDUP('SUPUESTOS GASTOS'!$D$15,-3)))) -> 0 | R47: =IFERROR(IF($E47="PASANTE SENA",0,ROUNDUP((K47*'SUPUESTOS GASTOS'!$D$33),-3)),0) -> 108000 | S47: =ROUNDUP((K47/'SUPUESTOS GASTOS'!$D$13)*H47,-3) -> 42877000 | T47: =IFERROR(IF($E47="PASANTE SENA",ROUNDUP((S47*'SUPUESTOS GASTOS'!$D$20),-3),ROUNDUP((S47*'SUPUESTOS GASTOS'!$D$19),-3)),0) -> 3645000 | U47: =IFERROR(IF($E47="PASANTE SENA",0,ROUNDUP((S47*'SUPUESTOS GASTOS'!$D$18),-3)),0) -> 5146000 | V47: =IFERROR(ROUNDUP(S47*SUMIF('SUPUESTOS GASTOS'!$B$24:$B$28,'Anexo 5 Planta y Equipo de trab'!$B47,'SUPUESTOS GASTOS'!$D$24:$D$28),-3),0) -> 1866000 | W47: =IFERROR(IF($E47="PASANTE SENA",0,ROUNDUP(((S47+AD47)*'SUPUESTOS GASTOS'!$D$31),-3)),0) -> 1787000 | X47: =IFERROR(IF($E47="PASANTE SENA",0,ROUNDUP(((S47+AD47)*'SUPUESTOS GASTOS'!$D$32),-3)),0) -> 894000 | Y47: =IF($C47="E",0,IF($E47="PASANTE SENA",0,IF(K47>=('SUPUESTOS GASTOS'!$D$14*2),0,ROUNDUP(('SUPUESTOS GASTOS'!$D$15/'SUPUESTOS GASTOS'!$D$13)*$H47,-3)))) -> 0 | Z47: =IFERROR(IF($E47="PASANTE SENA",0,ROUNDUP(((S47+AD47)*'SUPUESTOS GASTOS'!$D$33),-3)),0) -> 1340000 | AA47: =IF($E47="PASANTE SENA",0,ROUNDUP(((K47+Q47)*H47)/'SUPUESTOS GASTOS'!$D$12,-3)) -> 3574000 | AB47: =IF($E47="PASANTE SENA",0,ROUNDUP((((AA47)/'SUPUESTOS GASTOS'!$D$12)*H47)*'SUPUESTOS GASTOS'!$D$21,-3)) -> 428000 | AC47: =IF($E47="PASANTE SENA",0,ROUNDUP(((K47+Q47)*H47)/'SUPUESTOS GASTOS'!$D$12,-3)) -> 3574000 | AD47: =IF($E47="PASANTE SENA",0,ROUNDUP((K47*H47)/('SUPUESTOS GASTOS'!$D$12*2),-3)) -> 1787000 | AF47: 66918000
A48: 5 | B48: 4 | C48: C | E48: PROFESIONAL CONTABLE Y RECAUDO 9 | F48: 2025-01-02 | G48: 2025-12-31 | H48: =DAYS360(F48,G48) -> 359 | I48: =IF(C48="C",'SUPUESTOS GASTOS'!$D$6*SUMIF('SUPUESTOS GASTOS'!$B$38:$B$47,'Anexo 5 Planta y Equipo de trab'!$A48,'SUPUESTOS GASTOS'!$D$38:$D$47),IF($C48="N",0,IF(C48="E",'SUPUESTOS GASTOS'!$D$6*SUMIF('SUPUESTOS GASTOS'!$B$38:$B$47,'Anexo 5 Planta y Equipo de trab'!$A48,'SUPUESTOS GASTOS'!$D$38:$D$47),""))) -> 3380000 | J48: =+'SUPUESTOS GASTOS'!$D$10 -> 0.06 | K48: =IF($C48="C",ROUNDUP((I48*J48)+I48,-3),IF($C48="N",ROUNDUP(('SUPUESTOS GASTOS'!$D$6*SUMIF('SUPUESTOS GASTOS'!$B$38:$B$47,'Anexo 5 Planta y Equipo de trab'!$A48,'SUPUESTOS GASTOS'!$D$38:$D$47)*$J48)+'SUPUESTOS GASTOS'!$D$6*SUMIF('SUPUESTOS GASTOS'!$B$38:$B$47,'Anexo 5 Planta y Equipo de trab'!$A48,'SUPUESTOS GASTOS'!$D$38:$D$47),-3),IF($C48="E",0))) -> 3583000 | L48: =IFERROR(IF($E48="PASANTE SENA",ROUNDUP((K48*'SUPUESTOS GASTOS'!$D$20),-3),ROUNDUP((K48*'SUPUESTOS GASTOS'!$D$19),-3)),0) -> 305000 | M48: =IFERROR(IF($E48="PASANTE SENA",0,ROUNDUP((K48*'SUPUESTOS GASTOS'!$D$18),-3)),0) -> 430000 | N48: =IFERROR(ROUNDUP(K48*SUMIF('SUPUESTOS GASTOS'!$B$24:$B$28,'Anexo 5 Planta y Equipo de trab'!$B48,'SUPUESTOS GASTOS'!$D$24:$D$28),-3),0) -> 156000 | O48: =IFERROR(IF($E48="PASANTE SENA",0,ROUNDUP((K48*'SUPUESTOS GASTOS'!$D$31),-3)),0) -> 144000 | P48: =IFERROR(IF($E48="PASANTE SENA",0,ROUNDUP((K48*'SUPUESTOS GASTOS'!$D$32),-3)),0) -> 72000 | Q48: =IF($C48="E",0,IF($E48="PASANTE SENA",0,IF(K48>=('SUPUESTOS GASTOS'!$D$14*2),0,ROUNDUP('SUPUESTOS GASTOS'!$D$15,-3)))) -> 0 | R48: =IFERROR(IF($E48="PASANTE SENA",0,ROUNDUP((K48*'SUPUESTOS GASTOS'!$D$33),-3)),0) -> 108000 | S48: =ROUNDUP((K48/'SUPUESTOS GASTOS'!$D$13)*H48,-3) -> 42877000 | T48: =IFERROR(IF($E48="PASANTE SENA",ROUNDUP((S48*'SUPUESTOS GASTOS'!$D$20),-3),ROUNDUP((S48*'SUPUESTOS GASTOS'!$D$19),-3)),0) -> 3645000 | U48: =IFERROR(IF($E48="PASANTE SENA",0,ROUNDUP((S48*'SUPUESTOS GASTOS'!$D$18),-3)),0) -> 5146000 | V48: =IFERROR(ROUNDUP(S48*SUMIF('SUPUESTOS GASTOS'!$B$24:$B$28,'Anexo 5 Planta y Equipo de trab'!$B48,'SUPUESTOS GASTOS'!$D$24:$D$28),-3),0) -> 1866000 | W48: =IFERROR(IF($E48="PASANTE SENA",0,ROUNDUP(((S48+AD48)*'SUPUESTOS GASTOS'!$D$31),-3)),0) -> 1787000 | X48: =IFERROR(IF($E48="PASANTE SENA",0,ROUNDUP(((S48+AD48)*'SUPUESTOS GASTOS'!$D$32),-3)),0) -> 894000 | Y48: =IF($C48="E",0,IF($E48="PASANTE SENA",0,IF(K48>=('SUPUESTOS GASTOS'!$D$14*2),0,ROUNDUP(('SUPUESTOS GASTOS'!$D$15/'SUPUESTOS GASTOS'!$D$13)*$H48,-3)))) -> 0 | Z48: =IFERROR(IF($E48="PASANTE SENA",0,ROUNDUP(((S48+AD48)*'SUPUESTOS GASTOS'!$D$33),-3)),0) -> 1340000 | AA48: =IF($E48="PASANTE SENA",0,ROUNDUP(((K48+Q48)*H48)/'SUPUESTOS GASTOS'!$D$12,-3)) -> 3574000 | AB48: =IF($E48="PASANTE SENA",0,ROUNDUP((((AA48)/'SUPUESTOS GASTOS'!$D$12)*H48)*'SUPUESTOS GASTOS'!$D$21,-3)) -> 428000 | AC48: =IF($E48="PASANTE SENA",0,ROUNDUP(((K48+Q48)*H48)/'SUPUESTOS GASTOS'!$D$12,-3)) -> 3574000 | AD48: =IF($E48="PASANTE SENA",0,ROUNDUP((K48*H48)/('SUPUESTOS GASTOS'!$D$12*2),-3)) -> 1787000 | AF48: 66918000
A49: 5 | B49: 4 | C49: C | E49: PROFESIONAL CONTABLE Y RECAUDO 10 | F49: 2025-01-02 | G49: 2025-12-31 | H49: =DAYS360(F49,G49) -> 359 | I49: =IF(C49="C",'SUPUESTOS GASTOS'!$D$6*SUMIF('SUPUESTOS GASTOS'!$B$38:$B$47,'Anexo 5 Planta y Equipo de trab'!$A49,'SUPUESTOS GASTOS'!$D$38:$D$47),IF($C49="N",0,IF(C49="E",'SUPUESTOS GASTOS'!$D$6*SUMIF('SUPUESTOS GASTOS'!$B$38:$B$47,'Anexo 5 Planta y Equipo de trab'!$A49,'SUPUESTOS GASTOS'!$D$38:$D$47),""))) -> 3380000 | J49: =+'SUPUESTOS GASTOS'!$D$10 -> 0.06 | K49: =IF($C49="C",ROUNDUP((I49*J49)+I49,-3),IF($C49="N",ROUNDUP(('SUPUESTOS GASTOS'!$D$6*SUMIF('SUPUESTOS GASTOS'!$B$38:$B$47,'Anexo 5 Planta y Equipo de trab'!$A49,'SUPUESTOS GASTOS'!$D$38:$D$47)*$J49)+'SUPUESTOS GASTOS'!$D$6*SUMIF('SUPUESTOS GASTOS'!$B$38:$B$47,'Anexo 5 Planta y Equipo de trab'!$A49,'SUPUESTOS GASTOS'!$D$38:$D$47),-3),IF($C49="E",0))) -> 3583000 | L49: =IFERROR(IF($E49="PASANTE SENA",ROUNDUP((K49*'SUPUESTOS GASTOS'!$D$20),-3),ROUNDUP((K49*'SUPUESTOS GASTOS'!$D$19),-3)),0) -> 305000 | M49: =IFERROR(IF($E49="PASANTE SENA",0,ROUNDUP((K49*'SUPUESTOS GASTOS'!$D$18),-3)),0) -> 430000 | N49: =IFERROR(ROUNDUP(K49*SUMIF('SUPUESTOS GASTOS'!$B$24:$B$28,'Anexo 5 Planta y Equipo de trab'!$B49,'SUPUESTOS GASTOS'!$D$24:$D$28),-3),0) -> 156000 | O49: =IFERROR(IF($E49="PASANTE SENA",0,ROUNDUP((K49*'SUPUESTOS GASTOS'!$D$31),-3)),0) -> 144000 | P49: =IFERROR(IF($E49="PASANTE SENA",0,ROUNDUP((K49*'SUPUESTOS GASTOS'!$D$32),-3)),0) -> 72000 | Q49: =IF($C49="E",0,IF($E49="PASANTE SENA",0,IF(K49>=('SUPUESTOS GASTOS'!$D$14*2),0,ROUNDUP('SUPUESTOS GASTOS'!$D$15,-3)))) -> 0 | R49: =IFERROR(IF($E49="PASANTE SENA",0,ROUNDUP((K49*'SUPUESTOS GASTOS'!$D$33),-3)),0) -> 108000 | S49: =ROUNDUP((K49/'SUPUESTOS GASTOS'!$D$13)*H49,-3) -> 42877000 | T49: =IFERROR(IF($E49="PASANTE SENA",ROUNDUP((S49*'SUPUESTOS GASTOS'!$D$20),-3),ROUNDUP((S49*'SUPUESTOS GASTOS'!$D$19),-3)),0) -> 3645000 | U49: =IFERROR(IF($E49="PASANTE SENA",0,ROUNDUP((S49*'SUPUESTOS GASTOS'!$D$18),-3)),0) -> 5146000 | V49: =IFERROR(ROUNDUP(S49*SUMIF('SUPUESTOS GASTOS'!$B$24:$B$28,'Anexo 5 Planta y Equipo de trab'!$B49,'SUPUESTOS GASTOS'!$D$24:$D$28),-3),0) -> 1866000 | W49: =IFERROR(IF($E49="PASANTE SENA",0,ROUNDUP(((S49+AD49)*'SUPUESTOS GASTOS'!$D$31),-3)),0) -> 1787000 | X49: =IFERROR(IF($E49="PASANTE SENA",0,ROUNDUP(((S49+AD49)*'SUPUESTOS GASTOS'!$D$32),-3)),0) -> 894000 | Y49: =IF($C49="E",0,IF($E49="PASANTE SENA",0,IF(K49>=('SUPUESTOS GASTOS'!$D$14*2),0,ROUNDUP(('SUPUESTOS GASTOS'!$D$15/'SUPUESTOS GASTOS'!$D$13)*$H49,-3)))) -> 0 | Z49: =IFERROR(IF($E49="PASANTE SENA",0,ROUNDUP(((S49+AD49)*'SUPUESTOS GASTOS'!$D$33),-3)),0) -> 1340000 | AA49: =IF($E49="PASANTE SENA",0,ROUNDUP(((K49+Q49)*H49)/'SUPUESTOS GASTOS'!$D$12,-3)) -> 3574000 | AB49: =IF($E49="PASANTE SENA",0,ROUNDUP((((AA49)/'SUPUESTOS GASTOS'!$D$12)*H49)*'SUPUESTOS GASTOS'!$D$21,-3)) -> 428000 | AC49: =IF($E49="PASANTE SENA",0,ROUNDUP(((K49+Q49)*H49)/'SUPUESTOS GASTOS'!$D$12,-3)) -> 3574000 | AD49: =IF($E49="PASANTE SENA",0,ROUNDUP((K49*H49)/('SUPUESTOS GASTOS'!$D$12*2),-3)) -> 1787000 | AF49: 66918000
A50: 7 | B50: 5 | C50: C | E50: ANALISTA DE RECAUDO | F50: 2025-01-02 | G50: 2025-12-31 | H50: =DAYS360(F50,G50) -> 359 | I50: =IF(C50="C",'SUPUESTOS GASTOS'!$D$6*SUMIF('SUPUESTOS GASTOS'!$B$38:$B$47,'Anexo 5 Planta y Equipo de trab'!$A50,'SUPUESTOS GASTOS'!$D$38:$D$47),IF($C50="N",0,IF(C50="E",'SUPUESTOS GASTOS'!$D$6*SUMIF('SUPUESTOS GASTOS'!$B$38:$B$47,'Anexo 5 Planta y Equipo de trab'!$A50,'SUPUESTOS GASTOS'!$D$38:$D$47),""))) -> 1950000 | J50: =+'SUPUESTOS GASTOS'!$D$10 -> 0.06 | K50: =IF($C50="C",ROUNDUP((I50*J50)+I50,-3),IF($C50="N",ROUNDUP(('SUPUESTOS GASTOS'!$D$6*SUMIF('SUPUESTOS GASTOS'!$B$38:$B$47,'Anexo 5 Planta y Equipo de trab'!$A50,'SUPUESTOS GASTOS'!$D$38:$D$47)*$J50)+'SUPUESTOS GASTOS'!$D$6*SUMIF('SUPUESTOS GASTOS'!$B$38:$B$47,'Anexo 5 Planta y Equipo de trab'!$A50,'SUPUESTOS GASTOS'!$D$38:$D$47),-3),IF($C50="E",0))) -> 2067000 | L50: =IFERROR(IF($E50="PASANTE SENA",ROUNDUP((K50*'SUPUESTOS GASTOS'!$D$20),-3),ROUNDUP((K50*'SUPUESTOS GASTOS'!$D$19),-3)),0) -> 176000 | M50: =IFERROR(IF($E50="PASANTE SENA",0,ROUNDUP((K50*'SUPUESTOS GASTOS'!$D$18),-3)),0) -> 249000 | N50: =IFERROR(ROUNDUP(K50*SUMIF('SUPUESTOS GASTOS'!$B$24:$B$28,'Anexo 5 Planta y Equipo de trab'!$B50,'SUPUESTOS GASTOS'!$D$24:$D$28),-3),0) -> 22000 | O50: =IFERROR(IF($E50="PASANTE SENA",0,ROUNDUP((K50*'SUPUESTOS GASTOS'!$D$31),-3)),0) -> 83000 | P50: =IFERROR(IF($E50="PASANTE SENA",0,ROUNDUP((K50*'SUPUESTOS GASTOS'!$D$32),-3)),0) -> 42000 | Q50: =IF($C50="E",0,IF($E50="PASANTE SENA",0,IF(K50>=('SUPUESTOS GASTOS'!$D$14*2),0,ROUNDUP('SUPUESTOS GASTOS'!$D$15,-3)))) -> 172000 | R50: =IFERROR(IF($E50="PASANTE SENA",0,ROUNDUP((K50*'SUPUESTOS GASTOS'!$D$33),-3)),0) -> 63000 | S50: =ROUNDUP((K50/'SUPUESTOS GASTOS'!$D$13)*H50,-3) -> 24736000 | T50: =IFERROR(IF($E50="PASANTE SENA",ROUNDUP((S50*'SUPUESTOS GASTOS'!$D$20),-3),ROUNDUP((S50*'SUPUESTOS GASTOS'!$D$19),-3)),0) -> 2103000 | U50: =IFERROR(IF($E50="PASANTE SENA",0,ROUNDUP((S50*'SUPUESTOS GASTOS'!$D$18),-3)),0) -> 2969000 | V50: =IFERROR(ROUNDUP(S50*SUMIF('SUPUESTOS GASTOS'!$B$24:$B$28,'Anexo 5 Planta y Equipo de trab'!$B50,'SUPUESTOS GASTOS'!$D$24:$D$28),-3),0) -> 259000 | W50: =IFERROR(IF($E50="PASANTE SENA",0,ROUNDUP(((S50+AD50)*'SUPUESTOS GASTOS'!$D$31),-3)),0) -> 1031000 | X50: =IFERROR(IF($E50="PASANTE SENA",0,ROUNDUP(((S50+AD50)*'SUPUESTOS GASTOS'!$D$32),-3)),0) -> 516000 | Y50: =IF($C50="E",0,IF($E50="PASANTE SENA",0,IF(K50>=('SUPUESTOS GASTOS'!$D$14*2),0,ROUNDUP(('SUPUESTOS GASTOS'!$D$15/'SUPUESTOS GASTOS'!$D$13)*$H50,-3)))) -> 2055000 | Z50: =IFERROR(IF($E50="PASANTE SENA",0,ROUNDUP(((S50+AD50)*'SUPUESTOS GASTOS'!$D$33),-3)),0) -> 774000 | AA50: =IF($E50="PASANTE SENA",0,ROUNDUP(((K50+Q50)*H50)/'SUPUESTOS GASTOS'!$D$12,-3)) -> 2233000 | AB50: =IF($E50="PASANTE SENA",0,ROUNDUP((((AA50)/'SUPUESTOS GASTOS'!$D$12)*H50)*'SUPUESTOS GASTOS'!$D$21,-3)) -> 268000 | AC50: =IF($E50="PASANTE SENA",0,ROUNDUP(((K50+Q50)*H50)/'SUPUESTOS GASTOS'!$D$12,-3)) -> 2233000 | AD50: =IF($E50="PASANTE SENA",0,ROUNDUP((K50*H50)/('SUPUESTOS GASTOS'!$D$12*2),-3)) -> 1031000 | AF50: 40208000
A51: 7 | B51: 5 | C51: N | E51: ANALISTA DE RECAUDO | F51: 2025-01-02 | G51: 2025-12-31 | H51: 359 | I51: =IF(C51="C",'SUPUESTOS GASTOS'!$D$6*SUMIF('SUPUESTOS GASTOS'!$B$38:$B$47,'Anexo 5 Planta y Equipo de trab'!$A51,'SUPUESTOS GASTOS'!$D$38:$D$47),IF($C51="N",0,IF(C51="E",'SUPUESTOS GASTOS'!$D$6*SUMIF('SUPUESTOS GASTOS'!$B$38:$B$47,'Anexo 5 Planta y Equipo de trab'!$A51,'SUPUESTOS GASTOS'!$D$38:$D$47),""))) -> 0 | J51: =+'SUPUESTOS GASTOS'!$D$10 -> 0.06 | K51: =IF($C51="C",ROUNDUP((I51*J51)+I51,-3),IF($C51="N",ROUNDUP(('SUPUESTOS GASTOS'!$D$6*SUMIF('SUPUESTOS GASTOS'!$B$38:$B$47,'Anexo 5 Planta y Equipo de trab'!$A51,'SUPUESTOS GASTOS'!$D$38:$D$47)*$J51)+'SUPUESTOS GASTOS'!$D$6*SUMIF('SUPUESTOS GASTOS'!$B$38:$B$47,'Anexo 5 Planta y Equipo de trab'!$A51,'SUPUESTOS GASTOS'!$D$38:$D$47),-3),IF($C51="E",0))) -> 2067000 | L51: =IFERROR(IF($E51="PASANTE SENA",ROUNDUP((K51*'SUPUESTOS GASTOS'!$D$20),-3),ROUNDUP((K51*'SUPUESTOS GASTOS'!$D$19),-3)),0) -> 176000 | M51: =IFERROR(IF($E51="PASANTE SENA",0,ROUNDUP((K51*'SUPUESTOS GASTOS'!$D$18),-3)),0) -> 249000 | N51: =IFERROR(ROUNDUP(K51*SUMIF('SUPUESTOS GASTOS'!$B$24:$B$28,'Anexo 5 Planta y Equipo de trab'!$B51,'SUPUESTOS GASTOS'!$D$24:$D$28),-3),0) -> 22000 | O51: =IFERROR(IF($E51="PASANTE SENA",0,ROUNDUP((K51*'SUPUESTOS GASTOS'!$D$31),-3)),0) -> 83000 | P51: =IFERROR(IF($E51="PASANTE SENA",0,ROUNDUP((K51*'SUPUESTOS GASTOS'!$D$32),-3)),0) -> 42000 | Q51: =IF($C51="E",0,IF($E51="PASANTE SENA",0,IF(K51>=('SUPUESTOS GASTOS'!$D$14*2),0,ROUNDUP('SUPUESTOS GASTOS'!$D$15,-3)))) -> 172000 | R51: =IFERROR(IF($E51="PASANTE SENA",0,ROUNDUP((K51*'SUPUESTOS GASTOS'!$D$33),-3)),0) -> 63000 | S51: =ROUNDUP((K51/'SUPUESTOS GASTOS'!$D$13)*H51,-3) -> 24736000 | T51: =IFERROR(IF($E51="PASANTE SENA",ROUNDUP((S51*'SUPUESTOS GASTOS'!$D$20),-3),ROUNDUP((S51*'SUPUESTOS GASTOS'!$D$19),-3)),0) -> 2103000 | U51: =IFERROR(IF($E51="PASANTE SENA",0,ROUNDUP((S51*'SUPUESTOS GASTOS'!$D$18),-3)),0) -> 2969000 | V51: =IFERROR(ROUNDUP(S51*SUMIF('SUPUESTOS GASTOS'!$B$24:$B$28,'Anexo 5 Planta y Equipo de trab'!$B51,'SUPUESTOS GASTOS'!$D$24:$D$28),-3),0) -> 259000 | W51: =IFERROR(IF($E51="PASANTE SENA",0,ROUNDUP(((S51+AD51)*'SUPUESTOS GASTOS'!$D$31),-3)),0) -> 1031000 | X51: =IFERROR(IF($E51="PASANTE SENA",0,ROUNDUP(((S51+AD51)*'SUPUESTOS GASTOS'!$D$32),-3)),0) -> 516000 | Y51: =IF($C51="E",0,IF($E51="PASANTE SENA",0,IF(K51>=('SUPUESTOS GASTOS'!$D$14*2),0,ROUNDUP(('SUPUESTOS GASTOS'!$D$15/'SUPUESTOS GASTOS'!$D$13)*$H51,-3)))) -> 2055000 | Z51: =IFERROR(IF($E51="PASANTE SENA",0,ROUNDUP(((S51+AD51)*'SUPUESTOS GASTOS'!$D$33),-3)),0) -> 774000 | AA51: =IF($E51="PASANTE SENA",0,ROUNDUP(((K51+Q51)*H51)/'SUPUESTOS GASTOS'!$D$12,-3)) -> 2233000 | AB51: =IF($E51="PASANTE SENA",0,ROUNDUP((((AA51)/'SUPUESTOS GASTOS'!$D$12)*H51)*'SUPUESTOS GASTOS'!$D$21,-3)) -> 268000 | AC51: =IF($E51="PASANTE SENA",0,ROUNDUP(((K51+Q51)*H51)/'SUPUESTOS GASTOS'!$D$12,-3)) -> 2233000 | AD51: =IF($E51="PASANTE SENA",0,ROUNDUP((K51*H51)/('SUPUESTOS GASTOS'!$D$12*2),-3)) -> 1031000 | AF51: 40208000
A52: 8 | B52: 1 | C52: E | E52: ASISTENTE DE RECAUDO | F52: 2025-01-02 | G52: 2025-12-31 | H52: 359 | I52: =IF(C52="C",'SUPUESTOS GASTOS'!$D$6*SUMIF('SUPUESTOS GASTOS'!$B$38:$B$47,'Anexo 5 Planta y Equipo de trab'!$A52,'SUPUESTOS GASTOS'!$D$38:$D$47),IF($C52="N",0,IF(C52="E",'SUPUESTOS GASTOS'!$D$6*SUMIF('SUPUESTOS GASTOS'!$B$38:$B$47,'Anexo 5 Planta y Equipo de trab'!$A52,'SUPUESTOS GASTOS'!$D$38:$D$47),""))) -> 1690000 | J52: =+'SUPUESTOS GASTOS'!$D$10 -> 0.06 | K52: =IF($C52="C",ROUNDUP((I52*J52)+I52,-3),IF($C52="N",ROUNDUP(('SUPUESTOS GASTOS'!$D$6*SUMIF('SUPUESTOS GASTOS'!$B$38:$B$47,'Anexo 5 Planta y Equipo de trab'!$A52,'SUPUESTOS GASTOS'!$D$38:$D$47)*$J52)+'SUPUESTOS GASTOS'!$D$6*SUMIF('SUPUESTOS GASTOS'!$B$38:$B$47,'Anexo 5 Planta y Equipo de trab'!$A52,'SUPUESTOS GASTOS'!$D$38:$D$47),-3),IF($C52="E",0))) -> 0 | L52: =IFERROR(IF($E52="PASANTE SENA",ROUNDUP((K52*'SUPUESTOS GASTOS'!$D$20),-3),ROUNDUP((K52*'SUPUESTOS GASTOS'!$D$19),-3)),0) -> 0 | M52: =IFERROR(IF($E52="PASANTE SENA",0,ROUNDUP((K52*'SUPUESTOS GASTOS'!$D$18),-3)),0) -> 0 | N52: =IFERROR(ROUNDUP(K52*SUMIF('SUPUESTOS GASTOS'!$B$24:$B$28,'Anexo 5 Planta y Equipo de trab'!$B52,'SUPUESTOS GASTOS'!$D$24:$D$28),-3),0) -> 0 | O52: =IFERROR(IF($E52="PASANTE SENA",0,ROUNDUP((K52*'SUPUESTOS GASTOS'!$D$31),-3)),0) -> 0 | P52: =IFERROR(IF($E52="PASANTE SENA",0,ROUNDUP((K52*'SUPUESTOS GASTOS'!$D$32),-3)),0) -> 0 | Q52: =IF($C52="E",0,IF($E52="PASANTE SENA",0,IF(K52>=('SUPUESTOS GASTOS'!$D$14*2),0,ROUNDUP('SUPUESTOS GASTOS'!$D$15,-3)))) -> 0 | R52: =IFERROR(IF($E52="PASANTE SENA",0,ROUNDUP((K52*'SUPUESTOS GASTOS'!$D$33),-3)),0) -> 0 | S52: =ROUNDUP((K52/'SUPUESTOS GASTOS'!$D$13)*H52,-3) -> 0 | T52: =IFERROR(IF($E52="PASANTE SENA",ROUNDUP((S52*'SUPUESTOS GASTOS'!$D$20),-3),ROUNDUP((S52*'SUPUESTOS GASTOS'!$D$19),-3)),0) -> 0 | U52: =IFERROR(IF($E52="PASANTE SENA",0,ROUNDUP((S52*'SUPUESTOS GASTOS'!$D$18),-3)),0) -> 0 | V52: =IFERROR(ROUNDUP(S52*SUMIF('SUPUESTOS GASTOS'!$B$24:$B$28,'Anexo 5 Planta y Equipo de trab'!$B52,'SUPUESTOS GASTOS'!$D$24:$D$28),-3),0) -> 0 | W52: =IFERROR(IF($E52="PASANTE SENA",0,ROUNDUP(((S52+AD52)*'SUPUESTOS GASTOS'!$D$31),-3)),0) -> 0 | X52: =IFERROR(IF($E52="PASANTE SENA",0,ROUNDUP(((S52+AD52)*'SUPUESTOS GASTOS'!$D$32),-3)),0) -> 0 | Y52: =IF($C52="E",0,IF($E52="PASANTE SENA",0,IF(K52>=('SUPUESTOS GASTOS'!$D$14*2),0,ROUNDUP(('SUPUESTOS GASTOS'!$D$15/'SUPUESTOS GASTOS'!$D$13)*$H52,-3)))) -> 0 | Z52: =IFERROR(IF($E52="PASANTE SENA",0,ROUNDUP(((S52+AD52)*'SUPUESTOS GASTOS'!$D$33),-3)),0) -> 0 | AA52: =IF($E52="PASANTE SENA",0,ROUNDUP(((K52+Q52)*H52)/'SUPUESTOS GASTOS'!$D$12,-3)) -> 0 | AB52: =IF($E52="PASANTE SENA",0,ROUNDUP((((AA52)/'SUPUESTOS GASTOS'!$D$12)*H52)*'SUPUESTOS GASTOS'!$D$21,-3)) -> 0 | AC52: =IF($E52="PASANTE SENA",0,ROUNDUP(((K52+Q52)*H52)/'SUPUESTOS GASTOS'!$D$12,-3)) -> 0 | AD52: =IF($E52="PASANTE SENA",0,ROUNDUP((K52*H52)/('SUPUESTOS GASTOS'!$D$12*2),-3)) -> 0 | AF52: 0
E53: SUB TOTAL GASTOS DE FUNCIONAMIENTO - RECAUDO | K53: =SUM(K25:K52) -> 72322000 | L53: 6155000 | M53: 8683000 | N53: 2229000 | O53: 2903000 | P53: 1454000 | Q53: 344000 | R53: 2180000 | S53: 865581000 | T53: 73582000 | U53: 103882000 | V53: 26625000 | W53: 36074000 | X53: 18045000 | Y53: 4110000 | Z53: 27055000 | AA53: 72486000 | AB53: 8682000 | AC53: 72486000 | AD53: 36074000 | AE53: 0 | AF53: 1344682000
E54: TOTAL GASTOS DE FUNCIONAMIENTO | K54: =+K23+K53 -> 99773000 | L54: 8491000 | M54: 11979000 | N54: 2660000 | O54: 4004000 | P54: 2005000 | Q54: 516000 | R54: 3006000 | S54: 1193782000 | T54: 101482000 | U54: 143270000 | V54: 31755000 | W54: 49752000 | X54: 24886000 | Y54: 6137000 | Z54: 37313000 | AA54: 100009000 | AB54: 11974000 | AC54: 100009000 | AD54: 49752000 | AE54: 0 | AF54: 1850121000
E56: CARGO | F56: FECHA INICIO | G56: FECHA TERMINACION | H56: DIAS LAB | I56: AÑO ANTERIOR | K56: INFORMACION MENSUAL PARAFISCALES SEGUN LOS PORCENTAJES ESTABLECIDOS POR LA LEY | S56: INFORMACION ANUAL PARAFISCALES | AA56: PRESTACIONES SOCIALES SEGUN LO ESTABLECIDO POR LA LEY | AF56: TOTAL AÑO VIGENCIA SOLICITADA
I57: SALARIO AÑO ANTERIOR | J57: % DE INCREMENTOS SALARIO | K57: SALARIO MENSUAL VIGENCIA SOLICITADA | L57: SALUD MENSUAL | M57: PENSION MENSUAL | N57: ARL MENSUAL | O57: CAJA COMPENSACION MENSUAL | P57: SENA MENSUAL | Q57: AUXILIO DE TRANSPORTE | R57: ICBF MENSUAL | S57: SALARIO ANUAL | T57: SALUD ANUAL | U57: PENSION ANUAL | V57: ARL ANUAL | W57: CAJA COMPENSACION ANUAL | X57: SENA ANUAL | Y57: AUXILIO DE TRANSPORTE ANUAL | Z57: ICBF ANUAL | AA57: CESANTIAS ANUAL | AB57: INTERESES DE CESANTIAS ANUAL | AC57: PRIMA ANUAL | AD57: VACACIONES ANUAL | AE57: VARIACIÓN DE VACACIONES
E58: GASTOS DE INVERSIÓN
E59: ITPA
A60: 1 | B60: 2 | C60: C | E60: DIRECTOR INVESTIGACIÓN Y TRANSFERENCIA DE TECNOLOGÍA | F60: 2025-01-02 | G60: 2025-12-31 | H60: =DAYS360(F60,G60) -> 359 | I60: =IF(C60="C",'SUPUESTOS GASTOS'!$D$6*SUMIF('SUPUESTOS GASTOS'!$B$38:$B$47,'Anexo 5 Planta y Equipo de trab'!$A60,'SUPUESTOS GASTOS'!$D$38:$D$47),IF($C60="N",0,IF(C60="E",'SUPUESTOS GASTOS'!$D$6*SUMIF('SUPUESTOS GASTOS'!$B$38:$B$47,'Anexo 5 Planta y Equipo de trab'!$A60,'SUPUESTOS GASTOS'!$D$38:$D$47),""))) -> 8866000 | J60: =+'SUPUESTOS GASTOS'!$D$10 -> 0.06 | K60: =IF($C60="C",ROUNDUP((I60*J60)+I60,-3),IF($C60="N",ROUNDUP(('SUPUESTOS GASTOS'!$D$6*SUMIF('SUPUESTOS GASTOS'!$B$38:$B$47,'Anexo 5 Planta y Equipo de trab'!$A60,'SUPUESTOS GASTOS'!$D$38:$D$47)*$J60)+'SUPUESTOS GASTOS'!$D$6*SUMIF('SUPUESTOS GASTOS'!$B$38:$B$47,'Anexo 5 Planta y Equipo de trab'!$A60,'SUPUESTOS GASTOS'!$D$38:$D$47),-3),IF($C60="E",0))) -> 9398000 | L60: =IFERROR(IF($E60="PASANTE SENA",ROUNDUP((K60*'SUPUESTOS GASTOS'!$D$20),-3),ROUNDUP((K60*'SUPUESTOS GASTOS'!$D$19),-3)),0) -> 799000 | M60: =IFERROR(IF($E60="PASANTE SENA",0,ROUNDUP((K60*'SUPUESTOS GASTOS'!$D$18),-3)),0) -> 1128000 | N60: =IFERROR(ROUNDUP(K60*SUMIF('SUPUESTOS GASTOS'!$B$24:$B$28,'Anexo 5 Planta y Equipo de trab'!$B60,'SUPUESTOS GASTOS'!$D$24:$D$28),-3),0) -> 229000 | O60: =IFERROR(IF($E60="PASANTE SENA",0,ROUNDUP((K60*'SUPUESTOS GASTOS'!$D$31),-3)),0) -> 376000 | P60: =IFERROR(IF($E60="PASANTE SENA",0,ROUNDUP((K60*'SUPUESTOS GASTOS'!$D$32),-3)),0) -> 188000 | Q60: =IF($C60="E",0,IF($E60="PASANTE SENA",0,IF(K60>=('SUPUESTOS GASTOS'!$D$14*2),0,ROUNDUP('SUPUESTOS GASTOS'!$D$15,-3)))) -> 0 | R60: =IFERROR(IF($E60="PASANTE SENA",0,ROUNDUP((K60*'SUPUESTOS GASTOS'!$D$33),-3)),0) -> 282000 | S60: =ROUNDUP((K60/'SUPUESTOS GASTOS'!$D$13)*H60,-3) -> 112463000 | T60: =IFERROR(IF($E60="PASANTE SENA",ROUNDUP((S60*'SUPUESTOS GASTOS'!$D$20),-3),ROUNDUP((S60*'SUPUESTOS GASTOS'!$D$19),-3)),0) -> 9560000 | U60: =IFERROR(IF($E60="PASANTE SENA",0,ROUNDUP((S60*'SUPUESTOS GASTOS'!$D$18),-3)),0) -> 13496000 | V60: =IFERROR(ROUNDUP(S60*SUMIF('SUPUESTOS GASTOS'!$B$24:$B$28,'Anexo 5 Planta y Equipo de trab'!$B60,'SUPUESTOS GASTOS'!$D$24:$D$28),-3),0) -> 2740000 | W60: =IFERROR(IF($E60="PASANTE SENA",0,ROUNDUP(((S60+AD60)*'SUPUESTOS GASTOS'!$D$31),-3)),0) -> 4686000 | X60: =IFERROR(IF($E60="PASANTE SENA",0,ROUNDUP(((S60+AD60)*'SUPUESTOS GASTOS'!$D$32),-3)),0) -> 2343000 | Y60: =IF($C60="E",0,IF($E60="PASANTE SENA",0,IF(K60>=('SUPUESTOS GASTOS'!$D$14*2),0,ROUNDUP(('SUPUESTOS GASTOS'!$D$15/'SUPUESTOS GASTOS'!$D$13)*$H60,-3)))) -> 0 | Z60: =IFERROR(IF($E60="PASANTE SENA",0,ROUNDUP(((S60+AD60)*'SUPUESTOS GASTOS'!$D$33),-3)),0) -> 3515000 | AA60: =IF($E60="PASANTE SENA",0,ROUNDUP(((K60+Q60)*H60)/'SUPUESTOS GASTOS'!$D$12,-3)) -> 9372000 | AB60: =IF($E60="PASANTE SENA",0,ROUNDUP((((AA60)/'SUPUESTOS GASTOS'!$D$12)*H60)*'SUPUESTOS GASTOS'!$D$21,-3)) -> 1122000 | AC60: =IF($E60="PASANTE SENA",0,ROUNDUP(((K60+Q60)*H60)/'SUPUESTOS GASTOS'!$D$12,-3)) -> 9372000 | AD60: =IF($E60="PASANTE SENA",0,ROUNDUP((K60*H60)/('SUPUESTOS GASTOS'!$D$12*2),-3)) -> 4686000 | AF60: =ROUNDUP(SUM(S60:AD60),-3) -> 173355000
A61: 3 | B61: 2 | C61: C | E61: COORDINADOR INVESTIGACION Y SIG | F61: 2025-01-02 | G61: 2025-12-31 | H61: =DAYS360(F61,G61) -> 359 | I61: =IF(C61="C",'SUPUESTOS GASTOS'!$D$6*SUMIF('SUPUESTOS GASTOS'!$B$38:$B$47,'Anexo 5 Planta y Equipo de trab'!$A61,'SUPUESTOS GASTOS'!$D$38:$D$47),IF($C61="N",0,IF(C61="E",'SUPUESTOS GASTOS'!$D$6*SUMIF('SUPUESTOS GASTOS'!$B$38:$B$47,'Anexo 5 Planta y Equipo de trab'!$A61,'SUPUESTOS GASTOS'!$D$38:$D$47),""))) -> 5200000 | J61: =+'SUPUESTOS GASTOS'!$D$10 -> 0.06 | K61: =IF($C61="C",ROUNDUP((I61*J61)+I61,-3),IF($C61="N",ROUNDUP(('SUPUESTOS GASTOS'!$D$6*SUMIF('SUPUESTOS GASTOS'!$B$38:$B$47,'Anexo 5 Planta y Equipo de trab'!$A61,'SUPUESTOS GASTOS'!$D$38:$D$47)*$J61)+'SUPUESTOS GASTOS'!$D$6*SUMIF('SUPUESTOS GASTOS'!$B$38:$B$47,'Anexo 5 Planta y Equipo de trab'!$A61,'SUPUESTOS GASTOS'!$D$38:$D$47),-3),IF($C61="E",0))) -> 5512000 | L61: =IFERROR(IF($E61="PASANTE SENA",ROUNDUP((K61*'SUPUESTOS GASTOS'!$D$20),-3),ROUNDUP((K61*'SUPUESTOS GASTOS'!$D$19),-3)),0) -> 469000 | M61: =IFERROR(IF($E61="PASANTE SENA",0,ROUNDUP((K61*'SUPUESTOS GASTOS'!$D$18),-3)),0) -> 662000 | N61: =IFERROR(ROUNDUP(K61*SUMIF('SUPUESTOS GASTOS'!$B$24:$B$28,'Anexo 5 Planta y Equipo de trab'!$B61,'SUPUESTOS GASTOS'!$D$24:$D$28),-3),0) -> 135000 | O61: =IFERROR(IF($E61="PASANTE SENA",0,ROUNDUP((K61*'SUPUESTOS GASTOS'!$D$31),-3)),0) -> 221000 | P61: =IFERROR(IF($E61="PASANTE SENA",0,ROUNDUP((K61*'SUPUESTOS GASTOS'!$D$32),-3)),0) -> 111000 | Q61: =IF($C61="E",0,IF($E61="PASANTE SENA",0,IF(K61>=('SUPUESTOS GASTOS'!$D$14*2),0,ROUNDUP('SUPUESTOS GASTOS'!$D$15,-3)))) -> 0 | R61: =IFERROR(IF($E61="PASANTE SENA",0,ROUNDUP((K61*'SUPUESTOS GASTOS'!$D$33),-3)),0) -> 166000 | S61: =ROUNDUP((K61/'SUPUESTOS GASTOS'!$D$13)*H61,-3) -> 65961000 | T61: =IFERROR(IF($E61="PASANTE SENA",ROUNDUP((S61*'SUPUESTOS GASTOS'!$D$20),-3),ROUNDUP((S61*'SUPUESTOS GASTOS'!$D$19),-3)),0) -> 5607000 | U61: =IFERROR(IF($E61="PASANTE SENA",0,ROUNDUP((S61*'SUPUESTOS GASTOS'!$D$18),-3)),0) -> 7916000 | V61: =IFERROR(ROUNDUP(S61*SUMIF('SUPUESTOS GASTOS'!$B$24:$B$28,'Anexo 5 Planta y Equipo de trab'!$B61,'SUPUESTOS GASTOS'!$D$24:$D$28),-3),0) -> 1607000 | W61: =IFERROR(IF($E61="PASANTE SENA",0,ROUNDUP(((S61+AD61)*'SUPUESTOS GASTOS'!$D$31),-3)),0) -> 2749000 | X61: =IFERROR(IF($E61="PASANTE SENA",0,ROUNDUP(((S61+AD61)*'SUPUESTOS GASTOS'!$D$32),-3)),0) -> 1375000 | Y61: =IF($C61="E",0,IF($E61="PASANTE SENA",0,IF(K61>=('SUPUESTOS GASTOS'!$D$14*2),0,ROUNDUP(('SUPUESTOS GASTOS'!$D$15/'SUPUESTOS GASTOS'!$D$13)*$H61,-3)))) -> 0 | Z61: =IFERROR(IF($E61="PASANTE SENA",0,ROUNDUP(((S61+AD61)*'SUPUESTOS GASTOS'!$D$33),-3)),0) -> 2062000 | AA61: =IF($E61="PASANTE SENA",0,ROUNDUP(((K61+Q61)*H61)/'SUPUESTOS GASTOS'!$D$12,-3)) -> 5497000 | AB61: =IF($E61="PASANTE SENA",0,ROUNDUP((((AA61)/'SUPUESTOS GASTOS'!$D$12)*H61)*'SUPUESTOS GASTOS'!$D$21,-3)) -> 658000 | AC61: =IF($E61="PASANTE SENA",0,ROUNDUP(((K61+Q61)*H61)/'SUPUESTOS GASTOS'!$D$12,-3)) -> 5497000 | AD61: =IF($E61="PASANTE SENA",0,ROUNDUP((K61*H61)/('SUPUESTOS GASTOS'!$D$12*2),-3)) -> 2749000 | AF61: 101678000
A62: 3 | B62: 2 | C62: N | E62: COORDINADOR ITPA | F62: 2025-01-07 | G62: 2025-12-31 | H62: =DAYS360(F62,G62) -> 354 | I62: =IF(C62="C",'SUPUESTOS GASTOS'!$D$6*SUMIF('SUPUESTOS GASTOS'!$B$38:$B$47,'Anexo 5 Planta y Equipo de trab'!$A62,'SUPUESTOS GASTOS'!$D$38:$D$47),IF($C62="N",0,IF(C62="E",'SUPUESTOS GASTOS'!$D$6*SUMIF('SUPUESTOS GASTOS'!$B$38:$B$47,'Anexo 5 Planta y Equipo de trab'!$A62,'SUPUESTOS GASTOS'!$D$38:$D$47),""))) -> 0 | J62: =+'SUPUESTOS GASTOS'!$D$10 -> 0.06 | K62: =IF($C62="C",ROUNDUP((I62*J62)+I62,-3),IF($C62="N",ROUNDUP(('SUPUESTOS GASTOS'!$D$6*SUMIF('SUPUESTOS GASTOS'!$B$38:$B$47,'Anexo 5 Planta y Equipo de trab'!$A62,'SUPUESTOS GASTOS'!$D$38:$D$47)*$J62)+'SUPUESTOS GASTOS'!$D$6*SUMIF('SUPUESTOS GASTOS'!$B$38:$B$47,'Anexo 5 Planta y Equipo de trab'!$A62,'SUPUESTOS GASTOS'!$D$38:$D$47),-3),IF($C62="E",0))) -> 5512000 | L62: =IFERROR(IF($E62="PASANTE SENA",ROUNDUP((K62*'SUPUESTOS GASTOS'!$D$20),-3),ROUNDUP((K62*'SUPUESTOS GASTOS'!$D$19),-3)),0) -> 469000 | M62: =IFERROR(IF($E62="PASANTE SENA",0,ROUNDUP((K62*'SUPUESTOS GASTOS'!$D$18),-3)),0) -> 662000 | N62: =IFERROR(ROUNDUP(K62*SUMIF('SUPUESTOS GASTOS'!$B$24:$B$28,'Anexo 5 Planta y Equipo de trab'!$B62,'SUPUESTOS GASTOS'!$D$24:$D$28),-3),0) -> 135000 | O62: =IFERROR(IF($E62="PASANTE SENA",0,ROUNDUP((K62*'SUPUESTOS GASTOS'!$D$31),-3)),0) -> 221000 | P62: =IFERROR(IF($E62="PASANTE SENA",0,ROUNDUP((K62*'SUPUESTOS GASTOS'!$D$32),-3)),0) -> 111000 | Q62: =IF($C62="E",0,IF($E62="PASANTE SENA",0,IF(K62>=('SUPUESTOS GASTOS'!$D$14*2),0,ROUNDUP('SUPUESTOS GASTOS'!$D$15,-3)))) -> 0 | R62: =IFERROR(IF($E62="PASANTE SENA",0,ROUNDUP((K62*'SUPUESTOS GASTOS'!$D$33),-3)),0) -> 166000 | S62: =ROUNDUP((K62/'SUPUESTOS GASTOS'!$D$13)*H62,-3) -> 65042000 | T62: =IFERROR(IF($E62="PASANTE SENA",ROUNDUP((S62*'SUPUESTOS GASTOS'!$D$20),-3),ROUNDUP((S62*'SUPUESTOS GASTOS'!$D$19),-3)),0) -> 5529000 | U62: =IFERROR(IF($E62="PASANTE SENA",0,ROUNDUP((S62*'SUPUESTOS GASTOS'!$D$18),-3)),0) -> 7806000 | V62: =IFERROR(ROUNDUP(S62*SUMIF('SUPUESTOS GASTOS'!$B$24:$B$28,'Anexo 5 Planta y Equipo de trab'!$B62,'SUPUESTOS GASTOS'!$D$24:$D$28),-3),0) -> 1585000 | W62: =IFERROR(IF($E62="PASANTE SENA",0,ROUNDUP(((S62+AD62)*'SUPUESTOS GASTOS'!$D$31),-3)),0) -> 2711000 | X62: =IFERROR(IF($E62="PASANTE SENA",0,ROUNDUP(((S62+AD62)*'SUPUESTOS GASTOS'!$D$32),-3)),0) -> 1356000 | Y62: =IF($C62="E",0,IF($E62="PASANTE SENA",0,IF(K62>=('SUPUESTOS GASTOS'!$D$14*2),0,ROUNDUP(('SUPUESTOS GASTOS'!$D$15/'SUPUESTOS GASTOS'!$D$13)*$H62,-3)))) -> 0 | Z62: =IFERROR(IF($E62="PASANTE SENA",0,ROUNDUP(((S62+AD62)*'SUPUESTOS GASTOS'!$D$33),-3)),0) -> 2033000 | AA62: =IF($E62="PASANTE SENA",0,ROUNDUP(((K62+Q62)*H62)/'SUPUESTOS GASTOS'!$D$12,-3)) -> 5421000 | AB62: =IF($E62="PASANTE SENA",0,ROUNDUP((((AA62)/'SUPUESTOS GASTOS'!$D$12)*H62)*'SUPUESTOS GASTOS'!$D$21,-3)) -> 640000 | AC62: =IF($E62="PASANTE SENA",0,ROUNDUP(((K62+Q62)*H62)/'SUPUESTOS GASTOS'!$D$12,-3)) -> 5421000 | AD62: =IF($E62="PASANTE SENA",0,ROUNDUP((K62*H62)/('SUPUESTOS GASTOS'!$D$12*2),-3)) -> 2711000 | AF62: 100255000
A63: 4 | B63: 3 | C63: C | E63: SUPERVISOR ZONAL CUNDINAMARCA | F63: 2025-01-13 | G63: 2025-12-31 | H63: 348 | I63: =IF(C63="C",'SUPUESTOS GASTOS'!$D$6*SUMIF('SUPUESTOS GASTOS'!$B$38:$B$47,'Anexo 5 Planta y Equipo de trab'!$A63,'SUPUESTOS GASTOS'!$D$38:$D$47),IF($C63="N",0,IF(C63="E",'SUPUESTOS GASTOS'!$D$6*SUMIF('SUPUESTOS GASTOS'!$B$38:$B$47,'Anexo 5 Planta y Equipo de trab'!$A63,'SUPUESTOS GASTOS'!$D$38:$D$47),""))) -> 3900000 | J63: =+'SUPUESTOS GASTOS'!$D$10 -> 0.06 | K63: =IF($C63="C",ROUNDUP((I63*J63)+I63,-3),IF($C63="N",ROUNDUP(('SUPUESTOS GASTOS'!$D$6*SUMIF('SUPUESTOS GASTOS'!$B$38:$B$47,'Anexo 5 Planta y Equipo de trab'!$A63,'SUPUESTOS GASTOS'!$D$38:$D$47)*$J63)+'SUPUESTOS GASTOS'!$D$6*SUMIF('SUPUESTOS GASTOS'!$B$38:$B$47,'Anexo 5 Planta y Equipo de trab'!$A63,'SUPUESTOS GASTOS'!$D$38:$D$47),-3),IF($C63="E",0))) -> 4134000 | L63: =IFERROR(IF($E63="PASANTE SENA",ROUNDUP((K63*'SUPUESTOS GASTOS'!$D$20),-3),ROUNDUP((K63*'SUPUESTOS GASTOS'!$D$19),-3)),0) -> 352000 | M63: =IFERROR(IF($E63="PASANTE SENA",0,ROUNDUP((K63*'SUPUESTOS GASTOS'!$D$18),-3)),0) -> 497000 | N63: =IFERROR(ROUNDUP(K63*SUMIF('SUPUESTOS GASTOS'!$B$24:$B$28,'Anexo 5 Planta y Equipo de trab'!$B63,'SUPUESTOS GASTOS'!$D$24:$D$28),-3),0) -> 180000 | O63: =IFERROR(IF($E63="PASANTE SENA",0,ROUNDUP((K63*'SUPUESTOS GASTOS'!$D$31),-3)),0) -> 166000 | P63: =IFERROR(IF($E63="PASANTE SENA",0,ROUNDUP((K63*'SUPUESTOS GASTOS'!$D$32),-3)),0) -> 83000 | Q63: =IF($C63="E",0,IF($E63="PASANTE SENA",0,IF(K63>=('SUPUESTOS GASTOS'!$D$14*2),0,ROUNDUP('SUPUESTOS GASTOS'!$D$15,-3)))) -> 0 | R63: =IFERROR(IF($E63="PASANTE SENA",0,ROUNDUP((K63*'SUPUESTOS GASTOS'!$D$33),-3)),0) -> 125000 | S63: =ROUNDUP((K63/'SUPUESTOS GASTOS'!$D$13)*H63,-3) -> 47955000 | T63: =IFERROR(IF($E63="PASANTE SENA",ROUNDUP((S63*'SUPUESTOS GASTOS'!$D$20),-3),ROUNDUP((S63*'SUPUESTOS GASTOS'!$D$19),-3)),0) -> 4077000 | U63: =IFERROR(IF($E63="PASANTE SENA",0,ROUNDUP((S63*'SUPUESTOS GASTOS'!$D$18),-3)),0) -> 5755000 | V63: =IFERROR(ROUNDUP(S63*SUMIF('SUPUESTOS GASTOS'!$B$24:$B$28,'Anexo 5 Planta y Equipo de trab'!$B63,'SUPUESTOS GASTOS'!$D$24:$D$28),-3),0) -> 2087000 | W63: =IFERROR(IF($E63="PASANTE SENA",0,ROUNDUP(((S63+AD63)*'SUPUESTOS GASTOS'!$D$31),-3)),0) -> 1999000 | X63: =IFERROR(IF($E63="PASANTE SENA",0,ROUNDUP(((S63+AD63)*'SUPUESTOS GASTOS'!$D$32),-3)),0) -> 1000000 | Y63: =IF($C63="E",0,IF($E63="PASANTE SENA",0,IF(K63>=('SUPUESTOS GASTOS'!$D$14*2),0,ROUNDUP(('SUPUESTOS GASTOS'!$D$15/'SUPUESTOS GASTOS'!$D$13)*$H63,-3)))) -> 0 | Z63: =IFERROR(IF($E63="PASANTE SENA",0,ROUNDUP(((S63+AD63)*'SUPUESTOS GASTOS'!$D$33),-3)),0) -> 1499000 | AA63: =IF($E63="PASANTE SENA",0,ROUNDUP(((K63+Q63)*H63)/'SUPUESTOS GASTOS'!$D$12,-3)) -> 3997000 | AB63: =IF($E63="PASANTE SENA",0,ROUNDUP((((AA63)/'SUPUESTOS GASTOS'!$D$12)*H63)*'SUPUESTOS GASTOS'!$D$21,-3)) -> 464000 | AC63: =IF($E63="PASANTE SENA",0,ROUNDUP(((K63+Q63)*H63)/'SUPUESTOS GASTOS'!$D$12,-3)) -> 3997000 | AD63: =IF($E63="PASANTE SENA",0,ROUNDUP((K63*H63)/('SUPUESTOS GASTOS'!$D$12*2),-3)) -> 1999000 | AF63: 74829000
A64: 4 | B64: 3 | C64: C | E64: SUPERVISOR ZONAL BOYACÁ | F64: 2025-01-13 | G64: 2025-12-31 | H64: 348 | I64: =IF(C64="C",'SUPUESTOS GASTOS'!$D$6*SUMIF('SUPUESTOS GASTOS'!$B$38:$B$47,'Anexo 5 Planta y Equipo de trab'!$A64,'SUPUESTOS GASTOS'!$D$38:$D$47),IF($C64="N",0,IF(C64="E",'SUPUESTOS GASTOS'!$D$6*SUMIF('SUPUESTOS GASTOS'!$B$38:$B$47,'Anexo 5 Planta y Equipo de trab'!$A64,'SUPUESTOS GASTOS'!$D$38:$D$47),""))) -> 3900000 | J64: =+'SUPUESTOS GASTOS'!$D$10 -> 0.06 | K64: =IF($C64="C",ROUNDUP((I64*J64)+I64,-3),IF($C64="N",ROUNDUP(('SUPUESTOS GASTOS'!$D$6*SUMIF('SUPUESTOS GASTOS'!$B$38:$B$47,'Anexo 5 Planta y Equipo de trab'!$A64,'SUPUESTOS GASTOS'!$D$38:$D$47)*$J64)+'SUPUESTOS GASTOS'!$D$6*SUMIF('SUPUESTOS GASTOS'!$B$38:$B$47,'Anexo 5 Planta y Equipo de trab'!$A64,'SUPUESTOS GASTOS'!$D$38:$D$47),-3),IF($C64="E",0))) -> 4134000 | L64: =IFERROR(IF($E64="PASANTE SENA",ROUNDUP((K64*'SUPUESTOS GASTOS'!$D$20),-3),ROUNDUP((K64*'SUPUESTOS GASTOS'!$D$19),-3)),0) -> 352000 | M64: =IFERROR(IF($E64="PASANTE SENA",0,ROUNDUP((K64*'SUPUESTOS GASTOS'!$D$18),-3)),0) -> 497000 | N64: =IFERROR(ROUNDUP(K64*SUMIF('SUPUESTOS GASTOS'!$B$24:$B$28,'Anexo 5 Planta y Equipo de trab'!$B64,'SUPUESTOS GASTOS'!$D$24:$D$28),-3),0) -> 180000 | O64: =IFERROR(IF($E64="PASANTE SENA",0,ROUNDUP((K64*'SUPUESTOS GASTOS'!$D$31),-3)),0) -> 166000 | P64: =IFERROR(IF($E64="PASANTE SENA",0,ROUNDUP((K64*'SUPUESTOS GASTOS'!$D$32),-3)),0) -> 83000 | Q64: =IF($C64="E",0,IF($E64="PASANTE SENA",0,IF(K64>=('SUPUESTOS GASTOS'!$D$14*2),0,ROUNDUP('SUPUESTOS GASTOS'!$D$15,-3)))) -> 0 | R64: =IFERROR(IF($E64="PASANTE SENA",0,ROUNDUP((K64*'SUPUESTOS GASTOS'!$D$33),-3)),0) -> 125000 | S64: =ROUNDUP((K64/'SUPUESTOS GASTOS'!$D$13)*H64,-3) -> 47955000 | T64: =IFERROR(IF($E64="PASANTE SENA",ROUNDUP((S64*'SUPUESTOS GASTOS'!$D$20),-3),ROUNDUP((S64*'SUPUESTOS GASTOS'!$D$19),-3)),0) -> 4077000 | U64: =IFERROR(IF($E64="PASANTE SENA",0,ROUNDUP((S64*'SUPUESTOS GASTOS'!$D$18),-3)),0) -> 5755000 | V64: =IFERROR(ROUNDUP(S64*SUMIF('SUPUESTOS GASTOS'!$B$24:$B$28,'Anexo 5 Planta y Equipo de trab'!$B64,'SUPUESTOS GASTOS'!$D$24:$D$28),-3),0) -> 2087000 | W64: =IFERROR(IF($E64="PASANTE SENA",0,ROUNDUP(((S64+AD64)*'SUPUESTOS GASTOS'!$D$31),-3)),0) -> 1999000 | X64: =IFERROR(IF($E64="PASANTE SENA",0,ROUNDUP(((S64+AD64)*'SUPUESTOS GASTOS'!$D$32),-3)),0) -> 1000000 | Y64: =IF($C64="E",0,IF($E64="PASANTE SENA",0,IF(K64>=('SUPUESTOS GASTOS'!$D$14*2),0,ROUNDUP(('SUPUESTOS GASTOS'!$D$15/'SUPUESTOS GASTOS'!$D$13)*$H64,-3)))) -> 0 | Z64: =IFERROR(IF($E64="PASANTE SENA",0,ROUNDUP(((S64+AD64)*'SUPUESTOS GASTOS'!$D$33),-3)),0) -> 1499000 | AA64: =IF($E64="PASANTE SENA",0,ROUNDUP(((K64+Q64)*H64)/'SUPUESTOS GASTOS'!$D$12,-3)) -> 3997000 | AB64: =IF($E64="PASANTE SENA",0,ROUNDUP((((AA64)/'SUPUESTOS GASTOS'!$D$12)*H64)*'SUPUESTOS GASTOS'!$D$21,-3)) -> 464000 | AC64: =IF($E64="PASANTE SENA",0,ROUNDUP(((K64+Q64)*H64)/'SUPUESTOS GASTOS'!$D$12,-3)) -> 3997000 | AD64: =IF($E64="PASANTE SENA",0,ROUNDUP((K64*H64)/('SUPUESTOS GASTOS'!$D$12*2),-3)) -> 1999000 | AF64: 74829000
A65: 4 | B65: 3 | C65: C | E65: SUPERVISOR ZONAL NARIÑO | F65: 2025-01-13 | G65: 2025-12-31 | H65: 348 | I65: =IF(C65="C",'SUPUESTOS GASTOS'!$D$6*SUMIF('SUPUESTOS GASTOS'!$B$38:$B$47,'Anexo 5 Planta y Equipo de trab'!$A65,'SUPUESTOS GASTOS'!$D$38:$D$47),IF($C65="N",0,IF(C65="E",'SUPUESTOS GASTOS'!$D$6*SUMIF('SUPUESTOS GASTOS'!$B$38:$B$47,'Anexo 5 Planta y Equipo de trab'!$A65,'SUPUESTOS GASTOS'!$D$38:$D$47),""))) -> 3900000 | J65: =+'SUPUESTOS GASTOS'!$D$10 -> 0.06 | K65: =IF($C65="C",ROUNDUP((I65*J65)+I65,-3),IF($C65="N",ROUNDUP(('SUPUESTOS GASTOS'!$D$6*SUMIF('SUPUESTOS GASTOS'!$B$38:$B$47,'Anexo 5 Planta y Equipo de trab'!$A65,'SUPUESTOS GASTOS'!$D$38:$D$47)*$J65)+'SUPUESTOS GASTOS'!$D$6*SUMIF('SUPUESTOS GASTOS'!$B$38:$B$47,'Anexo 5 Planta y Equipo de trab'!$A65,'SUPUESTOS GASTOS'!$D$38:$D$47),-3),IF($C65="E",0))) -> 4134000 | L65: =IFERROR(IF($E65="PASANTE SENA",ROUNDUP((K65*'SUPUESTOS GASTOS'!$D$20),-3),ROUNDUP((K65*'SUPUESTOS GASTOS'!$D$19),-3)),0) -> 352000 | M65: =IFERROR(IF($E65="PASANTE SENA",0,ROUNDUP((K65*'SUPUESTOS GASTOS'!$D$18),-3)),0) -> 497000 | N65: =IFERROR(ROUNDUP(K65*SUMIF('SUPUESTOS GASTOS'!$B$24:$B$28,'Anexo 5 Planta y Equipo de trab'!$B65,'SUPUESTOS GASTOS'!$D$24:$D$28),-3),0) -> 180000 | O65: =IFERROR(IF($E65="PASANTE SENA",0,ROUNDUP((K65*'SUPUESTOS GASTOS'!$D$31),-3)),0) -> 166000 | P65: =IFERROR(IF($E65="PASANTE SENA",0,ROUNDUP((K65*'SUPUESTOS GASTOS'!$D$32),-3)),0) -> 83000 | Q65: =IF($C65="E",0,IF($E65="PASANTE SENA",0,IF(K65>=('SUPUESTOS GASTOS'!$D$14*2),0,ROUNDUP('SUPUESTOS GASTOS'!$D$15,-3)))) -> 0 | R65: =IFERROR(IF($E65="PASANTE SENA",0,ROUNDUP((K65*'SUPUESTOS GASTOS'!$D$33),-3)),0) -> 125000 | S65: =ROUNDUP((K65/'SUPUESTOS GASTOS'!$D$13)*H65,-3) -> 47955000 | T65: =IFERROR(IF($E65="PASANTE SENA",ROUNDUP((S65*'SUPUESTOS GASTOS'!$D$20),-3),ROUNDUP((S65*'SUPUESTOS GASTOS'!$D$19),-3)),0) -> 4077000 | U65: =IFERROR(IF($E65="PASANTE SENA",0,ROUNDUP((S65*'SUPUESTOS GASTOS'!$D$18),-3)),0) -> 5755000 | V65: =IFERROR(ROUNDUP(S65*SUMIF('SUPUESTOS GASTOS'!$B$24:$B$28,'Anexo 5 Planta y Equipo de trab'!$B65,'SUPUESTOS GASTOS'!$D$24:$D$28),-3),0) -> 2087000 | W65: =IFERROR(IF($E65="PASANTE SENA",0,ROUNDUP(((S65+AD65)*'SUPUESTOS GASTOS'!$D$31),-3)),0) -> 1999000 | X65: =IFERROR(IF($E65="PASANTE SENA",0,ROUNDUP(((S65+AD65)*'SUPUESTOS GASTOS'!$D$32),-3)),0) -> 1000000 | Y65: =IF($C65="E",0,IF($E65="PASANTE SENA",0,IF(K65>=('SUPUESTOS GASTOS'!$D$14*2),0,ROUNDUP(('SUPUESTOS GASTOS'!$D$15/'SUPUESTOS GASTOS'!$D$13)*$H65,-3)))) -> 0 | Z65: =IFERROR(IF($E65="PASANTE SENA",0,ROUNDUP(((S65+AD65)*'SUPUESTOS GASTOS'!$D$33),-3)),0) -> 1499000 | AA65: =IF($E65="PASANTE SENA",0,ROUNDUP(((K65+Q65)*H65)/'SUPUESTOS GASTOS'!$D$12,-3)) -> 3997000 | AB65: =IF($E65="PASANTE SENA",0,ROUNDUP((((AA65)/'SUPUESTOS GASTOS'!$D$12)*H65)*'SUPUESTOS GASTOS'!$D$21,-3)) -> 464000 | AC65: =IF($E65="PASANTE SENA",0,ROUNDUP(((K65+Q65)*H65)/'SUPUESTOS GASTOS'!$D$12,-3)) -> 3997000 | AD65: =IF($E65="PASANTE SENA",0,ROUNDUP((K65*H65)/('SUPUESTOS GASTOS'!$D$12*2),-3)) -> 1999000 | AF65: 74829000
A66: 5 | B66: 3 | C66: C | E66: EXTENSIONISTAS 1 | F66: 2025-01-13 | G66: 2025-12-31 | H66: 348 | I66: =IF(C66="C",'SUPUESTOS GASTOS'!$D$6*SUMIF('SUPUESTOS GASTOS'!$B$38:$B$47,'Anexo 5 Planta y Equipo de trab'!$A66,'SUPUESTOS GASTOS'!$D$38:$D$47),IF($C66="N",0,IF(C66="E",'SUPUESTOS GASTOS'!$D$6*SUMIF('SUPUESTOS GASTOS'!$B$38:$B$47,'Anexo 5 Planta y Equipo de trab'!$A66,'SUPUESTOS GASTOS'!$D$38:$D$47),""))) -> 3380000 | J66: =+'SUPUESTOS GASTOS'!$D$10 -> 0.06 | K66: =IF($C66="C",ROUNDUP((I66*J66)+I66,-3),IF($C66="N",ROUNDUP(('SUPUESTOS GASTOS'!$D$6*SUMIF('SUPUESTOS GASTOS'!$B$38:$B$47,'Anexo 5 Planta y Equipo de trab'!$A66,'SUPUESTOS GASTOS'!$D$38:$D$47)*$J66)+'SUPUESTOS GASTOS'!$D$6*SUMIF('SUPUESTOS GASTOS'!$B$38:$B$47,'Anexo 5 Planta y Equipo de trab'!$A66,'SUPUESTOS GASTOS'!$D$38:$D$47),-3),IF($C66="E",0))) -> 3583000 | L66: =IFERROR(IF($E66="PASANTE SENA",ROUNDUP((K66*'SUPUESTOS GASTOS'!$D$20),-3),ROUNDUP((K66*'SUPUESTOS GASTOS'!$D$19),-3)),0) -> 305000 | M66: =IFERROR(IF($E66="PASANTE SENA",0,ROUNDUP((K66*'SUPUESTOS GASTOS'!$D$18),-3)),0) -> 430000 | N66: =IFERROR(ROUNDUP(K66*SUMIF('SUPUESTOS GASTOS'!$B$24:$B$28,'Anexo 5 Planta y Equipo de trab'!$B66,'SUPUESTOS GASTOS'!$D$24:$D$28),-3),0) -> 156000 | O66: =IFERROR(IF($E66="PASANTE SENA",0,ROUNDUP((K66*'SUPUESTOS GASTOS'!$D$31),-3)),0) -> 144000 | P66: =IFERROR(IF($E66="PASANTE SENA",0,ROUNDUP((K66*'SUPUESTOS GASTOS'!$D$32),-3)),0) -> 72000 | Q66: =IF($C66="E",0,IF($E66="PASANTE SENA",0,IF(K66>=('SUPUESTOS GASTOS'!$D$14*2),0,ROUNDUP('SUPUESTOS GASTOS'!$D$15,-3)))) -> 0 | R66: =IFERROR(IF($E66="PASANTE SENA",0,ROUNDUP((K66*'SUPUESTOS GASTOS'!$D$33),-3)),0) -> 108000 | S66: =ROUNDUP((K66/'SUPUESTOS GASTOS'!$D$13)*H66,-3) -> 41563000 | T66: =IFERROR(IF($E66="PASANTE SENA",ROUNDUP((S66*'SUPUESTOS GASTOS'!$D$20),-3),ROUNDUP((S66*'SUPUESTOS GASTOS'!$D$19),-3)),0) -> 3533000 | U66: =IFERROR(IF($E66="PASANTE SENA",0,ROUNDUP((S66*'SUPUESTOS GASTOS'!$D$18),-3)),0) -> 4988000 | V66: =IFERROR(ROUNDUP(S66*SUMIF('SUPUESTOS GASTOS'!$B$24:$B$28,'Anexo 5 Planta y Equipo de trab'!$B66,'SUPUESTOS GASTOS'!$D$24:$D$28),-3),0) -> 1808000 | W66: =IFERROR(IF($E66="PASANTE SENA",0,ROUNDUP(((S66+AD66)*'SUPUESTOS GASTOS'!$D$31),-3)),0) -> 1732000 | X66: =IFERROR(IF($E66="PASANTE SENA",0,ROUNDUP(((S66+AD66)*'SUPUESTOS GASTOS'!$D$32),-3)),0) -> 866000 | Y66: =IF($C66="E",0,IF($E66="PASANTE SENA",0,IF(K66>=('SUPUESTOS GASTOS'!$D$14*2),0,ROUNDUP(('SUPUESTOS GASTOS'!$D$15/'SUPUESTOS GASTOS'!$D$13)*$H66,-3)))) -> 0 | Z66: =IFERROR(IF($E66="PASANTE SENA",0,ROUNDUP(((S66+AD66)*'SUPUESTOS GASTOS'!$D$33),-3)),0) -> 1299000 | AA66: =IF($E66="PASANTE SENA",0,ROUNDUP(((K66+Q66)*H66)/'SUPUESTOS GASTOS'!$D$12,-3)) -> 3464000 | AB66: =IF($E66="PASANTE SENA",0,ROUNDUP((((AA66)/'SUPUESTOS GASTOS'!$D$12)*H66)*'SUPUESTOS GASTOS'!$D$21,-3)) -> 402000 | AC66: =IF($E66="PASANTE SENA",0,ROUNDUP(((K66+Q66)*H66)/'SUPUESTOS GASTOS'!$D$12,-3)) -> 3464000 | AD66: =IF($E66="PASANTE SENA",0,ROUNDUP((K66*H66)/('SUPUESTOS GASTOS'!$D$12*2),-3)) -> 1732000 | AF66: 64851000
A67: 5 | B67: 3 | C67: C | E67: EXTENSIONISTAS 2 | F67: 2025-01-13 | G67: 2025-12-31 | H67: 348 | I67: =IF(C67="C",'SUPUESTOS GASTOS'!$D$6*SUMIF('SUPUESTOS GASTOS'!$B$38:$B$47,'Anexo 5 Planta y Equipo de trab'!$A67,'SUPUESTOS GASTOS'!$D$38:$D$47),IF($C67="N",0,IF(C67="E",'SUPUESTOS GASTOS'!$D$6*SUMIF('SUPUESTOS GASTOS'!$B$38:$B$47,'Anexo 5 Planta y Equipo de trab'!$A67,'SUPUESTOS GASTOS'!$D$38:$D$47),""))) -> 3380000 | J67: =+'SUPUESTOS GASTOS'!$D$10 -> 0.06 | K67: =IF($C67="C",ROUNDUP((I67*J67)+I67,-3),IF($C67="N",ROUNDUP(('SUPUESTOS GASTOS'!$D$6*SUMIF('SUPUESTOS GASTOS'!$B$38:$B$47,'Anexo 5 Planta y Equipo de trab'!$A67,'SUPUESTOS GASTOS'!$D$38:$D$47)*$J67)+'SUPUESTOS GASTOS'!$D$6*SUMIF('SUPUESTOS GASTOS'!$B$38:$B$47,'Anexo 5 Planta y Equipo de trab'!$A67,'SUPUESTOS GASTOS'!$D$38:$D$47),-3),IF($C67="E",0))) -> 3583000 | L67: =IFERROR(IF($E67="PASANTE SENA",ROUNDUP((K67*'SUPUESTOS GASTOS'!$D$20),-3),ROUNDUP((K67*'SUPUESTOS GASTOS'!$D$19),-3)),0) -> 305000 | M67: =IFERROR(IF($E67="PASANTE SENA",0,ROUNDUP((K67*'SUPUESTOS GASTOS'!$D$18),-3)),0) -> 430000 | N67: =IFERROR(ROUNDUP(K67*SUMIF('SUPUESTOS GASTOS'!$B$24:$B$28,'Anexo 5 Planta y Equipo de trab'!$B67,'SUPUESTOS GASTOS'!$D$24:$D$28),-3),0) -> 156000 | O67: =IFERROR(IF($E67="PASANTE SENA",0,ROUNDUP((K67*'SUPUESTOS GASTOS'!$D$31),-3)),0) -> 144000 | P67: =IFERROR(IF($E67="PASANTE SENA",0,ROUNDUP((K67*'SUPUESTOS GASTOS'!$D$32),-3)),0) -> 72000 | Q67: =IF($C67="E",0,IF($E67="PASANTE SENA",0,IF(K67>=('SUPUESTOS GASTOS'!$D$14*2),0,ROUNDUP('SUPUESTOS GASTOS'!$D$15,-3)))) -> 0 | R67: =IFERROR(IF($E67="PASANTE SENA",0,ROUNDUP((K67*'SUPUESTOS GASTOS'!$D$33),-3)),0) -> 108000 | S67: =ROUNDUP((K67/'SUPUESTOS GASTOS'!$D$13)*H67,-3) -> 41563000 | T67: =IFERROR(IF($E67="PASANTE SENA",ROUNDUP((S67*'SUPUESTOS GASTOS'!$D$20),-3),ROUNDUP((S67*'SUPUESTOS GASTOS'!$D$19),-3)),0) -> 3533000 | U67: =IFERROR(IF($E67="PASANTE SENA",0,ROUNDUP((S67*'SUPUESTOS GASTOS'!$D$18),-3)),0) -> 4988000 | V67: =IFERROR(ROUNDUP(S67*SUMIF('SUPUESTOS GASTOS'!$B$24:$B$28,'Anexo 5 Planta y Equipo de trab'!$B67,'SUPUESTOS GASTOS'!$D$24:$D$28),-3),0) -> 1808000 | W67: =IFERROR(IF($E67="PASANTE SENA",0,ROUNDUP(((S67+AD67)*'SUPUESTOS GASTOS'!$D$31),-3)),0) -> 1732000 | X67: =IFERROR(IF($E67="PASANTE SENA",0,ROUNDUP(((S67+AD67)*'SUPUESTOS GASTOS'!$D$32),-3)),0) -> 866000 | Y67: =IF($C67="E",0,IF($E67="PASANTE SENA",0,IF(K67>=('SUPUESTOS GASTOS'!$D$14*2),0,ROUNDUP(('SUPUESTOS GASTOS'!$D$15/'SUPUESTOS GASTOS'!$D$13)*$H67,-3)))) -> 0 | Z67: =IFERROR(IF($E67="PASANTE SENA",0,ROUNDUP(((S67+AD67)*'SUPUESTOS GASTOS'!$D$33),-3)),0) -> 1299000 | AA67: =IF($E67="PASANTE SENA",0,ROUNDUP(((K67+Q67)*H67)/'SUPUESTOS GASTOS'!$D$12,-3)) -> 3464000 | AB67: =IF($E67="PASANTE SENA",0,ROUNDUP((((AA67)/'SUPUESTOS GASTOS'!$D$12)*H67)*'SUPUESTOS GASTOS'!$D$21,-3)) -> 402000 | AC67: =IF($E67="PASANTE SENA",0,ROUNDUP(((K67+Q67)*H67)/'SUPUESTOS GASTOS'!$D$12,-3)) -> 3464000 | AD67: =IF($E67="PASANTE SENA",0,ROUNDUP((K67*H67)/('SUPUESTOS GASTOS'!$D$12*2),-3)) -> 1732000 | AF67: 64851000
A68: 5 | B68: 3 | C68: C | E68: EXTENSIONISTAS 3 | F68: 2025-01-13 | G68: 2025-12-31 | H68: 348 | I68: =IF(C68="C",'SUPUESTOS GASTOS'!$D$6*SUMIF('SUPUESTOS GASTOS'!$B$38:$B$47,'Anexo 5 Planta y Equipo de trab'!$A68,'SUPUESTOS GASTOS'!$D$38:$D$47),IF($C68="N",0,IF(C68="E",'SUPUESTOS GASTOS'!$D$6*SUMIF('SUPUESTOS GASTOS'!$B$38:$B$47,'Anexo 5 Planta y Equipo de trab'!$A68,'SUPUESTOS GASTOS'!$D$38:$D$47),""))) -> 3380000 | J68: =+'SUPUESTOS GASTOS'!$D$10 -> 0.06 | K68: =IF($C68="C",ROUNDUP((I68*J68)+I68,-3),IF($C68="N",ROUNDUP(('SUPUESTOS GASTOS'!$D$6*SUMIF('SUPUESTOS GASTOS'!$B$38:$B$47,'Anexo 5 Planta y Equipo de trab'!$A68,'SUPUESTOS GASTOS'!$D$38:$D$47)*$J68)+'SUPUESTOS GASTOS'!$D$6*SUMIF('SUPUESTOS GASTOS'!$B$38:$B$47,'Anexo 5 Planta y Equipo de trab'!$A68,'SUPUESTOS GASTOS'!$D$38:$D$47),-3),IF($C68="E",0))) -> 3583000 | L68: =IFERROR(IF($E68="PASANTE SENA",ROUNDUP((K68*'SUPUESTOS GASTOS'!$D$20),-3),ROUNDUP((K68*'SUPUESTOS GASTOS'!$D$19),-3)),0) -> 305000 | M68: =IFERROR(IF($E68="PASANTE SENA",0,ROUNDUP((K68*'SUPUESTOS GASTOS'!$D$18),-3)),0) -> 430000 | N68: =IFERROR(ROUNDUP(K68*SUMIF('SUPUESTOS GASTOS'!$B$24:$B$28,'Anexo 5 Planta y Equipo de trab'!$B68,'SUPUESTOS GASTOS'!$D$24:$D$28),-3),0) -> 156000 | O68: =IFERROR(IF($E68="PASANTE SENA",0,ROUNDUP((K68*'SUPUESTOS GASTOS'!$D$31),-3)),0) -> 144000 | P68: =IFERROR(IF($E68="PASANTE SENA",0,ROUNDUP((K68*'SUPUESTOS GASTOS'!$D$32),-3)),0) -> 72000 | Q68: =IF($C68="E",0,IF($E68="PASANTE SENA",0,IF(K68>=('SUPUESTOS GASTOS'!$D$14*2),0,ROUNDUP('SUPUESTOS GASTOS'!$D$15,-3)))) -> 0 | R68: =IFERROR(IF($E68="PASANTE SENA",0,ROUNDUP((K68*'SUPUESTOS GASTOS'!$D$33),-3)),0) -> 108000 | S68: =ROUNDUP((K68/'SUPUESTOS GASTOS'!$D$13)*H68,-3) -> 41563000 | T68: =IFERROR(IF($E68="PASANTE SENA",ROUNDUP((S68*'SUPUESTOS GASTOS'!$D$20),-3),ROUNDUP((S68*'SUPUESTOS GASTOS'!$D$19),-3)),0) -> 3533000 | U68: =IFERROR(IF($E68="PASANTE SENA",0,ROUNDUP((S68*'SUPUESTOS GASTOS'!$D$18),-3)),0) -> 4988000 | V68: =IFERROR(ROUNDUP(S68*SUMIF('SUPUESTOS GASTOS'!$B$24:$B$28,'Anexo 5 Planta y Equipo de trab'!$B68,'SUPUESTOS GASTOS'!$D$24:$D$28),-3),0) -> 1808000 | W68: =IFERROR(IF($E68="PASANTE SENA",0,ROUNDUP(((S68+AD68)*'SUPUESTOS GASTOS'!$D$31),-3)),0) -> 1732000 | X68: =IFERROR(IF($E68="PASANTE SENA",0,ROUNDUP(((S68+AD68)*'SUPUESTOS GASTOS'!$D$32),-3)),0) -> 866000 | Y68: =IF($C68="E",0,IF($E68="PASANTE SENA",0,IF(K68>=('SUPUESTOS GASTOS'!$D$14*2),0,ROUNDUP(('SUPUESTOS GASTOS'!$D$15/'SUPUESTOS GASTOS'!$D$13)*$H68,-3)))) -> 0 | Z68: =IFERROR(IF($E68="PASANTE SENA",0,ROUNDUP(((S68+AD68)*'SUPUESTOS GASTOS'!$D$33),-3)),0) -> 1299000 | AA68: =IF($E68="PASANTE SENA",0,ROUNDUP(((K68+Q68)*H68)/'SUPUESTOS GASTOS'!$D$12,-3)) -> 3464000 | AB68: =IF($E68="PASANTE SENA",0,ROUNDUP((((AA68)/'SUPUESTOS GASTOS'!$D$12)*H68)*'SUPUESTOS GASTOS'!$D$21,-3)) -> 402000 | AC68: =IF($E68="PASANTE SENA",0,ROUNDUP(((K68+Q68)*H68)/'SUPUESTOS GASTOS'!$D$12,-3)) -> 3464000 | AD68: =IF($E68="PASANTE SENA",0,ROUNDUP((K68*H68)/('SUPUESTOS GASTOS'!$D$12*2),-3)) -> 1732000 | AF68: 64851000
A69: 5 | B69: 3 | C69: C | E69: EXTENSIONISTAS 4 | F69: 2025-01-13 | G69: 2025-12-31 | H69: 348 | I69: =IF(C69="C",'SUPUESTOS GASTOS'!$D$6*SUMIF('SUPUESTOS GASTOS'!$B$38:$B$47,'Anexo 5 Planta y Equipo de trab'!$A69,'SUPUESTOS GASTOS'!$D$38:$D$47),IF($C69="N",0,IF(C69="E",'SUPUESTOS GASTOS'!$D$6*SUMIF('SUPUESTOS GASTOS'!$B$38:$B$47,'Anexo 5 Planta y Equipo de trab'!$A69,'SUPUESTOS GASTOS'!$D$38:$D$47),""))) -> 3380000 | J69: =+'SUPUESTOS GASTOS'!$D$10 -> 0.06 | K69: =IF($C69="C",ROUNDUP((I69*J69)+I69,-3),IF($C69="N",ROUNDUP(('SUPUESTOS GASTOS'!$D$6*SUMIF('SUPUESTOS GASTOS'!$B$38:$B$47,'Anexo 5 Planta y Equipo de trab'!$A69,'SUPUESTOS GASTOS'!$D$38:$D$47)*$J69)+'SUPUESTOS GASTOS'!$D$6*SUMIF('SUPUESTOS GASTOS'!$B$38:$B$47,'Anexo 5 Planta y Equipo de trab'!$A69,'SUPUESTOS GASTOS'!$D$38:$D$47),-3),IF($C69="E",0))) -> 3583000 | L69: =IFERROR(IF($E69="PASANTE SENA",ROUNDUP((K69*'SUPUESTOS GASTOS'!$D$20),-3),ROUNDUP((K69*'SUPUESTOS GASTOS'!$D$19),-3)),0) -> 305000 | M69: =IFERROR(IF($E69="PASANTE SENA",0,ROUNDUP((K69*'SUPUESTOS GASTOS'!$D$18),-3)),0) -> 430000 | N69: =IFERROR(ROUNDUP(K69*SUMIF('SUPUESTOS GASTOS'!$B$24:$B$28,'Anexo 5 Planta y Equipo de trab'!$B69,'SUPUESTOS GASTOS'!$D$24:$D$28),-3),0) -> 156000 | O69: =IFERROR(IF($E69="PASANTE SENA",0,ROUNDUP((K69*'SUPUESTOS GASTOS'!$D$31),-3)),0) -> 144000 | P69: =IFERROR(IF($E69="PASANTE SENA",0,ROUNDUP((K69*'SUPUESTOS GASTOS'!$D$32),-3)),0) -> 72000 | Q69: =IF($C69="E",0,IF($E69="PASANTE SENA",0,IF(K69>=('SUPUESTOS GASTOS'!$D$14*2),0,ROUNDUP('SUPUESTOS GASTOS'!$D$15,-3)))) -> 0 | R69: =IFERROR(IF($E69="PASANTE SENA",0,ROUNDUP((K69*'SUPUESTOS GASTOS'!$D$33),-3)),0) -> 108000 | S69: =ROUNDUP((K69/'SUPUESTOS GASTOS'!$D$13)*H69,-3) -> 41563000 | T69: =IFERROR(IF($E69="PASANTE SENA",ROUNDUP((S69*'SUPUESTOS GASTOS'!$D$20),-3),ROUNDUP((S69*'SUPUESTOS GASTOS'!$D$19),-3)),0) -> 3533000 | U69: =IFERROR(IF($E69="PASANTE SENA",0,ROUNDUP((S69*'SUPUESTOS GASTOS'!$D$18),-3)),0) -> 4988000 | V69: =IFERROR(ROUNDUP(S69*SUMIF('SUPUESTOS GASTOS'!$B$24:$B$28,'Anexo 5 Planta y Equipo de trab'!$B69,'SUPUESTOS GASTOS'!$D$24:$D$28),-3),0) -> 1808000 | W69: =IFERROR(IF($E69="PASANTE SENA",0,ROUNDUP(((S69+AD69)*'SUPUESTOS GASTOS'!$D$31),-3)),0) -> 1732000 | X69: =IFERROR(IF($E69="PASANTE SENA",0,ROUNDUP(((S69+AD69)*'SUPUESTOS GASTOS'!$D$32),-3)),0) -> 866000 | Y69: =IF($C69="E",0,IF($E69="PASANTE SENA",0,IF(K69>=('SUPUESTOS GASTOS'!$D$14*2),0,ROUNDUP(('SUPUESTOS GASTOS'!$D$15/'SUPUESTOS GASTOS'!$D$13)*$H69,-3)))) -> 0 | Z69: =IFERROR(IF($E69="PASANTE SENA",0,ROUNDUP(((S69+AD69)*'SUPUESTOS GASTOS'!$D$33),-3)),0) -> 1299000 | AA69: =IF($E69="PASANTE SENA",0,ROUNDUP(((K69+Q69)*H69)/'SUPUESTOS GASTOS'!$D$12,-3)) -> 3464000 | AB69: =IF($E69="PASANTE SENA",0,ROUNDUP((((AA69)/'SUPUESTOS GASTOS'!$D$12)*H69)*'SUPUESTOS GASTOS'!$D$21,-3)) -> 402000 | AC69: =IF($E69="PASANTE SENA",0,ROUNDUP(((K69+Q69)*H69)/'SUPUESTOS GASTOS'!$D$12,-3)) -> 3464000 | AD69: =IF($E69="PASANTE SENA",0,ROUNDUP((K69*H69)/('SUPUESTOS GASTOS'!$D$12*2),-3)) -> 1732000 | AF69: 64851000
A70: 5 | B70: 3 | C70: C | E70: EXTENSIONISTAS 5 | F70: 2025-01-13 | G70: 2025-12-31 | H70: 348 | I70: =IF(C70="C",'SUPUESTOS GASTOS'!$D$6*SUMIF('SUPUESTOS GASTOS'!$B$38:$B$47,'Anexo 5 Planta y Equipo de trab'!$A70,'SUPUESTOS GASTOS'!$D$38:$D$47),IF($C70="N",0,IF(C70="E",'SUPUESTOS GASTOS'!$D$6*SUMIF('SUPUESTOS GASTOS'!$B$38:$B$47,'Anexo 5 Planta y Equipo de trab'!$A70,'SUPUESTOS GASTOS'!$D$38:$D$47),""))) -> 3380000 | J70: =+'SUPUESTOS GASTOS'!$D$10 -> 0.06 | K70: =IF($C70="C",ROUNDUP((I70*J70)+I70,-3),IF($C70="N",ROUNDUP(('SUPUESTOS GASTOS'!$D$6*SUMIF('SUPUESTOS GASTOS'!$B$38:$B$47,'Anexo 5 Planta y Equipo de trab'!$A70,'SUPUESTOS GASTOS'!$D$38:$D$47)*$J70)+'SUPUESTOS GASTOS'!$D$6*SUMIF('SUPUESTOS GASTOS'!$B$38:$B$47,'Anexo 5 Planta y Equipo de trab'!$A70,'SUPUESTOS GASTOS'!$D$38:$D$47),-3),IF($C70="E",0))) -> 3583000 | L70: =IFERROR(IF($E70="PASANTE SENA",ROUNDUP((K70*'SUPUESTOS GASTOS'!$D$20),-3),ROUNDUP((K70*'SUPUESTOS GASTOS'!$D$19),-3)),0) -> 305000 | M70: =IFERROR(IF($E70="PASANTE SENA",0,ROUNDUP((K70*'SUPUESTOS GASTOS'!$D$18),-3)),0) -> 430000 | N70: =IFERROR(ROUNDUP(K70*SUMIF('SUPUESTOS GASTOS'!$B$24:$B$28,'Anexo 5 Planta y Equipo de trab'!$B70,'SUPUESTOS GASTOS'!$D$24:$D$28),-3),0) -> 156000 | O70: =IFERROR(IF($E70="PASANTE SENA",0,ROUNDUP((K70*'SUPUESTOS GASTOS'!$D$31),-3)),0) -> 144000 | P70: =IFERROR(IF($E70="PASANTE SENA",0,ROUNDUP((K70*'SUPUESTOS GASTOS'!$D$32),-3)),0) -> 72000 | Q70: =IF($C70="E",0,IF($E70="PASANTE SENA",0,IF(K70>=('SUPUESTOS GASTOS'!$D$14*2),0,ROUNDUP('SUPUESTOS GASTOS'!$D$15,-3)))) -> 0 | R70: =IFERROR(IF($E70="PASANTE SENA",0,ROUNDUP((K70*'SUPUESTOS GASTOS'!$D$33),-3)),0) -> 108000 | S70: =ROUNDUP((K70/'SUPUESTOS GASTOS'!$D$13)*H70,-3) -> 41563000 | T70: =IFERROR(IF($E70="PASANTE SENA",ROUNDUP((S70*'SUPUESTOS GASTOS'!$D$20),-3),ROUNDUP((S70*'SUPUESTOS GASTOS'!$D$19),-3)),0) -> 3533000 | U70: =IFERROR(IF($E70="PASANTE SENA",0,ROUNDUP((S70*'SUPUESTOS GASTOS'!$D$18),-3)),0) -> 4988000 | V70: =IFERROR(ROUNDUP(S70*SUMIF('SUPUESTOS GASTOS'!$B$24:$B$28,'Anexo 5 Planta y Equipo de trab'!$B70,'SUPUESTOS GASTOS'!$D$24:$D$28),-3),0) -> 1808000 | W70: =IFERROR(IF($E70="PASANTE SENA",0,ROUNDUP(((S70+AD70)*'SUPUESTOS GASTOS'!$D$31),-3)),0) -> 1732000 | X70: =IFERROR(IF($E70="PASANTE SENA",0,ROUNDUP(((S70+AD70)*'SUPUESTOS GASTOS'!$D$32),-3)),0) -> 866000 | Y70: =IF($C70="E",0,IF($E70="PASANTE SENA",0,IF(K70>=('SUPUESTOS GASTOS'!$D$14*2),0,ROUNDUP(('SUPUESTOS GASTOS'!$D$15/'SUPUESTOS GASTOS'!$D$13)*$H70,-3)))) -> 0 | Z70: =IFERROR(IF($E70="PASANTE SENA",0,ROUNDUP(((S70+AD70)*'SUPUESTOS GASTOS'!$D$33),-3)),0) -> 1299000 | AA70: =IF($E70="PASANTE SENA",0,ROUNDUP(((K70+Q70)*H70)/'SUPUESTOS GASTOS'!$D$12,-3)) -> 3464000 | AB70: =IF($E70="PASANTE SENA",0,ROUNDUP((((AA70)/'SUPUESTOS GASTOS'!$D$12)*H70)*'SUPUESTOS GASTOS'!$D$21,-3)) -> 402000 | AC70: =IF($E70="PASANTE SENA",0,ROUNDUP(((K70+Q70)*H70)/'SUPUESTOS GASTOS'!$D$12,-3)) -> 3464000 | AD70: =IF($E70="PASANTE SENA",0,ROUNDUP((K70*H70)/('SUPUESTOS GASTOS'!$D$12*2),-3)) -> 1732000 | AF70: 64851000
A71: 5 | B71: 3 | C71: C | E71: EXTENSIONISTAS 6 | F71: 2025-01-13 | G71: 2025-12-31 | H71: 348 | I71: =IF(C71="C",'SUPUESTOS GASTOS'!$D$6*SUMIF('SUPUESTOS GASTOS'!$B$38:$B$47,'Anexo 5 Planta y Equipo de trab'!$A71,'SUPUESTOS GASTOS'!$D$38:$D$47),IF($C71="N",0,IF(C71="E",'SUPUESTOS GASTOS'!$D$6*SUMIF('SUPUESTOS GASTOS'!$B$38:$B$47,'Anexo 5 Planta y Equipo de trab'!$A71,'SUPUESTOS GASTOS'!$D$38:$D$47),""))) -> 3380000 | J71: =+'SUPUESTOS GASTOS'!$D$10 -> 0.06 | K71: =IF($C71="C",ROUNDUP((I71*J71)+I71,-3),IF($C71="N",ROUNDUP(('SUPUESTOS GASTOS'!$D$6*SUMIF('SUPUESTOS GASTOS'!$B$38:$B$47,'Anexo 5 Planta y Equipo de trab'!$A71,'SUPUESTOS GASTOS'!$D$38:$D$47)*$J71)+'SUPUESTOS GASTOS'!$D$6*SUMIF('SUPUESTOS GASTOS'!$B$38:$B$47,'Anexo 5 Planta y Equipo de trab'!$A71,'SUPUESTOS GASTOS'!$D$38:$D$47),-3),IF($C71="E",0))) -> 3583000 | L71: =IFERROR(IF($E71="PASANTE SENA",ROUNDUP((K71*'SUPUESTOS GASTOS'!$D$20),-3),ROUNDUP((K71*'SUPUESTOS GASTOS'!$D$19),-3)),0) -> 305000 | M71: =IFERROR(IF($E71="PASANTE SENA",0,ROUNDUP((K71*'SUPUESTOS GASTOS'!$D$18),-3)),0) -> 430000 | N71: =IFERROR(ROUNDUP(K71*SUMIF('SUPUESTOS GASTOS'!$B$24:$B$28,'Anexo 5 Planta y Equipo de trab'!$B71,'SUPUESTOS GASTOS'!$D$24:$D$28),-3),0) -> 156000 | O71: =IFERROR(IF($E71="PASANTE SENA",0,ROUNDUP((K71*'SUPUESTOS GASTOS'!$D$31),-3)),0) -> 144000 | P71: =IFERROR(IF($E71="PASANTE SENA",0,ROUNDUP((K71*'SUPUESTOS GASTOS'!$D$32),-3)),0) -> 72000 | Q71: =IF($C71="E",0,IF($E71="PASANTE SENA",0,IF(K71>=('SUPUESTOS GASTOS'!$D$14*2),0,ROUNDUP('SUPUESTOS GASTOS'!$D$15,-3)))) -> 0 | R71: =IFERROR(IF($E71="PASANTE SENA",0,ROUNDUP((K71*'SUPUESTOS GASTOS'!$D$33),-3)),0) -> 108000 | S71: =ROUNDUP((K71/'SUPUESTOS GASTOS'!$D$13)*H71,-3) -> 41563000 | T71: =IFERROR(IF($E71="PASANTE SENA",ROUNDUP((S71*'SUPUESTOS GASTOS'!$D$20),-3),ROUNDUP((S71*'SUPUESTOS GASTOS'!$D$19),-3)),0) -> 3533000 | U71: =IFERROR(IF($E71="PASANTE SENA",0,ROUNDUP((S71*'SUPUESTOS GASTOS'!$D$18),-3)),0) -> 4988000 | V71: =IFERROR(ROUNDUP(S71*SUMIF('SUPUESTOS GASTOS'!$B$24:$B$28,'Anexo 5 Planta y Equipo de trab'!$B71,'SUPUESTOS GASTOS'!$D$24:$D$28),-3),0) -> 1808000 | W71: =IFERROR(IF($E71="PASANTE SENA",0,ROUNDUP(((S71+AD71)*'SUPUESTOS GASTOS'!$D$31),-3)),0) -> 1732000 | X71: =IFERROR(IF($E71="PASANTE SENA",0,ROUNDUP(((S71+AD71)*'SUPUESTOS GASTOS'!$D$32),-3)),0) -> 866000 | Y71: =IF($C71="E",0,IF($E71="PASANTE SENA",0,IF(K71>=('SUPUESTOS GASTOS'!$D$14*2),0,ROUNDUP(('SUPUESTOS GASTOS'!$D$15/'SUPUESTOS GASTOS'!$D$13)*$H71,-3)))) -> 0 | Z71: =IFERROR(IF($E71="PASANTE SENA",0,ROUNDUP(((S71+AD71)*'SUPUESTOS GASTOS'!$D$33),-3)),0) -> 1299000 | AA71: =IF($E71="PASANTE SENA",0,ROUNDUP(((K71+Q71)*H71)/'SUPUESTOS GASTOS'!$D$12,-3)) -> 3464000 | AB71: =IF($E71="PASANTE SENA",0,ROUNDUP((((AA71)/'SUPUESTOS GASTOS'!$D$12)*H71)*'SUPUESTOS GASTOS'!$D$21,-3)) -> 402000 | AC71: =IF($E71="PASANTE SENA",0,ROUNDUP(((K71+Q71)*H71)/'SUPUESTOS GASTOS'!$D$12,-3)) -> 3464000 | AD71: =IF($E71="PASANTE SENA",0,ROUNDUP((K71*H71)/('SUPUESTOS GASTOS'!$D$12*2),-3)) -> 1732000 | AF71: 64851000
A72: 5 | B72: 3 | C72: C | E72: EXTENSIONISTAS 7 | F72: 2025-01-13 | G72: 2025-12-31 | H72: 348 | I72: =IF(C72="C",'SUPUESTOS GASTOS'!$D$6*SUMIF('SUPUESTOS GASTOS'!$B$38:$B$47,'Anexo 5 Planta y Equipo de trab'!$A72,'SUPUESTOS GASTOS'!$D$38:$D$47),IF($C72="N",0,IF(C72="E",'SUPUESTOS GASTOS'!$D$6*SUMIF('SUPUESTOS GASTOS'!$B$38:$B$47,'Anexo 5 Planta y Equipo de trab'!$A72,'SUPUESTOS GASTOS'!$D$38:$D$47),""))) -> 3380000 | J72: =+'SUPUESTOS GASTOS'!$D$10 -> 0.06 | K72: =IF($C72="C",ROUNDUP((I72*J72)+I72,-3),IF($C72="N",ROUNDUP(('SUPUESTOS GASTOS'!$D$6*SUMIF('SUPUESTOS GASTOS'!$B$38:$B$47,'Anexo 5 Planta y Equipo de trab'!$A72,'SUPUESTOS GASTOS'!$D$38:$D$47)*$J72)+'SUPUESTOS GASTOS'!$D$6*SUMIF('SUPUESTOS GASTOS'!$B$38:$B$47,'Anexo 5 Planta y Equipo de trab'!$A72,'SUPUESTOS GASTOS'!$D$38:$D$47),-3),IF($C72="E",0))) -> 3583000 | L72: =IFERROR(IF($E72="PASANTE SENA",ROUNDUP((K72*'SUPUESTOS GASTOS'!$D$20),-3),ROUNDUP((K72*'SUPUESTOS GASTOS'!$D$19),-3)),0) -> 305000 | M72: =IFERROR(IF($E72="PASANTE SENA",0,ROUNDUP((K72*'SUPUESTOS GASTOS'!$D$18),-3)),0) -> 430000 | N72: =IFERROR(ROUNDUP(K72*SUMIF('SUPUESTOS GASTOS'!$B$24:$B$28,'Anexo 5 Planta y Equipo de trab'!$B72,'SUPUESTOS GASTOS'!$D$24:$D$28),-3),0) -> 156000 | O72: =IFERROR(IF($E72="PASANTE SENA",0,ROUNDUP((K72*'SUPUESTOS GASTOS'!$D$31),-3)),0) -> 144000 | P72: =IFERROR(IF($E72="PASANTE SENA",0,ROUNDUP((K72*'SUPUESTOS GASTOS'!$D$32),-3)),0) -> 72000 | Q72: =IF($C72="E",0,IF($E72="PASANTE SENA",0,IF(K72>=('SUPUESTOS GASTOS'!$D$14*2),0,ROUNDUP('SUPUESTOS GASTOS'!$D$15,-3)))) -> 0 | R72: =IFERROR(IF($E72="PASANTE SENA",0,ROUNDUP((K72*'SUPUESTOS GASTOS'!$D$33),-3)),0) -> 108000 | S72: =ROUNDUP((K72/'SUPUESTOS GASTOS'!$D$13)*H72,-3) -> 41563000 | T72: =IFERROR(IF($E72="PASANTE SENA",ROUNDUP((S72*'SUPUESTOS GASTOS'!$D$20),-3),ROUNDUP((S72*'SUPUESTOS GASTOS'!$D$19),-3)),0) -> 3533000 | U72: =IFERROR(IF($E72="PASANTE SENA",0,ROUNDUP((S72*'SUPUESTOS GASTOS'!$D$18),-3)),0) -> 4988000 | V72: =IFERROR(ROUNDUP(S72*SUMIF('SUPUESTOS GASTOS'!$B$24:$B$28,'Anexo 5 Planta y Equipo de trab'!$B72,'SUPUESTOS GASTOS'!$D$24:$D$28),-3),0) -> 1808000 | W72: =IFERROR(IF($E72="PASANTE SENA",0,ROUNDUP(((S72+AD72)*'SUPUESTOS GASTOS'!$D$31),-3)),0) -> 1732000 | X72: =IFERROR(IF($E72="PASANTE SENA",0,ROUNDUP(((S72+AD72)*'SUPUESTOS GASTOS'!$D$32),-3)),0) -> 866000 | Y72: =IF($C72="E",0,IF($E72="PASANTE SENA",0,IF(K72>=('SUPUESTOS GASTOS'!$D$14*2),0,ROUNDUP(('SUPUESTOS GASTOS'!$D$15/'SUPUESTOS GASTOS'!$D$13)*$H72,-3)))) -> 0 | Z72: =IFERROR(IF($E72="PASANTE SENA",0,ROUNDUP(((S72+AD72)*'SUPUESTOS GASTOS'!$D$33),-3)),0) -> 1299000 | AA72: =IF($E72="PASANTE SENA",0,ROUNDUP(((K72+Q72)*H72)/'SUPUESTOS GASTOS'!$D$12,-3)) -> 3464000 | AB72: =IF($E72="PASANTE SENA",0,ROUNDUP((((AA72)/'SUPUESTOS GASTOS'!$D$12)*H72)*'SUPUESTOS GASTOS'!$D$21,-3)) -> 402000 | AC72: =IF($E72="PASANTE SENA",0,ROUNDUP(((K72+Q72)*H72)/'SUPUESTOS GASTOS'!$D$12,-3)) -> 3464000 | AD72: =IF($E72="PASANTE SENA",0,ROUNDUP((K72*H72)/('SUPUESTOS GASTOS'!$D$12*2),-3)) -> 1732000 | AF72: 64851000
A73: 5 | B73: 3 | C73: C | E73: EXTENSIONISTAS 8 | F73: 2025-01-13 | G73: 2025-12-31 | H73: 348 | I73: =IF(C73="C",'SUPUESTOS GASTOS'!$D$6*SUMIF('SUPUESTOS GASTOS'!$B$38:$B$47,'Anexo 5 Planta y Equipo de trab'!$A73,'SUPUESTOS GASTOS'!$D$38:$D$47),IF($C73="N",0,IF(C73="E",'SUPUESTOS GASTOS'!$D$6*SUMIF('SUPUESTOS GASTOS'!$B$38:$B$47,'Anexo 5 Planta y Equipo de trab'!$A73,'SUPUESTOS GASTOS'!$D$38:$D$47),""))) -> 3380000 | J73: =+'SUPUESTOS GASTOS'!$D$10 -> 0.06 | K73: =IF($C73="C",ROUNDUP((I73*J73)+I73,-3),IF($C73="N",ROUNDUP(('SUPUESTOS GASTOS'!$D$6*SUMIF('SUPUESTOS GASTOS'!$B$38:$B$47,'Anexo 5 Planta y Equipo de trab'!$A73,'SUPUESTOS GASTOS'!$D$38:$D$47)*$J73)+'SUPUESTOS GASTOS'!$D$6*SUMIF('SUPUESTOS GASTOS'!$B$38:$B$47,'Anexo 5 Planta y Equipo de trab'!$A73,'SUPUESTOS GASTOS'!$D$38:$D$47),-3),IF($C73="E",0))) -> 3583000 | L73: =IFERROR(IF($E73="PASANTE SENA",ROUNDUP((K73*'SUPUESTOS GASTOS'!$D$20),-3),ROUNDUP((K73*'SUPUESTOS GASTOS'!$D$19),-3)),0) -> 305000 | M73: =IFERROR(IF($E73="PASANTE SENA",0,ROUNDUP((K73*'SUPUESTOS GASTOS'!$D$18),-3)),0) -> 430000 | N73: =IFERROR(ROUNDUP(K73*SUMIF('SUPUESTOS GASTOS'!$B$24:$B$28,'Anexo 5 Planta y Equipo de trab'!$B73,'SUPUESTOS GASTOS'!$D$24:$D$28),-3),0) -> 156000 | O73: =IFERROR(IF($E73="PASANTE SENA",0,ROUNDUP((K73*'SUPUESTOS GASTOS'!$D$31),-3)),0) -> 144000 | P73: =IFERROR(IF($E73="PASANTE SENA",0,ROUNDUP((K73*'SUPUESTOS GASTOS'!$D$32),-3)),0) -> 72000 | Q73: =IF($C73="E",0,IF($E73="PASANTE SENA",0,IF(K73>=('SUPUESTOS GASTOS'!$D$14*2),0,ROUNDUP('SUPUESTOS GASTOS'!$D$15,-3)))) -> 0 | R73: =IFERROR(IF($E73="PASANTE SENA",0,ROUNDUP((K73*'SUPUESTOS GASTOS'!$D$33),-3)),0) -> 108000 | S73: =ROUNDUP((K73/'SUPUESTOS GASTOS'!$D$13)*H73,-3) -> 41563000 | T73: =IFERROR(IF($E73="PASANTE SENA",ROUNDUP((S73*'SUPUESTOS GASTOS'!$D$20),-3),ROUNDUP((S73*'SUPUESTOS GASTOS'!$D$19),-3)),0) -> 3533000 | U73: =IFERROR(IF($E73="PASANTE SENA",0,ROUNDUP((S73*'SUPUESTOS GASTOS'!$D$18),-3)),0) -> 4988000 | V73: =IFERROR(ROUNDUP(S73*SUMIF('SUPUESTOS GASTOS'!$B$24:$B$28,'Anexo 5 Planta y Equipo de trab'!$B73,'SUPUESTOS GASTOS'!$D$24:$D$28),-3),0) -> 1808000 | W73: =IFERROR(IF($E73="PASANTE SENA",0,ROUNDUP(((S73+AD73)*'SUPUESTOS GASTOS'!$D$31),-3)),0) -> 1732000 | X73: =IFERROR(IF($E73="PASANTE SENA",0,ROUNDUP(((S73+AD73)*'SUPUESTOS GASTOS'!$D$32),-3)),0) -> 866000 | Y73: =IF($C73="E",0,IF($E73="PASANTE SENA",0,IF(K73>=('SUPUESTOS GASTOS'!$D$14*2),0,ROUNDUP(('SUPUESTOS GASTOS'!$D$15/'SUPUESTOS GASTOS'!$D$13)*$H73,-3)))) -> 0 | Z73: =IFERROR(IF($E73="PASANTE SENA",0,ROUNDUP(((S73+AD73)*'SUPUESTOS GASTOS'!$D$33),-3)),0) -> 1299000 | AA73: =IF($E73="PASANTE SENA",0,ROUNDUP(((K73+Q73)*H73)/'SUPUESTOS GASTOS'!$D$12,-3)) -> 3464000 | AB73: =IF($E73="PASANTE SENA",0,ROUNDUP((((AA73)/'SUPUESTOS GASTOS'!$D$12)*H73)*'SUPUESTOS GASTOS'!$D$21,-3)) -> 402000 | AC73: =IF($E73="PASANTE SENA",0,ROUNDUP(((K73+Q73)*H73)/'SUPUESTOS GASTOS'!$D$12,-3)) -> 3464000 | AD73: =IF($E73="PASANTE SENA",0,ROUNDUP((K73*H73)/('SUPUESTOS GASTOS'!$D$12*2),-3)) -> 1732000 | AF73: 64851000
A74: 5 | B74: 3 | C74: C | E74: EXTENSIONISTAS 9 | F74: 2025-01-13 | G74: 2025-12-31 | H74: 348 | I74: =IF(C74="C",'SUPUESTOS GASTOS'!$D$6*SUMIF('SUPUESTOS GASTOS'!$B$38:$B$47,'Anexo 5 Planta y Equipo de trab'!$A74,'SUPUESTOS GASTOS'!$D$38:$D$47),IF($C74="N",0,IF(C74="E",'SUPUESTOS GASTOS'!$D$6*SUMIF('SUPUESTOS GASTOS'!$B$38:$B$47,'Anexo 5 Planta y Equipo de trab'!$A74,'SUPUESTOS GASTOS'!$D$38:$D$47),""))) -> 3380000 | J74: =+'SUPUESTOS GASTOS'!$D$10 -> 0.06 | K74: =IF($C74="C",ROUNDUP((I74*J74)+I74,-3),IF($C74="N",ROUNDUP(('SUPUESTOS GASTOS'!$D$6*SUMIF('SUPUESTOS GASTOS'!$B$38:$B$47,'Anexo 5 Planta y Equipo de trab'!$A74,'SUPUESTOS GASTOS'!$D$38:$D$47)*$J74)+'SUPUESTOS GASTOS'!$D$6*SUMIF('SUPUESTOS GASTOS'!$B$38:$B$47,'Anexo 5 Planta y Equipo de trab'!$A74,'SUPUESTOS GASTOS'!$D$38:$D$47),-3),IF($C74="E",0))) -> 3583000 | L74: =IFERROR(IF($E74="PASANTE SENA",ROUNDUP((K74*'SUPUESTOS GASTOS'!$D$20),-3),ROUNDUP((K74*'SUPUESTOS GASTOS'!$D$19),-3)),0) -> 305000 | M74: =IFERROR(IF($E74="PASANTE SENA",0,ROUNDUP((K74*'SUPUESTOS GASTOS'!$D$18),-3)),0) -> 430000 | N74: =IFERROR(ROUNDUP(K74*SUMIF('SUPUESTOS GASTOS'!$B$24:$B$28,'Anexo 5 Planta y Equipo de trab'!$B74,'SUPUESTOS GASTOS'!$D$24:$D$28),-3),0) -> 156000 | O74: =IFERROR(IF($E74="PASANTE SENA",0,ROUNDUP((K74*'SUPUESTOS GASTOS'!$D$31),-3)),0) -> 144000 | P74: =IFERROR(IF($E74="PASANTE SENA",0,ROUNDUP((K74*'SUPUESTOS GASTOS'!$D$32),-3)),0) -> 72000 | Q74: =IF($C74="E",0,IF($E74="PASANTE SENA",0,IF(K74>=('SUPUESTOS GASTOS'!$D$14*2),0,ROUNDUP('SUPUESTOS GASTOS'!$D$15,-3)))) -> 0 | R74: =IFERROR(IF($E74="PASANTE SENA",0,ROUNDUP((K74*'SUPUESTOS GASTOS'!$D$33),-3)),0) -> 108000 | S74: =ROUNDUP((K74/'SUPUESTOS GASTOS'!$D$13)*H74,-3) -> 41563000 | T74: =IFERROR(IF($E74="PASANTE SENA",ROUNDUP((S74*'SUPUESTOS GASTOS'!$D$20),-3),ROUNDUP((S74*'SUPUESTOS GASTOS'!$D$19),-3)),0) -> 3533000 | U74: =IFERROR(IF($E74="PASANTE SENA",0,ROUNDUP((S74*'SUPUESTOS GASTOS'!$D$18),-3)),0) -> 4988000 | V74: =IFERROR(ROUNDUP(S74*SUMIF('SUPUESTOS GASTOS'!$B$24:$B$28,'Anexo 5 Planta y Equipo de trab'!$B74,'SUPUESTOS GASTOS'!$D$24:$D$28),-3),0) -> 1808000 | W74: =IFERROR(IF($E74="PASANTE SENA",0,ROUNDUP(((S74+AD74)*'SUPUESTOS GASTOS'!$D$31),-3)),0) -> 1732000 | X74: =IFERROR(IF($E74="PASANTE SENA",0,ROUNDUP(((S74+AD74)*'SUPUESTOS GASTOS'!$D$32),-3)),0) -> 866000 | Y74: =IF($C74="E",0,IF($E74="PASANTE SENA",0,IF(K74>=('SUPUESTOS GASTOS'!$D$14*2),0,ROUNDUP(('SUPUESTOS GASTOS'!$D$15/'SUPUESTOS GASTOS'!$D$13)*$H74,-3)))) -> 0 | Z74: =IFERROR(IF($E74="PASANTE SENA",0,ROUNDUP(((S74+AD74)*'SUPUESTOS GASTOS'!$D$33),-3)),0) -> 1299000 | AA74: =IF($E74="PASANTE SENA",0,ROUNDUP(((K74+Q74)*H74)/'SUPUESTOS GASTOS'!$D$12,-3)) -> 3464000 | AB74: =IF($E74="PASANTE SENA",0,ROUNDUP((((AA74)/'SUPUESTOS GASTOS'!$D$12)*H74)*'SUPUESTOS GASTOS'!$D$21,-3)) -> 402000 | AC74: =IF($E74="PASANTE SENA",0,ROUNDUP(((K74+Q74)*H74)/'SUPUESTOS GASTOS'!$D$12,-3)) -> 3464000 | AD74: =IF($E74="PASANTE SENA",0,ROUNDUP((K74*H74)/('SUPUESTOS GASTOS'!$D$12*2),-3)) -> 1732000 | AF74: 64851000
A75: 5 | B75: 3 | C75: C | E75: EXTENSIONISTAS 10 | F75: 2025-01-13 | G75: 2025-12-31 | H75: 348 | I75: =IF(C75="C",'SUPUESTOS GASTOS'!$D$6*SUMIF('SUPUESTOS GASTOS'!$B$38:$B$47,'Anexo 5 Planta y Equipo de trab'!$A75,'SUPUESTOS GASTOS'!$D$38:$D$47),IF($C75="N",0,IF(C75="E",'SUPUESTOS GASTOS'!$D$6*SUMIF('SUPUESTOS GASTOS'!$B$38:$B$47,'Anexo 5 Planta y Equipo de trab'!$A75,'SUPUESTOS GASTOS'!$D$38:$D$47),""))) -> 3380000 | J75: =+'SUPUESTOS GASTOS'!$D$10 -> 0.06 | K75: =IF($C75="C",ROUNDUP((I75*J75)+I75,-3),IF($C75="N",ROUNDUP(('SUPUESTOS GASTOS'!$D$6*SUMIF('SUPUESTOS GASTOS'!$B$38:$B$47,'Anexo 5 Planta y Equipo de trab'!$A75,'SUPUESTOS GASTOS'!$D$38:$D$47)*$J75)+'SUPUESTOS GASTOS'!$D$6*SUMIF('SUPUESTOS GASTOS'!$B$38:$B$47,'Anexo 5 Planta y Equipo de trab'!$A75,'SUPUESTOS GASTOS'!$D$38:$D$47),-3),IF($C75="E",0))) -> 3583000 | L75: =IFERROR(IF($E75="PASANTE SENA",ROUNDUP((K75*'SUPUESTOS GASTOS'!$D$20),-3),ROUNDUP((K75*'SUPUESTOS GASTOS'!$D$19),-3)),0) -> 305000 | M75: =IFERROR(IF($E75="PASANTE SENA",0,ROUNDUP((K75*'SUPUESTOS GASTOS'!$D$18),-3)),0) -> 430000 | N75: =IFERROR(ROUNDUP(K75*SUMIF('SUPUESTOS GASTOS'!$B$24:$B$28,'Anexo 5 Planta y Equipo de trab'!$B75,'SUPUESTOS GASTOS'!$D$24:$D$28),-3),0) -> 156000 | O75: =IFERROR(IF($E75="PASANTE SENA",0,ROUNDUP((K75*'SUPUESTOS GASTOS'!$D$31),-3)),0) -> 144000 | P75: =IFERROR(IF($E75="PASANTE SENA",0,ROUNDUP((K75*'SUPUESTOS GASTOS'!$D$32),-3)),0) -> 72000 | Q75: =IF($C75="E",0,IF($E75="PASANTE SENA",0,IF(K75>=('SUPUESTOS GASTOS'!$D$14*2),0,ROUNDUP('SUPUESTOS GASTOS'!$D$15,-3)))) -> 0 | R75: =IFERROR(IF($E75="PASANTE SENA",0,ROUNDUP((K75*'SUPUESTOS GASTOS'!$D$33),-3)),0) -> 108000 | S75: =ROUNDUP((K75/'SUPUESTOS GASTOS'!$D$13)*H75,-3) -> 41563000 | T75: =IFERROR(IF($E75="PASANTE SENA",ROUNDUP((S75*'SUPUESTOS GASTOS'!$D$20),-3),ROUNDUP((S75*'SUPUESTOS GASTOS'!$D$19),-3)),0) -> 3533000 | U75: =IFERROR(IF($E75="PASANTE SENA",0,ROUNDUP((S75*'SUPUESTOS GASTOS'!$D$18),-3)),0) -> 4988000 | V75: =IFERROR(ROUNDUP(S75*SUMIF('SUPUESTOS GASTOS'!$B$24:$B$28,'Anexo 5 Planta y Equipo de trab'!$B75,'SUPUESTOS GASTOS'!$D$24:$D$28),-3),0) -> 1808000 | W75: =IFERROR(IF($E75="PASANTE SENA",0,ROUNDUP(((S75+AD75)*'SUPUESTOS GASTOS'!$D$31),-3)),0) -> 1732000 | X75: =IFERROR(IF($E75="PASANTE SENA",0,ROUNDUP(((S75+AD75)*'SUPUESTOS GASTOS'!$D$32),-3)),0) -> 866000 | Y75: =IF($C75="E",0,IF($E75="PASANTE SENA",0,IF(K75>=('SUPUESTOS GASTOS'!$D$14*2),0,ROUNDUP(('SUPUESTOS GASTOS'!$D$15/'SUPUESTOS GASTOS'!$D$13)*$H75,-3)))) -> 0 | Z75: =IFERROR(IF($E75="PASANTE SENA",0,ROUNDUP(((S75+AD75)*'SUPUESTOS GASTOS'!$D$33),-3)),0) -> 1299000 | AA75: =IF($E75="PASANTE SENA",0,ROUNDUP(((K75+Q75)*H75)/'SUPUESTOS GASTOS'!$D$12,-3)) -> 3464000 | AB75: =IF($E75="PASANTE SENA",0,ROUNDUP((((AA75)/'SUPUESTOS GASTOS'!$D$12)*H75)*'SUPUESTOS GASTOS'!$D$21,-3)) -> 402000 | AC75: =IF($E75="PASANTE SENA",0,ROUNDUP(((K75+Q75)*H75)/'SUPUESTOS GASTOS'!$D$12,-3)) -> 3464000 | AD75: =IF($E75="PASANTE SENA",0,ROUNDUP((K75*H75)/('SUPUESTOS GASTOS'!$D$12*2),-3)) -> 1732000 | AF75: 64851000
A76: 5 | B76: 3 | C76: C | E76: EXTENSIONISTAS 11 | F76: 2025-01-13 | G76: 2025-12-31 | H76: 348 | I76: =IF(C76="C",'SUPUESTOS GASTOS'!$D$6*SUMIF('SUPUESTOS GASTOS'!$B$38:$B$47,'Anexo 5 Planta y Equipo de trab'!$A76,'SUPUESTOS GASTOS'!$D$38:$D$47),IF($C76="N",0,IF(C76="E",'SUPUESTOS GASTOS'!$D$6*SUMIF('SUPUESTOS GASTOS'!$B$38:$B$47,'Anexo 5 Planta y Equipo de trab'!$A76,'SUPUESTOS GASTOS'!$D$38:$D$47),""))) -> 3380000 | J76: =+'SUPUESTOS GASTOS'!$D$10 -> 0.06 | K76: =IF($C76="C",ROUNDUP((I76*J76)+I76,-3),IF($C76="N",ROUNDUP(('SUPUESTOS GASTOS'!$D$6*SUMIF('SUPUESTOS GASTOS'!$B$38:$B$47,'Anexo 5 Planta y Equipo de trab'!$A76,'SUPUESTOS GASTOS'!$D$38:$D$47)*$J76)+'SUPUESTOS GASTOS'!$D$6*SUMIF('SUPUESTOS GASTOS'!$B$38:$B$47,'Anexo 5 Planta y Equipo de trab'!$A76,'SUPUESTOS GASTOS'!$D$38:$D$47),-3),IF($C76="E",0))) -> 3583000 | L76: =IFERROR(IF($E76="PASANTE SENA",ROUNDUP((K76*'SUPUESTOS GASTOS'!$D$20),-3),ROUNDUP((K76*'SUPUESTOS GASTOS'!$D$19),-3)),0) -> 305000 | M76: =IFERROR(IF($E76="PASANTE SENA",0,ROUNDUP((K76*'SUPUESTOS GASTOS'!$D$18),-3)),0) -> 430000 | N76: =IFERROR(ROUNDUP(K76*SUMIF('SUPUESTOS GASTOS'!$B$24:$B$28,'Anexo 5 Planta y Equipo de trab'!$B76,'SUPUESTOS GASTOS'!$D$24:$D$28),-3),0) -> 156000 | O76: =IFERROR(IF($E76="PASANTE SENA",0,ROUNDUP((K76*'SUPUESTOS GASTOS'!$D$31),-3)),0) -> 144000 | P76: =IFERROR(IF($E76="PASANTE SENA",0,ROUNDUP((K76*'SUPUESTOS GASTOS'!$D$32),-3)),0) -> 72000 | Q76: =IF($C76="E",0,IF($E76="PASANTE SENA",0,IF(K76>=('SUPUESTOS GASTOS'!$D$14*2),0,ROUNDUP('SUPUESTOS GASTOS'!$D$15,-3)))) -> 0 | R76: =IFERROR(IF($E76="PASANTE SENA",0,ROUNDUP((K76*'SUPUESTOS GASTOS'!$D$33),-3)),0) -> 108000 | S76: =ROUNDUP((K76/'SUPUESTOS GASTOS'!$D$13)*H76,-3) -> 41563000 | T76: =IFERROR(IF($E76="PASANTE SENA",ROUNDUP((S76*'SUPUESTOS GASTOS'!$D$20),-3),ROUNDUP((S76*'SUPUESTOS GASTOS'!$D$19),-3)),0) -> 3533000 | U76: =IFERROR(IF($E76="PASANTE SENA",0,ROUNDUP((S76*'SUPUESTOS GASTOS'!$D$18),-3)),0) -> 4988000 | V76: =IFERROR(ROUNDUP(S76*SUMIF('SUPUESTOS GASTOS'!$B$24:$B$28,'Anexo 5 Planta y Equipo de trab'!$B76,'SUPUESTOS GASTOS'!$D$24:$D$28),-3),0) -> 1808000 | W76: =IFERROR(IF($E76="PASANTE SENA",0,ROUNDUP(((S76+AD76)*'SUPUESTOS GASTOS'!$D$31),-3)),0) -> 1732000 | X76: =IFERROR(IF($E76="PASANTE SENA",0,ROUNDUP(((S76+AD76)*'SUPUESTOS GASTOS'!$D$32),-3)),0) -> 866000 | Y76: =IF($C76="E",0,IF($E76="PASANTE SENA",0,IF(K76>=('SUPUESTOS GASTOS'!$D$14*2),0,ROUNDUP(('SUPUESTOS GASTOS'!$D$15/'SUPUESTOS GASTOS'!$D$13)*$H76,-3)))) -> 0 | Z76: =IFERROR(IF($E76="PASANTE SENA",0,ROUNDUP(((S76+AD76)*'SUPUESTOS GASTOS'!$D$33),-3)),0) -> 1299000 | AA76: =IF($E76="PASANTE SENA",0,ROUNDUP(((K76+Q76)*H76)/'SUPUESTOS GASTOS'!$D$12,-3)) -> 3464000 | AB76: =IF($E76="PASANTE SENA",0,ROUNDUP((((AA76)/'SUPUESTOS GASTOS'!$D$12)*H76)*'SUPUESTOS GASTOS'!$D$21,-3)) -> 402000 | AC76: =IF($E76="PASANTE SENA",0,ROUNDUP(((K76+Q76)*H76)/'SUPUESTOS GASTOS'!$D$12,-3)) -> 3464000 | AD76: =IF($E76="PASANTE SENA",0,ROUNDUP((K76*H76)/('SUPUESTOS GASTOS'!$D$12*2),-3)) -> 1732000 | AF76: 64851000
A77: 5 | B77: 3 | C77: C | E77: EXTENSIONISTAS 12 | F77: 2025-01-13 | G77: 2025-12-31 | H77: 348 | I77: =IF(C77="C",'SUPUESTOS GASTOS'!$D$6*SUMIF('SUPUESTOS GASTOS'!$B$38:$B$47,'Anexo 5 Planta y Equipo de trab'!$A77,'SUPUESTOS GASTOS'!$D$38:$D$47),IF($C77="N",0,IF(C77="E",'SUPUESTOS GASTOS'!$D$6*SUMIF('SUPUESTOS GASTOS'!$B$38:$B$47,'Anexo 5 Planta y Equipo de trab'!$A77,'SUPUESTOS GASTOS'!$D$38:$D$47),""))) -> 3380000 | J77: =+'SUPUESTOS GASTOS'!$D$10 -> 0.06 | K77: =IF($C77="C",ROUNDUP((I77*J77)+I77,-3),IF($C77="N",ROUNDUP(('SUPUESTOS GASTOS'!$D$6*SUMIF('SUPUESTOS GASTOS'!$B$38:$B$47,'Anexo 5 Planta y Equipo de trab'!$A77,'SUPUESTOS GASTOS'!$D$38:$D$47)*$J77)+'SUPUESTOS GASTOS'!$D$6*SUMIF('SUPUESTOS GASTOS'!$B$38:$B$47,'Anexo 5 Planta y Equipo de trab'!$A77,'SUPUESTOS GASTOS'!$D$38:$D$47),-3),IF($C77="E",0))) -> 3583000 | L77: =IFERROR(IF($E77="PASANTE SENA",ROUNDUP((K77*'SUPUESTOS GASTOS'!$D$20),-3),ROUNDUP((K77*'SUPUESTOS GASTOS'!$D$19),-3)),0) -> 305000 | M77: =IFERROR(IF($E77="PASANTE SENA",0,ROUNDUP((K77*'SUPUESTOS GASTOS'!$D$18),-3)),0) -> 430000 | N77: =IFERROR(ROUNDUP(K77*SUMIF('SUPUESTOS GASTOS'!$B$24:$B$28,'Anexo 5 Planta y Equipo de trab'!$B77,'SUPUESTOS GASTOS'!$D$24:$D$28),-3),0) -> 156000 | O77: =IFERROR(IF($E77="PASANTE SENA",0,ROUNDUP((K77*'SUPUESTOS GASTOS'!$D$31),-3)),0) -> 144000 | P77: =IFERROR(IF($E77="PASANTE SENA",0,ROUNDUP((K77*'SUPUESTOS GASTOS'!$D$32),-3)),0) -> 72000 | Q77: =IF($C77="E",0,IF($E77="PASANTE SENA",0,IF(K77>=('SUPUESTOS GASTOS'!$D$14*2),0,ROUNDUP('SUPUESTOS GASTOS'!$D$15,-3)))) -> 0 | R77: =IFERROR(IF($E77="PASANTE SENA",0,ROUNDUP((K77*'SUPUESTOS GASTOS'!$D$33),-3)),0) -> 108000 | S77: =ROUNDUP((K77/'SUPUESTOS GASTOS'!$D$13)*H77,-3) -> 41563000 | T77: =IFERROR(IF($E77="PASANTE SENA",ROUNDUP((S77*'SUPUESTOS GASTOS'!$D$20),-3),ROUNDUP((S77*'SUPUESTOS GASTOS'!$D$19),-3)),0) -> 3533000 | U77: =IFERROR(IF($E77="PASANTE SENA",0,ROUNDUP((S77*'SUPUESTOS GASTOS'!$D$18),-3)),0) -> 4988000 | V77: =IFERROR(ROUNDUP(S77*SUMIF('SUPUESTOS GASTOS'!$B$24:$B$28,'Anexo 5 Planta y Equipo de trab'!$B77,'SUPUESTOS GASTOS'!$D$24:$D$28),-3),0) -> 1808000 | W77: =IFERROR(IF($E77="PASANTE SENA",0,ROUNDUP(((S77+AD77)*'SUPUESTOS GASTOS'!$D$31),-3)),0) -> 1732000 | X77: =IFERROR(IF($E77="PASANTE SENA",0,ROUNDUP(((S77+AD77)*'SUPUESTOS GASTOS'!$D$32),-3)),0) -> 866000 | Y77: =IF($C77="E",0,IF($E77="PASANTE SENA",0,IF(K77>=('SUPUESTOS GASTOS'!$D$14*2),0,ROUNDUP(('SUPUESTOS GASTOS'!$D$15/'SUPUESTOS GASTOS'!$D$13)*$H77,-3)))) -> 0 | Z77: =IFERROR(IF($E77="PASANTE SENA",0,ROUNDUP(((S77+AD77)*'SUPUESTOS GASTOS'!$D$33),-3)),0) -> 1299000 | AA77: =IF($E77="PASANTE SENA",0,ROUNDUP(((K77+Q77)*H77)/'SUPUESTOS GASTOS'!$D$12,-3)) -> 3464000 | AB77: =IF($E77="PASANTE SENA",0,ROUNDUP((((AA77)/'SUPUESTOS GASTOS'!$D$12)*H77)*'SUPUESTOS GASTOS'!$D$21,-3)) -> 402000 | AC77: =IF($E77="PASANTE SENA",0,ROUNDUP(((K77+Q77)*H77)/'SUPUESTOS GASTOS'!$D$12,-3)) -> 3464000 | AD77: =IF($E77="PASANTE SENA",0,ROUNDUP((K77*H77)/('SUPUESTOS GASTOS'!$D$12*2),-3)) -> 1732000 | AF77: 64851000
A78: 5 | B78: 3 | C78: C | E78: EXTENSIONISTAS 13 | F78: 2025-01-13 | G78: 2025-12-31 | H78: 348 | I78: =IF(C78="C",'SUPUESTOS GASTOS'!$D$6*SUMIF('SUPUESTOS GASTOS'!$B$38:$B$47,'Anexo 5 Planta y Equipo de trab'!$A78,'SUPUESTOS GASTOS'!$D$38:$D$47),IF($C78="N",0,IF(C78="E",'SUPUESTOS GASTOS'!$D$6*SUMIF('SUPUESTOS GASTOS'!$B$38:$B$47,'Anexo 5 Planta y Equipo de trab'!$A78,'SUPUESTOS GASTOS'!$D$38:$D$47),""))) -> 3380000 | J78: =+'SUPUESTOS GASTOS'!$D$10 -> 0.06 | K78: =IF($C78="C",ROUNDUP((I78*J78)+I78,-3),IF($C78="N",ROUNDUP(('SUPUESTOS GASTOS'!$D$6*SUMIF('SUPUESTOS GASTOS'!$B$38:$B$47,'Anexo 5 Planta y Equipo de trab'!$A78,'SUPUESTOS GASTOS'!$D$38:$D$47)*$J78)+'SUPUESTOS GASTOS'!$D$6*SUMIF('SUPUESTOS GASTOS'!$B$38:$B$47,'Anexo 5 Planta y Equipo de trab'!$A78,'SUPUESTOS GASTOS'!$D$38:$D$47),-3),IF($C78="E",0))) -> 3583000 | L78: =IFERROR(IF($E78="PASANTE SENA",ROUNDUP((K78*'SUPUESTOS GASTOS'!$D$20),-3),ROUNDUP((K78*'SUPUESTOS GASTOS'!$D$19),-3)),0) -> 305000 | M78: =IFERROR(IF($E78="PASANTE SENA",0,ROUNDUP((K78*'SUPUESTOS GASTOS'!$D$18),-3)),0) -> 430000 | N78: =IFERROR(ROUNDUP(K78*SUMIF('SUPUESTOS GASTOS'!$B$24:$B$28,'Anexo 5 Planta y Equipo de trab'!$B78,'SUPUESTOS GASTOS'!$D$24:$D$28),-3),0) -> 156000 | O78: =IFERROR(IF($E78="PASANTE SENA",0,ROUNDUP((K78*'SUPUESTOS GASTOS'!$D$31),-3)),0) -> 144000 | P78: =IFERROR(IF($E78="PASANTE SENA",0,ROUNDUP((K78*'SUPUESTOS GASTOS'!$D$32),-3)),0) -> 72000 | Q78: =IF($C78="E",0,IF($E78="PASANTE SENA",0,IF(K78>=('SUPUESTOS GASTOS'!$D$14*2),0,ROUNDUP('SUPUESTOS GASTOS'!$D$15,-3)))) -> 0 | R78: =IFERROR(IF($E78="PASANTE SENA",0,ROUNDUP((K78*'SUPUESTOS GASTOS'!$D$33),-3)),0) -> 108000 | S78: =ROUNDUP((K78/'SUPUESTOS GASTOS'!$D$13)*H78,-3) -> 41563000 | T78: =IFERROR(IF($E78="PASANTE SENA",ROUNDUP((S78*'SUPUESTOS GASTOS'!$D$20),-3),ROUNDUP((S78*'SUPUESTOS GASTOS'!$D$19),-3)),0) -> 3533000 | U78: =IFERROR(IF($E78="PASANTE SENA",0,ROUNDUP((S78*'SUPUESTOS GASTOS'!$D$18),-3)),0) -> 4988000 | V78: =IFERROR(ROUNDUP(S78*SUMIF('SUPUESTOS GASTOS'!$B$24:$B$28,'Anexo 5 Planta y Equipo de trab'!$B78,'SUPUESTOS GASTOS'!$D$24:$D$28),-3),0) -> 1808000 | W78: =IFERROR(IF($E78="PASANTE SENA",0,ROUNDUP(((S78+AD78)*'SUPUESTOS GASTOS'!$D$31),-3)),0) -> 1732000 | X78: =IFERROR(IF($E78="PASANTE SENA",0,ROUNDUP(((S78+AD78)*'SUPUESTOS GASTOS'!$D$32),-3)),0) -> 866000 | Y78: =IF($C78="E",0,IF($E78="PASANTE SENA",0,IF(K78>=('SUPUESTOS GASTOS'!$D$14*2),0,ROUNDUP(('SUPUESTOS GASTOS'!$D$15/'SUPUESTOS GASTOS'!$D$13)*$H78,-3)))) -> 0 | Z78: =IFERROR(IF($E78="PASANTE SENA",0,ROUNDUP(((S78+AD78)*'SUPUESTOS GASTOS'!$D$33),-3)),0) -> 1299000 | AA78: =IF($E78="PASANTE SENA",0,ROUNDUP(((K78+Q78)*H78)/'SUPUESTOS GASTOS'!$D$12,-3)) -> 3464000 | AB78: =IF($E78="PASANTE SENA",0,ROUNDUP((((AA78)/'SUPUESTOS GASTOS'!$D$12)*H78)*'SUPUESTOS GASTOS'!$D$21,-3)) -> 402000 | AC78: =IF($E78="PASANTE SENA",0,ROUNDUP(((K78+Q78)*H78)/'SUPUESTOS GASTOS'!$D$12,-3)) -> 3464000 | AD78: =IF($E78="PASANTE SENA",0,ROUNDUP((K78*H78)/('SUPUESTOS GASTOS'!$D$12*2),-3)) -> 1732000 | AF78: 64851000
A79: 5 | B79: 3 | C79: C | E79: EXTENSIONISTAS 14 | F79: 2025-01-13 | G79: 2025-12-31 | H79: 348 | I79: =IF(C79="C",'SUPUESTOS GASTOS'!$D$6*SUMIF('SUPUESTOS GASTOS'!$B$38:$B$47,'Anexo 5 Planta y Equipo de trab'!$A79,'SUPUESTOS GASTOS'!$D$38:$D$47),IF($C79="N",0,IF(C79="E",'SUPUESTOS GASTOS'!$D$6*SUMIF('SUPUESTOS GASTOS'!$B$38:$B$47,'Anexo 5 Planta y Equipo de trab'!$A79,'SUPUESTOS GASTOS'!$D$38:$D$47),""))) -> 3380000 | J79: =+'SUPUESTOS GASTOS'!$D$10 -> 0.06 | K79: =IF($C79="C",ROUNDUP((I79*J79)+I79,-3),IF($C79="N",ROUNDUP(('SUPUESTOS GASTOS'!$D$6*SUMIF('SUPUESTOS GASTOS'!$B$38:$B$47,'Anexo 5 Planta y Equipo de trab'!$A79,'SUPUESTOS GASTOS'!$D$38:$D$47)*$J79)+'SUPUESTOS GASTOS'!$D$6*SUMIF('SUPUESTOS GASTOS'!$B$38:$B$47,'Anexo 5 Planta y Equipo de trab'!$A79,'SUPUESTOS GASTOS'!$D$38:$D$47),-3),IF($C79="E",0))) -> 3583000 | L79: =IFERROR(IF($E79="PASANTE SENA",ROUNDUP((K79*'SUPUESTOS GASTOS'!$D$20),-3),ROUNDUP((K79*'SUPUESTOS GASTOS'!$D$19),-3)),0) -> 305000 | M79: =IFERROR(IF($E79="PASANTE SENA",0,ROUNDUP((K79*'SUPUESTOS GASTOS'!$D$18),-3)),0) -> 430000 | N79: =IFERROR(ROUNDUP(K79*SUMIF('SUPUESTOS GASTOS'!$B$24:$B$28,'Anexo 5 Planta y Equipo de trab'!$B79,'SUPUESTOS GASTOS'!$D$24:$D$28),-3),0) -> 156000 | O79: =IFERROR(IF($E79="PASANTE SENA",0,ROUNDUP((K79*'SUPUESTOS GASTOS'!$D$31),-3)),0) -> 144000 | P79: =IFERROR(IF($E79="PASANTE SENA",0,ROUNDUP((K79*'SUPUESTOS GASTOS'!$D$32),-3)),0) -> 72000 | Q79: =IF($C79="E",0,IF($E79="PASANTE SENA",0,IF(K79>=('SUPUESTOS GASTOS'!$D$14*2),0,ROUNDUP('SUPUESTOS GASTOS'!$D$15,-3)))) -> 0 | R79: =IFERROR(IF($E79="PASANTE SENA",0,ROUNDUP((K79*'SUPUESTOS GASTOS'!$D$33),-3)),0) -> 108000 | S79: =ROUNDUP((K79/'SUPUESTOS GASTOS'!$D$13)*H79,-3) -> 41563000 | T79: =IFERROR(IF($E79="PASANTE SENA",ROUNDUP((S79*'SUPUESTOS GASTOS'!$D$20),-3),ROUNDUP((S79*'SUPUESTOS GASTOS'!$D$19),-3)),0) -> 3533000 | U79: =IFERROR(IF($E79="PASANTE SENA",0,ROUNDUP((S79*'SUPUESTOS GASTOS'!$D$18),-3)),0) -> 4988000 | V79: =IFERROR(ROUNDUP(S79*SUMIF('SUPUESTOS GASTOS'!$B$24:$B$28,'Anexo 5 Planta y Equipo de trab'!$B79,'SUPUESTOS GASTOS'!$D$24:$D$28),-3),0) -> 1808000 | W79: =IFERROR(IF($E79="PASANTE SENA",0,ROUNDUP(((S79+AD79)*'SUPUESTOS GASTOS'!$D$31),-3)),0) -> 1732000 | X79: =IFERROR(IF($E79="PASANTE SENA",0,ROUNDUP(((S79+AD79)*'SUPUESTOS GASTOS'!$D$32),-3)),0) -> 866000 | Y79: =IF($C79="E",0,IF($E79="PASANTE SENA",0,IF(K79>=('SUPUESTOS GASTOS'!$D$14*2),0,ROUNDUP(('SUPUESTOS GASTOS'!$D$15/'SUPUESTOS GASTOS'!$D$13)*$H79,-3)))) -> 0 | Z79: =IFERROR(IF($E79="PASANTE SENA",0,ROUNDUP(((S79+AD79)*'SUPUESTOS GASTOS'!$D$33),-3)),0) -> 1299000 | AA79: =IF($E79="PASANTE SENA",0,ROUNDUP(((K79+Q79)*H79)/'SUPUESTOS GASTOS'!$D$12,-3)) -> 3464000 | AB79: =IF($E79="PASANTE SENA",0,ROUNDUP((((AA79)/'SUPUESTOS GASTOS'!$D$12)*H79)*'SUPUESTOS GASTOS'!$D$21,-3)) -> 402000 | AC79: =IF($E79="PASANTE SENA",0,ROUNDUP(((K79+Q79)*H79)/'SUPUESTOS GASTOS'!$D$12,-3)) -> 3464000 | AD79: =IF($E79="PASANTE SENA",0,ROUNDUP((K79*H79)/('SUPUESTOS GASTOS'!$D$12*2),-3)) -> 1732000 | AF79: 64851000
A80: 5 | B80: 3 | C80: C | E80: EXTENSIONISTAS 15 | F80: 2025-01-13 | G80: 2025-12-31 | H80: 348 | I80: =IF(C80="C",'SUPUESTOS GASTOS'!$D$6*SUMIF('SUPUESTOS GASTOS'!$B$38:$B$47,'Anexo 5 Planta y Equipo de trab'!$A80,'SUPUESTOS GASTOS'!$D$38:$D$47),IF($C80="N",0,IF(C80="E",'SUPUESTOS GASTOS'!$D$6*SUMIF('SUPUESTOS GASTOS'!$B$38:$B$47,'Anexo 5 Planta y Equipo de trab'!$A80,'SUPUESTOS GASTOS'!$D$38:$D$47),""))) -> 3380000 | J80: =+'SUPUESTOS GASTOS'!$D$10 -> 0.06 | K80: =IF($C80="C",ROUNDUP((I80*J80)+I80,-3),IF($C80="N",ROUNDUP(('SUPUESTOS GASTOS'!$D$6*SUMIF('SUPUESTOS GASTOS'!$B$38:$B$47,'Anexo 5 Planta y Equipo de trab'!$A80,'SUPUESTOS GASTOS'!$D$38:$D$47)*$J80)+'SUPUESTOS GASTOS'!$D$6*SUMIF('SUPUESTOS GASTOS'!$B$38:$B$47,'Anexo 5 Planta y Equipo de trab'!$A80,'SUPUESTOS GASTOS'!$D$38:$D$47),-3),IF($C80="E",0))) -> 3583000 | L80: =IFERROR(IF($E80="PASANTE SENA",ROUNDUP((K80*'SUPUESTOS GASTOS'!$D$20),-3),ROUNDUP((K80*'SUPUESTOS GASTOS'!$D$19),-3)),0) -> 305000 | M80: =IFERROR(IF($E80="PASANTE SENA",0,ROUNDUP((K80*'SUPUESTOS GASTOS'!$D$18),-3)),0) -> 430000 | N80: =IFERROR(ROUNDUP(K80*SUMIF('SUPUESTOS GASTOS'!$B$24:$B$28,'Anexo 5 Planta y Equipo de trab'!$B80,'SUPUESTOS GASTOS'!$D$24:$D$28),-3),0) -> 156000 | O80: =IFERROR(IF($E80="PASANTE SENA",0,ROUNDUP((K80*'SUPUESTOS GASTOS'!$D$31),-3)),0) -> 144000 | P80: =IFERROR(IF($E80="PASANTE SENA",0,ROUNDUP((K80*'SUPUESTOS GASTOS'!$D$32),-3)),0) -> 72000 | Q80: =IF($C80="E",0,IF($E80="PASANTE SENA",0,IF(K80>=('SUPUESTOS GASTOS'!$D$14*2),0,ROUNDUP('SUPUESTOS GASTOS'!$D$15,-3)))) -> 0 | R80: =IFERROR(IF($E80="PASANTE SENA",0,ROUNDUP((K80*'SUPUESTOS GASTOS'!$D$33),-3)),0) -> 108000 | S80: =ROUNDUP((K80/'SUPUESTOS GASTOS'!$D$13)*H80,-3) -> 41563000 | T80: =IFERROR(IF($E80="PASANTE SENA",ROUNDUP((S80*'SUPUESTOS GASTOS'!$D$20),-3),ROUNDUP((S80*'SUPUESTOS GASTOS'!$D$19),-3)),0) -> 3533000 | U80: =IFERROR(IF($E80="PASANTE SENA",0,ROUNDUP((S80*'SUPUESTOS GASTOS'!$D$18),-3)),0) -> 4988000 | V80: =IFERROR(ROUNDUP(S80*SUMIF('SUPUESTOS GASTOS'!$B$24:$B$28,'Anexo 5 Planta y Equipo de trab'!$B80,'SUPUESTOS GASTOS'!$D$24:$D$28),-3),0) -> 1808000 | W80: =IFERROR(IF($E80="PASANTE SENA",0,ROUNDUP(((S80+AD80)*'SUPUESTOS GASTOS'!$D$31),-3)),0) -> 1732000 | X80: =IFERROR(IF($E80="PASANTE SENA",0,ROUNDUP(((S80+AD80)*'SUPUESTOS GASTOS'!$D$32),-3)),0) -> 866000 | Y80: =IF($C80="E",0,IF($E80="PASANTE SENA",0,IF(K80>=('SUPUESTOS GASTOS'!$D$14*2),0,ROUNDUP(('SUPUESTOS GASTOS'!$D$15/'SUPUESTOS GASTOS'!$D$13)*$H80,-3)))) -> 0 | Z80: =IFERROR(IF($E80="PASANTE SENA",0,ROUNDUP(((S80+AD80)*'SUPUESTOS GASTOS'!$D$33),-3)),0) -> 1299000 | AA80: =IF($E80="PASANTE SENA",0,ROUNDUP(((K80+Q80)*H80)/'SUPUESTOS GASTOS'!$D$12,-3)) -> 3464000 | AB80: =IF($E80="PASANTE SENA",0,ROUNDUP((((AA80)/'SUPUESTOS GASTOS'!$D$12)*H80)*'SUPUESTOS GASTOS'!$D$21,-3)) -> 402000 | AC80: =IF($E80="PASANTE SENA",0,ROUNDUP(((K80+Q80)*H80)/'SUPUESTOS GASTOS'!$D$12,-3)) -> 3464000 | AD80: =IF($E80="PASANTE SENA",0,ROUNDUP((K80*H80)/('SUPUESTOS GASTOS'!$D$12*2),-3)) -> 1732000 | AF80: 64851000
A81: 5 | B81: 3 | C81: C | E81: EXTENSIONISTAS 16 | F81: 2025-01-13 | G81: 2025-12-31 | H81: 348 | I81: =IF(C81="C",'SUPUESTOS GASTOS'!$D$6*SUMIF('SUPUESTOS GASTOS'!$B$38:$B$47,'Anexo 5 Planta y Equipo de trab'!$A81,'SUPUESTOS GASTOS'!$D$38:$D$47),IF($C81="N",0,IF(C81="E",'SUPUESTOS GASTOS'!$D$6*SUMIF('SUPUESTOS GASTOS'!$B$38:$B$47,'Anexo 5 Planta y Equipo de trab'!$A81,'SUPUESTOS GASTOS'!$D$38:$D$47),""))) -> 3380000 | J81: =+'SUPUESTOS GASTOS'!$D$10 -> 0.06 | K81: =IF($C81="C",ROUNDUP((I81*J81)+I81,-3),IF($C81="N",ROUNDUP(('SUPUESTOS GASTOS'!$D$6*SUMIF('SUPUESTOS GASTOS'!$B$38:$B$47,'Anexo 5 Planta y Equipo de trab'!$A81,'SUPUESTOS GASTOS'!$D$38:$D$47)*$J81)+'SUPUESTOS GASTOS'!$D$6*SUMIF('SUPUESTOS GASTOS'!$B$38:$B$47,'Anexo 5 Planta y Equipo de trab'!$A81,'SUPUESTOS GASTOS'!$D$38:$D$47),-3),IF($C81="E",0))) -> 3583000 | L81: =IFERROR(IF($E81="PASANTE SENA",ROUNDUP((K81*'SUPUESTOS GASTOS'!$D$20),-3),ROUNDUP((K81*'SUPUESTOS GASTOS'!$D$19),-3)),0) -> 305000 | M81: =IFERROR(IF($E81="PASANTE SENA",0,ROUNDUP((K81*'SUPUESTOS GASTOS'!$D$18),-3)),0) -> 430000 | N81: =IFERROR(ROUNDUP(K81*SUMIF('SUPUESTOS GASTOS'!$B$24:$B$28,'Anexo 5 Planta y Equipo de trab'!$B81,'SUPUESTOS GASTOS'!$D$24:$D$28),-3),0) -> 156000 | O81: =IFERROR(IF($E81="PASANTE SENA",0,ROUNDUP((K81*'SUPUESTOS GASTOS'!$D$31),-3)),0) -> 144000 | P81: =IFERROR(IF($E81="PASANTE SENA",0,ROUNDUP((K81*'SUPUESTOS GASTOS'!$D$32),-3)),0) -> 72000 | Q81: =IF($C81="E",0,IF($E81="PASANTE SENA",0,IF(K81>=('SUPUESTOS GASTOS'!$D$14*2),0,ROUNDUP('SUPUESTOS GASTOS'!$D$15,-3)))) -> 0 | R81: =IFERROR(IF($E81="PASANTE SENA",0,ROUNDUP((K81*'SUPUESTOS GASTOS'!$D$33),-3)),0) -> 108000 | S81: =ROUNDUP((K81/'SUPUESTOS GASTOS'!$D$13)*H81,-3) -> 41563000 | T81: =IFERROR(IF($E81="PASANTE SENA",ROUNDUP((S81*'SUPUESTOS GASTOS'!$D$20),-3),ROUNDUP((S81*'SUPUESTOS GASTOS'!$D$19),-3)),0) -> 3533000 | U81: =IFERROR(IF($E81="PASANTE SENA",0,ROUNDUP((S81*'SUPUESTOS GASTOS'!$D$18),-3)),0) -> 4988000 | V81: =IFERROR(ROUNDUP(S81*SUMIF('SUPUESTOS GASTOS'!$B$24:$B$28,'Anexo 5 Planta y Equipo de trab'!$B81,'SUPUESTOS GASTOS'!$D$24:$D$28),-3),0) -> 1808000 | W81: =IFERROR(IF($E81="PASANTE SENA",0,ROUNDUP(((S81+AD81)*'SUPUESTOS GASTOS'!$D$31),-3)),0) -> 1732000 | X81: =IFERROR(IF($E81="PASANTE SENA",0,ROUNDUP(((S81+AD81)*'SUPUESTOS GASTOS'!$D$32),-3)),0) -> 866000 | Y81: =IF($C81="E",0,IF($E81="PASANTE SENA",0,IF(K81>=('SUPUESTOS GASTOS'!$D$14*2),0,ROUNDUP(('SUPUESTOS GASTOS'!$D$15/'SUPUESTOS GASTOS'!$D$13)*$H81,-3)))) -> 0 | Z81: =IFERROR(IF($E81="PASANTE SENA",0,ROUNDUP(((S81+AD81)*'SUPUESTOS GASTOS'!$D$33),-3)),0) -> 1299000 | AA81: =IF($E81="PASANTE SENA",0,ROUNDUP(((K81+Q81)*H81)/'SUPUESTOS GASTOS'!$D$12,-3)) -> 3464000 | AB81: =IF($E81="PASANTE SENA",0,ROUNDUP((((AA81)/'SUPUESTOS GASTOS'!$D$12)*H81)*'SUPUESTOS GASTOS'!$D$21,-3)) -> 402000 | AC81: =IF($E81="PASANTE SENA",0,ROUNDUP(((K81+Q81)*H81)/'SUPUESTOS GASTOS'!$D$12,-3)) -> 3464000 | AD81: =IF($E81="PASANTE SENA",0,ROUNDUP((K81*H81)/('SUPUESTOS GASTOS'!$D$12*2),-3)) -> 1732000 | AF81: 64851000
A82: 5 | B82: 3 | C82: C | E82: EXTENSIONISTAS 17 | F82: 2025-01-13 | G82: 2025-12-31 | H82: 348 | I82: =IF(C82="C",'SUPUESTOS GASTOS'!$D$6*SUMIF('SUPUESTOS GASTOS'!$B$38:$B$47,'Anexo 5 Planta y Equipo de trab'!$A82,'SUPUESTOS GASTOS'!$D$38:$D$47),IF($C82="N",0,IF(C82="E",'SUPUESTOS GASTOS'!$D$6*SUMIF('SUPUESTOS GASTOS'!$B$38:$B$47,'Anexo 5 Planta y Equipo de trab'!$A82,'SUPUESTOS GASTOS'!$D$38:$D$47),""))) -> 3380000 | J82: =+'SUPUESTOS GASTOS'!$D$10 -> 0.06 | K82: =IF($C82="C",ROUNDUP((I82*J82)+I82,-3),IF($C82="N",ROUNDUP(('SUPUESTOS GASTOS'!$D$6*SUMIF('SUPUESTOS GASTOS'!$B$38:$B$47,'Anexo 5 Planta y Equipo de trab'!$A82,'SUPUESTOS GASTOS'!$D$38:$D$47)*$J82)+'SUPUESTOS GASTOS'!$D$6*SUMIF('SUPUESTOS GASTOS'!$B$38:$B$47,'Anexo 5 Planta y Equipo de trab'!$A82,'SUPUESTOS GASTOS'!$D$38:$D$47),-3),IF($C82="E",0))) -> 3583000 | L82: =IFERROR(IF($E82="PASANTE SENA",ROUNDUP((K82*'SUPUESTOS GASTOS'!$D$20),-3),ROUNDUP((K82*'SUPUESTOS GASTOS'!$D$19),-3)),0) -> 305000 | M82: =IFERROR(IF($E82="PASANTE SENA",0,ROUNDUP((K82*'SUPUESTOS GASTOS'!$D$18),-3)),0) -> 430000 | N82: =IFERROR(ROUNDUP(K82*SUMIF('SUPUESTOS GASTOS'!$B$24:$B$28,'Anexo 5 Planta y Equipo de trab'!$B82,'SUPUESTOS GASTOS'!$D$24:$D$28),-3),0) -> 156000 | O82: =IFERROR(IF($E82="PASANTE SENA",0,ROUNDUP((K82*'SUPUESTOS GASTOS'!$D$31),-3)),0) -> 144000 | P82: =IFERROR(IF($E82="PASANTE SENA",0,ROUNDUP((K82*'SUPUESTOS GASTOS'!$D$32),-3)),0) -> 72000 | Q82: =IF($C82="E",0,IF($E82="PASANTE SENA",0,IF(K82>=('SUPUESTOS GASTOS'!$D$14*2),0,ROUNDUP('SUPUESTOS GASTOS'!$D$15,-3)))) -> 0 | R82: =IFERROR(IF($E82="PASANTE SENA",0,ROUNDUP((K82*'SUPUESTOS GASTOS'!$D$33),-3)),0) -> 108000 | S82: =ROUNDUP((K82/'SUPUESTOS GASTOS'!$D$13)*H82,-3) -> 41563000 | T82: =IFERROR(IF($E82="PASANTE SENA",ROUNDUP((S82*'SUPUESTOS GASTOS'!$D$20),-3),ROUNDUP((S82*'SUPUESTOS GASTOS'!$D$19),-3)),0) -> 3533000 | U82: =IFERROR(IF($E82="PASANTE SENA",0,ROUNDUP((S82*'SUPUESTOS GASTOS'!$D$18),-3)),0) -> 4988000 | V82: =IFERROR(ROUNDUP(S82*SUMIF('SUPUESTOS GASTOS'!$B$24:$B$28,'Anexo 5 Planta y Equipo de trab'!$B82,'SUPUESTOS GASTOS'!$D$24:$D$28),-3),0) -> 1808000 | W82: =IFERROR(IF($E82="PASANTE SENA",0,ROUNDUP(((S82+AD82)*'SUPUESTOS GASTOS'!$D$31),-3)),0) -> 1732000 | X82: =IFERROR(IF($E82="PASANTE SENA",0,ROUNDUP(((S82+AD82)*'SUPUESTOS GASTOS'!$D$32),-3)),0) -> 866000 | Y82: =IF($C82="E",0,IF($E82="PASANTE SENA",0,IF(K82>=('SUPUESTOS GASTOS'!$D$14*2),0,ROUNDUP(('SUPUESTOS GASTOS'!$D$15/'SUPUESTOS GASTOS'!$D$13)*$H82,-3)))) -> 0 | Z82: =IFERROR(IF($E82="PASANTE SENA",0,ROUNDUP(((S82+AD82)*'SUPUESTOS GASTOS'!$D$33),-3)),0) -> 1299000 | AA82: =IF($E82="PASANTE SENA",0,ROUNDUP(((K82+Q82)*H82)/'SUPUESTOS GASTOS'!$D$12,-3)) -> 3464000 | AB82: =IF($E82="PASANTE SENA",0,ROUNDUP((((AA82)/'SUPUESTOS GASTOS'!$D$12)*H82)*'SUPUESTOS GASTOS'!$D$21,-3)) -> 402000 | AC82: =IF($E82="PASANTE SENA",0,ROUNDUP(((K82+Q82)*H82)/'SUPUESTOS GASTOS'!$D$12,-3)) -> 3464000 | AD82: =IF($E82="PASANTE SENA",0,ROUNDUP((K82*H82)/('SUPUESTOS GASTOS'!$D$12*2),-3)) -> 1732000 | AF82: 64851000
A83: 5 | B83: 3 | C83: C | E83: EXTENSIONISTAS 18 | F83: 2025-01-13 | G83: 2025-12-31 | H83: 348 | I83: =IF(C83="C",'SUPUESTOS GASTOS'!$D$6*SUMIF('SUPUESTOS GASTOS'!$B$38:$B$47,'Anexo 5 Planta y Equipo de trab'!$A83,'SUPUESTOS GASTOS'!$D$38:$D$47),IF($C83="N",0,IF(C83="E",'SUPUESTOS GASTOS'!$D$6*SUMIF('SUPUESTOS GASTOS'!$B$38:$B$47,'Anexo 5 Planta y Equipo de trab'!$A83,'SUPUESTOS GASTOS'!$D$38:$D$47),""))) -> 3380000 | J83: =+'SUPUESTOS GASTOS'!$D$10 -> 0.06 | K83: =IF($C83="C",ROUNDUP((I83*J83)+I83,-3),IF($C83="N",ROUNDUP(('SUPUESTOS GASTOS'!$D$6*SUMIF('SUPUESTOS GASTOS'!$B$38:$B$47,'Anexo 5 Planta y Equipo de trab'!$A83,'SUPUESTOS GASTOS'!$D$38:$D$47)*$J83)+'SUPUESTOS GASTOS'!$D$6*SUMIF('SUPUESTOS GASTOS'!$B$38:$B$47,'Anexo 5 Planta y Equipo de trab'!$A83,'SUPUESTOS GASTOS'!$D$38:$D$47),-3),IF($C83="E",0))) -> 3583000 | L83: =IFERROR(IF($E83="PASANTE SENA",ROUNDUP((K83*'SUPUESTOS GASTOS'!$D$20),-3),ROUNDUP((K83*'SUPUESTOS GASTOS'!$D$19),-3)),0) -> 305000 | M83: =IFERROR(IF($E83="PASANTE SENA",0,ROUNDUP((K83*'SUPUESTOS GASTOS'!$D$18),-3)),0) -> 430000 | N83: =IFERROR(ROUNDUP(K83*SUMIF('SUPUESTOS GASTOS'!$B$24:$B$28,'Anexo 5 Planta y Equipo de trab'!$B83,'SUPUESTOS GASTOS'!$D$24:$D$28),-3),0) -> 156000 | O83: =IFERROR(IF($E83="PASANTE SENA",0,ROUNDUP((K83*'SUPUESTOS GASTOS'!$D$31),-3)),0) -> 144000 | P83: =IFERROR(IF($E83="PASANTE SENA",0,ROUNDUP((K83*'SUPUESTOS GASTOS'!$D$32),-3)),0) -> 72000 | Q83: =IF($C83="E",0,IF($E83="PASANTE SENA",0,IF(K83>=('SUPUESTOS GASTOS'!$D$14*2),0,ROUNDUP('SUPUESTOS GASTOS'!$D$15,-3)))) -> 0 | R83: =IFERROR(IF($E83="PASANTE SENA",0,ROUNDUP((K83*'SUPUESTOS GASTOS'!$D$33),-3)),0) -> 108000 | S83: =ROUNDUP((K83/'SUPUESTOS GASTOS'!$D$13)*H83,-3) -> 41563000 | T83: =IFERROR(IF($E83="PASANTE SENA",ROUNDUP((S83*'SUPUESTOS GASTOS'!$D$20),-3),ROUNDUP((S83*'SUPUESTOS GASTOS'!$D$19),-3)),0) -> 3533000 | U83: =IFERROR(IF($E83="PASANTE SENA",0,ROUNDUP((S83*'SUPUESTOS GASTOS'!$D$18),-3)),0) -> 4988000 | V83: =IFERROR(ROUNDUP(S83*SUMIF('SUPUESTOS GASTOS'!$B$24:$B$28,'Anexo 5 Planta y Equipo de trab'!$B83,'SUPUESTOS GASTOS'!$D$24:$D$28),-3),0) -> 1808000 | W83: =IFERROR(IF($E83="PASANTE SENA",0,ROUNDUP(((S83+AD83)*'SUPUESTOS GASTOS'!$D$31),-3)),0) -> 1732000 | X83: =IFERROR(IF($E83="PASANTE SENA",0,ROUNDUP(((S83+AD83)*'SUPUESTOS GASTOS'!$D$32),-3)),0) -> 866000 | Y83: =IF($C83="E",0,IF($E83="PASANTE SENA",0,IF(K83>=('SUPUESTOS GASTOS'!$D$14*2),0,ROUNDUP(('SUPUESTOS GASTOS'!$D$15/'SUPUESTOS GASTOS'!$D$13)*$H83,-3)))) -> 0 | Z83: =IFERROR(IF($E83="PASANTE SENA",0,ROUNDUP(((S83+AD83)*'SUPUESTOS GASTOS'!$D$33),-3)),0) -> 1299000 | AA83: =IF($E83="PASANTE SENA",0,ROUNDUP(((K83+Q83)*H83)/'SUPUESTOS GASTOS'!$D$12,-3)) -> 3464000 | AB83: =IF($E83="PASANTE SENA",0,ROUNDUP((((AA83)/'SUPUESTOS GASTOS'!$D$12)*H83)*'SUPUESTOS GASTOS'!$D$21,-3)) -> 402000 | AC83: =IF($E83="PASANTE SENA",0,ROUNDUP(((K83+Q83)*H83)/'SUPUESTOS GASTOS'!$D$12,-3)) -> 3464000 | AD83: =IF($E83="PASANTE SENA",0,ROUNDUP((K83*H83)/('SUPUESTOS GASTOS'!$D$12*2),-3)) -> 1732000 | AF83: 64851000
A84: 5 | B84: 5 | C84: E | E84: PROFESIONAL INVESTIGACIÓN Y TRANSFERENCIA DE TECNOLOGÍA | F84: 2025-01-02 | G84: 2025-12-31 | H84: =DAYS360(F84,G84) -> 359 | I84: =IF(C84="C",'SUPUESTOS GASTOS'!$D$6*SUMIF('SUPUESTOS GASTOS'!$B$38:$B$47,'Anexo 5 Planta y Equipo de trab'!$A84,'SUPUESTOS GASTOS'!$D$38:$D$47),IF($C84="N",0,IF(C84="E",'SUPUESTOS GASTOS'!$D$6*SUMIF('SUPUESTOS GASTOS'!$B$38:$B$47,'Anexo 5 Planta y Equipo de trab'!$A84,'SUPUESTOS GASTOS'!$D$38:$D$47),""))) -> 3380000 | J84: =+'SUPUESTOS GASTOS'!$D$10 -> 0.06 | K84: =IF($C84="C",ROUNDUP((I84*J84)+I84,-3),IF($C84="N",ROUNDUP(('SUPUESTOS GASTOS'!$D$6*SUMIF('SUPUESTOS GASTOS'!$B$38:$B$47,'Anexo 5 Planta y Equipo de trab'!$A84,'SUPUESTOS GASTOS'!$D$38:$D$47)*$J84)+'SUPUESTOS GASTOS'!$D$6*SUMIF('SUPUESTOS GASTOS'!$B$38:$B$47,'Anexo 5 Planta y Equipo de trab'!$A84,'SUPUESTOS GASTOS'!$D$38:$D$47),-3),IF($C84="E",0))) -> 0 | L84: =IFERROR(IF($E84="PASANTE SENA",ROUNDUP((K84*'SUPUESTOS GASTOS'!$D$20),-3),ROUNDUP((K84*'SUPUESTOS GASTOS'!$D$19),-3)),0) -> 0 | M84: =IFERROR(IF($E84="PASANTE SENA",0,ROUNDUP((K84*'SUPUESTOS GASTOS'!$D$18),-3)),0) -> 0 | N84: =IFERROR(ROUNDUP(K84*SUMIF('SUPUESTOS GASTOS'!$B$24:$B$28,'Anexo 5 Planta y Equipo de trab'!$B84,'SUPUESTOS GASTOS'!$D$24:$D$28),-3),0) -> 0 | O84: =IFERROR(IF($E84="PASANTE SENA",0,ROUNDUP((K84*'SUPUESTOS GASTOS'!$D$31),-3)),0) -> 0 | P84: =IFERROR(IF($E84="PASANTE SENA",0,ROUNDUP((K84*'SUPUESTOS GASTOS'!$D$32),-3)),0) -> 0 | Q84: =IF($C84="E",0,IF($E84="PASANTE SENA",0,IF(K84>=('SUPUESTOS GASTOS'!$D$14*2),0,ROUNDUP('SUPUESTOS GASTOS'!$D$15,-3)))) -> 0 | R84: =IFERROR(IF($E84="PASANTE SENA",0,ROUNDUP((K84*'SUPUESTOS GASTOS'!$D$33),-3)),0) -> 0 | S84: =ROUNDUP((K84/'SUPUESTOS GASTOS'!$D$13)*H84,-3) -> 0 | T84: =IFERROR(IF($E84="PASANTE SENA",ROUNDUP((S84*'SUPUESTOS GASTOS'!$D$20),-3),ROUNDUP((S84*'SUPUESTOS GASTOS'!$D$19),-3)),0) -> 0 | U84: =IFERROR(IF($E84="PASANTE SENA",0,ROUNDUP((S84*'SUPUESTOS GASTOS'!$D$18),-3)),0) -> 0 | V84: =IFERROR(ROUNDUP(S84*SUMIF('SUPUESTOS GASTOS'!$B$24:$B$28,'Anexo 5 Planta y Equipo de trab'!$B84,'SUPUESTOS GASTOS'!$D$24:$D$28),-3),0) -> 0 | W84: =IFERROR(IF($E84="PASANTE SENA",0,ROUNDUP(((S84+AD84)*'SUPUESTOS GASTOS'!$D$31),-3)),0) -> 0 | X84: =IFERROR(IF($E84="PASANTE SENA",0,ROUNDUP(((S84+AD84)*'SUPUESTOS GASTOS'!$D$32),-3)),0) -> 0 | Y84: =IF($C84="E",0,IF($E84="PASANTE SENA",0,IF(K84>=('SUPUESTOS GASTOS'!$D$14*2),0,ROUNDUP(('SUPUESTOS GASTOS'!$D$15/'SUPUESTOS GASTOS'!$D$13)*$H84,-3)))) -> 0 | Z84: =IFERROR(IF($E84="PASANTE SENA",0,ROUNDUP(((S84+AD84)*'SUPUESTOS GASTOS'!$D$33),-3)),0) -> 0 | AA84: =IF($E84="PASANTE SENA",0,ROUNDUP(((K84+Q84)*H84)/'SUPUESTOS GASTOS'!$D$12,-3)) -> 0 | AB84: =IF($E84="PASANTE SENA",0,ROUNDUP((((AA84)/'SUPUESTOS GASTOS'!$D$12)*H84)*'SUPUESTOS GASTOS'!$D$21,-3)) -> 0 | AC84: =IF($E84="PASANTE SENA",0,ROUNDUP(((K84+Q84)*H84)/'SUPUESTOS GASTOS'!$D$12,-3)) -> 0 | AD84: =IF($E84="PASANTE SENA",0,ROUNDUP((K84*H84)/('SUPUESTOS GASTOS'!$D$12*2),-3)) -> 0 | AF84: 0
A85: 7 | B85: 5 | C85: C | E85: ANALISTA AREA TECNICA | F85: 2025-01-02 | G85: 2025-12-31 | H85: =DAYS360(F85,G85) -> 359 | I85: =IF(C85="C",'SUPUESTOS GASTOS'!$D$6*SUMIF('SUPUESTOS GASTOS'!$B$38:$B$47,'Anexo 5 Planta y Equipo de trab'!$A85,'SUPUESTOS GASTOS'!$D$38:$D$47),IF($C85="N",0,IF(C85="E",'SUPUESTOS GASTOS'!$D$6*SUMIF('SUPUESTOS GASTOS'!$B$38:$B$47,'Anexo 5 Planta y Equipo de trab'!$A85,'SUPUESTOS GASTOS'!$D$38:$D$47),""))) -> 1950000 | J85: =+'SUPUESTOS GASTOS'!$D$10 -> 0.06 | K85: =IF($C85="C",ROUNDUP((I85*J85)+I85,-3),IF($C85="N",ROUNDUP(('SUPUESTOS GASTOS'!$D$6*SUMIF('SUPUESTOS GASTOS'!$B$38:$B$47,'Anexo 5 Planta y Equipo de trab'!$A85,'SUPUESTOS GASTOS'!$D$38:$D$47)*$J85)+'SUPUESTOS GASTOS'!$D$6*SUMIF('SUPUESTOS GASTOS'!$B$38:$B$47,'Anexo 5 Planta y Equipo de trab'!$A85,'SUPUESTOS GASTOS'!$D$38:$D$47),-3),IF($C85="E",0))) -> 2067000 | L85: =IFERROR(IF($E85="PASANTE SENA",ROUNDUP((K85*'SUPUESTOS GASTOS'!$D$20),-3),ROUNDUP((K85*'SUPUESTOS GASTOS'!$D$19),-3)),0) -> 176000 | M85: =IFERROR(IF($E85="PASANTE SENA",0,ROUNDUP((K85*'SUPUESTOS GASTOS'!$D$18),-3)),0) -> 249000 | N85: =IFERROR(ROUNDUP(K85*SUMIF('SUPUESTOS GASTOS'!$B$24:$B$28,'Anexo 5 Planta y Equipo de trab'!$B85,'SUPUESTOS GASTOS'!$D$24:$D$28),-3),0) -> 22000 | O85: =IFERROR(IF($E85="PASANTE SENA",0,ROUNDUP((K85*'SUPUESTOS GASTOS'!$D$31),-3)),0) -> 83000 | P85: =IFERROR(IF($E85="PASANTE SENA",0,ROUNDUP((K85*'SUPUESTOS GASTOS'!$D$32),-3)),0) -> 42000 | Q85: =IF($C85="E",0,IF($E85="PASANTE SENA",0,IF(K85>=('SUPUESTOS GASTOS'!$D$14*2),0,ROUNDUP('SUPUESTOS GASTOS'!$D$15,-3)))) -> 172000 | R85: =IFERROR(IF($E85="PASANTE SENA",0,ROUNDUP((K85*'SUPUESTOS GASTOS'!$D$33),-3)),0) -> 63000 | S85: =ROUNDUP((K85/'SUPUESTOS GASTOS'!$D$13)*H85,-3) -> 24736000 | T85: =IFERROR(IF($E85="PASANTE SENA",ROUNDUP((S85*'SUPUESTOS GASTOS'!$D$20),-3),ROUNDUP((S85*'SUPUESTOS GASTOS'!$D$19),-3)),0) -> 2103000 | U85: =IFERROR(IF($E85="PASANTE SENA",0,ROUNDUP((S85*'SUPUESTOS GASTOS'!$D$18),-3)),0) -> 2969000 | V85: =IFERROR(ROUNDUP(S85*SUMIF('SUPUESTOS GASTOS'!$B$24:$B$28,'Anexo 5 Planta y Equipo de trab'!$B85,'SUPUESTOS GASTOS'!$D$24:$D$28),-3),0) -> 259000 | W85: =IFERROR(IF($E85="PASANTE SENA",0,ROUNDUP(((S85+AD85)*'SUPUESTOS GASTOS'!$D$31),-3)),0) -> 1031000 | X85: =IFERROR(IF($E85="PASANTE SENA",0,ROUNDUP(((S85+AD85)*'SUPUESTOS GASTOS'!$D$32),-3)),0) -> 516000 | Y85: =IF($C85="E",0,IF($E85="PASANTE SENA",0,IF(K85>=('SUPUESTOS GASTOS'!$D$14*2),0,ROUNDUP(('SUPUESTOS GASTOS'!$D$15/'SUPUESTOS GASTOS'!$D$13)*$H85,-3)))) -> 2055000 | Z85: =IFERROR(IF($E85="PASANTE SENA",0,ROUNDUP(((S85+AD85)*'SUPUESTOS GASTOS'!$D$33),-3)),0) -> 774000 | AA85: =IF($E85="PASANTE SENA",0,ROUNDUP(((K85+Q85)*H85)/'SUPUESTOS GASTOS'!$D$12,-3)) -> 2233000 | AB85: =IF($E85="PASANTE SENA",0,ROUNDUP((((AA85)/'SUPUESTOS GASTOS'!$D$12)*H85)*'SUPUESTOS GASTOS'!$D$21,-3)) -> 268000 | AC85: =IF($E85="PASANTE SENA",0,ROUNDUP(((K85+Q85)*H85)/'SUPUESTOS GASTOS'!$D$12,-3)) -> 2233000 | AD85: =IF($E85="PASANTE SENA",0,ROUNDUP((K85*H85)/('SUPUESTOS GASTOS'!$D$12*2),-3)) -> 1031000 | AF85: 40208000
A86: 7 | B86: 5 | C86: N | E86: ANALISTA ADMINISTRATIVO | F86: 2025-01-02 | G86: 2025-12-31 | H86: =DAYS360(F86,G86) -> 359 | I86: =IF(C86="C",'SUPUESTOS GASTOS'!$D$6*SUMIF('SUPUESTOS GASTOS'!$B$38:$B$47,'Anexo 5 Planta y Equipo de trab'!$A86,'SUPUESTOS GASTOS'!$D$38:$D$47),IF($C86="N",0,IF(C86="E",'SUPUESTOS GASTOS'!$D$6*SUMIF('SUPUESTOS GASTOS'!$B$38:$B$47,'Anexo 5 Planta y Equipo de trab'!$A86,'SUPUESTOS GASTOS'!$D$38:$D$47),""))) -> 0 | J86: =+'SUPUESTOS GASTOS'!$D$10 -> 0.06 | K86: =IF($C86="C",ROUNDUP((I86*J86)+I86,-3),IF($C86="N",ROUNDUP(('SUPUESTOS GASTOS'!$D$6*SUMIF('SUPUESTOS GASTOS'!$B$38:$B$47,'Anexo 5 Planta y Equipo de trab'!$A86,'SUPUESTOS GASTOS'!$D$38:$D$47)*$J86)+'SUPUESTOS GASTOS'!$D$6*SUMIF('SUPUESTOS GASTOS'!$B$38:$B$47,'Anexo 5 Planta y Equipo de trab'!$A86,'SUPUESTOS GASTOS'!$D$38:$D$47),-3),IF($C86="E",0))) -> 2067000 | L86: =IFERROR(IF($E86="PASANTE SENA",ROUNDUP((K86*'SUPUESTOS GASTOS'!$D$20),-3),ROUNDUP((K86*'SUPUESTOS GASTOS'!$D$19),-3)),0) -> 176000 | M86: =IFERROR(IF($E86="PASANTE SENA",0,ROUNDUP((K86*'SUPUESTOS GASTOS'!$D$18),-3)),0) -> 249000 | N86: =IFERROR(ROUNDUP(K86*SUMIF('SUPUESTOS GASTOS'!$B$24:$B$28,'Anexo 5 Planta y Equipo de trab'!$B86,'SUPUESTOS GASTOS'!$D$24:$D$28),-3),0) -> 22000 | O86: =IFERROR(IF($E86="PASANTE SENA",0,ROUNDUP((K86*'SUPUESTOS GASTOS'!$D$31),-3)),0) -> 83000 | P86: =IFERROR(IF($E86="PASANTE SENA",0,ROUNDUP((K86*'SUPUESTOS GASTOS'!$D$32),-3)),0) -> 42000 | Q86: =IF($C86="E",0,IF($E86="PASANTE SENA",0,IF(K86>=('SUPUESTOS GASTOS'!$D$14*2),0,ROUNDUP('SUPUESTOS GASTOS'!$D$15,-3)))) -> 172000 | R86: =IFERROR(IF($E86="PASANTE SENA",0,ROUNDUP((K86*'SUPUESTOS GASTOS'!$D$33),-3)),0) -> 63000 | S86: =ROUNDUP((K86/'SUPUESTOS GASTOS'!$D$13)*H86,-3) -> 24736000 | T86: =IFERROR(IF($E86="PASANTE SENA",ROUNDUP((S86*'SUPUESTOS GASTOS'!$D$20),-3),ROUNDUP((S86*'SUPUESTOS GASTOS'!$D$19),-3)),0) -> 2103000 | U86: =IFERROR(IF($E86="PASANTE SENA",0,ROUNDUP((S86*'SUPUESTOS GASTOS'!$D$18),-3)),0) -> 2969000 | V86: =IFERROR(ROUNDUP(S86*SUMIF('SUPUESTOS GASTOS'!$B$24:$B$28,'Anexo 5 Planta y Equipo de trab'!$B86,'SUPUESTOS GASTOS'!$D$24:$D$28),-3),0) -> 259000 | W86: =IFERROR(IF($E86="PASANTE SENA",0,ROUNDUP(((S86+AD86)*'SUPUESTOS GASTOS'!$D$31),-3)),0) -> 1031000 | X86: =IFERROR(IF($E86="PASANTE SENA",0,ROUNDUP(((S86+AD86)*'SUPUESTOS GASTOS'!$D$32),-3)),0) -> 516000 | Y86: =IF($C86="E",0,IF($E86="PASANTE SENA",0,IF(K86>=('SUPUESTOS GASTOS'!$D$14*2),0,ROUNDUP(('SUPUESTOS GASTOS'!$D$15/'SUPUESTOS GASTOS'!$D$13)*$H86,-3)))) -> 2055000 | Z86: =IFERROR(IF($E86="PASANTE SENA",0,ROUNDUP(((S86+AD86)*'SUPUESTOS GASTOS'!$D$33),-3)),0) -> 774000 | AA86: =IF($E86="PASANTE SENA",0,ROUNDUP(((K86+Q86)*H86)/'SUPUESTOS GASTOS'!$D$12,-3)) -> 2233000 | AB86: =IF($E86="PASANTE SENA",0,ROUNDUP((((AA86)/'SUPUESTOS GASTOS'!$D$12)*H86)*'SUPUESTOS GASTOS'!$D$21,-3)) -> 268000 | AC86: =IF($E86="PASANTE SENA",0,ROUNDUP(((K86+Q86)*H86)/'SUPUESTOS GASTOS'!$D$12,-3)) -> 2233000 | AD86: =IF($E86="PASANTE SENA",0,ROUNDUP((K86*H86)/('SUPUESTOS GASTOS'!$D$12*2),-3)) -> 1031000 | AF86: 40208000
A87: 8 | B87: 1 | C87: E | E87: ASISTENTE AREA TECNICA | F87: 2025-01-02 | G87: 2025-12-31 | H87: =DAYS360(F87,G87) -> 359 | I87: =IF(C87="C",'SUPUESTOS GASTOS'!$D$6*SUMIF('SUPUESTOS GASTOS'!$B$38:$B$47,'Anexo 5 Planta y Equipo de trab'!$A87,'SUPUESTOS GASTOS'!$D$38:$D$47),IF($C87="N",0,IF(C87="E",'SUPUESTOS GASTOS'!$D$6*SUMIF('SUPUESTOS GASTOS'!$B$38:$B$47,'Anexo 5 Planta y Equipo de trab'!$A87,'SUPUESTOS GASTOS'!$D$38:$D$47),""))) -> 1690000 | J87: =+'SUPUESTOS GASTOS'!$D$10 -> 0.06 | K87: =IF($C87="C",ROUNDUP((I87*J87)+I87,-3),IF($C87="N",ROUNDUP(('SUPUESTOS GASTOS'!$D$6*SUMIF('SUPUESTOS GASTOS'!$B$38:$B$47,'Anexo 5 Planta y Equipo de trab'!$A87,'SUPUESTOS GASTOS'!$D$38:$D$47)*$J87)+'SUPUESTOS GASTOS'!$D$6*SUMIF('SUPUESTOS GASTOS'!$B$38:$B$47,'Anexo 5 Planta y Equipo de trab'!$A87,'SUPUESTOS GASTOS'!$D$38:$D$47),-3),IF($C87="E",0))) -> 0 | L87: =IFERROR(IF($E87="PASANTE SENA",ROUNDUP((K87*'SUPUESTOS GASTOS'!$D$20),-3),ROUNDUP((K87*'SUPUESTOS GASTOS'!$D$19),-3)),0) -> 0 | M87: =IFERROR(IF($E87="PASANTE SENA",0,ROUNDUP((K87*'SUPUESTOS GASTOS'!$D$18),-3)),0) -> 0 | N87: =IFERROR(ROUNDUP(K87*SUMIF('SUPUESTOS GASTOS'!$B$24:$B$28,'Anexo 5 Planta y Equipo de trab'!$B87,'SUPUESTOS GASTOS'!$D$24:$D$28),-3),0) -> 0 | O87: =IFERROR(IF($E87="PASANTE SENA",0,ROUNDUP((K87*'SUPUESTOS GASTOS'!$D$31),-3)),0) -> 0 | P87: =IFERROR(IF($E87="PASANTE SENA",0,ROUNDUP((K87*'SUPUESTOS GASTOS'!$D$32),-3)),0) -> 0 | Q87: =IF($C87="E",0,IF($E87="PASANTE SENA",0,IF(K87>=('SUPUESTOS GASTOS'!$D$14*2),0,ROUNDUP('SUPUESTOS GASTOS'!$D$15,-3)))) -> 0 | R87: =IFERROR(IF($E87="PASANTE SENA",0,ROUNDUP((K87*'SUPUESTOS GASTOS'!$D$33),-3)),0) -> 0 | S87: =ROUNDUP((K87/'SUPUESTOS GASTOS'!$D$13)*H87,-3) -> 0 | T87: =IFERROR(IF($E87="PASANTE SENA",ROUNDUP((S87*'SUPUESTOS GASTOS'!$D$20),-3),ROUNDUP((S87*'SUPUESTOS GASTOS'!$D$19),-3)),0) -> 0 | U87: =IFERROR(IF($E87="PASANTE SENA",0,ROUNDUP((S87*'SUPUESTOS GASTOS'!$D$18),-3)),0) -> 0 | V87: =IFERROR(ROUNDUP(S87*SUMIF('SUPUESTOS GASTOS'!$B$24:$B$28,'Anexo 5 Planta y Equipo de trab'!$B87,'SUPUESTOS GASTOS'!$D$24:$D$28),-3),0) -> 0 | W87: =IFERROR(IF($E87="PASANTE SENA",0,ROUNDUP(((S87+AD87)*'SUPUESTOS GASTOS'!$D$31),-3)),0) -> 0 | X87: =IFERROR(IF($E87="PASANTE SENA",0,ROUNDUP(((S87+AD87)*'SUPUESTOS GASTOS'!$D$32),-3)),0) -> 0 | Y87: =IF($C87="E",0,IF($E87="PASANTE SENA",0,IF(K87>=('SUPUESTOS GASTOS'!$D$14*2),0,ROUNDUP(('SUPUESTOS GASTOS'!$D$15/'SUPUESTOS GASTOS'!$D$13)*$H87,-3)))) -> 0 | Z87: =IFERROR(IF($E87="PASANTE SENA",0,ROUNDUP(((S87+AD87)*'SUPUESTOS GASTOS'!$D$33),-3)),0) -> 0 | AA87: =IF($E87="PASANTE SENA",0,ROUNDUP(((K87+Q87)*H87)/'SUPUESTOS GASTOS'!$D$12,-3)) -> 0 | AB87: =IF($E87="PASANTE SENA",0,ROUNDUP((((AA87)/'SUPUESTOS GASTOS'!$D$12)*H87)*'SUPUESTOS GASTOS'!$D$21,-3)) -> 0 | AC87: =IF($E87="PASANTE SENA",0,ROUNDUP(((K87+Q87)*H87)/'SUPUESTOS GASTOS'!$D$12,-3)) -> 0 | AD87: =IF($E87="PASANTE SENA",0,ROUNDUP((K87*H87)/('SUPUESTOS GASTOS'!$D$12*2),-3)) -> 0 | AF87: 0
A88: 9 | B88: 1 | C88: C | E88: PASANTE SENA | F88: 2025-01-07 | G88: 2025-12-31 | H88: =DAYS360(F88,G88) -> 354 | I88: =IF(C88="C",'SUPUESTOS GASTOS'!$D$6*SUMIF('SUPUESTOS GASTOS'!$B$38:$B$47,'Anexo 5 Planta y Equipo de trab'!$A88,'SUPUESTOS GASTOS'!$D$38:$D$47),IF($C88="N",0,IF(C88="E",'SUPUESTOS GASTOS'!$D$6*SUMIF('SUPUESTOS GASTOS'!$B$38:$B$47,'Anexo 5 Planta y Equipo de trab'!$A88,'SUPUESTOS GASTOS'!$D$38:$D$47),""))) -> 1300000 | J88: =+'SUPUESTOS GASTOS'!$D$10 -> 0.06 | K88: =IF($C88="C",ROUNDUP((I88*J88)+I88,-3),IF($C88="N",ROUNDUP(('SUPUESTOS GASTOS'!$D$6*SUMIF('SUPUESTOS GASTOS'!$B$38:$B$47,'Anexo 5 Planta y Equipo de trab'!$A88,'SUPUESTOS GASTOS'!$D$38:$D$47)*$J88)+'SUPUESTOS GASTOS'!$D$6*SUMIF('SUPUESTOS GASTOS'!$B$38:$B$47,'Anexo 5 Planta y Equipo de trab'!$A88,'SUPUESTOS GASTOS'!$D$38:$D$47),-3),IF($C88="E",0))) -> 1378000 | L88: =IFERROR(IF($E88="PASANTE SENA",ROUNDUP((K88*'SUPUESTOS GASTOS'!$D$20),-3),ROUNDUP((K88*'SUPUESTOS GASTOS'!$D$19),-3)),0) -> 173000 | M88: =IFERROR(IF($E88="PASANTE SENA",0,ROUNDUP((K88*'SUPUESTOS GASTOS'!$D$18),-3)),0) -> 0 | N88: =IFERROR(ROUNDUP(K88*SUMIF('SUPUESTOS GASTOS'!$B$24:$B$28,'Anexo 5 Planta y Equipo de trab'!$B88,'SUPUESTOS GASTOS'!$D$24:$D$28),-3),0) -> 8000 | O88: =IFERROR(IF($E88="PASANTE SENA",0,ROUNDUP((K88*'SUPUESTOS GASTOS'!$D$31),-3)),0) -> 0 | P88: =IFERROR(IF($E88="PASANTE SENA",0,ROUNDUP((K88*'SUPUESTOS GASTOS'!$D$32),-3)),0) -> 0 | Q88: =IF($C88="E",0,IF($E88="PASANTE SENA",0,IF(K88>=('SUPUESTOS GASTOS'!$D$14*2),0,ROUNDUP('SUPUESTOS GASTOS'!$D$15,-3)))) -> 0 | R88: =IFERROR(IF($E88="PASANTE SENA",0,ROUNDUP((K88*'SUPUESTOS GASTOS'!$D$33),-3)),0) -> 0 | S88: =ROUNDUP((K88/'SUPUESTOS GASTOS'!$D$13)*H88,-3) -> 16261000 | T88: =IFERROR(IF($E88="PASANTE SENA",ROUNDUP((S88*'SUPUESTOS GASTOS'!$D$20),-3),ROUNDUP((S88*'SUPUESTOS GASTOS'!$D$19),-3)),0) -> 2033000 | U88: =IFERROR(IF($E88="PASANTE SENA",0,ROUNDUP((S88*'SUPUESTOS GASTOS'!$D$18),-3)),0) -> 0 | V88: =IFERROR(ROUNDUP(S88*SUMIF('SUPUESTOS GASTOS'!$B$24:$B$28,'Anexo 5 Planta y Equipo de trab'!$B88,'SUPUESTOS GASTOS'!$D$24:$D$28),-3),0) -> 85000 | W88: =IFERROR(IF($E88="PASANTE SENA",0,ROUNDUP(((S88+AD88)*'SUPUESTOS GASTOS'!$D$31),-3)),0) -> 0 | X88: =IFERROR(IF($E88="PASANTE SENA",0,ROUNDUP(((S88+AD88)*'SUPUESTOS GASTOS'!$D$32),-3)),0) -> 0 | Y88: =IF($C88="E",0,IF($E88="PASANTE SENA",0,IF(K88>=('SUPUESTOS GASTOS'!$D$14*2),0,ROUNDUP(('SUPUESTOS GASTOS'!$D$15/'SUPUESTOS GASTOS'!$D$13)*$H88,-3)))) -> 0 | Z88: =IFERROR(IF($E88="PASANTE SENA",0,ROUNDUP(((S88+AD88)*'SUPUESTOS GASTOS'!$D$33),-3)),0) -> 0 | AA88: =IF($E88="PASANTE SENA",0,ROUNDUP(((K88+Q88)*H88)/'SUPUESTOS GASTOS'!$D$12,-3)) -> 0 | AB88: =IF($E88="PASANTE SENA",0,ROUNDUP((((AA88)/'SUPUESTOS GASTOS'!$D$12)*H88)*'SUPUESTOS GASTOS'!$D$21,-3)) -> 0 | AC88: =IF($E88="PASANTE SENA",0,ROUNDUP(((K88+Q88)*H88)/'SUPUESTOS GASTOS'!$D$12,-3)) -> 0 | AD88: =IF($E88="PASANTE SENA",0,ROUNDUP((K88*H88)/('SUPUESTOS GASTOS'!$D$12*2),-3)) -> 0 | AF88: 18379000
E89: SUB TOTAL ITPA | K89: =SUM(K60:K88) -> 102830000 | L89: 8808000 | M89: 12181000 | N89: 3899000 | O89: 4074000 | P89: 2039000 | Q89: 344000 | R89: 3059000 | S89: 1201198000 | T89: 102760000 | U89: 142205000 | V89: 45340000 | W89: 49381000 | X89: 24694000 | Y89: 4110000 | Z89: 37037000 | AA89: 99099000 | AB89: 11584000 | AC89: 99099000 | AD89: 49381000 | AE89: 0 | AF89: 1865888000
E90: MEJORAMIENTO GENETICO
A91: 4 | B91: 3 | C91: N | E91: SUPERVISOR MEJORAMIENTO GENÉTICO | F91: 2025-01-07 | G91: 2025-12-31 | H91: =DAYS360(F91,G91) -> 354 | I91: =IF(C91="C",'SUPUESTOS GASTOS'!$D$6*SUMIF('SUPUESTOS GASTOS'!$B$38:$B$47,'Anexo 5 Planta y Equipo de trab'!$A91,'SUPUESTOS GASTOS'!$D$38:$D$47),IF($C91="N",0,IF(C91="E",'SUPUESTOS GASTOS'!$D$6*SUMIF('SUPUESTOS GASTOS'!$B$38:$B$47,'Anexo 5 Planta y Equipo de trab'!$A91,'SUPUESTOS GASTOS'!$D$38:$D$47),""))) -> 0 | J91: =+'SUPUESTOS GASTOS'!$D$10 -> 0.06 | K91: =IF($C91="C",ROUNDUP((I91*J91)+I91,-3),IF($C91="N",ROUNDUP(('SUPUESTOS GASTOS'!$D$6*SUMIF('SUPUESTOS GASTOS'!$B$38:$B$47,'Anexo 5 Planta y Equipo de trab'!$A91,'SUPUESTOS GASTOS'!$D$38:$D$47)*$J91)+'SUPUESTOS GASTOS'!$D$6*SUMIF('SUPUESTOS GASTOS'!$B$38:$B$47,'Anexo 5 Planta y Equipo de trab'!$A91,'SUPUESTOS GASTOS'!$D$38:$D$47),-3),IF($C91="E",0))) -> 4134000 | L91: =IFERROR(IF($E91="PASANTE SENA",ROUNDUP((K91*'SUPUESTOS GASTOS'!$D$20),-3),ROUNDUP((K91*'SUPUESTOS GASTOS'!$D$19),-3)),0) -> 352000 | M91: =IFERROR(IF($E91="PASANTE SENA",0,ROUNDUP((K91*'SUPUESTOS GASTOS'!$D$18),-3)),0) -> 497000 | N91: =IFERROR(ROUNDUP(K91*SUMIF('SUPUESTOS GASTOS'!$B$24:$B$28,'Anexo 5 Planta y Equipo de trab'!$B91,'SUPUESTOS GASTOS'!$D$24:$D$28),-3),0) -> 180000 | O91: =IFERROR(IF($E91="PASANTE SENA",0,ROUNDUP((K91*'SUPUESTOS GASTOS'!$D$31),-3)),0) -> 166000 | P91: =IFERROR(IF($E91="PASANTE SENA",0,ROUNDUP((K91*'SUPUESTOS GASTOS'!$D$32),-3)),0) -> 83000 | Q91: =IF($C91="E",0,IF($E91="PASANTE SENA",0,IF(K91>=('SUPUESTOS GASTOS'!$D$14*2),0,ROUNDUP('SUPUESTOS GASTOS'!$D$15,-3)))) -> 0 | R91: =IFERROR(IF($E91="PASANTE SENA",0,ROUNDUP((K91*'SUPUESTOS GASTOS'!$D$33),-3)),0) -> 125000 | S91: =ROUNDUP((K91/'SUPUESTOS GASTOS'!$D$13)*H91,-3) -> 48782000 | T91: =IFERROR(IF($E91="PASANTE SENA",ROUNDUP((S91*'SUPUESTOS GASTOS'!$D$20),-3),ROUNDUP((S91*'SUPUESTOS GASTOS'!$D$19),-3)),0) -> 4147000 | U91: =IFERROR(IF($E91="PASANTE SENA",0,ROUNDUP((S91*'SUPUESTOS GASTOS'!$D$18),-3)),0) -> 5854000 | V91: =IFERROR(ROUNDUP(S91*SUMIF('SUPUESTOS GASTOS'!$B$24:$B$28,'Anexo 5 Planta y Equipo de trab'!$B91,'SUPUESTOS GASTOS'!$D$24:$D$28),-3),0) -> 2123000 | W91: =IFERROR(IF($E91="PASANTE SENA",0,ROUNDUP(((S91+AD91)*'SUPUESTOS GASTOS'!$D$31),-3)),0) -> 2033000 | X91: =IFERROR(IF($E91="PASANTE SENA",0,ROUNDUP(((S91+AD91)*'SUPUESTOS GASTOS'!$D$32),-3)),0) -> 1017000 | Y91: =IF($C91="E",0,IF($E91="PASANTE SENA",0,IF(K91>=('SUPUESTOS GASTOS'!$D$14*2),0,ROUNDUP(('SUPUESTOS GASTOS'!$D$15/'SUPUESTOS GASTOS'!$D$13)*$H91,-3)))) -> 0 | Z91: =IFERROR(IF($E91="PASANTE SENA",0,ROUNDUP(((S91+AD91)*'SUPUESTOS GASTOS'!$D$33),-3)),0) -> 1525000 | AA91: =IF($E91="PASANTE SENA",0,ROUNDUP(((K91+Q91)*H91)/'SUPUESTOS GASTOS'!$D$12,-3)) -> 4066000 | AB91: =IF($E91="PASANTE SENA",0,ROUNDUP((((AA91)/'SUPUESTOS GASTOS'!$D$12)*H91)*'SUPUESTOS GASTOS'!$D$21,-3)) -> 480000 | AC91: =IF($E91="PASANTE SENA",0,ROUNDUP(((K91+Q91)*H91)/'SUPUESTOS GASTOS'!$D$12,-3)) -> 4066000 | AD91: =IF($E91="PASANTE SENA",0,ROUNDUP((K91*H91)/('SUPUESTOS GASTOS'!$D$12*2),-3)) -> 2033000 | AF91: =ROUNDUP(SUM(S91:AD91),-3) -> 76126000
A92: 5 | B92: 3 | C92: C | E92: PROFESIONAL - GENETICO | F92: 2025-01-07 | G92: 2025-12-31 | H92: 354 | I92: =IF(C92="C",'SUPUESTOS GASTOS'!$D$6*SUMIF('SUPUESTOS GASTOS'!$B$38:$B$47,'Anexo 5 Planta y Equipo de trab'!$A92,'SUPUESTOS GASTOS'!$D$38:$D$47),IF($C92="N",0,IF(C92="E",'SUPUESTOS GASTOS'!$D$6*SUMIF('SUPUESTOS GASTOS'!$B$38:$B$47,'Anexo 5 Planta y Equipo de trab'!$A92,'SUPUESTOS GASTOS'!$D$38:$D$47),""))) -> 3380000 | J92: =+'SUPUESTOS GASTOS'!$D$10 -> 0.06 | K92: =IF($C92="C",ROUNDUP((I92*J92)+I92,-3),IF($C92="N",ROUNDUP(('SUPUESTOS GASTOS'!$D$6*SUMIF('SUPUESTOS GASTOS'!$B$38:$B$47,'Anexo 5 Planta y Equipo de trab'!$A92,'SUPUESTOS GASTOS'!$D$38:$D$47)*$J92)+'SUPUESTOS GASTOS'!$D$6*SUMIF('SUPUESTOS GASTOS'!$B$38:$B$47,'Anexo 5 Planta y Equipo de trab'!$A92,'SUPUESTOS GASTOS'!$D$38:$D$47),-3),IF($C92="E",0))) -> 3583000 | L92: =IFERROR(IF($E92="PASANTE SENA",ROUNDUP((K92*'SUPUESTOS GASTOS'!$D$20),-3),ROUNDUP((K92*'SUPUESTOS GASTOS'!$D$19),-3)),0) -> 305000 | M92: =IFERROR(IF($E92="PASANTE SENA",0,ROUNDUP((K92*'SUPUESTOS GASTOS'!$D$18),-3)),0) -> 430000 | N92: =IFERROR(ROUNDUP(K92*SUMIF('SUPUESTOS GASTOS'!$B$24:$B$28,'Anexo 5 Planta y Equipo de trab'!$B92,'SUPUESTOS GASTOS'!$D$24:$D$28),-3),0) -> 156000 | O92: =IFERROR(IF($E92="PASANTE SENA",0,ROUNDUP((K92*'SUPUESTOS GASTOS'!$D$31),-3)),0) -> 144000 | P92: =IFERROR(IF($E92="PASANTE SENA",0,ROUNDUP((K92*'SUPUESTOS GASTOS'!$D$32),-3)),0) -> 72000 | Q92: =IF($C92="E",0,IF($E92="PASANTE SENA",0,IF(K92>=('SUPUESTOS GASTOS'!$D$14*2),0,ROUNDUP('SUPUESTOS GASTOS'!$D$15,-3)))) -> 0 | R92: =IFERROR(IF($E92="PASANTE SENA",0,ROUNDUP((K92*'SUPUESTOS GASTOS'!$D$33),-3)),0) -> 108000 | S92: =ROUNDUP((K92/'SUPUESTOS GASTOS'!$D$13)*H92,-3) -> 42280000 | T92: =IFERROR(IF($E92="PASANTE SENA",ROUNDUP((S92*'SUPUESTOS GASTOS'!$D$20),-3),ROUNDUP((S92*'SUPUESTOS GASTOS'!$D$19),-3)),0) -> 3594000 | U92: =IFERROR(IF($E92="PASANTE SENA",0,ROUNDUP((S92*'SUPUESTOS GASTOS'!$D$18),-3)),0) -> 5074000 | V92: =IFERROR(ROUNDUP(S92*SUMIF('SUPUESTOS GASTOS'!$B$24:$B$28,'Anexo 5 Planta y Equipo de trab'!$B92,'SUPUESTOS GASTOS'!$D$24:$D$28),-3),0) -> 1840000 | W92: =IFERROR(IF($E92="PASANTE SENA",0,ROUNDUP(((S92+AD92)*'SUPUESTOS GASTOS'!$D$31),-3)),0) -> 1762000 | X92: =IFERROR(IF($E92="PASANTE SENA",0,ROUNDUP(((S92+AD92)*'SUPUESTOS GASTOS'!$D$32),-3)),0) -> 881000 | Y92: =IF($C92="E",0,IF($E92="PASANTE SENA",0,IF(K92>=('SUPUESTOS GASTOS'!$D$14*2),0,ROUNDUP(('SUPUESTOS GASTOS'!$D$15/'SUPUESTOS GASTOS'!$D$13)*$H92,-3)))) -> 0 | Z92: =IFERROR(IF($E92="PASANTE SENA",0,ROUNDUP(((S92+AD92)*'SUPUESTOS GASTOS'!$D$33),-3)),0) -> 1322000 | AA92: =IF($E92="PASANTE SENA",0,ROUNDUP(((K92+Q92)*H92)/'SUPUESTOS GASTOS'!$D$12,-3)) -> 3524000 | AB92: =IF($E92="PASANTE SENA",0,ROUNDUP((((AA92)/'SUPUESTOS GASTOS'!$D$12)*H92)*'SUPUESTOS GASTOS'!$D$21,-3)) -> 416000 | AC92: =IF($E92="PASANTE SENA",0,ROUNDUP(((K92+Q92)*H92)/'SUPUESTOS GASTOS'!$D$12,-3)) -> 3524000 | AD92: =IF($E92="PASANTE SENA",0,ROUNDUP((K92*H92)/('SUPUESTOS GASTOS'!$D$12*2),-3)) -> 1762000 | AF92: 65979000
A93: 5 | B93: 3 | C93: C | E93: PROFESIONAL - GENETICO | F93: 2025-01-07 | G93: 2025-12-31 | H93: 354 | I93: =IF(C93="C",'SUPUESTOS GASTOS'!$D$6*SUMIF('SUPUESTOS GASTOS'!$B$38:$B$47,'Anexo 5 Planta y Equipo de trab'!$A93,'SUPUESTOS GASTOS'!$D$38:$D$47),IF($C93="N",0,IF(C93="E",'SUPUESTOS GASTOS'!$D$6*SUMIF('SUPUESTOS GASTOS'!$B$38:$B$47,'Anexo 5 Planta y Equipo de trab'!$A93,'SUPUESTOS GASTOS'!$D$38:$D$47),""))) -> 3380000 | J93: =+'SUPUESTOS GASTOS'!$D$10 -> 0.06 | K93: =IF($C93="C",ROUNDUP((I93*J93)+I93,-3),IF($C93="N",ROUNDUP(('SUPUESTOS GASTOS'!$D$6*SUMIF('SUPUESTOS GASTOS'!$B$38:$B$47,'Anexo 5 Planta y Equipo de trab'!$A93,'SUPUESTOS GASTOS'!$D$38:$D$47)*$J93)+'SUPUESTOS GASTOS'!$D$6*SUMIF('SUPUESTOS GASTOS'!$B$38:$B$47,'Anexo 5 Planta y Equipo de trab'!$A93,'SUPUESTOS GASTOS'!$D$38:$D$47),-3),IF($C93="E",0))) -> 3583000 | L93: =IFERROR(IF($E93="PASANTE SENA",ROUNDUP((K93*'SUPUESTOS GASTOS'!$D$20),-3),ROUNDUP((K93*'SUPUESTOS GASTOS'!$D$19),-3)),0) -> 305000 | M93: =IFERROR(IF($E93="PASANTE SENA",0,ROUNDUP((K93*'SUPUESTOS GASTOS'!$D$18),-3)),0) -> 430000 | N93: =IFERROR(ROUNDUP(K93*SUMIF('SUPUESTOS GASTOS'!$B$24:$B$28,'Anexo 5 Planta y Equipo de trab'!$B93,'SUPUESTOS GASTOS'!$D$24:$D$28),-3),0) -> 156000 | O93: =IFERROR(IF($E93="PASANTE SENA",0,ROUNDUP((K93*'SUPUESTOS GASTOS'!$D$31),-3)),0) -> 144000 | P93: =IFERROR(IF($E93="PASANTE SENA",0,ROUNDUP((K93*'SUPUESTOS GASTOS'!$D$32),-3)),0) -> 72000 | Q93: =IF($C93="E",0,IF($E93="PASANTE SENA",0,IF(K93>=('SUPUESTOS GASTOS'!$D$14*2),0,ROUNDUP('SUPUESTOS GASTOS'!$D$15,-3)))) -> 0 | R93: =IFERROR(IF($E93="PASANTE SENA",0,ROUNDUP((K93*'SUPUESTOS GASTOS'!$D$33),-3)),0) -> 108000 | S93: =ROUNDUP((K93/'SUPUESTOS GASTOS'!$D$13)*H93,-3) -> 42280000 | T93: =IFERROR(IF($E93="PASANTE SENA",ROUNDUP((S93*'SUPUESTOS GASTOS'!$D$20),-3),ROUNDUP((S93*'SUPUESTOS GASTOS'!$D$19),-3)),0) -> 3594000 | U93: =IFERROR(IF($E93="PASANTE SENA",0,ROUNDUP((S93*'SUPUESTOS GASTOS'!$D$18),-3)),0) -> 5074000 | V93: =IFERROR(ROUNDUP(S93*SUMIF('SUPUESTOS GASTOS'!$B$24:$B$28,'Anexo 5 Planta y Equipo de trab'!$B93,'SUPUESTOS GASTOS'!$D$24:$D$28),-3),0) -> 1840000 | W93: =IFERROR(IF($E93="PASANTE SENA",0,ROUNDUP(((S93+AD93)*'SUPUESTOS GASTOS'!$D$31),-3)),0) -> 1762000 | X93: =IFERROR(IF($E93="PASANTE SENA",0,ROUNDUP(((S93+AD93)*'SUPUESTOS GASTOS'!$D$32),-3)),0) -> 881000 | Y93: =IF($C93="E",0,IF($E93="PASANTE SENA",0,IF(K93>=('SUPUESTOS GASTOS'!$D$14*2),0,ROUNDUP(('SUPUESTOS GASTOS'!$D$15/'SUPUESTOS GASTOS'!$D$13)*$H93,-3)))) -> 0 | Z93: =IFERROR(IF($E93="PASANTE SENA",0,ROUNDUP(((S93+AD93)*'SUPUESTOS GASTOS'!$D$33),-3)),0) -> 1322000 | AA93: =IF($E93="PASANTE SENA",0,ROUNDUP(((K93+Q93)*H93)/'SUPUESTOS GASTOS'!$D$12,-3)) -> 3524000 | AB93: =IF($E93="PASANTE SENA",0,ROUNDUP((((AA93)/'SUPUESTOS GASTOS'!$D$12)*H93)*'SUPUESTOS GASTOS'!$D$21,-3)) -> 416000 | AC93: =IF($E93="PASANTE SENA",0,ROUNDUP(((K93+Q93)*H93)/'SUPUESTOS GASTOS'!$D$12,-3)) -> 3524000 | AD93: =IF($E93="PASANTE SENA",0,ROUNDUP((K93*H93)/('SUPUESTOS GASTOS'!$D$12*2),-3)) -> 1762000 | AF93: 65979000
A94: 5 | B94: 3 | C94: C | E94: PROFESIONAL - GENETICO | F94: 2025-01-07 | G94: 2025-12-31 | H94: 354 | I94: =IF(C94="C",'SUPUESTOS GASTOS'!$D$6*SUMIF('SUPUESTOS GASTOS'!$B$38:$B$47,'Anexo 5 Planta y Equipo de trab'!$A94,'SUPUESTOS GASTOS'!$D$38:$D$47),IF($C94="N",0,IF(C94="E",'SUPUESTOS GASTOS'!$D$6*SUMIF('SUPUESTOS GASTOS'!$B$38:$B$47,'Anexo 5 Planta y Equipo de trab'!$A94,'SUPUESTOS GASTOS'!$D$38:$D$47),""))) -> 3380000 | J94: =+'SUPUESTOS GASTOS'!$D$10 -> 0.06 | K94: =IF($C94="C",ROUNDUP((I94*J94)+I94,-3),IF($C94="N",ROUNDUP(('SUPUESTOS GASTOS'!$D$6*SUMIF('SUPUESTOS GASTOS'!$B$38:$B$47,'Anexo 5 Planta y Equipo de trab'!$A94,'SUPUESTOS GASTOS'!$D$38:$D$47)*$J94)+'SUPUESTOS GASTOS'!$D$6*SUMIF('SUPUESTOS GASTOS'!$B$38:$B$47,'Anexo 5 Planta y Equipo de trab'!$A94,'SUPUESTOS GASTOS'!$D$38:$D$47),-3),IF($C94="E",0))) -> 3583000 | L94: =IFERROR(IF($E94="PASANTE SENA",ROUNDUP((K94*'SUPUESTOS GASTOS'!$D$20),-3),ROUNDUP((K94*'SUPUESTOS GASTOS'!$D$19),-3)),0) -> 305000 | M94: =IFERROR(IF($E94="PASANTE SENA",0,ROUNDUP((K94*'SUPUESTOS GASTOS'!$D$18),-3)),0) -> 430000 | N94: =IFERROR(ROUNDUP(K94*SUMIF('SUPUESTOS GASTOS'!$B$24:$B$28,'Anexo 5 Planta y Equipo de trab'!$B94,'SUPUESTOS GASTOS'!$D$24:$D$28),-3),0) -> 156000 | O94: =IFERROR(IF($E94="PASANTE SENA",0,ROUNDUP((K94*'SUPUESTOS GASTOS'!$D$31),-3)),0) -> 144000 | P94: =IFERROR(IF($E94="PASANTE SENA",0,ROUNDUP((K94*'SUPUESTOS GASTOS'!$D$32),-3)),0) -> 72000 | Q94: =IF($C94="E",0,IF($E94="PASANTE SENA",0,IF(K94>=('SUPUESTOS GASTOS'!$D$14*2),0,ROUNDUP('SUPUESTOS GASTOS'!$D$15,-3)))) -> 0 | R94: =IFERROR(IF($E94="PASANTE SENA",0,ROUNDUP((K94*'SUPUESTOS GASTOS'!$D$33),-3)),0) -> 108000 | S94: =ROUNDUP((K94/'SUPUESTOS GASTOS'!$D$13)*H94,-3) -> 42280000 | T94: =IFERROR(IF($E94="PASANTE SENA",ROUNDUP((S94*'SUPUESTOS GASTOS'!$D$20),-3),ROUNDUP((S94*'SUPUESTOS GASTOS'!$D$19),-3)),0) -> 3594000 | U94: =IFERROR(IF($E94="PASANTE SENA",0,ROUNDUP((S94*'SUPUESTOS GASTOS'!$D$18),-3)),0) -> 5074000 | V94: =IFERROR(ROUNDUP(S94*SUMIF('SUPUESTOS GASTOS'!$B$24:$B$28,'Anexo 5 Planta y Equipo de trab'!$B94,'SUPUESTOS GASTOS'!$D$24:$D$28),-3),0) -> 1840000 | W94: =IFERROR(IF($E94="PASANTE SENA",0,ROUNDUP(((S94+AD94)*'SUPUESTOS GASTOS'!$D$31),-3)),0) -> 1762000 | X94: =IFERROR(IF($E94="PASANTE SENA",0,ROUNDUP(((S94+AD94)*'SUPUESTOS GASTOS'!$D$32),-3)),0) -> 881000 | Y94: =IF($C94="E",0,IF($E94="PASANTE SENA",0,IF(K94>=('SUPUESTOS GASTOS'!$D$14*2),0,ROUNDUP(('SUPUESTOS GASTOS'!$D$15/'SUPUESTOS GASTOS'!$D$13)*$H94,-3)))) -> 0 | Z94: =IFERROR(IF($E94="PASANTE SENA",0,ROUNDUP(((S94+AD94)*'SUPUESTOS GASTOS'!$D$33),-3)),0) -> 1322000 | AA94: =IF($E94="PASANTE SENA",0,ROUNDUP(((K94+Q94)*H94)/'SUPUESTOS GASTOS'!$D$12,-3)) -> 3524000 | AB94: =IF($E94="PASANTE SENA",0,ROUNDUP((((AA94)/'SUPUESTOS GASTOS'!$D$12)*H94)*'SUPUESTOS GASTOS'!$D$21,-3)) -> 416000 | AC94: =IF($E94="PASANTE SENA",0,ROUNDUP(((K94+Q94)*H94)/'SUPUESTOS GASTOS'!$D$12,-3)) -> 3524000 | AD94: =IF($E94="PASANTE SENA",0,ROUNDUP((K94*H94)/('SUPUESTOS GASTOS'!$D$12*2),-3)) -> 1762000 | AF94: 65979000
A95: 7 | B95: 2 | C95: N | E95: TÉCNICO AUXILIAR DE CAMPO | F95: 2025-01-07 | G95: 2025-12-31 | H95: 354 | I95: =IF(C95="C",'SUPUESTOS GASTOS'!$D$6*SUMIF('SUPUESTOS GASTOS'!$B$38:$B$47,'Anexo 5 Planta y Equipo de trab'!$A95,'SUPUESTOS GASTOS'!$D$38:$D$47),IF($C95="N",0,IF(C95="E",'SUPUESTOS GASTOS'!$D$6*SUMIF('SUPUESTOS GASTOS'!$B$38:$B$47,'Anexo 5 Planta y Equipo de trab'!$A95,'SUPUESTOS GASTOS'!$D$38:$D$47),""))) -> 0 | J95: =+'SUPUESTOS GASTOS'!$D$10 -> 0.06 | K95: =IF($C95="C",ROUNDUP((I95*J95)+I95,-3),IF($C95="N",ROUNDUP(('SUPUESTOS GASTOS'!$D$6*SUMIF('SUPUESTOS GASTOS'!$B$38:$B$47,'Anexo 5 Planta y Equipo de trab'!$A95,'SUPUESTOS GASTOS'!$D$38:$D$47)*$J95)+'SUPUESTOS GASTOS'!$D$6*SUMIF('SUPUESTOS GASTOS'!$B$38:$B$47,'Anexo 5 Planta y Equipo de trab'!$A95,'SUPUESTOS GASTOS'!$D$38:$D$47),-3),IF($C95="E",0))) -> 2067000 | L95: =IFERROR(IF($E95="PASANTE SENA",ROUNDUP((K95*'SUPUESTOS GASTOS'!$D$20),-3),ROUNDUP((K95*'SUPUESTOS GASTOS'!$D$19),-3)),0) -> 176000 | M95: =IFERROR(IF($E95="PASANTE SENA",0,ROUNDUP((K95*'SUPUESTOS GASTOS'!$D$18),-3)),0) -> 249000 | N95: =IFERROR(ROUNDUP(K95*SUMIF('SUPUESTOS GASTOS'!$B$24:$B$28,'Anexo 5 Planta y Equipo de trab'!$B95,'SUPUESTOS GASTOS'!$D$24:$D$28),-3),0) -> 51000 | O95: =IFERROR(IF($E95="PASANTE SENA",0,ROUNDUP((K95*'SUPUESTOS GASTOS'!$D$31),-3)),0) -> 83000 | P95: =IFERROR(IF($E95="PASANTE SENA",0,ROUNDUP((K95*'SUPUESTOS GASTOS'!$D$32),-3)),0) -> 42000 | Q95: =IF($C95="E",0,IF($E95="PASANTE SENA",0,IF(K95>=('SUPUESTOS GASTOS'!$D$14*2),0,ROUNDUP('SUPUESTOS GASTOS'!$D$15,-3)))) -> 172000 | R95: =IFERROR(IF($E95="PASANTE SENA",0,ROUNDUP((K95*'SUPUESTOS GASTOS'!$D$33),-3)),0) -> 63000 | S95: =ROUNDUP((K95/'SUPUESTOS GASTOS'!$D$13)*H95,-3) -> 24391000 | T95: =IFERROR(IF($E95="PASANTE SENA",ROUNDUP((S95*'SUPUESTOS GASTOS'!$D$20),-3),ROUNDUP((S95*'SUPUESTOS GASTOS'!$D$19),-3)),0) -> 2074000 | U95: =IFERROR(IF($E95="PASANTE SENA",0,ROUNDUP((S95*'SUPUESTOS GASTOS'!$D$18),-3)),0) -> 2927000 | V95: =IFERROR(ROUNDUP(S95*SUMIF('SUPUESTOS GASTOS'!$B$24:$B$28,'Anexo 5 Planta y Equipo de trab'!$B95,'SUPUESTOS GASTOS'!$D$24:$D$28),-3),0) -> 595000 | W95: =IFERROR(IF($E95="PASANTE SENA",0,ROUNDUP(((S95+AD95)*'SUPUESTOS GASTOS'!$D$31),-3)),0) -> 1017000 | X95: =IFERROR(IF($E95="PASANTE SENA",0,ROUNDUP(((S95+AD95)*'SUPUESTOS GASTOS'!$D$32),-3)),0) -> 509000 | Y95: =IF($C95="E",0,IF($E95="PASANTE SENA",0,IF(K95>=('SUPUESTOS GASTOS'!$D$14*2),0,ROUNDUP(('SUPUESTOS GASTOS'!$D$15/'SUPUESTOS GASTOS'!$D$13)*$H95,-3)))) -> 2027000 | Z95: =IFERROR(IF($E95="PASANTE SENA",0,ROUNDUP(((S95+AD95)*'SUPUESTOS GASTOS'!$D$33),-3)),0) -> 763000 | AA95: =IF($E95="PASANTE SENA",0,ROUNDUP(((K95+Q95)*H95)/'SUPUESTOS GASTOS'!$D$12,-3)) -> 2202000 | AB95: =IF($E95="PASANTE SENA",0,ROUNDUP((((AA95)/'SUPUESTOS GASTOS'!$D$12)*H95)*'SUPUESTOS GASTOS'!$D$21,-3)) -> 260000 | AC95: =IF($E95="PASANTE SENA",0,ROUNDUP(((K95+Q95)*H95)/'SUPUESTOS GASTOS'!$D$12,-3)) -> 2202000 | AD95: =IF($E95="PASANTE SENA",0,ROUNDUP((K95*H95)/('SUPUESTOS GASTOS'!$D$12*2),-3)) -> 1017000 | AF95: 39984000
E96: SUB TOTAL MEJORAMIENTO GENETICO | K96: =SUM(K91:K95) -> 16950000 | L96: 1443000 | M96: 2036000 | N96: 699000 | O96: 681000 | P96: 341000 | Q96: 172000 | R96: =SUM(R91:R95) -> 512000 | S96: 200013000 | T96: 17003000 | U96: 24003000 | V96: 8238000 | W96: 8336000 | X96: 4169000 | Y96: 2027000 | Z96: 6254000 | AA96: 16840000 | AB96: 1988000 | AC96: 16840000 | AD96: 8336000 | AE96: 0 | AF96: 314047000
E97: SEMILLA CERTIFICADA
A98: 3 | B98: 2 | C98: C | E98: COORDINADOR LABORATORIO DE PROPAGACIÓN | F98: 2025-01-02 | G98: 2025-12-31 | H98: =DAYS360(F98,G98) -> 359 | I98: =IF(C98="C",'SUPUESTOS GASTOS'!$D$6*SUMIF('SUPUESTOS GASTOS'!$B$38:$B$47,'Anexo 5 Planta y Equipo de trab'!$A98,'SUPUESTOS GASTOS'!$D$38:$D$47),IF($C98="N",0,IF(C98="E",'SUPUESTOS GASTOS'!$D$6*SUMIF('SUPUESTOS GASTOS'!$B$38:$B$47,'Anexo 5 Planta y Equipo de trab'!$A98,'SUPUESTOS GASTOS'!$D$38:$D$47),""))) -> 5200000 | J98: =+'SUPUESTOS GASTOS'!$D$10 -> 0.06 | K98: =IF($C98="C",ROUNDUP((I98*J98)+I98,-3),IF($C98="N",ROUNDUP(('SUPUESTOS GASTOS'!$D$6*SUMIF('SUPUESTOS GASTOS'!$B$38:$B$47,'Anexo 5 Planta y Equipo de trab'!$A98,'SUPUESTOS GASTOS'!$D$38:$D$47)*$J98)+'SUPUESTOS GASTOS'!$D$6*SUMIF('SUPUESTOS GASTOS'!$B$38:$B$47,'Anexo 5 Planta y Equipo de trab'!$A98,'SUPUESTOS GASTOS'!$D$38:$D$47),-3),IF($C98="E",0))) -> 5512000 | L98: =IFERROR(IF($E98="PASANTE SENA",ROUNDUP((K98*'SUPUESTOS GASTOS'!$D$20),-3),ROUNDUP((K98*'SUPUESTOS GASTOS'!$D$19),-3)),0) -> 469000 | M98: =IFERROR(IF($E98="PASANTE SENA",0,ROUNDUP((K98*'SUPUESTOS GASTOS'!$D$18),-3)),0) -> 662000 | N98: =IFERROR(ROUNDUP(K98*SUMIF('SUPUESTOS GASTOS'!$B$24:$B$28,'Anexo 5 Planta y Equipo de trab'!$B98,'SUPUESTOS GASTOS'!$D$24:$D$28),-3),0) -> 135000 | O98: =IFERROR(IF($E98="PASANTE SENA",0,ROUNDUP((K98*'SUPUESTOS GASTOS'!$D$31),-3)),0) -> 221000 | P98: =IFERROR(IF($E98="PASANTE SENA",0,ROUNDUP((K98*'SUPUESTOS GASTOS'!$D$32),-3)),0) -> 111000 | Q98: =IF($C98="E",0,IF($E98="PASANTE SENA",0,IF(K98>=('SUPUESTOS GASTOS'!$D$14*2),0,ROUNDUP('SUPUESTOS GASTOS'!$D$15,-3)))) -> 0 | R98: =IFERROR(IF($E98="PASANTE SENA",0,ROUNDUP((K98*'SUPUESTOS GASTOS'!$D$33),-3)),0) -> 166000 | S98: =ROUNDUP((K98/'SUPUESTOS GASTOS'!$D$13)*H98,-3) -> 65961000 | T98: =IFERROR(IF($E98="PASANTE SENA",ROUNDUP((S98*'SUPUESTOS GASTOS'!$D$20),-3),ROUNDUP((S98*'SUPUESTOS GASTOS'!$D$19),-3)),0) -> 5607000 | U98: =IFERROR(IF($E98="PASANTE SENA",0,ROUNDUP((S98*'SUPUESTOS GASTOS'!$D$18),-3)),0) -> 7916000 | V98: =IFERROR(ROUNDUP(S98*SUMIF('SUPUESTOS GASTOS'!$B$24:$B$28,'Anexo 5 Planta y Equipo de trab'!$B98,'SUPUESTOS GASTOS'!$D$24:$D$28),-3),0) -> 1607000 | W98: =IFERROR(IF($E98="PASANTE SENA",0,ROUNDUP(((S98+AD98)*'SUPUESTOS GASTOS'!$D$31),-3)),0) -> 2749000 | X98: =IFERROR(IF($E98="PASANTE SENA",0,ROUNDUP(((S98+AD98)*'SUPUESTOS GASTOS'!$D$32),-3)),0) -> 1375000 | Y98: =IF($C98="E",0,IF($E98="PASANTE SENA",0,IF(K98>=('SUPUESTOS GASTOS'!$D$14*2),0,ROUNDUP(('SUPUESTOS GASTOS'!$D$15/'SUPUESTOS GASTOS'!$D$13)*$H98,-3)))) -> 0 | Z98: =IFERROR(IF($E98="PASANTE SENA",0,ROUNDUP(((S98+AD98)*'SUPUESTOS GASTOS'!$D$33),-3)),0) -> 2062000 | AA98: =IF($E98="PASANTE SENA",0,ROUNDUP(((K98+Q98)*H98)/'SUPUESTOS GASTOS'!$D$12,-3)) -> 5497000 | AB98: =IF($E98="PASANTE SENA",0,ROUNDUP((((AA98)/'SUPUESTOS GASTOS'!$D$12)*H98)*'SUPUESTOS GASTOS'!$D$21,-3)) -> 658000 | AC98: =IF($E98="PASANTE SENA",0,ROUNDUP(((K98+Q98)*H98)/'SUPUESTOS GASTOS'!$D$12,-3)) -> 5497000 | AD98: =IF($E98="PASANTE SENA",0,ROUNDUP((K98*H98)/('SUPUESTOS GASTOS'!$D$12*2),-3)) -> 2749000 | AF98: =ROUNDUP(SUM(S98:AD98),-3) -> 101678000
A99: 5 | B99: 3 | C99: N | E99: PROFESIONAL DE PROPAGACIÓN | F99: 2025-01-07 | G99: 2025-12-31 | H99: 354 | I99: =IF(C99="C",'SUPUESTOS GASTOS'!$D$6*SUMIF('SUPUESTOS GASTOS'!$B$38:$B$47,'Anexo 5 Planta y Equipo de trab'!$A99,'SUPUESTOS GASTOS'!$D$38:$D$47),IF($C99="N",0,IF(C99="E",'SUPUESTOS GASTOS'!$D$6*SUMIF('SUPUESTOS GASTOS'!$B$38:$B$47,'Anexo 5 Planta y Equipo de trab'!$A99,'SUPUESTOS GASTOS'!$D$38:$D$47),""))) -> 0 | J99: =+'SUPUESTOS GASTOS'!$D$10 -> 0.06 | K99: =IF($C99="C",ROUNDUP((I99*J99)+I99,-3),IF($C99="N",ROUNDUP(('SUPUESTOS GASTOS'!$D$6*SUMIF('SUPUESTOS GASTOS'!$B$38:$B$47,'Anexo 5 Planta y Equipo de trab'!$A99,'SUPUESTOS GASTOS'!$D$38:$D$47)*$J99)+'SUPUESTOS GASTOS'!$D$6*SUMIF('SUPUESTOS GASTOS'!$B$38:$B$47,'Anexo 5 Planta y Equipo de trab'!$A99,'SUPUESTOS GASTOS'!$D$38:$D$47),-3),IF($C99="E",0))) -> 3583000 | L99: =IFERROR(IF($E99="PASANTE SENA",ROUNDUP((K99*'SUPUESTOS GASTOS'!$D$20),-3),ROUNDUP((K99*'SUPUESTOS GASTOS'!$D$19),-3)),0) -> 305000 | M99: =IFERROR(IF($E99="PASANTE SENA",0,ROUNDUP((K99*'SUPUESTOS GASTOS'!$D$18),-3)),0) -> 430000 | N99: =IFERROR(ROUNDUP(K99*SUMIF('SUPUESTOS GASTOS'!$B$24:$B$28,'Anexo 5 Planta y Equipo de trab'!$B99,'SUPUESTOS GASTOS'!$D$24:$D$28),-3),0) -> 156000 | O99: =IFERROR(IF($E99="PASANTE SENA",0,ROUNDUP((K99*'SUPUESTOS GASTOS'!$D$31),-3)),0) -> 144000 | P99: =IFERROR(IF($E99="PASANTE SENA",0,ROUNDUP((K99*'SUPUESTOS GASTOS'!$D$32),-3)),0) -> 72000 | Q99: =IF($C99="E",0,IF($E99="PASANTE SENA",0,IF(K99>=('SUPUESTOS GASTOS'!$D$14*2),0,ROUNDUP('SUPUESTOS GASTOS'!$D$15,-3)))) -> 0 | R99: =IFERROR(IF($E99="PASANTE SENA",0,ROUNDUP((K99*'SUPUESTOS GASTOS'!$D$33),-3)),0) -> 108000 | S99: =ROUNDUP((K99/'SUPUESTOS GASTOS'!$D$13)*H99,-3) -> 42280000 | T99: =IFERROR(IF($E99="PASANTE SENA",ROUNDUP((S99*'SUPUESTOS GASTOS'!$D$20),-3),ROUNDUP((S99*'SUPUESTOS GASTOS'!$D$19),-3)),0) -> 3594000 | U99: =IFERROR(IF($E99="PASANTE SENA",0,ROUNDUP((S99*'SUPUESTOS GASTOS'!$D$18),-3)),0) -> 5074000 | V99: =IFERROR(ROUNDUP(S99*SUMIF('SUPUESTOS GASTOS'!$B$24:$B$28,'Anexo 5 Planta y Equipo de trab'!$B99,'SUPUESTOS GASTOS'!$D$24:$D$28),-3),0) -> 1840000 | W99: =IFERROR(IF($E99="PASANTE SENA",0,ROUNDUP(((S99+AD99)*'SUPUESTOS GASTOS'!$D$31),-3)),0) -> 1762000 | X99: =IFERROR(IF($E99="PASANTE SENA",0,ROUNDUP(((S99+AD99)*'SUPUESTOS GASTOS'!$D$32),-3)),0) -> 881000 | Y99: =IF($C99="E",0,IF($E99="PASANTE SENA",0,IF(K99>=('SUPUESTOS GASTOS'!$D$14*2),0,ROUNDUP(('SUPUESTOS GASTOS'!$D$15/'SUPUESTOS GASTOS'!$D$13)*$H99,-3)))) -> 0 | Z99: =IFERROR(IF($E99="PASANTE SENA",0,ROUNDUP(((S99+AD99)*'SUPUESTOS GASTOS'!$D$33),-3)),0) -> 1322000 | AA99: =IF($E99="PASANTE SENA",0,ROUNDUP(((K99+Q99)*H99)/'SUPUESTOS GASTOS'!$D$12,-3)) -> 3524000 | AB99: =IF($E99="PASANTE SENA",0,ROUNDUP((((AA99)/'SUPUESTOS GASTOS'!$D$12)*H99)*'SUPUESTOS GASTOS'!$D$21,-3)) -> 416000 | AC99: =IF($E99="PASANTE SENA",0,ROUNDUP(((K99+Q99)*H99)/'SUPUESTOS GASTOS'!$D$12,-3)) -> 3524000 | AD99: =IF($E99="PASANTE SENA",0,ROUNDUP((K99*H99)/('SUPUESTOS GASTOS'!$D$12*2),-3)) -> 1762000 | AF99: 65979000
A100: 6 | B100: 2 | C100: C | E100: TÉCNICO - PROPAGACIÓN DE LABORATORIO | F100: 2025-01-07 | G100: 2025-12-31 | H100: 354 | I100: =IF(C100="C",'SUPUESTOS GASTOS'!$D$6*SUMIF('SUPUESTOS GASTOS'!$B$38:$B$47,'Anexo 5 Planta y Equipo de trab'!$A100,'SUPUESTOS GASTOS'!$D$38:$D$47),IF($C100="N",0,IF(C100="E",'SUPUESTOS GASTOS'!$D$6*SUMIF('SUPUESTOS GASTOS'!$B$38:$B$47,'Anexo 5 Planta y Equipo de trab'!$A100,'SUPUESTOS GASTOS'!$D$38:$D$47),""))) -> 3120000 | J100: =+'SUPUESTOS GASTOS'!$D$10 -> 0.06 | K100: =IF($C100="C",ROUNDUP((I100*J100)+I100,-3),IF($C100="N",ROUNDUP(('SUPUESTOS GASTOS'!$D$6*SUMIF('SUPUESTOS GASTOS'!$B$38:$B$47,'Anexo 5 Planta y Equipo de trab'!$A100,'SUPUESTOS GASTOS'!$D$38:$D$47)*$J100)+'SUPUESTOS GASTOS'!$D$6*SUMIF('SUPUESTOS GASTOS'!$B$38:$B$47,'Anexo 5 Planta y Equipo de trab'!$A100,'SUPUESTOS GASTOS'!$D$38:$D$47),-3),IF($C100="E",0))) -> 3308000 | L100: =IFERROR(IF($E100="PASANTE SENA",ROUNDUP((K100*'SUPUESTOS GASTOS'!$D$20),-3),ROUNDUP((K100*'SUPUESTOS GASTOS'!$D$19),-3)),0) -> 282000 | M100: =IFERROR(IF($E100="PASANTE SENA",0,ROUNDUP((K100*'SUPUESTOS GASTOS'!$D$18),-3)),0) -> 397000 | N100: =IFERROR(ROUNDUP(K100*SUMIF('SUPUESTOS GASTOS'!$B$24:$B$28,'Anexo 5 Planta y Equipo de trab'!$B100,'SUPUESTOS GASTOS'!$D$24:$D$28),-3),0) -> 81000 | O100: =IFERROR(IF($E100="PASANTE SENA",0,ROUNDUP((K100*'SUPUESTOS GASTOS'!$D$31),-3)),0) -> 133000 | P100: =IFERROR(IF($E100="PASANTE SENA",0,ROUNDUP((K100*'SUPUESTOS GASTOS'!$D$32),-3)),0) -> 67000 | Q100: =IF($C100="E",0,IF($E100="PASANTE SENA",0,IF(K100>=('SUPUESTOS GASTOS'!$D$14*2),0,ROUNDUP('SUPUESTOS GASTOS'!$D$15,-3)))) -> 0 | R100: =IFERROR(IF($E100="PASANTE SENA",0,ROUNDUP((K100*'SUPUESTOS GASTOS'!$D$33),-3)),0) -> 100000 | S100: =ROUNDUP((K100/'SUPUESTOS GASTOS'!$D$13)*H100,-3) -> 39035000 | T100: =IFERROR(IF($E100="PASANTE SENA",ROUNDUP((S100*'SUPUESTOS GASTOS'!$D$20),-3),ROUNDUP((S100*'SUPUESTOS GASTOS'!$D$19),-3)),0) -> 3318000 | U100: =IFERROR(IF($E100="PASANTE SENA",0,ROUNDUP((S100*'SUPUESTOS GASTOS'!$D$18),-3)),0) -> 4685000 | V100: =IFERROR(ROUNDUP(S100*SUMIF('SUPUESTOS GASTOS'!$B$24:$B$28,'Anexo 5 Planta y Equipo de trab'!$B100,'SUPUESTOS GASTOS'!$D$24:$D$28),-3),0) -> 951000 | W100: =IFERROR(IF($E100="PASANTE SENA",0,ROUNDUP(((S100+AD100)*'SUPUESTOS GASTOS'!$D$31),-3)),0) -> 1627000 | X100: =IFERROR(IF($E100="PASANTE SENA",0,ROUNDUP(((S100+AD100)*'SUPUESTOS GASTOS'!$D$32),-3)),0) -> 814000 | Y100: =IF($C100="E",0,IF($E100="PASANTE SENA",0,IF(K100>=('SUPUESTOS GASTOS'!$D$14*2),0,ROUNDUP(('SUPUESTOS GASTOS'!$D$15/'SUPUESTOS GASTOS'!$D$13)*$H100,-3)))) -> 0 | Z100: =IFERROR(IF($E100="PASANTE SENA",0,ROUNDUP(((S100+AD100)*'SUPUESTOS GASTOS'!$D$33),-3)),0) -> 1220000 | AA100: =IF($E100="PASANTE SENA",0,ROUNDUP(((K100+Q100)*H100)/'SUPUESTOS GASTOS'!$D$12,-3)) -> 3253000 | AB100: =IF($E100="PASANTE SENA",0,ROUNDUP((((AA100)/'SUPUESTOS GASTOS'!$D$12)*H100)*'SUPUESTOS GASTOS'!$D$21,-3)) -> 384000 | AC100: =IF($E100="PASANTE SENA",0,ROUNDUP(((K100+Q100)*H100)/'SUPUESTOS GASTOS'!$D$12,-3)) -> 3253000 | AD100: =IF($E100="PASANTE SENA",0,ROUNDUP((K100*H100)/('SUPUESTOS GASTOS'!$D$12*2),-3)) -> 1627000 | AF100: 60167000
A101: 7 | B101: 2 | C101: C | E101: TÉCNICO AUXILIAR DE INVERNADERO | F101: 2025-01-07 | G101: 2025-12-31 | H101: 354 | I101: =IF(C101="C",'SUPUESTOS GASTOS'!$D$6*SUMIF('SUPUESTOS GASTOS'!$B$38:$B$47,'Anexo 5 Planta y Equipo de trab'!$A101,'SUPUESTOS GASTOS'!$D$38:$D$47),IF($C101="N",0,IF(C101="E",'SUPUESTOS GASTOS'!$D$6*SUMIF('SUPUESTOS GASTOS'!$B$38:$B$47,'Anexo 5 Planta y Equipo de trab'!$A101,'SUPUESTOS GASTOS'!$D$38:$D$47),""))) -> 1950000 | J101: =+'SUPUESTOS GASTOS'!$D$10 -> 0.06 | K101: =IF($C101="C",ROUNDUP((I101*J101)+I101,-3),IF($C101="N",ROUNDUP(('SUPUESTOS GASTOS'!$D$6*SUMIF('SUPUESTOS GASTOS'!$B$38:$B$47,'Anexo 5 Planta y Equipo de trab'!$A101,'SUPUESTOS GASTOS'!$D$38:$D$47)*$J101)+'SUPUESTOS GASTOS'!$D$6*SUMIF('SUPUESTOS GASTOS'!$B$38:$B$47,'Anexo 5 Planta y Equipo de trab'!$A101,'SUPUESTOS GASTOS'!$D$38:$D$47),-3),IF($C101="E",0))) -> 2067000 | L101: =IFERROR(IF($E101="PASANTE SENA",ROUNDUP((K101*'SUPUESTOS GASTOS'!$D$20),-3),ROUNDUP((K101*'SUPUESTOS GASTOS'!$D$19),-3)),0) -> 176000 | M101: =IFERROR(IF($E101="PASANTE SENA",0,ROUNDUP((K101*'SUPUESTOS GASTOS'!$D$18),-3)),0) -> 249000 | N101: =IFERROR(ROUNDUP(K101*SUMIF('SUPUESTOS GASTOS'!$B$24:$B$28,'Anexo 5 Planta y Equipo de trab'!$B101,'SUPUESTOS GASTOS'!$D$24:$D$28),-3),0) -> 51000 | O101: =IFERROR(IF($E101="PASANTE SENA",0,ROUNDUP((K101*'SUPUESTOS GASTOS'!$D$31),-3)),0) -> 83000 | P101: =IFERROR(IF($E101="PASANTE SENA",0,ROUNDUP((K101*'SUPUESTOS GASTOS'!$D$32),-3)),0) -> 42000 | Q101: =IF($C101="E",0,IF($E101="PASANTE SENA",0,IF(K101>=('SUPUESTOS GASTOS'!$D$14*2),0,ROUNDUP('SUPUESTOS GASTOS'!$D$15,-3)))) -> 172000 | R101: =IFERROR(IF($E101="PASANTE SENA",0,ROUNDUP((K101*'SUPUESTOS GASTOS'!$D$33),-3)),0) -> 63000 | S101: =ROUNDUP((K101/'SUPUESTOS GASTOS'!$D$13)*H101,-3) -> 24391000 | T101: =IFERROR(IF($E101="PASANTE SENA",ROUNDUP((S101*'SUPUESTOS GASTOS'!$D$20),-3),ROUNDUP((S101*'SUPUESTOS GASTOS'!$D$19),-3)),0) -> 2074000 | U101: =IFERROR(IF($E101="PASANTE SENA",0,ROUNDUP((S101*'SUPUESTOS GASTOS'!$D$18),-3)),0) -> 2927000 | V101: =IFERROR(ROUNDUP(S101*SUMIF('SUPUESTOS GASTOS'!$B$24:$B$28,'Anexo 5 Planta y Equipo de trab'!$B101,'SUPUESTOS GASTOS'!$D$24:$D$28),-3),0) -> 595000 | W101: =IFERROR(IF($E101="PASANTE SENA",0,ROUNDUP(((S101+AD101)*'SUPUESTOS GASTOS'!$D$31),-3)),0) -> 1017000 | X101: =IFERROR(IF($E101="PASANTE SENA",0,ROUNDUP(((S101+AD101)*'SUPUESTOS GASTOS'!$D$32),-3)),0) -> 509000 | Y101: =IF($C101="E",0,IF($E101="PASANTE SENA",0,IF(K101>=('SUPUESTOS GASTOS'!$D$14*2),0,ROUNDUP(('SUPUESTOS GASTOS'!$D$15/'SUPUESTOS GASTOS'!$D$13)*$H101,-3)))) -> 2027000 | Z101: =IFERROR(IF($E101="PASANTE SENA",0,ROUNDUP(((S101+AD101)*'SUPUESTOS GASTOS'!$D$33),-3)),0) -> 763000 | AA101: =IF($E101="PASANTE SENA",0,ROUNDUP(((K101+Q101)*H101)/'SUPUESTOS GASTOS'!$D$12,-3)) -> 2202000 | AB101: =IF($E101="PASANTE SENA",0,ROUNDUP((((AA101)/'SUPUESTOS GASTOS'!$D$12)*H101)*'SUPUESTOS GASTOS'!$D$21,-3)) -> 260000 | AC101: =IF($E101="PASANTE SENA",0,ROUNDUP(((K101+Q101)*H101)/'SUPUESTOS GASTOS'!$D$12,-3)) -> 2202000 | AD101: =IF($E101="PASANTE SENA",0,ROUNDUP((K101*H101)/('SUPUESTOS GASTOS'!$D$12*2),-3)) -> 1017000 | AF101: 39984000
E102: SUB TOTAL SEMILLA CERTIFICADA | K102: =SUM(K98:K101) -> 14470000 | L102: 1232000 | M102: 1738000 | N102: 423000 | O102: 581000 | P102: 292000 | Q102: 172000 | R102: =SUM(R98:R101) -> 437000 | S102: 171667000 | T102: 14593000 | U102: 20602000 | V102: 4993000 | W102: 7155000 | X102: 3579000 | Y102: 2027000 | Z102: 5367000 | AA102: 14476000 | AB102: 1718000 | AC102: 14476000 | AD102: 7155000 | AE102: 0 | AF102: 267808000
E103: CAMPAÑA AL CONSUMO
A104: 2 | B104: 2 | C104: C | E104: DIRECTOR DE MERCADEO | F104: 2025-01-02 | G104: 2025-12-31 | H104: =DAYS360(F104,G104) -> 359 | I104: =IF(C104="C",'SUPUESTOS GASTOS'!$D$6*SUMIF('SUPUESTOS GASTOS'!$B$38:$B$47,'Anexo 5 Planta y Equipo de trab'!$A104,'SUPUESTOS GASTOS'!$D$38:$D$47),IF($C104="N",0,IF(C104="E",'SUPUESTOS GASTOS'!$D$6*SUMIF('SUPUESTOS GASTOS'!$B$38:$B$47,'Anexo 5 Planta y Equipo de trab'!$A104,'SUPUESTOS GASTOS'!$D$38:$D$47),""))) -> 6760000 | J104: =+'SUPUESTOS GASTOS'!$D$10 -> 0.06 | K104: =IF($C104="C",ROUNDUP((I104*J104)+I104,-3),IF($C104="N",ROUNDUP(('SUPUESTOS GASTOS'!$D$6*SUMIF('SUPUESTOS GASTOS'!$B$38:$B$47,'Anexo 5 Planta y Equipo de trab'!$A104,'SUPUESTOS GASTOS'!$D$38:$D$47)*$J104)+'SUPUESTOS GASTOS'!$D$6*SUMIF('SUPUESTOS GASTOS'!$B$38:$B$47,'Anexo 5 Planta y Equipo de trab'!$A104,'SUPUESTOS GASTOS'!$D$38:$D$47),-3),IF($C104="E",0))) -> 7166000 | L104: =IFERROR(IF($E104="PASANTE SENA",ROUNDUP((K104*'SUPUESTOS GASTOS'!$D$20),-3),ROUNDUP((K104*'SUPUESTOS GASTOS'!$D$19),-3)),0) -> 610000 | M104: =IFERROR(IF($E104="PASANTE SENA",0,ROUNDUP((K104*'SUPUESTOS GASTOS'!$D$18),-3)),0) -> 860000 | N104: =IFERROR(ROUNDUP(K104*SUMIF('SUPUESTOS GASTOS'!$B$24:$B$28,'Anexo 5 Planta y Equipo de trab'!$B104,'SUPUESTOS GASTOS'!$D$24:$D$28),-3),0) -> 175000 | O104: =IFERROR(IF($E104="PASANTE SENA",0,ROUNDUP((K104*'SUPUESTOS GASTOS'!$D$31),-3)),0) -> 287000 | P104: =IFERROR(IF($E104="PASANTE SENA",0,ROUNDUP((K104*'SUPUESTOS GASTOS'!$D$32),-3)),0) -> 144000 | Q104: =IF($C104="E",0,IF($E104="PASANTE SENA",0,IF(K104>=('SUPUESTOS GASTOS'!$D$14*2),0,ROUNDUP('SUPUESTOS GASTOS'!$D$15,-3)))) -> 0 | R104: =IFERROR(IF($E104="PASANTE SENA",0,ROUNDUP((K104*'SUPUESTOS GASTOS'!$D$33),-3)),0) -> 215000 | S104: =ROUNDUP((K104/'SUPUESTOS GASTOS'!$D$13)*H104,-3) -> 85754000 | T104: =IFERROR(IF($E104="PASANTE SENA",ROUNDUP((S104*'SUPUESTOS GASTOS'!$D$20),-3),ROUNDUP((S104*'SUPUESTOS GASTOS'!$D$19),-3)),0) -> 7290000 | U104: =IFERROR(IF($E104="PASANTE SENA",0,ROUNDUP((S104*'SUPUESTOS GASTOS'!$D$18),-3)),0) -> 10291000 | V104: =IFERROR(ROUNDUP(S104*SUMIF('SUPUESTOS GASTOS'!$B$24:$B$28,'Anexo 5 Planta y Equipo de trab'!$B104,'SUPUESTOS GASTOS'!$D$24:$D$28),-3),0) -> 2089000 | W104: =IFERROR(IF($E104="PASANTE SENA",0,ROUNDUP(((S104+AD104)*'SUPUESTOS GASTOS'!$D$31),-3)),0) -> 3574000 | X104: =IFERROR(IF($E104="PASANTE SENA",0,ROUNDUP(((S104+AD104)*'SUPUESTOS GASTOS'!$D$32),-3)),0) -> 1787000 | Y104: =IF($C104="E",0,IF($E104="PASANTE SENA",0,IF(K104>=('SUPUESTOS GASTOS'!$D$14*2),0,ROUNDUP(('SUPUESTOS GASTOS'!$D$15/'SUPUESTOS GASTOS'!$D$13)*$H104,-3)))) -> 0 | Z104: =IFERROR(IF($E104="PASANTE SENA",0,ROUNDUP(((S104+AD104)*'SUPUESTOS GASTOS'!$D$33),-3)),0) -> 2680000 | AA104: =IF($E104="PASANTE SENA",0,ROUNDUP(((K104+Q104)*H104)/'SUPUESTOS GASTOS'!$D$12,-3)) -> 7147000 | AB104: =IF($E104="PASANTE SENA",0,ROUNDUP((((AA104)/'SUPUESTOS GASTOS'!$D$12)*H104)*'SUPUESTOS GASTOS'!$D$21,-3)) -> 856000 | AC104: =IF($E104="PASANTE SENA",0,ROUNDUP(((K104+Q104)*H104)/'SUPUESTOS GASTOS'!$D$12,-3)) -> 7147000 | AD104: =IF($E104="PASANTE SENA",0,ROUNDUP((K104*H104)/('SUPUESTOS GASTOS'!$D$12*2),-3)) -> 3574000 | AF104: =ROUNDUP(SUM(S104:AD104),-3) -> 132189000
A105: 4 | B105: 3 | C105: N | E105: SUPERVISOR DE MERCADEO Y DIVULGACIÓN | F105: 2025-01-02 | G105: 2025-12-31 | H105: 359 | I105: =IF(C105="C",'SUPUESTOS GASTOS'!$D$6*SUMIF('SUPUESTOS GASTOS'!$B$38:$B$47,'Anexo 5 Planta y Equipo de trab'!$A105,'SUPUESTOS GASTOS'!$D$38:$D$47),IF($C105="N",0,IF(C105="E",'SUPUESTOS GASTOS'!$D$6*SUMIF('SUPUESTOS GASTOS'!$B$38:$B$47,'Anexo 5 Planta y Equipo de trab'!$A105,'SUPUESTOS GASTOS'!$D$38:$D$47),""))) -> 0 | J105: =+'SUPUESTOS GASTOS'!$D$10 -> 0.06 | K105: =IF($C105="C",ROUNDUP((I105*J105)+I105,-3),IF($C105="N",ROUNDUP(('SUPUESTOS GASTOS'!$D$6*SUMIF('SUPUESTOS GASTOS'!$B$38:$B$47,'Anexo 5 Planta y Equipo de trab'!$A105,'SUPUESTOS GASTOS'!$D$38:$D$47)*$J105)+'SUPUESTOS GASTOS'!$D$6*SUMIF('SUPUESTOS GASTOS'!$B$38:$B$47,'Anexo 5 Planta y Equipo de trab'!$A105,'SUPUESTOS GASTOS'!$D$38:$D$47),-3),IF($C105="E",0))) -> 4134000 | L105: =IFERROR(IF($E105="PASANTE SENA",ROUNDUP((K105*'SUPUESTOS GASTOS'!$D$20),-3),ROUNDUP((K105*'SUPUESTOS GASTOS'!$D$19),-3)),0) -> 352000 | M105: =IFERROR(IF($E105="PASANTE SENA",0,ROUNDUP((K105*'SUPUESTOS GASTOS'!$D$18),-3)),0) -> 497000 | N105: =IFERROR(ROUNDUP(K105*SUMIF('SUPUESTOS GASTOS'!$B$24:$B$28,'Anexo 5 Planta y Equipo de trab'!$B105,'SUPUESTOS GASTOS'!$D$24:$D$28),-3),0) -> 180000 | O105: =IFERROR(IF($E105="PASANTE SENA",0,ROUNDUP((K105*'SUPUESTOS GASTOS'!$D$31),-3)),0) -> 166000 | P105: =IFERROR(IF($E105="PASANTE SENA",0,ROUNDUP((K105*'SUPUESTOS GASTOS'!$D$32),-3)),0) -> 83000 | Q105: =IF($C105="E",0,IF($E105="PASANTE SENA",0,IF(K105>=('SUPUESTOS GASTOS'!$D$14*2),0,ROUNDUP('SUPUESTOS GASTOS'!$D$15,-3)))) -> 0 | R105: =IFERROR(IF($E105="PASANTE SENA",0,ROUNDUP((K105*'SUPUESTOS GASTOS'!$D$33),-3)),0) -> 125000 | S105: =ROUNDUP((K105/'SUPUESTOS GASTOS'!$D$13)*H105,-3) -> 49471000 | T105: =IFERROR(IF($E105="PASANTE SENA",ROUNDUP((S105*'SUPUESTOS GASTOS'!$D$20),-3),ROUNDUP((S105*'SUPUESTOS GASTOS'!$D$19),-3)),0) -> 4206000 | U105: =IFERROR(IF($E105="PASANTE SENA",0,ROUNDUP((S105*'SUPUESTOS GASTOS'!$D$18),-3)),0) -> 5937000 | V105: =IFERROR(ROUNDUP(S105*SUMIF('SUPUESTOS GASTOS'!$B$24:$B$28,'Anexo 5 Planta y Equipo de trab'!$B105,'SUPUESTOS GASTOS'!$D$24:$D$28),-3),0) -> 2152000 | W105: =IFERROR(IF($E105="PASANTE SENA",0,ROUNDUP(((S105+AD105)*'SUPUESTOS GASTOS'!$D$31),-3)),0) -> 2062000 | X105: =IFERROR(IF($E105="PASANTE SENA",0,ROUNDUP(((S105+AD105)*'SUPUESTOS GASTOS'!$D$32),-3)),0) -> 1031000 | Y105: =IF($C105="E",0,IF($E105="PASANTE SENA",0,IF(K105>=('SUPUESTOS GASTOS'!$D$14*2),0,ROUNDUP(('SUPUESTOS GASTOS'!$D$15/'SUPUESTOS GASTOS'!$D$13)*$H105,-3)))) -> 0 | Z105: =IFERROR(IF($E105="PASANTE SENA",0,ROUNDUP(((S105+AD105)*'SUPUESTOS GASTOS'!$D$33),-3)),0) -> 1546000 | AA105: =IF($E105="PASANTE SENA",0,ROUNDUP(((K105+Q105)*H105)/'SUPUESTOS GASTOS'!$D$12,-3)) -> 4123000 | AB105: =IF($E105="PASANTE SENA",0,ROUNDUP((((AA105)/'SUPUESTOS GASTOS'!$D$12)*H105)*'SUPUESTOS GASTOS'!$D$21,-3)) -> 494000 | AC105: =IF($E105="PASANTE SENA",0,ROUNDUP(((K105+Q105)*H105)/'SUPUESTOS GASTOS'!$D$12,-3)) -> 4123000 | AD105: =IF($E105="PASANTE SENA",0,ROUNDUP((K105*H105)/('SUPUESTOS GASTOS'!$D$12*2),-3)) -> 2062000 | AF105: 77207000
